Workbook

Sheet Data Input Instructions (hidden)
A3: Worksheet ID | B3: Worksheet | C3: Input Data Notes
A4: 1 | B4: Data Current Rates | C4: R2 Service Charge should already be net of RRRP credit
A5: 1 | B5: Data Current Rates | C5: Demand billed RTSR should already be loss adjusted
A6: 2 | B6: Data Proposed Rates | C6: Mapped from Draft Rates file prepared for Claude
A7: 2 | B7: Data Proposed Rates | C7: Row 5 with header name TEXT is precedent to templates; changes to TEXT need to reflected in templates
A8: 2 | B8: Data Proposed Rates | C8: Templates are set up with 2-dimension vlookups so it will accommodate inserted/deleted rows and/or columns
A9: 3 | B9: Data Billing Quantities | C9: Row 4 with header name TEXT is precedent to templates; changes to TEXT need to reflected in templates
A10: 3 | B10: Data Billing Quantities | C10: Templates are set up with 2-dimension vlookups so it will accommodate inserted/deleted rows and/or columns
A11: 4 | B11: Data Pass Through | C11: Changes to Pass Through rates can be manually input on this sheet, which is precedent to the templates
A12: 4 | B12: Data Pass Through | C12: Links to templates from Column A TEXT; any changes in the TEXT of the charge names must be reflected in the templates
A13: 5 | B13: Data BI List | C13: Instruction Sheet for macro to create individual bill impact worksheets
A14: 5 | B14: Data BI List | C14: Need to MANUALLY update Test Year to appear as header on all bill impact worksheets
A15: 6 | B15: Data BI Summary | C15: This replaces the need for cell references in summary sheet, and displays value for totals so rows can be added to templates and worksheets without having to update the summary sheet
B16: Bill Impact Summary | C16: This file has 2 hidden columns needed to link to worksheets; see Col E and F

Sheet Data Current Rates (hidden)
A1: Approved Jan 1 2024 Rates
A3: 1 | B3: 2 | C3: 3 | D3: 4 | E3: 5 | F3: 6 | G3: 7 | I3: 8 | J3: 9 | K3: 10 | L3: 11 | M3: 12 | N3: 13 | O3: 14 | P3: 15 | Q3: 16 | R3: 17 | S3: 18
A4: Rate Class | B4: Proposed Fixed Charge ($/month) | C4: Proposed Volumetric Charge ($/kWh or $/kW) | D4: Proposed Group 1 DVA Rider - Volumetric ($/kWh or $/kW) (2023) | E4: Porposed Group 1 DVA Rider - Volumetric Applicable to Non-WMP Only ($/kWh or $/kW) (2023) | F4: Proposed Rate Rider for Disposition of Global Adjustment (Non WMP, Non-RPP, Non-LDC, and Class B) ($/kWh) (2023) | G4: Proposed Group 1 DVA Rider - Volumetric ($/kWh or $/kW) (2024) | H4: Porposed Rate Rider for Account 1595 - for HONI-DX Only | I4: Porposed Group 1 DVA Rider - Volumetric Applicable to Non-WMP Only ($/kWh or $/kW) (2024) | J4: Proposed Rate Rider for Disposition of Global Adjustment (Non WMP, Non-RPP, Non-LDC, and Class B) ($/kWh) (2024) | K4: Vol CBR-B Rider ($/kWh or $/kW) - Non-WMP, Class B Only (2024) | L4: Fixed 1592 VA Rider for Acq ($/month) | M4: Vol 1592 VA Rider for Acq ($/kWh or $/kW) | N4: Proposed Group 2 Rate Rider - Fixed ($/month) | O4: Proposed Group 2 Rate Rider - Volumetric ($/kWh or $/kW) | P4: Proposed Base Rate Adjustment for Past Tax Amounts - Fixed ($/month) | Q4: Proposed Base Rate Adjustment for Past Tax Amounts - Volumetric ($/kWh or $/kW) | R4: Proposed RTSR-NW ($/kWh or $/kW) | S4: Proposed RTSR-CONN ($/kWh or $/kW)
A5: Rate as shown on Bill Impact Sheet | B5: Service Charge | C5: Distribution Volumetric Charge | D5: Group 1 Volumetric DVA Rider (General) (2023) | E5: Group 1 Volumetric Deferral/Variance Account Rider (Sub-Account RSVA Wholesale Market Service Charge & RSVA Power) (2023) | F5: Group 1 Volumetric Deferral/Variance Account Rider (Sub-Account Global Adjustment) (2023) | G5: Group 1 Volumetric DVA Rider (General) (2024) | H5: Group 1 Volumetric DVA Rider (Excl 1595) (2024) | I5: Group 1 Volumetric Deferral/Variance Account Rider (Sub-Account RSVA Wholesale Market Service Charge & RSVA Power) (2024) | J5: Group 1 Volumetric Deferral/Variance Account Rider (Sub-Account Global Adjustment) (2024) | K5: Group 1 Volumetric Deferral/Variance Account Rider (Sub-Account CBR) (2024) | L5: Fixed Rider for Account 1592 | M5: Volumetric Rider for Account 1592 | N5: Group 2 Fixed DVA Rider | O5: Group 2 Volumetric DVA Rider | P5: Fixed Base Rate Adjustment to Recover Past Tax Amounts | Q5: Volumetric Base Rate Adjustment to Recover Past Tax Amounts | R5: Retail Transmission Rate – Network Service Rate | S5: Retail Transmission Rate – Line and Transformation Connection Service Rate
A6: Rounding Factor | B6: 2 | C6: 4 | D6: 4 | E6: 4 | F6: 4 | G6: 4 | H6: 4 | I6: 4 | J6: 4 | K6: 4 | L6: 2 | M6: 4 | N6: 2 | O6: 4 | P6: 2 | Q6: 4 | R6: 4 | S6: 4
A7: UR | B7: 40 | C7: 0 | D7: -0.0007 | E7: 0 | F7: -0.0009 | N7: -0.11 | R7: 0.0126 | S7: 0.0093
A8: Seas-UR | B8: 40 | C8: 0 | D8: -0.0007 | E8: 0 | F8: -0.0009 | N8: -0.11 | R8: 0.0126 | S8: 0.0093
A9: R1 | B9: 68.3 | C9: 0 | D9: -0.0007 | E9: 0 | F9: -0.0009 | N9: -0.21 | R9: 0.0118 | S9: 0.0087
A10: Seas-R1 | B10: 68.3 | C10: 0 | D10: -0.0007 | E10: 0 | F10: -0.0009 | N10: -0.21 | R10: 0.0118 | S10: 0.0087
A11: R2 | B11: 78.09 | C11: 0.0126 | D11: -0.0007 | E11: 0 | F11: -0.0009 | N11: -0.44 | R11: 0.0109 | S11: 0.0082
A12: Seas-R2 | B12: 73.88 | C12: 0.0126 | D12: -0.0007 | E12: 0 | F12: -0.0009 | N12: -0.44 | R12: 0.0109 | S12: 0.0082
A13: GSe | B13: 32.78 | C13: 0.0731 | D13: -0.0007 | E13: 0 | F13: -0.0009 | O13: -0.0003 | R13: 0.0093 | S13: 0.0074
A14: UGe | B14: 25.51 | C14: 0.0352 | D14: -0.0007 | E14: 0 | F14: -0.0009 | O14: -0.0001 | R14: 0.0099 | S14: 0.0078
A15: St Lgt | B15: 3.27 | C15: 0.1186 | D15: -0.0007 | E15: 0 | F15: -0.0009 | O15: -0.0004 | R15: 0.0068 | S15: 0.0054
A16: Sen Lgt | B16: 3.29 | C16: 0.1816 | D16: -0.0007 | E16: 0 | F16: -0.0009 | O16: -0.0005 | R16: 0.0068 | S16: 0.0054
A17: USL | B17: 38.29 | C17: 0.0292 | D17: -0.0007 | E17: 0 | F17: -0.0009 | O17: -0.0003 | R17: 0.0079 | S17: 0.0059
A18: GSd | B18: 105.55 | C18: 20.5366 | D18: -0.0855 | E18: -0.1195 | F18: -0.0009 | O18: -0.071 | R18: 3.0151 | S18: 2.3614
A19: UGd | B19: 96.47 | C19: 11.931 | D19: -0.1053 | E19: -0.1473 | F19: -0.0009 | O19: -0.0421 | R19: 3.854 | S19: 2.9665
A20: Dgen | B20: 199.26 | C20: 12.8895 | D20: -0.0394 | E20: -0.0565 | F20: -0.0009 | O20: -0.093 | R20: 1.6547 | S20: 1.0131
A21: ST | B21: 1241.87 | C21: 1.6301 | D21: -0.134 | E21: -0.188 | F21: -0.0009 | O21: -0.0072 | R21: 5.0773 | S21: 4.0924
A22: AUR | B22: 33.03 | C22: 0 | D22: -0.0007 | E22: 0 | F22: -0.0009 | R22: 0.013 | S22: 0.0096
A23: AUGe | B23: 26.36 | C23: 0.0165 | D23: -0.0007 | E23: 0 | F23: -0.0009 | R23: 0.01 | S23: 0.0078
A24: AUGd | B24: 146.47 | C24: 3.0288 | D24: -0.0972 | E24: -0.1351 | F24: -0.0009 | R24: 3.4934 | S24: 2.6804
A25: AR | B25: 40.1 | C25: 0 | D25: -0.0007 | E25: 0 | F25: -0.0009 | R25: 0.0124 | S25: 0.0093
A26: AGSe | B26: 39.96 | C26: 0.0201 | D26: -0.0007 | E26: 0 | F26: -0.0009 | R26: 0.0098 | S26: 0.0076
A27: AGSd | B27: 170.26 | C27: 4.908 | D27: -0.098 | E27: -0.1364 | F27: -0.0009 | R27: 3.0669 | S27: 2.4123
A28: AUR-WHSI | B28: 33.03 | C28: 0 | D28: -0.0009 | E28: 0 | F28: -0.0009 | L28: -0.4 | R28: 0.013 | S28: 0.0096
A29: AUGe-WHSI | B29: 26.36 | C29: 0.0165 | D29: -0.0009 | E29: 0 | F29: -0.0009 | M29: -0.0003 | R29: 0.01 | S29: 0.0078
A30: AUGd-WHSI | B30: 146.47 | C30: 3.0288 | D30: -0.0645 | E30: -0.1351 | F30: -0.0009 | M30: -0.0392 | R30: =R24 -> 3.4934 | S30: =S24 -> 2.6804
A31: ST-WHSI | B31: 1241.87 | C31: 1.6301 | D31: -0.1063 | E31: -0.188 | F31: -0.0009 | M31: -0.0438 | R31: =R21 -> 5.0773 | S31: =S21 -> 4.0924
A32: St Lgt-WHSI | B32: 3.27 | C32: 0.1186 | D32: -0.0006 | E32: 0 | F32: -0.0009 | M32: -0.0013 | R32: 0.0068 | S32: 0.0054
A33: USL-WHSI | B33: 38.29 | C33: 0.0292 | D33: -0.0009 | E33: 0 | F33: -0.0009 | M33: -0.0003 | R33: 0.0079 | S33: 0.0059
A34: AR-NPDI | B34: 40.1 | C34: 0 | D34: -0.0008 | E34: 0 | F34: -0.0009 | L34: -0.43 | R34: 0.0124 | S34: 0.0093
A35: AGSe-NPDI | B35: 39.96 | C35: 0.0201 | D35: -0.0008 | E35: 0 | F35: -0.0009 | M35: -0.0004 | R35: 0.0098 | S35: 0.0076
A36: AGSd-NPDI | B36: 170.26 | C36: 4.908 | D36: -0.0653 | E36: -0.1364 | F36: -0.0009 | M36: -0.0618 | R36: =R27 -> 3.0669 | S36: =S27 -> 2.4123
A37: St Lgt-NPDI | B37: 3.27 | C37: 0.1186 | D37: -0.0011 | E37: 0 | F37: -0.0009 | M37: -0.0011 | R37: 0.0068 | S37: 0.0054
A38: Sen Lgt-NPDI | B38: 3.29 | C38: 0.1816 | D38: -0.0012 | E38: 0 | F38: -0.0009 | M38: -0.0018 | R38: 0.0068 | S38: 0.0054
A39: USL-NPDI | B39: 38.29 | C39: 0.0292 | D39: -0.0014 | E39: 0 | F39: -0.0009 | M39: -0.0008 | R39: 0.0079 | S39: 0.0059
A40: AR-HCHI | B40: 40.1 | C40: 0 | D40: -0.0007 | E40: 0 | F40: -0.0009 | L40: -0.46 | R40: 0.0124 | S40: 0.0093
A41: AGSe-HCHI | B41: 39.96 | C41: 0.0201 | D41: -0.0007 | E41: 0 | F41: -0.0009 | M41: -0.0004 | R41: 0.0098 | S41: 0.0076
A42: AGSd-HCHI | B42: 170.26 | C42: 4.908 | D42: -0.098 | E42: -0.1364 | F42: -0.0009 | M42: -0.0603 | R42: =R27 -> 3.0669 | S42: =S27 -> 2.4123
A43: St Lgt-HCHI | B43: 3.27 | C43: 0.1186 | D43: -0.0007 | E43: 0 | F43: -0.0009 | M43: -0.0028 | R43: 0.0068 | S43: 0.0054
A44: Sen Lgt-HCHI | B44: 3.29 | C44: 0.1816 | D44: -0.0007 | E44: 0 | F44: -0.0009 | M44: -0.0055 | R44: 0.0068 | S44: 0.0054
A45: USL-HCHI | B45: 38.29 | C45: 0.0292 | D45: -0.0007 | E45: 0 | F45: -0.0009 | M45: -0.0007 | R45: 0.0079 | S45: 0.0059

Sheet Data Proposed Rates (hidden)
A1: Porposed July 1, 2024 Rates
A3: 1 | B3: 2 | C3: 3 | D3: 4 | E3: 5 | F3: 6 | G3: 7 | I3: 8 | J3: 9 | K3: 10 | L3: 11 | M3: 12 | N3: 13 | O3: 14 | P3: 15 | Q3: 16 | R3: 17 | S3: 18
A4: Rate Class | B4: Proposed Fixed Charge ($/month) | C4: Proposed Volumetric Charge ($/kWh or $/kW) | D4: Proposed Group 1 DVA Rider - Volumetric ($/kWh or $/kW) (2023) | E4: Porposed Group 1 DVA Rider - Volumetric Applicable to Non-WMP Only ($/kWh or $/kW) (2023) | F4: Proposed Rate Rider for Disposition of Global Adjustment (Non WMP, Non-RPP, Non-LDC, and Class B) ($/kWh) (2023) | G4: Proposed Group 1 DVA Rider - Volumetric ($/kWh or $/kW) (2024) | H4: Porposed Rate Rider for Account 1595 - for HONI-DX Only | I4: Porposed Group 1 DVA Rider - Volumetric Applicable to Non-WMP Only ($/kWh or $/kW) (2024) | J4: Proposed Rate Rider for Disposition of Global Adjustment (Non WMP, Non-RPP, Non-LDC, and Class B) ($/kWh) (2024) | K4: Vol CBR-B Rider ($/kWh or $/kW) - Non-WMP, Class B Only (2024) | L4: Fixed 1592 VA Rider for Acq ($/month) | M4: Vol 1592 VA Rider for Acq ($/kWh or $/kW) | N4: Proposed Group 2 Rate Rider - Fixed ($/month) | O4: Proposed Group 2 Rate Rider - Volumetric ($/kWh or $/kW) | P4: Proposed Base Rate Adjustment for Past Tax Amounts - Fixed ($/month) | Q4: Proposed Base Rate Adjustment for Past Tax Amounts - Volumetric ($/kWh or $/kW) | R4: Proposed RTSR-NW ($/kWh or $/kW) | S4: Proposed RTSR-CONN ($/kWh or $/kW)
A5: Rate as shown on Bill Impact Sheet | B5: Service Charge | C5: Distribution Volumetric Charge | D5: Group 1 Volumetric DVA Rider (General) (2023) | E5: Group 1 Volumetric Deferral/Variance Account Rider (Sub-Account RSVA Wholesale Market Service Charge & RSVA Power) (2023) | F5: Group 1 Volumetric Deferral/Variance Account Rider (Sub-Account Global Adjustment) (2023) | G5: Group 1 Volumetric DVA Rider (General) (2024) | H5: Group 1 Volumetric DVA Rider (Excl 1595) (2024) | I5: Group 1 Volumetric Deferral/Variance Account Rider (Sub-Account RSVA Wholesale Market Service Charge & RSVA Power) (2024) | J5: Group 1 Volumetric Deferral/Variance Account Rider (Sub-Account Global Adjustment) (2024) | K5: Group 1 Volumetric Deferral/Variance Account Rider (Sub-Account CBR) (2024) | L5: Fixed Rider for Account 1592 | M5: Volumetric Rider for Account 1592 | N5: Group 2 Fixed DVA Rider | O5: Group 2 Volumetric DVA Rider | P5: Fixed Base Rate Adjustment to Recover Past Tax Amounts | Q5: Volumetric Base Rate Adjustment to Recover Past Tax Amounts | R5: Retail Transmission Rate – Network Service Rate | S5: Retail Transmission Rate – Line and Transformation Connection Service Rate
A6: Rounding Factor | B6: 2 | C6: 4 | D6: 4 | E6: 4 | F6: 4 | G6: 4 | H6: 4 | I6: 4 | J6: 4 | K6: 4 | L6: 2 | M6: 4 | N6: 2 | O6: 4 | P6: 2 | Q6: 4 | R6: 4 | S6: 4
A7: UR | B7: 40 | C7: 0 | D7: -0.0007 | E7: 0 | F7: -0.0009 | G7: 0.0013 | H7: 0.0011 | I7: 0 | J7: -0.0045 | K7: -0.0006 | N7: -0.11 | R7: 0.0126 | S7: 0.0093
A8: Seas-UR | B8: 40 | C8: 0 | D8: -0.0007 | E8: 0 | F8: -0.0009 | G8: 0.0013 | H8: 0.0011 | I8: 0 | J8: -0.0045 | K8: -0.0006 | N8: -0.11 | R8: 0.0126 | S8: 0.0093
A9: R1 | B9: 68.3 | C9: 0 | D9: -0.0007 | E9: 0 | F9: -0.0009 | G9: 0.0013 | H9: 0.0011 | I9: 0 | J9: -0.0045 | K9: -0.0006 | N9: -0.21 | R9: 0.0118 | S9: 0.0087
A10: Seas-R1 | B10: 68.3 | C10: 0 | D10: -0.0007 | E10: 0 | F10: -0.0009 | G10: 0.0013 | H10: 0.0011 | I10: 0 | J10: -0.0045 | K10: -0.0006 | N10: -0.21 | R10: 0.0118 | S10: 0.0087
A11: R2 | B11: 78.09 | C11: 0.0126 | D11: -0.0007 | E11: 0 | F11: -0.0009 | G11: 0.0014 | H11: 0.0012 | I11: 0 | J11: -0.0045 | K11: -0.0006 | N11: -0.44 | R11: 0.0109 | S11: 0.0082
A12: Seas-R2 | B12: 73.88 | C12: 0.0126 | D12: -0.0007 | E12: 0 | F12: -0.0009 | G12: 0.0014 | H12: 0.0012 | I12: 0 | J12: -0.0045 | K12: -0.0006 | N12: -0.44 | R12: 0.0109 | S12: 0.0082
A13: GSe | B13: 32.78 | C13: 0.0731 | D13: -0.0007 | E13: 0 | F13: -0.0009 | G13: 0.0018 | H13: 0.0014 | I13: 0 | J13: -0.0045 | K13: -0.0006 | O13: -0.0003 | R13: 0.0093 | S13: 0.0074
A14: UGe | B14: 25.51 | C14: 0.0352 | D14: -0.0007 | E14: 0 | F14: -0.0009 | G14: 0.0018 | H14: 0.0014 | I14: 0 | J14: -0.0045 | K14: -0.0006 | O14: -0.0001 | R14: 0.0099 | S14: 0.0078
A15: St Lgt | B15: 3.27 | C15: 0.1186 | D15: -0.0007 | E15: 0 | F15: -0.0009 | G15: 0.0025 | H15: 0.0015 | I15: 0 | J15: -0.0045 | K15: -0.0006 | O15: -0.0004 | R15: 0.0068 | S15: 0.0054
A16: Sen Lgt | B16: 3.29 | C16: 0.1816 | D16: -0.0007 | E16: 0 | F16: -0.0009 | G16: 0.0018 | H16: 0.0015 | I16: 0 | J16: -0.0045 | K16: -0.0006 | O16: -0.0005 | R16: 0.0068 | S16: 0.0054
A17: USL | B17: 38.29 | C17: 0.0292 | D17: -0.0007 | E17: 0 | F17: -0.0009 | G17: 0.0017 | H17: 0.0015 | I17: 0 | J17: -0.0045 | K17: -0.0006 | O17: -0.0003 | R17: 0.0079 | S17: 0.0059
A18: GSd | B18: 105.55 | C18: 20.5366 | D18: -0.0855 | E18: -0.1195 | F18: -0.0009 | G18: 0.6503 | H18: 0.2611 | I18: 0.2159 | J18: -0.0045 | K18: -0.1739 | O18: -0.071 | R18: 3.0151 | S18: 2.3614
A19: UGd | B19: 96.47 | C19: 11.931 | D19: -0.1053 | E19: -0.1473 | F19: -0.0009 | G19: 0.6629 | H19: 0.3216 | I19: 0.2661 | J19: -0.0045 | K19: -0.2159 | O19: -0.0421 | R19: 3.854 | S19: 2.9665
A20: Dgen | B20: 199.26 | C20: 12.8895 | D20: -0.0394 | E20: -0.0565 | F20: -0.0009 | G20: 0.2948 | H20: 0.1204 | I20: 0.102 | J20: -0.0045 | K20: -0.0822 | O20: -0.093 | R20: 1.6547 | S20: 1.0131
A21: ST | B21: 1241.87 | C21: 1.6301 | D21: -0.134 | E21: -0.188 | F21: -0.0009 | G21: 0.3853 | H21: 0.4094 | I21: 0.34 | J21: -0.0045 | K21: -0.2481 | O21: -0.0072 | R21: 5.0773 | S21: 4.0924
A22: AUR | B22: 33.03 | C22: 0 | D22: -0.0007 | E22: 0 | F22: -0.0009 | G22: 0.0011 | H22: 0.0011 | I22: 0 | J22: -0.0045 | K22: -0.0006 | R22: 0.013 | S22: 0.0096
A23: AUGe | B23: 26.36 | C23: 0.0165 | D23: -0.0007 | E23: 0 | F23: -0.0009 | G23: 0.0014 | H23: 0.0014 | I23: 0 | J23: -0.0045 | K23: -0.0006 | R23: 0.01 | S23: 0.0078
A24: AUGd | B24: 146.47 | C24: 3.0288 | D24: -0.0972 | E24: -0.1351 | F24: -0.0009 | G24: 0.2969 | H24: 0.2969 | I24: 0.2442 | J24: -0.0045 | K24: -0.1981 | R24: 3.4934 | S24: 2.6804
A25: AR | B25: 40.1 | C25: 0 | D25: -0.0007 | E25: 0 | F25: -0.0009 | G25: 0.0011 | H25: 0.0011 | I25: 0 | J25: -0.0045 | K25: -0.0006 | R25: 0.0124 | S25: 0.0093
A26: AGSe | B26: 39.96 | C26: 0.0201 | D26: -0.0007 | E26: 0 | F26: -0.0009 | G26: 0.0014 | H26: 0.0014 | I26: 0 | J26: -0.0045 | K26: -0.0006 | R26: 0.0098 | S26: 0.0076
A27: AGSd | B27: 170.26 | C27: 4.908 | D27: -0.098 | E27: -0.1364 | F27: -0.0009 | G27: 0.2995 | H27: 0.2995 | I27: 0.2454 | J27: -0.0045 | K27: -0.1966 | R27: 3.0669 | S27: 2.4123
A28: AUR-WHSI | B28: 33.03 | C28: 0 | D28: -0.0009 | E28: 0 | F28: -0.0009 | G28: 0.0011 | H28: 0.0011 | I28: 0 | J28: -0.0045 | K28: -0.0006 | L28: -0.4 | R28: 0.013 | S28: 0.0096
A29: AUGe-WHSI | B29: 26.36 | C29: 0.0165 | D29: -0.0009 | E29: 0 | F29: -0.0009 | G29: 0.0014 | H29: 0.0014 | I29: 0 | J29: -0.0045 | K29: -0.0006 | M29: -0.0003 | R29: 0.01 | S29: 0.0078
A30: AUGd-WHSI | B30: 146.47 | C30: 3.0288 | D30: -0.0645 | E30: -0.1351 | F30: -0.0009 | G30: 0.2969 | H30: 0.2969 | I30: 0.2442 | J30: -0.0045 | K30: -0.1981 | M30: -0.0392 | R30: =R24 -> 3.4934 | S30: =S24 -> 2.6804
A31: ST-WHSI | B31: 1241.87 | C31: 1.6301 | D31: -0.1063 | E31: -0.188 | F31: -0.0009 | G31: 0.4094 | H31: 0.4094 | I31: 0.34 | J31: -0.0045 | K31: -0.2481 | M31: -0.0438 | R31: =R21 -> 5.0773 | S31: =S21 -> 4.0924
A32: St Lgt-WHSI | B32: 3.27 | C32: 0.1186 | D32: -0.0006 | E32: 0 | F32: -0.0009 | G32: 0.0015 | H32: 0.0015 | I32: 0 | J32: -0.0045 | K32: -0.0006 | M32: -0.0013 | R32: 0.0068 | S32: 0.0054
A33: USL-WHSI | B33: 38.29 | C33: 0.0292 | D33: -0.0009 | E33: 0 | F33: -0.0009 | G33: 0.0015 | H33: 0.0015 | I33: 0 | J33: -0.0045 | K33: -0.0006 | M33: -0.0003 | R33: 0.0079 | S33: 0.0059
A34: AR-NPDI | B34: 40.1 | C34: 0 | D34: -0.0008 | E34: 0 | F34: -0.0009 | G34: 0.0011 | H34: 0.0011 | I34: 0 | J34: -0.0045 | K34: -0.0006 | L34: -0.43 | R34: 0.0124 | S34: 0.0093
A35: AGSe-NPDI | B35: 39.96 | C35: 0.0201 | D35: -0.0008 | E35: 0 | F35: -0.0009 | G35: 0.0014 | H35: 0.0014 | I35: 0 | J35: -0.0045 | K35: -0.0006 | M35: -0.0004 | R35: 0.0098 | S35: 0.0076
A36: AGSd-NPDI | B36: 170.26 | C36: 4.908 | D36: -0.0653 | E36: -0.1364 | F36: -0.0009 | G36: 0.2995 | H36: 0.2995 | I36: 0.2454 | J36: -0.0045 | K36: -0.1966 | M36: -0.0618 | R36: =R27 -> 3.0669 | S36: =S27 -> 2.4123
A37: St Lgt-NPDI | B37: 3.27 | C37: 0.1186 | D37: -0.0011 | E37: 0 | F37: -0.0009 | G37: 0.0015 | H37: 0.0015 | I37: 0 | J37: -0.0045 | K37: -0.0006 | M37: -0.0011 | R37: 0.0068 | S37: 0.0054
A38: Sen Lgt-NPDI | B38: 3.29 | C38: 0.1816 | D38: -0.0012 | E38: 0 | F38: -0.0009 | G38: 0.0015 | H38: 0.0015 | I38: 0 | J38: -0.0045 | K38: -0.0006 | M38: -0.0018 | R38: 0.0068 | S38: 0.0054
A39: USL-NPDI | B39: 38.29 | C39: 0.0292 | D39: -0.0014 | E39: 0 | F39: -0.0009 | G39: 0.0015 | H39: 0.0015 | I39: 0 | J39: -0.0045 | K39: -0.0006 | M39: -0.0008 | R39: 0.0079 | S39: 0.0059
A40: AR-HCHI | B40: 40.1 | C40: 0 | D40: -0.0007 | E40: 0 | F40: -0.0009 | G40: 0.0011 | H40: 0.0011 | I40: 0 | J40: -0.0045 | K40: -0.0006 | L40: -0.46 | R40: 0.0124 | S40: 0.0093
A41: AGSe-HCHI | B41: 39.96 | C41: 0.0201 | D41: -0.0007 | E41: 0 | F41: -0.0009 | G41: 0.0014 | H41: 0.0014 | I41: 0 | J41: -0.0045 | K41: -0.0006 | M41: -0.0004 | R41: 0.0098 | S41: 0.0076
A42: AGSd-HCHI | B42: 170.26 | C42: 4.908 | D42: -0.098 | E42: -0.1364 | F42: -0.0009 | G42: 0.2995 | H42: 0.2995 | I42: 0.2454 | J42: -0.0045 | K42: -0.1966 | M42: -0.0603 | R42: =R27 -> 3.0669 | S42: =S27 -> 2.4123
A43: St Lgt-HCHI | B43: 3.27 | C43: 0.1186 | D43: -0.0007 | E43: 0 | F43: -0.0009 | G43: 0.0015 | H43: 0.0015 | I43: 0 | J43: -0.0045 | K43: -0.0006 | M43: -0.0028 | R43: 0.0068 | S43: 0.0054
A44: Sen Lgt-HCHI | B44: 3.29 | C44: 0.1816 | D44: -0.0007 | E44: 0 | F44: -0.0009 | G44: 0.0015 | H44: 0.0015 | I44: 0 | J44: -0.0045 | K44: -0.0006 | M44: -0.0055 | R44: 0.0068 | S44: 0.0054
A45: USL-HCHI | B45: 38.29 | C45: 0.0292 | D45: -0.0007 | E45: 0 | F45: -0.0009 | G45: 0.0015 | H45: 0.0015 | I45: 0 | J45: -0.0045 | K45: -0.0006 | M45: -0.0007 | R45: 0.0079 | S45: 0.0059

Sheet Data Billing Quantities (hidden)
A1: Rate Class-Specific Billing Quantities (Applied to Current and Proposed Bill)
E3: Consumption (kWh) | I3: Peak (kW) | M3: TOU Split
A4: Rate Class | B4: Loss Factor | C4: Charge Determinant | D4: Commodity Threshold | E4: Low kWh | F4: Typical kWh | G4: Average kWh | H4: High kWh | I4: Low kW | J4: Typical kW | K4: Average kW | L4: High kW | M4: TOU-Off Peak | N4: TOU-Mid Peak | O4: TOU-On Peak | P4: Acquired Street Light Service Charge
A5: UR | B5: 1.057 | C5: kWh | D5: 600 | E5: 340 | F5: 750 | G5: 690 | H5: 1260 | M5: 0.64 | N5: 0.18 | O5: 0.18
A6: R1 | B6: 1.076 | C6: kWh | D6: 600 | E6: 370 | F6: 750 | G6: 784 | H6: 1650 | M6: =M$5 -> 0.64 | N6: =N$5 -> 0.18 | O6: =O$5 -> 0.18
A7: R2 | B7: 1.105 | C7: kWh | D7: 600 | E7: 440 | F7: 750 | G7: 978 | H7: 2110 | M7: =M$5 -> 0.64 | N7: 0.18 | O7: 0.18
A8: Seasonal | B8: 1.104 | C8: kWh | D8: 600 | E8: 40 | G8: 369 | H8: 1040 | M8: 0.64 | N8: 0.18 | O8: 0.18
A9: Seas-UR | B9: =B5 -> 1.057 | C9: =C5 -> kWh | D9: 600 | E9: =E8 -> 40 | G9: =G8 -> 369 | H9: =H8 -> 1040 | M9: 0.64 | N9: 0.18 | O9: 0.18
A10: Seas-R1 | B10: =B6 -> 1.076 | C10: =C6 -> kWh | D10: 600 | E10: =E8 -> 40 | G10: =G8 -> 369 | H10: =H8 -> 1040 | M10: 0.64 | N10: 0.18 | O10: 0.18
A11: Seas-R2 | B11: =B7 -> 1.105 | C11: =C7 -> kWh | D11: 600 | E11: =E8 -> 40 | G11: =G8 -> 369 | H11: =H8 -> 1040 | M11: 0.64 | N11: 0.18 | O11: 0.18
A12: GSe | B12: 1.096 | C12: kWh | D12: 750 | E12: 60 | F12: 2000 | G12: 1887 | H12: 5570 | M12: 0.64 | N12: 0.18 | O12: 0.18
A13: UGe | B13: 1.067 | C13: kWh | D13: 750 | E13: 180 | F13: 2000 | G13: 2494 | H13: 6930 | M13: 0.64 | N13: 0.18 | O13: 0.18
A14: St Lgt | B14: 1.092 | C14: kWh | D14: 750 | E14: 30 | G14: 1274 | H14: 2310
A15: Sen Lgt | B15: 1.092 | C15: kWh | D15: 750 | E15: 20 | G15: 49 | H15: 80
A16: USL | B16: 1.092 | C16: kWh | D16: 750 | E16: 100 | G16: 477 | H16: 550
A17: GSd | B17: 1.061 | C17: kW | D17: 0 | E17: 9310 | G17: 34334 | H17: 75790 | I17: 55 | K17: 110 | L17: 250
A18: UGd | B18: 1.05 | C18: kW | D18: 0 | E18: 13900 | G18: 42592 | H18: 97610 | I18: 55 | K18: 111 | L18: 280
A19: Dgen | B19: 1.061 | C19: kW | D19: 0 | E19: 10 | G19: 1709 | H19: 8490 | I19: 0.02941666667 | K19: 12 | L19: 45
A20: ST | B20: 1.034 | C20: kW | D20: 0 | E20: 88780 | G20: 1373443 | H20: 2641420 | I20: 500 | K20: 2808 | L20: 13730
A21: WHSI_RES | B21: 1.0431 | C21: kWh | D21: 600 | E21: 310 | F21: 750 | G21: 636 | H21: 1160 | M21: =M$5 -> 0.64 | N21: 0.18 | O21: 0.18
A22: WHSI_GS<50 | B22: 1.0431 | C22: kWh | D22: 750 | E22: 190 | F22: 2000 | G22: 2471 | H22: 7240 | M22: 0.64 | N22: 0.18 | O22: 0.18
A23: WHSI_GS 50-999 | B23: 1.0431 | C23: kW | E23: 9370 | G23: 47636 | H23: 137890 | I23: 50 | K23: 134 | L23: 340
A24: WHSI_GS >1,000kW | B24: 1.0326 | C24: kW | G24: 895853 | K24: 3301
A25: WHSI_St Lgt | B25: 1.0431 | C25: kW | D25: 750 | G25: 37079 | K25: 104 | P25: 1
A26: WHSI_USL | B26: 1.0431 | C26: kWh | D26: 750 | G26: 1349 | M26: =M$5 -> 0.64 | N26: 0.18 | O26: 0.18
A27: NPDI_RES | B27: 1.0564 | C27: kWh | D27: 600 | E27: 290 | F27: 750 | G27: 692 | H27: 1230 | M27: 0.64 | N27: 0.18 | O27: 0.18
A28: NPDI_GS<50 | B28: 1.0564 | C28: kWh | D28: 750 | E28: 110 | F28: 2000 | G28: 2377 | H28: 6410 | M28: 0.64 | N28: 0.18 | O28: 0.18
A29: NPDI_GS >50 | B29: 1.0464 | C29: kW | E29: 13020 | G29: 70294 | H29: 129420 | I29: 55 | K29: 181 | L29: 300
A30: NPDI_St Lgt | B30: 1.0564 | C30: kW | D30: 750 | G30: 11389 | K30: 39 | P30: 1
A31: NPDI_Sen Lgt | B31: 1.0564 | C31: kW | D31: 750 | G31: 108 | K31: 0.3368027211
A32: NPDI_USL | B32: 1.0564 | C32: kWh | D32: 750 | G32: 904 | M32: =M$5 -> 0.64 | N32: 0.18 | O32: 0.18
A33: HCHI_RES | B33: 1.0655 | C33: kWh | D33: 600 | E33: 250 | F33: 750 | G33: 742 | H33: 1410 | M33: 0.64 | N33: 0.18 | O33: 0.18
A34: HCHI_GS<50 | B34: 1.0655 | C34: kWh | D34: 750 | E34: 90 | F34: 2000 | G34: 2261 | H34: 5430 | M34: 0.64 | N34: 0.18 | O34: 0.18
A35: HCHI_GS >50 | B35: 1.0548 | C35: kW | E35: 10880 | G35: 57529 | H35: 135160 | I35: 55 | K35: 175 | L35: 375
A36: HCHI_St Lgt | B36: 1.0655 | C36: kW | D36: 750 | G36: 31001 | K36: 85 | P36: 1
A37: HCHI_Sen Lgt | B37: 1.0655 | C37: kW | D37: 750 | G37: 61 | K37: 0.1956473214
A38: HCHI_USL | B38: 1.0655 | C38: kWh | D38: 750 | G38: 471 | M38: =M$5 -> 0.64 | N38: 0.18 | O38: 0.18
A39: AUR | B39: 1.043 | C39: kWh | D39: 750 | E39: 310 | F39: 750 | G39: 636 | H39: 1160 | M39: 0.64 | N39: 0.18 | O39: 0.18
A40: AUGe | B40: =B39 -> 1.043 | C40: kWh | D40: 750 | E40: 190 | F40: 2000 | G40: 2471 | H40: 7240 | M40: 0.64 | N40: 0.18 | O40: 0.18
A41: AUGd | B41: 1.033 | C41: kW | E41: 9370 | G41: 47636 | H41: 137890 | I41: 50 | K41: 134 | L41: 340
A42: AR | B42: 1.064 | C42: kWh | D42: 750 | F42: 750 | M42: =M$5 -> 0.64 | N42: 0.18 | O42: 0.18
A43: AGSe | B43: =B42 -> 1.064 | C43: kWh | D43: 750 | F43: 2000 | M43: 0.64 | N43: 0.18 | O43: 0.18
A44: AGSd | B44: 1.053 | C44: kW
A45: AUR-WHSI | B45: =B39 -> 1.043 | C45: kWh | D45: =D39 -> 750 | E45: 310 | F45: 750 | G45: 636 | H45: 1160 | M45: =M$5 -> 0.64 | N45: 0.18 | O45: 0.18
A46: AUGe-WHSI | B46: =B40 -> 1.043 | C46: kWh | D46: =D40 -> 750 | E46: 190 | F46: 2000 | G46: 2471 | H46: 7240 | M46: 0.64 | N46: 0.18 | O46: 0.18
A47: AUGd-WHSI | B47: =B41 -> 1.033 | C47: kW | E47: 9370 | G47: 47636 | H47: 137890 | I47: 50 | K47: 134 | L47: 340
A48: ST-WHSI | B48: =B20 -> 1.034 | C48: kW | G48: 895853 | K48: 3301
A49: St Lgt-WHSI | B49: =B14 -> 1.092 | C49: kWh | D49: =D14 -> 750 | G49: =G25 -> 37079 | K49: =K25 -> 104 | P49: =P25 -> 1
A50: USL-WHSI | B50: =B16 -> 1.092 | C50: kWh | D50: =D16 -> 750 | G50: =G26 -> 1349 | M50: =M$5 -> 0.64 | N50: 0.18 | O50: 0.18
A51: AR-NPDI | B51: =B42 -> 1.064 | C51: kWh | D51: =D42 -> 750 | E51: 290 | F51: 750 | G51: 692 | H51: 1230 | M51: 0.64 | N51: 0.18 | O51: 0.18
A52: AGSe-NPDI | B52: =B43 -> 1.064 | C52: kWh | D52: =D43 -> 750 | E52: 110 | F52: 2000 | G52: 2377 | H52: 6410 | M52: 0.64 | N52: 0.18 | O52: 0.18
A53: AGSd-NPDI | B53: =B44 -> 1.053 | C53: kW | D53: =D44 -> 0 | E53: 13020 | G53: 70294 | H53: 129420 | I53: 55 | K53: 181 | L53: 300
A54: St Lgt-NPDI | B54: =B14 -> 1.092 | C54: kWh | D54: =D14 -> 750 | G54: =G30 -> 11389 | K54: =K30 -> 39 | P54: =P30 -> 1
A55: Sen Lgt-NPDI | B55: =B15 -> 1.092 | C55: kWh | D55: =D15 -> 750 | G55: =G31 -> 108 | K55: =K31 -> 0.3368027211
A56: USL-NPDI | B56: =B16 -> 1.092 | C56: kWh | D56: =D16 -> 750 | G56: =G32 -> 904 | M56: =M$5 -> 0.64 | N56: 0.18 | O56: 0.18
A57: AR-HCHI | B57: =B51 -> 1.064 | C57: kWh | D57: 750 | E57: 250 | F57: 750 | G57: 742 | H57: 1410 | M57: 0.64 | N57: 0.18 | O57: 0.18
A58: AGSe-HCHI | B58: 1.064 | C58: kWh | D58: 750 | E58: 90 | F58: 2000 | G58: 2261 | H58: 5430 | M58: 0.64 | N58: 0.18 | O58: 0.18
A59: AGSd-HCHI | B59: 1.053 | C59: kW | D59: 0 | E59: 10880 | G59: 57529 | H59: 135160 | I59: 55 | K59: 175 | L59: 375
A60: St Lgt-HCHI | B60: 1.092 | C60: kWh | D60: 750 | G60: =G36 -> 31001 | K60: =K36 -> 85 | P60: =P36 -> 1
A61: Sen Lgt-HCHI | B61: 1.092 | C61: kWh | D61: 750 | G61: =G37 -> 61 | K61: =K37 -> 0.1956473214
A62: USL-HCHI | B62: 1.092 | C62: kWh | D62: 750 | G62: =G38 -> 471 | M62: =M$5 -> 0.64 | N62: 0.18 | O62: 0.18

Sheet Data Pass Through (hidden)
A1: 3. Pass Through Charges
B2: Current Bill | C2: Proposed Bill
A3: Effective Date | B3: 2024-01-01 | C3: 2024-07-01 | D3: TOU % | E3: Notes
A4: R2 Credit | B4: 60.5 | C4: =B4 -> 60.5
A5: Energy First Tier | B5: 0.103 | C5: =B5 -> 0.103 | E5: Effective Nov 1 2023
A6: Energy Second Tier | B6: 0.125 | C6: 0.125 | E6: Effective Nov 1 2023
A7: Weighted Average Hourly Spot Price | B7: 0.1035 | C7: =B7 -> 0.1035 | E7: Avg for Mar 2023 to Feb 2024 (source: Commodity prices_SPOTv2.xls file at RAinternal/Niki/Misc
A8: TOU-Off Peak | B8: 0.087 | C8: 0.087 | D8: 0.63 | E8: Effective Nov 1 2023
A9: TOU-Mid Peak | B9: 0.122 | C9: 0.122 | D9: 0.18 | E9: Effective Nov 1 2023
A10: TOU-On Peak | B10: 0.182 | C10: 0.182 | D10: 0.19 | E10: Effective Nov 1 2023
A11: Wholesale Market Service Rate (WMS) - not including CBR | B11: 0.0041 | C11: 0.0041 | E11: Effective Jan 1 2024, 0.0045 WMSC broken up between WMSC and CBR
A12: Capacity Based Recovery (CBR) - Applicable for Class B Customers | B12: 0.0004 | C12: 0.0004 | E12: Effective Jan 1 2024, 0.0045 WMSC broken up between WMSC and CBR
A13: Rural Rate Protection Charge | B13: 0.0014 | C13: 0.0014 | E13: RRRP charge increased from $0.0007/kWh to $0.0014/kWh effective Jan 1, 2024.
A14: Ontario Electricity Support Program Charge | B14: 0 | C14: 0 | E14: OESP charge removed for all rate classes effective May 1, 2017. ROW HIDDEN IN BILL IMPACT FILE
A15: Standard Supply Service – Administration Charge (if applicable) | B15: 0.25 | C15: 0.25
A16: Fair Hydro Plan - Distribution Rate Protection Savings* | B16: =IF('Bill Impact Summary'!L6="TOU",0,IF('Bill Impact Summary'!L6="TOU (DRP applied)",B17,"error")) -> 39.49 | C16: =IF('Bill Impact Summary'!L6="TOU",0,IF('Bill Impact Summary'!L6="TOU (DRP applied)",C17,"error")) -> 39.49 | E16: Highlighted cells are FORMULAS; do not overwrite with hard-entered values. Input DRP limit values in row 17 below
A17: DRP limit (applied when selected from Bill Impact Summary) | B17: 39.49 | C17: 39.49 | E17: Make change to FHP DRP limit here, but to apply DRP, must do in Bill Impact Summary sheet cell L6
A18: Smart Metering Entity Charge | B18: 0.42 | C18: 0.42 | E18: Change from 0.57 to 0.42 effective Jan 1 2023; only for metered energy-billed (UR, R1, R2, GSE, UGE, AUR, AUGE, AR, AGSE)
A19: Debt Retirement Charge (DRC) | B19: 0 | C19: 0 | E19: DRC removed from all rate classes Apr 1 2018 ROW HIDDEN IN BILL IMPACT FILE
A20: Ontario Electricity Rebate (OER) | B20: -0.193 | C20: =B20 -> -0.193 | E20: OER effective Nov 1 2023
A22: Customer Attributes - Assumptions
A23: ST customers are assumed to be Non-WMP, Class A

Sheet Data BI Summary (hidden)
A2: Summary Column | B2: Current Total Bill | C2: Change in DX Bill ($) | D2: Change in DX Bill (%) | E2: Change in Total Bill ($) | F2: Change in Total Bill (%)
A3: BI Template_Energy | B3: Total Amount on TOU | C3: Sub-Total: Distribution (excluding pass through) | D3: Sub-Total: Distribution (excluding pass through) | E3: Total Amount on TOU | F3: Total Amount on TOU
A4: BI Template_EnergyUNM | B4: Total Amount on Two-Tier RPP | C4: Sub-Total: Distribution (excluding pass through) | D4: Sub-Total: Distribution (excluding pass through) | E4: Total Amount on Two-Tier RPP | F4: Total Amount on Two-Tier RPP
A5: BI Template_Demand | B5: Total Amount on WAHSP | C5: Sub-Total: Distribution | D5: Sub-Total: Distribution | E5: Total Amount on WAHSP | F5: Total Amount on WAHSP
A6: BI Template_EnergyNPDI | B6: Total Amount on TOU | C6: Sub-Total: Distribution (excluding pass through) | D6: Sub-Total: Distribution (excluding pass through) | E6: Total Amount on TOU | F6: Total Amount on TOU
A7: BI Template_UNMNPDI | B7: Total Amount on Two-Tier RPP | C7: Sub-Total: Distribution (excluding pass through) | D7: Sub-Total: Distribution (excluding pass through) | E7: Total Amount on Two-Tier RPP | F7: Total Amount on Two-Tier RPP
A8: BI Template_DemandNPDI | B8: Total Amount on WAHSP | C8: Sub-Total: Distribution | D8: Sub-Total: Distribution | E8: Total Amount on WAHSP | F8: Total Amount on WAHSP
A9: BI Template_EnergyHCHI | B9: Total Amount on TOU | C9: Sub-Total: Distribution (excluding pass through) | D9: Sub-Total: Distribution (excluding pass through) | E9: Total Amount on TOU | F9: Total Amount on TOU
A10: BI Template_UNMHCHI | B10: Total Amount on Two-Tier RPP | C10: Sub-Total: Distribution (excluding pass through) | D10: Sub-Total: Distribution (excluding pass through) | E10: Total Amount on Two-Tier RPP | F10: Total Amount on Two-Tier RPP
A11: BI Template_DemandHCHI | B11: Total Amount on WAHSP | C11: Sub-Total: Distribution | D11: Sub-Total: Distribution | E11: Total Amount on WAHSP | F11: Total Amount on WAHSP
A12: BI Template_EnergyWHSI | B12: Total Amount on TOU | C12: Sub-Total: Distribution (excluding pass through) | D12: Sub-Total: Distribution (excluding pass through) | E12: Total Amount on TOU | F12: Total Amount on TOU
A13: BI Template_UNMWHSI | B13: Total Amount on Two-Tier RPP | C13: Sub-Total: Distribution (excluding pass through) | D13: Sub-Total: Distribution (excluding pass through) | E13: Total Amount on Two-Tier RPP | F13: Total Amount on Two-Tier RPP
A14: BI Template_DemandWHSI | B14: Total Amount on WAHSP | C14: Sub-Total: Distribution | D14: Sub-Total: Distribution | E14: Total Amount on WAHSP | F14: Total Amount on WAHSP
A15: BI Template_Seasonal | B15: Total Amount on TOU | C15: Sub-Total: Distribution (excluding pass through) | D15: Sub-Total: Distribution (excluding pass through) | E15: Total Amount on TOU | F15: Total Amount on TOU

Sheet Data BI List (hidden)
A1: Template Name | B1: Bill Impact Worksheet Name | C1: Bill Impact Header
A2: BI Template_Energy | B2: BI_UR_Low | C2: 2024 Bill Impacts (Low Consumption Level) - UR
A3: BI Template_Energy | B3: BI_UR_Typical | C3: 2024 Bill Impacts (Typical Consumption Level) - UR
A4: BI Template_Energy | B4: BI_UR_Avg | C4: 2024 Bill Impacts (Average Consumption Level) - UR
A5: BI Template_Energy | B5: BI_UR_High | C5: 2024 Bill Impacts (High Consumption Level) - UR
A6: BI Template_Energy | B6: BI_R1_Low (with DRP) | C6: 2024 Bill Impacts (Low Consumption Level) - R1
A7: BI Template_Energy | B7: BI_R1_Typical (with DRP) | C7: 2024 Bill Impacts (Typical Consumption Level) - R1
A8: BI Template_Energy | B8: BI_R1_Avg (with DRP) | C8: 2024 Bill Impacts (Average Consumption Level) - R1
A9: BI Template_Energy | B9: BI_R1_High (with DRP) | C9: 2024 Bill Impacts (High Consumption Level) - R1
A10: BI Template_Energy | B10: BI_R1_Low (without DRP) | C10: 2024 Bill Impacts (Low Consumption Level) - R1
A11: BI Template_Energy | B11: BI_R1_Typical (without DRP) | C11: 2024 Bill Impacts (Typical Consumption Level) - R1
A12: BI Template_Energy | B12: BI_R1_Avg (without DRP) | C12: 2024 Bill Impacts (Average Consumption Level) - R1
A13: BI Template_Energy | B13: BI_R1_High (without DRP) | C13: 2024 Bill Impacts (High Consumption Level) - R1
A14: BI Template_Energy | B14: BI_R2_Low (with DRP) | C14: 2024 Bill Impacts (Low Consumption Level) - R2
A15: BI Template_Energy | B15: BI_R2_Typical (with DRP) | C15: 2024 Bill Impacts (Typical Consumption Level) - R2
A16: BI Template_Energy | B16: BI_R2_Avg (with DRP) | C16: 2024 Bill Impacts (Average Consumption Level) - R2
A17: BI Template_Energy | B17: BI_R2_High (with DRP) | C17: 2024 Bill Impacts (High Consumption Level) - R2
A18: BI Template_Energy | B18: BI_R2_Low (without DRP) | C18: 2024 Bill Impacts (Low Consumption Level) - R2
A19: BI Template_Energy | B19: BI_R2_Typical (without DRP) | C19: 2024 Bill Impacts (Typical Consumption Level) - R2
A20: BI Template_Energy | B20: BI_R2_Avg (without DRP) | C20: 2024 Bill Impacts (Average Consumption Level) - R2
A21: BI Template_Energy | B21: BI_R2_High (without DRP) | C21: 2024 Bill Impacts (High Consumption Level) - R2
A22: BI Template_Energy | B22: BI_GSe_Low | C22: 2024 Bill Impacts (Low Consumption Level) - GSe
A23: BI Template_Energy | B23: BI_GSe_Typical | C23: 2024 Bill Impacts (Typical Consumption Level) - GSe
A24: BI Template_Energy | B24: BI_GSe_Avg | C24: 2024 Bill Impacts (Average Consumption Level) - GSe
A25: BI Template_Energy | B25: BI_GSe_High | C25: 2024 Bill Impacts (High Consumption Level) - GSe
A26: BI Template_Energy | B26: BI_UGe_Low | C26: 2024 Bill Impacts (Low Consumption Level) - UGe
A27: BI Template_Energy | B27: BI_UGe_Typical | C27: 2024 Bill Impacts (Typical Consumption Level) - UGe
A28: BI Template_Energy | B28: BI_UGe_Avg | C28: 2024 Bill Impacts (Average Consumption Level) - UGe
A29: BI Template_Energy | B29: BI_UGe_High | C29: 2024 Bill Impacts (High Consumption Level) - UGe
A30: BI Template_Demand | B30: BI_GSd_Low | C30: 2024 Bill Impacts (Low Consumption Level) - GSd
A31: BI Template_Demand | B31: BI_GSd_Avg | C31: 2024 Bill Impacts (Average Consumption Level) - GSd
A32: BI Template_Demand | B32: BI_GSd_High | C32: 2024 Bill Impacts (High Consumption Level) - GSd
A33: BI Template_Demand | B33: BI_UGd_Low | C33: 2024 Bill Impacts (Low Consumption Level) - UGd
A34: BI Template_Demand | B34: BI_UGd_Avg | C34: 2024 Bill Impacts (Average Consumption Level) - UGd
A35: BI Template_Demand | B35: BI_UGd_High | C35: 2024 Bill Impacts (High Consumption Level) - UGd
A36: BI Template_EnergyUNM | B36: BI_StLgt_Low | C36: 2024 Bill Impacts (Low Consumption Level) - St Lgt
A37: BI Template_EnergyUNM | B37: BI_StLgt_Avg | C37: 2024 Bill Impacts (Average Consumption Level) - St Lgt
A38: BI Template_EnergyUNM | B38: BI_StLgt_High | C38: 2024 Bill Impacts (High Consumption Level) - St Lgt
A39: BI Template_EnergyUNM | B39: BI_SenLgt_Low | C39: 2024 Bill Impacts (Low Consumption Level) - Sen Lgt
A40: BI Template_EnergyUNM | B40: BI_SenLgt_Avg | C40: 2024 Bill Impacts (Average Consumption Level) - Sen Lgt
A41: BI Template_EnergyUNM | B41: BI_SenLgt_High | C41: 2024 Bill Impacts (High Consumption Level) - Sen Lgt
A42: BI Template_EnergyUNM | B42: BI_USL_Low | C42: 2024 Bill Impacts (Low Consumption Level) - USL
A43: BI Template_EnergyUNM | B43: BI_USL_Avg | C43: 2024 Bill Impacts (Average Consumption Level) - USL
A44: BI Template_EnergyUNM | B44: BI_USL_High | C44: 2024 Bill Impacts (High Consumption Level) - USL
A45: BI Template_Demand | B45: BI_Dgen_Low | C45: 2024 Bill Impacts (Low Consumption Level) - Dgen
A46: BI Template_Demand | B46: BI_Dgen_Avg | C46: 2024 Bill Impacts (Average Consumption Level) - Dgen
A47: BI Template_Demand | B47: BI_Dgen_High | C47: 2024 Bill Impacts (High Consumption Level) - Dgen
A48: BI Template_Demand | B48: BI_ST_Low | C48: 2024 Bill Impacts (Low Consumption Level) - ST
A49: BI Template_Demand | B49: BI_ST_Avg | C49: 2024 Bill Impacts (Average Consumption Level) - ST
A50: BI Template_Demand | B50: BI_ST_High | C50: 2024 Bill Impacts (High Consumption Level) - ST
A51: BI Template_EnergyWHSI | B51: BI_WHSI_AUR_Low | C51: 2024 Bill Impacts (Low Consumption Level) - AUR_WHSI
A52: BI Template_EnergyWHSI | B52: BI_WHSI_AUR_Typical | C52: 2024 Bill Impacts (Typical Consumption Level) - AUR_WHSI
A53: BI Template_EnergyWHSI | B53: BI_WHSI_AUR_Avg | C53: 2024 Bill Impacts (Average Consumption Level) - AUR_WHSI
A54: BI Template_EnergyWHSI | B54: BI_WHSI_AUR_High | C54: 2024 Bill Impacts (High Consumption Level) - AUR_WHSI
A55: BI Template_EnergyWHSI | B55: BI_WHSI_AUGe_Low | C55: 2024 Bill Impacts (Low Consumption Level) - AUGe_WHSI
A56: BI Template_EnergyWHSI | B56: BI_WHSI_AUGe_Typical | C56: 2024 Bill Impacts (Typical Consumption Level) - AUGe_WHSI
A57: BI Template_EnergyWHSI | B57: BI_WHSI_AUGe_Avg | C57: 2024 Bill Impacts (Average Consumption Level) - AUGe_WHSI
A58: BI Template_EnergyWHSI | B58: BI_WHSI_AUGe_High | C58: 2024 Bill Impacts (High Consumption Level) - AUGe_WHSI
A59: BI Template_DemandWHSI | B59: BI_WHSI_AUGd_Low | C59: 2024 Bill Impacts (Low Consumption Level) - AUGd_WHSI
A60: BI Template_DemandWHSI | B60: BI_WHSI_AUGd_Avg | C60: 2024 Bill Impacts (Average Consumption Level) - AUGd_WHSI
A61: BI Template_DemandWHSI | B61: BI_WHSI_AUGd_High | C61: 2024 Bill Impacts (High Consumption Level) - AUGd_WHSI
A62: BI Template_DemandWHSI | B62: BI_WHSI_ST_Avg | C62: 2024 Bill Impacts (Average Consumption Level) - ST_WHSI
A63: BI Template_EnergyNPDI | B63: BI_NPDI_AR_Low | C63: 2024 Bill Impacts (Low Consumption Level) - AR_NPDI
A64: BI Template_EnergyNPDI | B64: BI_NPDI_AR_Typical | C64: 2024 Bill Impacts (Typical Consumption Level) - AR_NPDI
A65: BI Template_EnergyNPDI | B65: BI_NPDI_AR_Avg | C65: 2024 Bill Impacts (Average Consumption Level) - AR_NPDI
A66: BI Template_EnergyNPDI | B66: BI_NPDI_AR_High | C66: 2024 Bill Impacts (High Consumption Level) - AR_NPDI
A67: BI Template_EnergyHCHI | B67: BI_HCHI_AR_Low | C67: 2024 Bill Impacts (Low Consumption Level) - AR_HCHI
A68: BI Template_EnergyHCHI | B68: BI_HCHI_AR_Typical | C68: 2024 Bill Impacts (Typical Consumption Level) - AR_HCHI
A69: BI Template_EnergyHCHI | B69: BI_HCHI_AR_Avg | C69: 2024 Bill Impacts (Average Consumption Level) - AR_HCHI
A70: BI Template_EnergyHCHI | B70: BI_HCHI_AR_High | C70: 2024 Bill Impacts (High Consumption Level) - AR_HCHI
A71: BI Template_EnergyNPDI | B71: BI_NPDI_AGSe_Low | C71: 2024 Bill Impacts (Low Consumption Level) - AGSe_NPDI
A72: BI Template_EnergyNPDI | B72: BI_NPDI_AGSe_Typical | C72: 2024 Bill Impacts (Typical Consumption Level) - AGSe_NPDI
A73: BI Template_EnergyNPDI | B73: BI_NPDI_AGSe_Avg | C73: 2024 Bill Impacts (Average Consumption Level) - AGSe_NPDI
A74: BI Template_EnergyNPDI | B74: BI_NPDI_AGSe_High | C74: 2024 Bill Impacts (High Consumption Level) - AGSe_NPDI
A75: BI Template_EnergyHCHI | B75: BI_HCHI_AGSe_Low | C75: 2024 Bill Impacts (Low Consumption Level) - AGSe_HCHI
A76: BI Template_EnergyHCHI | B76: BI_HCHI_AGSe_Typical | C76: 2024 Bill Impacts (Typical Consumption Level) - AGSe_HCHI
A77: BI Template_EnergyHCHI | B77: BI_HCHI_AGSe_Avg | C77: 2024 Bill Impacts (Average Consumption Level) - AGSe_HCHI
A78: BI Template_EnergyHCHI | B78: BI_HCHI_AGSe_High | C78: 2024 Bill Impacts (High Consumption Level) - AGSe_HCHI
A79: BI Template_DemandNPDI | B79: BI_NPDI_AGSd_Low | C79: 2024 Bill Impacts (Low Consumption Level) - AGSd_NPDI
A80: BI Template_DemandNPDI | B80: BI_NPDI_AGSd_Avg | C80: 2024 Bill Impacts (Average Consumption Level) - AGSd_NPDI
A81: BI Template_DemandNPDI | B81: BI_NPDI_AGSd_High | C81: 2024 Bill Impacts (High Consumption Level) - AGSd_NPDI
A82: BI Template_DemandHCHI | B82: BI_HCHI_AGSd_Low | C82: 2024 Bill Impacts (Low Consumption Level) - AGSd_HCHI
A83: BI Template_DemandHCHI | B83: BI_HCHI_AGSd_Avg | C83: 2024 Bill Impacts (Average Consumption Level) - AGSd_HCHI
A84: BI Template_DemandHCHI | B84: BI_HCHI_AGSd_High | C84: 2024 Bill Impacts (High Consumption Level) - AGSd_HCHI
A85: BI Template_unmWHSI | B85: BI_WHSI_USL_Avg | C85: 2024 Bill Impacts (Average Consumption Level) - USL_WHSI
A86: BI Template_unmNPDI | B86: BI_NPDI_USL_Avg | C86: 2024 Bill Impacts (Average Consumption Level) - USL_NPDI
A87: BI Template_unmHCHI | B87: BI_HCHI_USL_Avg | C87: 2024 Bill Impacts (Average Consumption Level) - USL_HCHI
A88: BI Template_unmWHSI | B88: BI_WHSI_StLgt_Avg | C88: 2024 Bill Impacts (Average Consumption Level) - St Lgt_WHSI
A89: BI Template_unmNPDI | B89: BI_NPDI_StLgt_Avg | C89: 2024 Bill Impacts (Average Consumption Level) - St Lgt_NPDI
A90: BI Template_unmHCHI | B90: BI_HCHI_StLgt_Avg | C90: 2024 Bill Impacts (Average Consumption Level) - St Lgt_HCHI
A91: BI Template_unmNPDI | B91: BI_NPDI_SenLgt_Avg | C91: 2024 Bill Impacts (Average Consumption Level) - Sen Lgt_NPDI
A92: BI Template_unmHCHI | B92: BI_HCHI_SenLgt_Avg | C92: 2024 Bill Impacts (Average Consumption Level) - Sen Lgt_HCHI
A93: BI Template_Seasonal | B93: BI_Seas_UR_Low | C93: 2024 Bill Impacts (Low Consumption Level) - Seas-UR
A94: BI Template_Seasonal | B94: BI_Seas_UR_Avg | C94: 2024 Bill Impacts (Average Consumption Level) - Seas-UR
A95: BI Template_Seasonal | B95: BI_Seas_UR_High | C95: 2024 Bill Impacts (High Consumption Level) - Seas-UR
A96: BI Template_Seasonal | B96: BI_Seas_R1_Low | C96: 2024 Bill Impacts (Low Consumption Level) - Seas-R1
A97: BI Template_Seasonal | B97: BI_Seas_R1_Avg | C97: 2024 Bill Impacts (Average Consumption Level) - Seas-R1
A98: BI Template_Seasonal | B98: BI_Seas_R1_High | C98: 2024 Bill Impacts (High Consumption Level) - Seas-R1
A99: BI Template_Seasonal | B99: BI_Seas_R2_Low | C99: 2024 Bill Impacts (Low Consumption Level) - Seas-R2
A100: BI Template_Seasonal | B100: BI_Seas_R2_Avg | C100: 2024 Bill Impacts (Average Consumption Level) - Seas-R2
A101: BI Template_Seasonal | B101: BI_Seas_R2_High | C101: 2024 Bill Impacts (High Consumption Level) - Seas-R2

Sheet Data BI List Acq_Seas (hidden)
A1: Template Name | B1: Bill Impact Worksheet Name | C1: Bill Impact Header | D1: Current Rate Class (Acq) | E1: Proposed Rate Class
A2: BI Template_EnergyWHSI | B2: BI_AUR_Low | C2: 2024 Bill Impacts (Low Consumption Level) - AUR_WHSI | D2: AUR-WHSI | E2: AUR-WHSI
A3: BI Template_EnergyWHSI | B3: BI_AUR_Typical | C3: 2024 Bill Impacts (Typical Consumption Level) - AUR_WHSI | D3: AUR-WHSI | E3: AUR-WHSI
A4: BI Template_EnergyWHSI | B4: BI_AUR_Avg | C4: 2024 Bill Impacts (Average Consumption Level) - AUR_WHSI | D4: AUR-WHSI | E4: AUR-WHSI
A5: BI Template_EnergyWHSI | B5: BI_AUR_High | C5: 2024 Bill Impacts (High Consumption Level) - AUR_WHSI | D5: AUR-WHSI | E5: AUR-WHSI
A6: BI Template_EnergyWHSI | B6: BI_AUGe_Low | C6: 2024 Bill Impacts (Low Consumption Level) - AUGe_WHSI | D6: AUGe-WHSI | E6: AUGe-WHSI
A7: BI Template_EnergyWHSI | B7: BI_AUGe_Typical | C7: 2024 Bill Impacts (Typical Consumption Level) - AUGe_WHSI | D7: AUGe-WHSI | E7: AUGe-WHSI
A8: BI Template_EnergyWHSI | B8: BI_AUGe_Avg | C8: 2024 Bill Impacts (Average Consumption Level) - AUGe_WHSI | D8: AUGe-WHSI | E8: AUGe-WHSI
A9: BI Template_EnergyWHSI | B9: BI_AUGe_High | C9: 2024 Bill Impacts (High Consumption Level) - AUGe_WHSI | D9: AUGe-WHSI | E9: AUGe-WHSI
A10: BI Template_DemandWHSI | B10: BI_AUGd_Low | C10: 2024 Bill Impacts (Low Consumption Level) - AUGd_WHSI | D10: AUGd-WHSI | E10: AUGd-WHSI
A11: BI Template_DemandWHSI | B11: BI_AUGd_Avg | C11: 2024 Bill Impacts (Average Consumption Level) - AUGd_WHSI | D11: AUGd-WHSI | E11: AUGd-WHSI
A12: BI Template_DemandWHSI | B12: BI_AUGd_High | C12: 2024 Bill Impacts (High Consumption Level) - AUGd_WHSI | D12: AUGd-WHSI | E12: AUGd-WHSI
A13: BI Template_DemandWHSI | B13: BI_WHSI_ST_Avg | C13: 2024 Bill Impacts (Average Consumption Level) - ST_WHSI | D13: ST-WHSI | E13: ST-WHSI
A14: BI Template_EnergyNPDI | B14: BI_NPDI_AR_Low | C14: 2024 Bill Impacts (Low Consumption Level) - AR_NPDI | D14: AR-NPDI | E14: AR-NPDI
A15: BI Template_EnergyNPDI | B15: BI_NPDI_AR_Typical | C15: 2024 Bill Impacts (Typical Consumption Level) - AR_NPDI | D15: AR-NPDI | E15: AR-NPDI
A16: BI Template_EnergyNPDI | B16: BI_NPDI_AR_Avg | C16: 2024 Bill Impacts (Average Consumption Level) - AR_NPDI | D16: AR-NPDI | E16: AR-NPDI
A17: BI Template_EnergyNPDI | B17: BI_NPDI_AR_High | C17: 2024 Bill Impacts (High Consumption Level) - AR_NPDI | D17: AR-NPDI | E17: AR-NPDI
A18: BI Template_EnergyHCHI | B18: BI_HCHI_AR_Low | C18: 2024 Bill Impacts (Low Consumption Level) - AR_HCHI | D18: AR-HCHI | E18: AR-HCHI
A19: BI Template_EnergyHCHI | B19: BI_HCHI_AR_Typical | C19: 2024 Bill Impacts (Typical Consumption Level) - AR_HCHI | D19: AR-HCHI | E19: AR-HCHI
A20: BI Template_EnergyHCHI | B20: BI_HCHI_AR_Avg | C20: 2024 Bill Impacts (Average Consumption Level) - AR_HCHI | D20: AR-HCHI | E20: AR-HCHI
A21: BI Template_EnergyHCHI | B21: BI_HCHI_AR_High | C21: 2024 Bill Impacts (High Consumption Level) - AR_HCHI | D21: AR-HCHI | E21: AR-HCHI
A22: BI Template_EnergyNPDI | B22: BI_NPDI_AGSe_Low | C22: 2024 Bill Impacts (Low Consumption Level) - AGSe_NPDI | D22: AGSe-NPDI | E22: AGSe-NPDI
A23: BI Template_EnergyNPDI | B23: BI_NPDI_AGSe_Typical | C23: 2024 Bill Impacts (Typical Consumption Level) - AGSe_NPDI | D23: AGSe-NPDI | E23: AGSe-NPDI
A24: BI Template_EnergyNPDI | B24: BI_NPDI_AGSe_Avg | C24: 2024 Bill Impacts (Average Consumption Level) - AGSe_NPDI | D24: AGSe-NPDI | E24: AGSe-NPDI
A25: BI Template_EnergyNPDI | B25: BI_NPDI_AGSe_High | C25: 2024 Bill Impacts (High Consumption Level) - AGSe_NPDI | D25: AGSe-NPDI | E25: AGSe-NPDI
A26: BI Template_EnergyHCHI | B26: BI_HCHI_AGSe_Low | C26: 2024 Bill Impacts (Low Consumption Level) - AGSe_HCHI | D26: AGSe-HCHI | E26: AGSe-HCHI
A27: BI Template_EnergyHCHI | B27: BI_HCHI_AGSe_Typical | C27: 2024 Bill Impacts (Typical Consumption Level) - AGSe_HCHI | D27: AGSe-HCHI | E27: AGSe-HCHI
A28: BI Template_EnergyHCHI | B28: BI_HCHI_AGSe_Avg | C28: 2024 Bill Impacts (Average Consumption Level) - AGSe_HCHI | D28: AGSe-HCHI | E28: AGSe-HCHI
A29: BI Template_EnergyHCHI | B29: BI_HCHI_AGSe_High | C29: 2024 Bill Impacts (High Consumption Level) - AGSe_HCHI | D29: AGSe-HCHI | E29: AGSe-HCHI
A30: BI Template_DemandNPDI | B30: BI_NPDI_AGSd_Low | C30: 2024 Bill Impacts (Low Consumption Level) - AGSd_NPDI | D30: AGSd-NPDI | E30: AGSd-NPDI
A31: BI Template_DemandNPDI | B31: BI_NPDI_AGSd_Avg | C31: 2024 Bill Impacts (Average Consumption Level) - AGSd_NPDI | D31: AGSd-NPDI | E31: AGSd-NPDI
A32: BI Template_DemandNPDI | B32: BI_NPDI_AGSd_High | C32: 2024 Bill Impacts (High Consumption Level) - AGSd_NPDI | D32: AGSd-NPDI | E32: AGSd-NPDI
A33: BI Template_DemandHCHI | B33: BI_HCHI_AGSd_Low | C33: 2024 Bill Impacts (Low Consumption Level) - AGSd_HCHI | D33: AGSd-HCHI | E33: AGSd-HCHI
A34: BI Template_DemandHCHI | B34: BI_HCHI_AGSd_Avg | C34: 2024 Bill Impacts (Average Consumption Level) - AGSd_HCHI | D34: AGSd-HCHI | E34: AGSd-HCHI
A35: BI Template_DemandHCHI | B35: BI_HCHI_AGSd_High | C35: 2024 Bill Impacts (High Consumption Level) - AGSd_HCHI | D35: AGSd-HCHI | E35: AGSd-HCHI
A36: BI Template_EnergyUNM | B36: BI_WHSI_USL_Avg | C36: 2024 Bill Impacts (Average Consumption Level) - USL_WHSI | D36: USL-WHSI | E36: USL-WHSI
A37: BI Template_unmNPDI | B37: BI_NPDI_USL_Avg | C37: 2024 Bill Impacts (Average Consumption Level) - USL_NPDI | D37: USL-NPDI | E37: USL-NPDI
A38: BI Template_unmHCHI | B38: BI_HCHI_USL_Avg | C38: 2024 Bill Impacts (Average Consumption Level) - USL_HCHI | D38: USL-HCHI | E38: USL-HCHI
A39: BI Template_unmWHSI | B39: BI_WHSI_StLgt_Avg | C39: 2024 Bill Impacts (Average Consumption Level) - St Lgt_WHSI | D39: St Lgt-WHSI | E39: St Lgt-WHSI
A40: BI Template_unmNPDI | B40: BI_NPDI_StLgt_Avg | C40: 2024 Bill Impacts (Average Consumption Level) - St Lgt_NPDI | D40: St Lgt-NPDI | E40: St Lgt-NPDI
A41: BI Template_unmHCHI | B41: BI_HCHI_StLgt_Avg | C41: 2024 Bill Impacts (Average Consumption Level) - St Lgt_HCHI | D41: St Lgt-HCHI | E41: St Lgt-HCHI
A42: BI Template_unmNPDI | B42: BI_NPDI_SenLgt_Avg | C42: 2024 Bill Impacts (Average Consumption Level) - Sen Lgt_NPDI | D42: Sen Lgt-NPDI | E42: Sen Lgt-NPDI
A43: BI Template_unmHCHI | B43: BI_HCHI_SenLgt_Avg | C43: 2024 Bill Impacts (Average Consumption Level) - Sen Lgt_HCHI | D43: Sen Lgt-HCHI | E43: Sen Lgt-HCHI
A44: BI Template_Seasonal | B44: BI_Seas_UR_Low | C44: 2024 Bill Impacts (Low Consumption Level) - Seas-UR | D44: Seas-UR | E44: Seas-UR
A45: BI Template_Seasonal | B45: BI_Seas_UR_Avg | C45: 2024 Bill Impacts (Average Consumption Level) - Seas-UR | D45: Seas-UR | E45: Seas-UR
A46: BI Template_Seasonal | B46: BI_Seas_UR_High | C46: 2024 Bill Impacts (High Consumption Level) - Seas-UR | D46: Seas-UR | E46: Seas-UR
A47: BI Template_Seasonal | B47: BI_Seas_R1_Low | C47: 2024 Bill Impacts (Low Consumption Level) - Seas-R1 | D47: Seas-R1 | E47: Seas-R1
A48: BI Template_Seasonal | B48: BI_Seas_R1_Avg | C48: 2024 Bill Impacts (Average Consumption Level) - Seas-R1 | D48: Seas-R1 | E48: Seas-R1
A49: BI Template_Seasonal | B49: BI_Seas_R1_High | C49: 2024 Bill Impacts (High Consumption Level) - Seas-R1 | D49: Seas-R1 | E49: Seas-R1
A50: BI Template_Seasonal | B50: BI_Seas_R2_Low | C50: 2024 Bill Impacts (Low Consumption Level) - Seas-R2 | D50: Seas-R2 | E50: Seas-R2
A51: BI Template_Seasonal | B51: BI_Seas_R2_Avg | C51: 2024 Bill Impacts (Average Consumption Level) - Seas-R2 | D51: Seas-R2 | E51: Seas-R2
A52: BI Template_Seasonal | B52: BI_Seas_R2_High | C52: 2024 Bill Impacts (High Consumption Level) - Seas-R2 | D52: Seas-R2 | E52: Seas-R2

Sheet Bill Impact Summary
A1: Rate Class | B1: Consumption Level | C1: Monthly Consumption (kWh) | D1: Monthly Peak (kW) | E1: BI Worksheet | F1: Template | G1: Current Total Bill | H1: Change in DX Bill ($) | I1: Change in DX Bill (%) | J1: Change in Total Bill ($) | K1: Change in Total Bill (%) | L1: Commodity Price Used | N1: List for Data Validation of cell L6; do not remove
A2: UR | B2: Low | C2: =VLOOKUP(A$2,'Data Billing Quantities'!A:P,MATCH(B2&" kWh",'Data Billing Quantities'!$4:$4,0),FALSE) -> 340 | E2: BI_UR_Low | F2: BI Template_Energy | G2: =VLOOKUP(VLOOKUP($F2,'Data BI Summary'!$A:$F,MATCH(G$1,'Data BI Summary'!$2:$2,0),FALSE),INDIRECT("'"&$E2&"'!"&"$A:$K"),4,FALSE) -> 84.31905209 | H2: =VLOOKUP(VLOOKUP($F2,'Data BI Summary'!$A:$F,MATCH(H$1,'Data BI Summary'!$2:$2,0),FALSE),INDIRECT("'"&$E2&"'!"&"$A:$K"),8,FALSE) -> 0.238 | I2: =VLOOKUP(VLOOKUP($F2,'Data BI Summary'!$A:$F,MATCH(I$1,'Data BI Summary'!$2:$2,0),FALSE),INDIRECT("'"&$E2&"'!"&"$A:$K"),9,FALSE) -> 0.006002219308 | J2: =VLOOKUP(VLOOKUP($F2,'Data BI Summary'!$A:$F,MATCH(J$1,'Data BI Summary'!$2:$2,0),FALSE),INDIRECT("'"&$E2&"'!"&"$A:$K"),8,FALSE) -> 0.223006 | K2: =VLOOKUP(VLOOKUP($F2,'Data BI Summary'!$A:$F,MATCH(K$1,'Data BI Summary'!$2:$2,0),FALSE),INDIRECT("'"&$E2&"'!"&"$A:$K"),9,FALSE) -> 0.002644787797 | L2: TOU
B3: Typical | C3: =VLOOKUP(A$2,'Data Billing Quantities'!A:P,MATCH(B3&" kWh",'Data Billing Quantities'!$4:$4,0),FALSE) -> 750 | E3: BI_UR_Typical | F3: BI Template_Energy | G3: =VLOOKUP(VLOOKUP($F3,'Data BI Summary'!$A:$F,MATCH(G$1,'Data BI Summary'!$2:$2,0),FALSE),INDIRECT("'"&$E3&"'!"&"$A:$K"),4,FALSE) -> 140.1686878 | H3: =VLOOKUP(VLOOKUP($F3,'Data BI Summary'!$A:$F,MATCH(H$1,'Data BI Summary'!$2:$2,0),FALSE),INDIRECT("'"&$E3&"'!"&"$A:$K"),8,FALSE) -> 0.525 | I3: =VLOOKUP(VLOOKUP($F3,'Data BI Summary'!$A:$F,MATCH(I$1,'Data BI Summary'!$2:$2,0),FALSE),INDIRECT("'"&$E3&"'!"&"$A:$K"),9,FALSE) -> 0.01333672044 | J3: =VLOOKUP(VLOOKUP($F3,'Data BI Summary'!$A:$F,MATCH(J$1,'Data BI Summary'!$2:$2,0),FALSE),INDIRECT("'"&$E3&"'!"&"$A:$K"),8,FALSE) -> 0.491925 | K3: =VLOOKUP(VLOOKUP($F3,'Data BI Summary'!$A:$F,MATCH(K$1,'Data BI Summary'!$2:$2,0),FALSE),INDIRECT("'"&$E3&"'!"&"$A:$K"),9,FALSE) -> 0.003509521331
B4: Average | C4: =VLOOKUP(A$2,'Data Billing Quantities'!A:P,MATCH(B4&" kWh",'Data Billing Quantities'!$4:$4,0),FALSE) -> 690 | E4: BI_UR_Avg | F4: BI Template_Energy | G4: =VLOOKUP(VLOOKUP($F4,'Data BI Summary'!$A:$F,MATCH(G$1,'Data BI Summary'!$2:$2,0),FALSE),INDIRECT("'"&$E4&"'!"&"$A:$K"),4,FALSE) -> 131.9955704 | H4: =VLOOKUP(VLOOKUP($F4,'Data BI Summary'!$A:$F,MATCH(H$1,'Data BI Summary'!$2:$2,0),FALSE),INDIRECT("'"&$E4&"'!"&"$A:$K"),8,FALSE) -> 0.483 | I4: =VLOOKUP(VLOOKUP($F4,'Data BI Summary'!$A:$F,MATCH(I$1,'Data BI Summary'!$2:$2,0),FALSE),INDIRECT("'"&$E4&"'!"&"$A:$K"),9,FALSE) -> 0.01225670566 | J4: =VLOOKUP(VLOOKUP($F4,'Data BI Summary'!$A:$F,MATCH(J$1,'Data BI Summary'!$2:$2,0),FALSE),INDIRECT("'"&$E4&"'!"&"$A:$K"),8,FALSE) -> 0.452571 | K4: =VLOOKUP(VLOOKUP($F4,'Data BI Summary'!$A:$F,MATCH(K$1,'Data BI Summary'!$2:$2,0),FALSE),INDIRECT("'"&$E4&"'!"&"$A:$K"),9,FALSE) -> 0.00342868324
B5: High | C5: =VLOOKUP(A$2,'Data Billing Quantities'!A:P,MATCH(B5&" kWh",'Data Billing Quantities'!$4:$4,0),FALSE) -> 1260 | E5: BI_UR_High | F5: BI Template_Energy | G5: =VLOOKUP(VLOOKUP($F5,'Data BI Summary'!$A:$F,MATCH(G$1,'Data BI Summary'!$2:$2,0),FALSE),INDIRECT("'"&$E5&"'!"&"$A:$K"),4,FALSE) -> 209.640186 | H5: =VLOOKUP(VLOOKUP($F5,'Data BI Summary'!$A:$F,MATCH(H$1,'Data BI Summary'!$2:$2,0),FALSE),INDIRECT("'"&$E5&"'!"&"$A:$K"),8,FALSE) -> 0.882 | I5: =VLOOKUP(VLOOKUP($F5,'Data BI Summary'!$A:$F,MATCH(I$1,'Data BI Summary'!$2:$2,0),FALSE),INDIRECT("'"&$E5&"'!"&"$A:$K"),9,FALSE) -> 0.02261074651 | J5: =VLOOKUP(VLOOKUP($F5,'Data BI Summary'!$A:$F,MATCH(J$1,'Data BI Summary'!$2:$2,0),FALSE),INDIRECT("'"&$E5&"'!"&"$A:$K"),8,FALSE) -> 0.826434 | K5: =VLOOKUP(VLOOKUP($F5,'Data BI Summary'!$A:$F,MATCH(K$1,'Data BI Summary'!$2:$2,0),FALSE),INDIRECT("'"&$E5&"'!"&"$A:$K"),9,FALSE) -> 0.003942154488
A6: R1 (with DRP) | B6: Low | C6: =VLOOKUP("R1",'Data Billing Quantities'!A:P,MATCH(B6&" kWh",'Data Billing Quantities'!$4:$4,0),FALSE) -> 370 | E6: BI_R1_Low (with DRP) | F6: BI Template_Energy | G6: =VLOOKUP(VLOOKUP($F6,'Data BI Summary'!$A:$F,MATCH(G$1,'Data BI Summary'!$2:$2,0),FALSE),INDIRECT("'"&$E6&"'!"&"$A:$K"),4,FALSE) -> 88.22212559 | H6: =VLOOKUP(VLOOKUP($F6,'Data BI Summary'!$A:$F,MATCH(H$1,'Data BI Summary'!$2:$2,0),FALSE),INDIRECT("'"&$E6&"'!"&"$A:$K"),8,FALSE) -> 0.259 | I6: =VLOOKUP(VLOOKUP($F6,'Data BI Summary'!$A:$F,MATCH(I$1,'Data BI Summary'!$2:$2,0),FALSE),INDIRECT("'"&$E6&"'!"&"$A:$K"),9,FALSE) -> 0.006637451629 | J6: =VLOOKUP(VLOOKUP($F6,'Data BI Summary'!$A:$F,MATCH(J$1,'Data BI Summary'!$2:$2,0),FALSE),INDIRECT("'"&$E6&"'!"&"$A:$K"),8,FALSE) -> 0.242683 | K6: =VLOOKUP(VLOOKUP($F6,'Data BI Summary'!$A:$F,MATCH(K$1,'Data BI Summary'!$2:$2,0),FALSE),INDIRECT("'"&$E6&"'!"&"$A:$K"),9,FALSE) -> 0.002750817874 | L6: TOU (DRP applied) | N6: TOU
B7: Typical | C7: =VLOOKUP("R1",'Data Billing Quantities'!A:P,MATCH(B7&" kWh",'Data Billing Quantities'!$4:$4,0),FALSE) -> 750 | E7: BI_R1_Typical (with DRP) | F7: BI Template_Energy | G7: =VLOOKUP(VLOOKUP($F7,'Data BI Summary'!$A:$F,MATCH(G$1,'Data BI Summary'!$2:$2,0),FALSE),INDIRECT("'"&$E7&"'!"&"$A:$K"),4,FALSE) -> 140.3837762 | H7: =VLOOKUP(VLOOKUP($F7,'Data BI Summary'!$A:$F,MATCH(H$1,'Data BI Summary'!$2:$2,0),FALSE),INDIRECT("'"&$E7&"'!"&"$A:$K"),8,FALSE) -> 0.525 | I7: =VLOOKUP(VLOOKUP($F7,'Data BI Summary'!$A:$F,MATCH(I$1,'Data BI Summary'!$2:$2,0),FALSE),INDIRECT("'"&$E7&"'!"&"$A:$K"),9,FALSE) -> 0.01354663914 | J7: =VLOOKUP(VLOOKUP($F7,'Data BI Summary'!$A:$F,MATCH(J$1,'Data BI Summary'!$2:$2,0),FALSE),INDIRECT("'"&$E7&"'!"&"$A:$K"),8,FALSE) -> 0.491925 | K7: =VLOOKUP(VLOOKUP($F7,'Data BI Summary'!$A:$F,MATCH(K$1,'Data BI Summary'!$2:$2,0),FALSE),INDIRECT("'"&$E7&"'!"&"$A:$K"),9,FALSE) -> 0.003504144235 | N7: TOU (DRP applied)
B8: Average | C8: =VLOOKUP("R1",'Data Billing Quantities'!A:P,MATCH(B8&" kWh",'Data Billing Quantities'!$4:$4,0),FALSE) -> 784 | E8: BI_R1_Avg (with DRP) | F8: BI Template_Energy | G8: =VLOOKUP(VLOOKUP($F8,'Data BI Summary'!$A:$F,MATCH(G$1,'Data BI Summary'!$2:$2,0),FALSE),INDIRECT("'"&$E8&"'!"&"$A:$K"),4,FALSE) -> 145.0508713 | H8: =VLOOKUP(VLOOKUP($F8,'Data BI Summary'!$A:$F,MATCH(H$1,'Data BI Summary'!$2:$2,0),FALSE),INDIRECT("'"&$E8&"'!"&"$A:$K"),8,FALSE) -> 0.5488 | I8: =VLOOKUP(VLOOKUP($F8,'Data BI Summary'!$A:$F,MATCH(I$1,'Data BI Summary'!$2:$2,0),FALSE),INDIRECT("'"&$E8&"'!"&"$A:$K"),9,FALSE) -> 0.01416945512 | J8: =VLOOKUP(VLOOKUP($F8,'Data BI Summary'!$A:$F,MATCH(J$1,'Data BI Summary'!$2:$2,0),FALSE),INDIRECT("'"&$E8&"'!"&"$A:$K"),8,FALSE) -> 0.5142256 | K8: =VLOOKUP(VLOOKUP($F8,'Data BI Summary'!$A:$F,MATCH(K$1,'Data BI Summary'!$2:$2,0),FALSE),INDIRECT("'"&$E8&"'!"&"$A:$K"),9,FALSE) -> 0.003545139685
B9: High | C9: =VLOOKUP("R1",'Data Billing Quantities'!A:P,MATCH(B9&" kWh",'Data Billing Quantities'!$4:$4,0),FALSE) -> 1650 | E9: BI_R1_High (with DRP) | F9: BI Template_Energy | G9: =VLOOKUP(VLOOKUP($F9,'Data BI Summary'!$A:$F,MATCH(G$1,'Data BI Summary'!$2:$2,0),FALSE),INDIRECT("'"&$E9&"'!"&"$A:$K"),4,FALSE) -> 263.9245276 | H9: =VLOOKUP(VLOOKUP($F9,'Data BI Summary'!$A:$F,MATCH(H$1,'Data BI Summary'!$2:$2,0),FALSE),INDIRECT("'"&$E9&"'!"&"$A:$K"),8,FALSE) -> 1.155 | I9: =VLOOKUP(VLOOKUP($F9,'Data BI Summary'!$A:$F,MATCH(I$1,'Data BI Summary'!$2:$2,0),FALSE),INDIRECT("'"&$E9&"'!"&"$A:$K"),9,FALSE) -> 0.03029508197 | J9: =VLOOKUP(VLOOKUP($F9,'Data BI Summary'!$A:$F,MATCH(J$1,'Data BI Summary'!$2:$2,0),FALSE),INDIRECT("'"&$E9&"'!"&"$A:$K"),8,FALSE) -> 1.082235 | K9: =VLOOKUP(VLOOKUP($F9,'Data BI Summary'!$A:$F,MATCH(K$1,'Data BI Summary'!$2:$2,0),FALSE),INDIRECT("'"&$E9&"'!"&"$A:$K"),9,FALSE) -> 0.004100547265
A10: R1 (without DRP) | B10: Low | C10: =VLOOKUP("R1",'Data Billing Quantities'!A:P,MATCH(B10&" kWh",'Data Billing Quantities'!$4:$4,0),FALSE) -> 370 | E10: BI_R1_Low (without DRP) | F10: BI Template_Energy | G10: =VLOOKUP(VLOOKUP($F10,'Data BI Summary'!$A:$F,MATCH(G$1,'Data BI Summary'!$2:$2,0),FALSE),INDIRECT("'"&$E10&"'!"&"$A:$K"),4,FALSE) -> 115.2170956 | H10: =VLOOKUP(VLOOKUP($F10,'Data BI Summary'!$A:$F,MATCH(H$1,'Data BI Summary'!$2:$2,0),FALSE),INDIRECT("'"&$E10&"'!"&"$A:$K"),8,FALSE) -> 0.259 | I10: =VLOOKUP(VLOOKUP($F10,'Data BI Summary'!$A:$F,MATCH(I$1,'Data BI Summary'!$2:$2,0),FALSE),INDIRECT("'"&$E10&"'!"&"$A:$K"),9,FALSE) -> 0.003818313161 | J10: =VLOOKUP(VLOOKUP($F10,'Data BI Summary'!$A:$F,MATCH(J$1,'Data BI Summary'!$2:$2,0),FALSE),INDIRECT("'"&$E10&"'!"&"$A:$K"),8,FALSE) -> 0.242683 | K10: =VLOOKUP(VLOOKUP($F10,'Data BI Summary'!$A:$F,MATCH(K$1,'Data BI Summary'!$2:$2,0),FALSE),INDIRECT("'"&$E10&"'!"&"$A:$K"),9,FALSE) -> 0.002106310689 | L10: TOU
B11: Typical | C11: =VLOOKUP("R1",'Data Billing Quantities'!A:P,MATCH(B11&" kWh",'Data Billing Quantities'!$4:$4,0),FALSE) -> 750 | E11: BI_R1_Typical (without DRP) | F11: BI Template_Energy | G11: =VLOOKUP(VLOOKUP($F11,'Data BI Summary'!$A:$F,MATCH(G$1,'Data BI Summary'!$2:$2,0),FALSE),INDIRECT("'"&$E11&"'!"&"$A:$K"),4,FALSE) -> 167.3787462 | H11: =VLOOKUP(VLOOKUP($F11,'Data BI Summary'!$A:$F,MATCH(H$1,'Data BI Summary'!$2:$2,0),FALSE),INDIRECT("'"&$E11&"'!"&"$A:$K"),8,FALSE) -> 0.525 | I11: =VLOOKUP(VLOOKUP($F11,'Data BI Summary'!$A:$F,MATCH(I$1,'Data BI Summary'!$2:$2,0),FALSE),INDIRECT("'"&$E11&"'!"&"$A:$K"),9,FALSE) -> 0.007770295271 | J11: =VLOOKUP(VLOOKUP($F11,'Data BI Summary'!$A:$F,MATCH(J$1,'Data BI Summary'!$2:$2,0),FALSE),INDIRECT("'"&$E11&"'!"&"$A:$K"),8,FALSE) -> 0.491925 | K11: =VLOOKUP(VLOOKUP($F11,'Data BI Summary'!$A:$F,MATCH(K$1,'Data BI Summary'!$2:$2,0),FALSE),INDIRECT("'"&$E11&"'!"&"$A:$K"),9,FALSE) -> 0.002938993218
B12: Average | C12: =VLOOKUP("R1",'Data Billing Quantities'!A:P,MATCH(B12&" kWh",'Data Billing Quantities'!$4:$4,0),FALSE) -> 784 | E12: BI_R1_Avg (without DRP) | F12: BI Template_Energy | G12: =VLOOKUP(VLOOKUP($F12,'Data BI Summary'!$A:$F,MATCH(G$1,'Data BI Summary'!$2:$2,0),FALSE),INDIRECT("'"&$E12&"'!"&"$A:$K"),4,FALSE) -> 172.0458413 | H12: =VLOOKUP(VLOOKUP($F12,'Data BI Summary'!$A:$F,MATCH(H$1,'Data BI Summary'!$2:$2,0),FALSE),INDIRECT("'"&$E12&"'!"&"$A:$K"),8,FALSE) -> 0.5488 | I12: =VLOOKUP(VLOOKUP($F12,'Data BI Summary'!$A:$F,MATCH(I$1,'Data BI Summary'!$2:$2,0),FALSE),INDIRECT("'"&$E12&"'!"&"$A:$K"),9,FALSE) -> 0.00812541086 | J12: =VLOOKUP(VLOOKUP($F12,'Data BI Summary'!$A:$F,MATCH(J$1,'Data BI Summary'!$2:$2,0),FALSE),INDIRECT("'"&$E12&"'!"&"$A:$K"),8,FALSE) -> 0.5142256 | K12: =VLOOKUP(VLOOKUP($F12,'Data BI Summary'!$A:$F,MATCH(K$1,'Data BI Summary'!$2:$2,0),FALSE),INDIRECT("'"&$E12&"'!"&"$A:$K"),9,FALSE) -> 0.002988887126
B13: High | C13: =VLOOKUP("R1",'Data Billing Quantities'!A:P,MATCH(B13&" kWh",'Data Billing Quantities'!$4:$4,0),FALSE) -> 1650 | E13: BI_R1_High (without DRP) | F13: BI Template_Energy | G13: =VLOOKUP(VLOOKUP($F13,'Data BI Summary'!$A:$F,MATCH(G$1,'Data BI Summary'!$2:$2,0),FALSE),INDIRECT("'"&$E13&"'!"&"$A:$K"),4,FALSE) -> 290.9194976 | H13: =VLOOKUP(VLOOKUP($F13,'Data BI Summary'!$A:$F,MATCH(H$1,'Data BI Summary'!$2:$2,0),FALSE),INDIRECT("'"&$E13&"'!"&"$A:$K"),8,FALSE) -> 1.155 | I13: =VLOOKUP(VLOOKUP($F13,'Data BI Summary'!$A:$F,MATCH(I$1,'Data BI Summary'!$2:$2,0),FALSE),INDIRECT("'"&$E13&"'!"&"$A:$K"),9,FALSE) -> 0.01725554643 | J13: =VLOOKUP(VLOOKUP($F13,'Data BI Summary'!$A:$F,MATCH(J$1,'Data BI Summary'!$2:$2,0),FALSE),INDIRECT("'"&$E13&"'!"&"$A:$K"),8,FALSE) -> 1.082235 | K13: =VLOOKUP(VLOOKUP($F13,'Data BI Summary'!$A:$F,MATCH(K$1,'Data BI Summary'!$2:$2,0),FALSE),INDIRECT("'"&$E13&"'!"&"$A:$K"),9,FALSE) -> 0.003720049735
A14: R2 (with DRP) | B14: Low | C14: =VLOOKUP("R2",'Data Billing Quantities'!A:P,MATCH(B14&" kWh",'Data Billing Quantities'!$4:$4,0),FALSE) -> 440 | E14: BI_R2_Low (with DRP) | F14: BI Template_Energy | G14: =VLOOKUP(VLOOKUP($F14,'Data BI Summary'!$A:$F,MATCH(G$1,'Data BI Summary'!$2:$2,0),FALSE),INDIRECT("'"&$E14&"'!"&"$A:$K"),4,FALSE) -> 98.61314076 | H14: =VLOOKUP(VLOOKUP($F14,'Data BI Summary'!$A:$F,MATCH(H$1,'Data BI Summary'!$2:$2,0),FALSE),INDIRECT("'"&$E14&"'!"&"$A:$K"),8,FALSE) -> 0.352 | I14: =VLOOKUP(VLOOKUP($F14,'Data BI Summary'!$A:$F,MATCH(I$1,'Data BI Summary'!$2:$2,0),FALSE),INDIRECT("'"&$E14&"'!"&"$A:$K"),9,FALSE) -> 0.009085746735 | J14: =VLOOKUP(VLOOKUP($F14,'Data BI Summary'!$A:$F,MATCH(J$1,'Data BI Summary'!$2:$2,0),FALSE),INDIRECT("'"&$E14&"'!"&"$A:$K"),8,FALSE) -> 0.329824 | K14: =VLOOKUP(VLOOKUP($F14,'Data BI Summary'!$A:$F,MATCH(K$1,'Data BI Summary'!$2:$2,0),FALSE),INDIRECT("'"&$E14&"'!"&"$A:$K"),9,FALSE) -> 0.003344625244 | L14: =L6 -> TOU (DRP applied)
B15: Typical | C15: =VLOOKUP("R2",'Data Billing Quantities'!A:P,MATCH(B15&" kWh",'Data Billing Quantities'!$4:$4,0),FALSE) -> 750 | E15: BI_R2_Typical (with DRP) | F15: BI Template_Energy | G15: =VLOOKUP(VLOOKUP($F15,'Data BI Summary'!$A:$F,MATCH(G$1,'Data BI Summary'!$2:$2,0),FALSE),INDIRECT("'"&$E15&"'!"&"$A:$K"),4,FALSE) -> 141.8690617 | H15: =VLOOKUP(VLOOKUP($F15,'Data BI Summary'!$A:$F,MATCH(H$1,'Data BI Summary'!$2:$2,0),FALSE),INDIRECT("'"&$E15&"'!"&"$A:$K"),8,FALSE) -> 0.6 | I15: =VLOOKUP(VLOOKUP($F15,'Data BI Summary'!$A:$F,MATCH(I$1,'Data BI Summary'!$2:$2,0),FALSE),INDIRECT("'"&$E15&"'!"&"$A:$K"),9,FALSE) -> 0.0155743024 | J15: =VLOOKUP(VLOOKUP($F15,'Data BI Summary'!$A:$F,MATCH(J$1,'Data BI Summary'!$2:$2,0),FALSE),INDIRECT("'"&$E15&"'!"&"$A:$K"),8,FALSE) -> 0.5622 | K15: =VLOOKUP(VLOOKUP($F15,'Data BI Summary'!$A:$F,MATCH(K$1,'Data BI Summary'!$2:$2,0),FALSE),INDIRECT("'"&$E15&"'!"&"$A:$K"),9,FALSE) -> 0.003962809037
B16: Average | C16: =VLOOKUP("R2",'Data Billing Quantities'!A:P,MATCH(B16&" kWh",'Data Billing Quantities'!$4:$4,0),FALSE) -> 978 | E16: BI_R2_Avg (with DRP) | F16: BI Template_Energy | G16: =VLOOKUP(VLOOKUP($F16,'Data BI Summary'!$A:$F,MATCH(G$1,'Data BI Summary'!$2:$2,0),FALSE),INDIRECT("'"&$E16&"'!"&"$A:$K"),4,FALSE) -> 173.683094 | H16: =VLOOKUP(VLOOKUP($F16,'Data BI Summary'!$A:$F,MATCH(H$1,'Data BI Summary'!$2:$2,0),FALSE),INDIRECT("'"&$E16&"'!"&"$A:$K"),8,FALSE) -> 0.7824 | I16: =VLOOKUP(VLOOKUP($F16,'Data BI Summary'!$A:$F,MATCH(I$1,'Data BI Summary'!$2:$2,0),FALSE),INDIRECT("'"&$E16&"'!"&"$A:$K"),9,FALSE) -> 0.02039337528 | J16: =VLOOKUP(VLOOKUP($F16,'Data BI Summary'!$A:$F,MATCH(J$1,'Data BI Summary'!$2:$2,0),FALSE),INDIRECT("'"&$E16&"'!"&"$A:$K"),8,FALSE) -> 0.7331088 | K16: =VLOOKUP(VLOOKUP($F16,'Data BI Summary'!$A:$F,MATCH(K$1,'Data BI Summary'!$2:$2,0),FALSE),INDIRECT("'"&$E16&"'!"&"$A:$K"),9,FALSE) -> 0.00422095659
B17: High | C17: =VLOOKUP("R2",'Data Billing Quantities'!A:P,MATCH(B17&" kWh",'Data Billing Quantities'!$4:$4,0),FALSE) -> 2110 | E17: BI_R2_High (with DRP) | F17: BI Template_Energy | G17: =VLOOKUP(VLOOKUP($F17,'Data BI Summary'!$A:$F,MATCH(G$1,'Data BI Summary'!$2:$2,0),FALSE),INDIRECT("'"&$E17&"'!"&"$A:$K"),4,FALSE) -> 331.6369732 | H17: =VLOOKUP(VLOOKUP($F17,'Data BI Summary'!$A:$F,MATCH(H$1,'Data BI Summary'!$2:$2,0),FALSE),INDIRECT("'"&$E17&"'!"&"$A:$K"),8,FALSE) -> 1.688 | I17: =VLOOKUP(VLOOKUP($F17,'Data BI Summary'!$A:$F,MATCH(I$1,'Data BI Summary'!$2:$2,0),FALSE),INDIRECT("'"&$E17&"'!"&"$A:$K"),9,FALSE) -> 0.04492587762 | J17: =VLOOKUP(VLOOKUP($F17,'Data BI Summary'!$A:$F,MATCH(J$1,'Data BI Summary'!$2:$2,0),FALSE),INDIRECT("'"&$E17&"'!"&"$A:$K"),8,FALSE) -> 1.581656 | K17: =VLOOKUP(VLOOKUP($F17,'Data BI Summary'!$A:$F,MATCH(K$1,'Data BI Summary'!$2:$2,0),FALSE),INDIRECT("'"&$E17&"'!"&"$A:$K"),9,FALSE) -> 0.004769239041
A18: R2 (without DRP) | B18: Low | C18: =VLOOKUP("R2",'Data Billing Quantities'!A:P,MATCH(B18&" kWh",'Data Billing Quantities'!$4:$4,0),FALSE) -> 440 | E18: BI_R2_Low (without DRP) | F18: BI Template_Energy | G18: =VLOOKUP(VLOOKUP($F18,'Data BI Summary'!$A:$F,MATCH(G$1,'Data BI Summary'!$2:$2,0),FALSE),INDIRECT("'"&$E18&"'!"&"$A:$K"),4,FALSE) -> 139.9760688 | H18: =VLOOKUP(VLOOKUP($F18,'Data BI Summary'!$A:$F,MATCH(H$1,'Data BI Summary'!$2:$2,0),FALSE),INDIRECT("'"&$E18&"'!"&"$A:$K"),8,FALSE) -> 0.352 | I18: =VLOOKUP(VLOOKUP($F18,'Data BI Summary'!$A:$F,MATCH(I$1,'Data BI Summary'!$2:$2,0),FALSE),INDIRECT("'"&$E18&"'!"&"$A:$K"),9,FALSE) -> 0.004246796805 | J18: =VLOOKUP(VLOOKUP($F18,'Data BI Summary'!$A:$F,MATCH(J$1,'Data BI Summary'!$2:$2,0),FALSE),INDIRECT("'"&$E18&"'!"&"$A:$K"),8,FALSE) -> 0.329824 | K18: =VLOOKUP(VLOOKUP($F18,'Data BI Summary'!$A:$F,MATCH(K$1,'Data BI Summary'!$2:$2,0),FALSE),INDIRECT("'"&$E18&"'!"&"$A:$K"),9,FALSE) -> 0.002356288492 | L18: =L10 -> TOU
B19: Typical | C19: =VLOOKUP("R2",'Data Billing Quantities'!A:P,MATCH(B19&" kWh",'Data Billing Quantities'!$4:$4,0),FALSE) -> 750 | E19: BI_R2_Typical (without DRP) | F19: BI Template_Energy | G19: =VLOOKUP(VLOOKUP($F19,'Data BI Summary'!$A:$F,MATCH(G$1,'Data BI Summary'!$2:$2,0),FALSE),INDIRECT("'"&$E19&"'!"&"$A:$K"),4,FALSE) -> 186.8919117 | H19: =VLOOKUP(VLOOKUP($F19,'Data BI Summary'!$A:$F,MATCH(H$1,'Data BI Summary'!$2:$2,0),FALSE),INDIRECT("'"&$E19&"'!"&"$A:$K"),8,FALSE) -> 0.6 | I19: =VLOOKUP(VLOOKUP($F19,'Data BI Summary'!$A:$F,MATCH(I$1,'Data BI Summary'!$2:$2,0),FALSE),INDIRECT("'"&$E19&"'!"&"$A:$K"),9,FALSE) -> 0.006930407161 | J19: =VLOOKUP(VLOOKUP($F19,'Data BI Summary'!$A:$F,MATCH(J$1,'Data BI Summary'!$2:$2,0),FALSE),INDIRECT("'"&$E19&"'!"&"$A:$K"),8,FALSE) -> 0.5622 | K19: =VLOOKUP(VLOOKUP($F19,'Data BI Summary'!$A:$F,MATCH(K$1,'Data BI Summary'!$2:$2,0),FALSE),INDIRECT("'"&$E19&"'!"&"$A:$K"),9,FALSE) -> 0.003008155863
B20: Average | C20: =VLOOKUP("R2",'Data Billing Quantities'!A:P,MATCH(B20&" kWh",'Data Billing Quantities'!$4:$4,0),FALSE) -> 978 | E20: BI_R2_Avg (without DRP) | F20: BI Template_Energy | G20: =VLOOKUP(VLOOKUP($F20,'Data BI Summary'!$A:$F,MATCH(G$1,'Data BI Summary'!$2:$2,0),FALSE),INDIRECT("'"&$E20&"'!"&"$A:$K"),4,FALSE) -> 221.3977576 | H20: =VLOOKUP(VLOOKUP($F20,'Data BI Summary'!$A:$F,MATCH(H$1,'Data BI Summary'!$2:$2,0),FALSE),INDIRECT("'"&$E20&"'!"&"$A:$K"),8,FALSE) -> 0.7824 | I20: =VLOOKUP(VLOOKUP($F20,'Data BI Summary'!$A:$F,MATCH(I$1,'Data BI Summary'!$2:$2,0),FALSE),INDIRECT("'"&$E20&"'!"&"$A:$K"),9,FALSE) -> 0.008762636048 | J20: =VLOOKUP(VLOOKUP($F20,'Data BI Summary'!$A:$F,MATCH(J$1,'Data BI Summary'!$2:$2,0),FALSE),INDIRECT("'"&$E20&"'!"&"$A:$K"),8,FALSE) -> 0.7331088 | K20: =VLOOKUP(VLOOKUP($F20,'Data BI Summary'!$A:$F,MATCH(K$1,'Data BI Summary'!$2:$2,0),FALSE),INDIRECT("'"&$E20&"'!"&"$A:$K"),9,FALSE) -> 0.00331127473
B21: High | C21: =VLOOKUP("R2",'Data Billing Quantities'!A:P,MATCH(B21&" kWh",'Data Billing Quantities'!$4:$4,0),FALSE) -> 2110 | E21: BI_R2_High (without DRP) | F21: BI Template_Energy | G21: =VLOOKUP(VLOOKUP($F21,'Data BI Summary'!$A:$F,MATCH(G$1,'Data BI Summary'!$2:$2,0),FALSE),INDIRECT("'"&$E21&"'!"&"$A:$K"),4,FALSE) -> 392.7162552 | H21: =VLOOKUP(VLOOKUP($F21,'Data BI Summary'!$A:$F,MATCH(H$1,'Data BI Summary'!$2:$2,0),FALSE),INDIRECT("'"&$E21&"'!"&"$A:$K"),8,FALSE) -> 1.688 | I21: =VLOOKUP(VLOOKUP($F21,'Data BI Summary'!$A:$F,MATCH(I$1,'Data BI Summary'!$2:$2,0),FALSE),INDIRECT("'"&$E21&"'!"&"$A:$K"),9,FALSE) -> 0.016426785 | J21: =VLOOKUP(VLOOKUP($F21,'Data BI Summary'!$A:$F,MATCH(J$1,'Data BI Summary'!$2:$2,0),FALSE),INDIRECT("'"&$E21&"'!"&"$A:$K"),8,FALSE) -> 1.581656 | K21: =VLOOKUP(VLOOKUP($F21,'Data BI Summary'!$A:$F,MATCH(K$1,'Data BI Summary'!$2:$2,0),FALSE),INDIRECT("'"&$E21&"'!"&"$A:$K"),9,FALSE) -> 0.004027477801
A22: Seasonal-UR | B22: Low | C22: =VLOOKUP("Seasonal",'Data Billing Quantities'!A:P,MATCH(B22&" kWh",'Data Billing Quantities'!$4:$4,0),FALSE) -> 40 | E22: BI_Seas_UR_Low | F22: BI Template_Seasonal | G22: =VLOOKUP(VLOOKUP($F22,'Data BI Summary'!$A:$F,MATCH(G$1,'Data BI Summary'!$2:$2,0),FALSE),INDIRECT("'"&$E22&"'!"&"$A:$K"),4,FALSE) -> 43.45346495 | H22: =VLOOKUP(VLOOKUP($F22,'Data BI Summary'!$A:$F,MATCH(H$1,'Data BI Summary'!$2:$2,0),FALSE),INDIRECT("'"&$E22&"'!"&"$A:$K"),8,FALSE) -> 0.028 | I22: =VLOOKUP(VLOOKUP($F22,'Data BI Summary'!$A:$F,MATCH(I$1,'Data BI Summary'!$2:$2,0),FALSE),INDIRECT("'"&$E22&"'!"&"$A:$K"),9,FALSE) -> 0.0007024233606 | J22: =VLOOKUP(VLOOKUP($F22,'Data BI Summary'!$A:$F,MATCH(J$1,'Data BI Summary'!$2:$2,0),FALSE),INDIRECT("'"&$E22&"'!"&"$A:$K"),8,FALSE) -> 0.026236 | K22: =VLOOKUP(VLOOKUP($F22,'Data BI Summary'!$A:$F,MATCH(K$1,'Data BI Summary'!$2:$2,0),FALSE),INDIRECT("'"&$E22&"'!"&"$A:$K"),9,FALSE) -> 0.000603772335 | L22: TOU
B23: Average | C23: =VLOOKUP("Seasonal",'Data Billing Quantities'!A:P,MATCH(B23&" kWh",'Data Billing Quantities'!$4:$4,0),FALSE) -> 369 | E23: BI_Seas_UR_Avg | F23: BI Template_Seasonal | G23: =VLOOKUP(VLOOKUP($F23,'Data BI Summary'!$A:$F,MATCH(G$1,'Data BI Summary'!$2:$2,0),FALSE),INDIRECT("'"&$E23&"'!"&"$A:$K"),4,FALSE) -> 88.26939218 | H23: =VLOOKUP(VLOOKUP($F23,'Data BI Summary'!$A:$F,MATCH(H$1,'Data BI Summary'!$2:$2,0),FALSE),INDIRECT("'"&$E23&"'!"&"$A:$K"),8,FALSE) -> 0.2583 | I23: =VLOOKUP(VLOOKUP($F23,'Data BI Summary'!$A:$F,MATCH(I$1,'Data BI Summary'!$2:$2,0),FALSE),INDIRECT("'"&$E23&"'!"&"$A:$K"),9,FALSE) -> 0.006517509973 | J23: =VLOOKUP(VLOOKUP($F23,'Data BI Summary'!$A:$F,MATCH(J$1,'Data BI Summary'!$2:$2,0),FALSE),INDIRECT("'"&$E23&"'!"&"$A:$K"),8,FALSE) -> 0.2420271 | K23: =VLOOKUP(VLOOKUP($F23,'Data BI Summary'!$A:$F,MATCH(K$1,'Data BI Summary'!$2:$2,0),FALSE),INDIRECT("'"&$E23&"'!"&"$A:$K"),9,FALSE) -> 0.002741914202
B24: High | C24: =VLOOKUP("Seasonal",'Data Billing Quantities'!A:P,MATCH(B24&" kWh",'Data Billing Quantities'!$4:$4,0),FALSE) -> 1040 | E24: BI_Seas_UR_High | F24: BI Template_Seasonal | G24: =VLOOKUP(VLOOKUP($F24,'Data BI Summary'!$A:$F,MATCH(G$1,'Data BI Summary'!$2:$2,0),FALSE),INDIRECT("'"&$E24&"'!"&"$A:$K"),4,FALSE) -> 179.6720888 | H24: =VLOOKUP(VLOOKUP($F24,'Data BI Summary'!$A:$F,MATCH(H$1,'Data BI Summary'!$2:$2,0),FALSE),INDIRECT("'"&$E24&"'!"&"$A:$K"),8,FALSE) -> 0.728 | I24: =VLOOKUP(VLOOKUP($F24,'Data BI Summary'!$A:$F,MATCH(I$1,'Data BI Summary'!$2:$2,0),FALSE),INDIRECT("'"&$E24&"'!"&"$A:$K"),9,FALSE) -> 0.01858944896 | J24: =VLOOKUP(VLOOKUP($F24,'Data BI Summary'!$A:$F,MATCH(J$1,'Data BI Summary'!$2:$2,0),FALSE),INDIRECT("'"&$E24&"'!"&"$A:$K"),8,FALSE) -> 0.682136 | K24: =VLOOKUP(VLOOKUP($F24,'Data BI Summary'!$A:$F,MATCH(K$1,'Data BI Summary'!$2:$2,0),FALSE),INDIRECT("'"&$E24&"'!"&"$A:$K"),9,FALSE) -> 0.00379656075
A25: Seasonal-R1 | B25: Low | C25: =VLOOKUP("Seasonal",'Data Billing Quantities'!A:P,MATCH(B25&" kWh",'Data Billing Quantities'!$4:$4,0),FALSE) -> 40 | E25: BI_Seas_R1_Low | F25: BI Template_Seasonal | G25: =VLOOKUP(VLOOKUP($F25,'Data BI Summary'!$A:$F,MATCH(G$1,'Data BI Summary'!$2:$2,0),FALSE),INDIRECT("'"&$E25&"'!"&"$A:$K"),4,FALSE) -> 69.91882006 | H25: =VLOOKUP(VLOOKUP($F25,'Data BI Summary'!$A:$F,MATCH(H$1,'Data BI Summary'!$2:$2,0),FALSE),INDIRECT("'"&$E25&"'!"&"$A:$K"),8,FALSE) -> 0.028 | I25: =VLOOKUP(VLOOKUP($F25,'Data BI Summary'!$A:$F,MATCH(I$1,'Data BI Summary'!$2:$2,0),FALSE),INDIRECT("'"&$E25&"'!"&"$A:$K"),9,FALSE) -> 0.0004113896154 | J25: =VLOOKUP(VLOOKUP($F25,'Data BI Summary'!$A:$F,MATCH(J$1,'Data BI Summary'!$2:$2,0),FALSE),INDIRECT("'"&$E25&"'!"&"$A:$K"),8,FALSE) -> 0.026236 | K25: =VLOOKUP(VLOOKUP($F25,'Data BI Summary'!$A:$F,MATCH(K$1,'Data BI Summary'!$2:$2,0),FALSE),INDIRECT("'"&$E25&"'!"&"$A:$K"),9,FALSE) -> 0.0003752351652 | L25: TOU
B26: Average | C26: =VLOOKUP("Seasonal",'Data Billing Quantities'!A:P,MATCH(B26&" kWh",'Data Billing Quantities'!$4:$4,0),FALSE) -> 369 | E26: BI_Seas_R1_Avg | F26: BI Template_Seasonal | G26: =VLOOKUP(VLOOKUP($F26,'Data BI Summary'!$A:$F,MATCH(G$1,'Data BI Summary'!$2:$2,0),FALSE),INDIRECT("'"&$E26&"'!"&"$A:$K"),4,FALSE) -> 115.0798281 | H26: =VLOOKUP(VLOOKUP($F26,'Data BI Summary'!$A:$F,MATCH(H$1,'Data BI Summary'!$2:$2,0),FALSE),INDIRECT("'"&$E26&"'!"&"$A:$K"),8,FALSE) -> 0.2583 | I26: =VLOOKUP(VLOOKUP($F26,'Data BI Summary'!$A:$F,MATCH(I$1,'Data BI Summary'!$2:$2,0),FALSE),INDIRECT("'"&$E26&"'!"&"$A:$K"),9,FALSE) -> 0.003807954098 | J26: =VLOOKUP(VLOOKUP($F26,'Data BI Summary'!$A:$F,MATCH(J$1,'Data BI Summary'!$2:$2,0),FALSE),INDIRECT("'"&$E26&"'!"&"$A:$K"),8,FALSE) -> 0.2420271 | K26: =VLOOKUP(VLOOKUP($F26,'Data BI Summary'!$A:$F,MATCH(K$1,'Data BI Summary'!$2:$2,0),FALSE),INDIRECT("'"&$E26&"'!"&"$A:$K"),9,FALSE) -> 0.00210312358
B27: High | C27: =VLOOKUP("Seasonal",'Data Billing Quantities'!A:P,MATCH(B27&" kWh",'Data Billing Quantities'!$4:$4,0),FALSE) -> 1040 | E27: BI_Seas_R1_High | F27: BI Template_Seasonal | G27: =VLOOKUP(VLOOKUP($F27,'Data BI Summary'!$A:$F,MATCH(G$1,'Data BI Summary'!$2:$2,0),FALSE),INDIRECT("'"&$E27&"'!"&"$A:$K"),4,FALSE) -> 207.1863217 | H27: =VLOOKUP(VLOOKUP($F27,'Data BI Summary'!$A:$F,MATCH(H$1,'Data BI Summary'!$2:$2,0),FALSE),INDIRECT("'"&$E27&"'!"&"$A:$K"),8,FALSE) -> 0.728 | I27: =VLOOKUP(VLOOKUP($F27,'Data BI Summary'!$A:$F,MATCH(I$1,'Data BI Summary'!$2:$2,0),FALSE),INDIRECT("'"&$E27&"'!"&"$A:$K"),9,FALSE) -> 0.01080728007 | J27: =VLOOKUP(VLOOKUP($F27,'Data BI Summary'!$A:$F,MATCH(J$1,'Data BI Summary'!$2:$2,0),FALSE),INDIRECT("'"&$E27&"'!"&"$A:$K"),8,FALSE) -> 0.682136 | K27: =VLOOKUP(VLOOKUP($F27,'Data BI Summary'!$A:$F,MATCH(K$1,'Data BI Summary'!$2:$2,0),FALSE),INDIRECT("'"&$E27&"'!"&"$A:$K"),9,FALSE) -> 0.003292379509
A28: Seasonal-R2 | B28: Low | C28: =VLOOKUP("Seasonal",'Data Billing Quantities'!A:P,MATCH(B28&" kWh",'Data Billing Quantities'!$4:$4,0),FALSE) -> 40 | E28: BI_Seas_R2_Low | F28: BI Template_Seasonal | G28: =VLOOKUP(VLOOKUP($F28,'Data BI Summary'!$A:$F,MATCH(G$1,'Data BI Summary'!$2:$2,0),FALSE),INDIRECT("'"&$E28&"'!"&"$A:$K"),4,FALSE) -> 75.49472716 | H28: =VLOOKUP(VLOOKUP($F28,'Data BI Summary'!$A:$F,MATCH(H$1,'Data BI Summary'!$2:$2,0),FALSE),INDIRECT("'"&$E28&"'!"&"$A:$K"),8,FALSE) -> 0.032 | I28: =VLOOKUP(VLOOKUP($F28,'Data BI Summary'!$A:$F,MATCH(I$1,'Data BI Summary'!$2:$2,0),FALSE),INDIRECT("'"&$E28&"'!"&"$A:$K"),9,FALSE) -> 0.0004329238595 | J28: =VLOOKUP(VLOOKUP($F28,'Data BI Summary'!$A:$F,MATCH(J$1,'Data BI Summary'!$2:$2,0),FALSE),INDIRECT("'"&$E28&"'!"&"$A:$K"),8,FALSE) -> 0.029984 | K28: =VLOOKUP(VLOOKUP($F28,'Data BI Summary'!$A:$F,MATCH(K$1,'Data BI Summary'!$2:$2,0),FALSE),INDIRECT("'"&$E28&"'!"&"$A:$K"),9,FALSE) -> 0.0003971668106 | L28: TOU
B29: Average | C29: =VLOOKUP("Seasonal",'Data Billing Quantities'!A:P,MATCH(B29&" kWh",'Data Billing Quantities'!$4:$4,0),FALSE) -> 369 | E29: BI_Seas_R2_Avg | F29: BI Template_Seasonal | G29: =VLOOKUP(VLOOKUP($F29,'Data BI Summary'!$A:$F,MATCH(G$1,'Data BI Summary'!$2:$2,0),FALSE),INDIRECT("'"&$E29&"'!"&"$A:$K"),4,FALSE) -> 125.2860573 | H29: =VLOOKUP(VLOOKUP($F29,'Data BI Summary'!$A:$F,MATCH(H$1,'Data BI Summary'!$2:$2,0),FALSE),INDIRECT("'"&$E29&"'!"&"$A:$K"),8,FALSE) -> 0.2952 | I29: =VLOOKUP(VLOOKUP($F29,'Data BI Summary'!$A:$F,MATCH(I$1,'Data BI Summary'!$2:$2,0),FALSE),INDIRECT("'"&$E29&"'!"&"$A:$K"),9,FALSE) -> 0.003792828317 | J29: =VLOOKUP(VLOOKUP($F29,'Data BI Summary'!$A:$F,MATCH(J$1,'Data BI Summary'!$2:$2,0),FALSE),INDIRECT("'"&$E29&"'!"&"$A:$K"),8,FALSE) -> 0.2766024 | K29: =VLOOKUP(VLOOKUP($F29,'Data BI Summary'!$A:$F,MATCH(K$1,'Data BI Summary'!$2:$2,0),FALSE),INDIRECT("'"&$E29&"'!"&"$A:$K"),9,FALSE) -> 0.002207766817
B30: High | C30: =VLOOKUP("Seasonal",'Data Billing Quantities'!A:P,MATCH(B30&" kWh",'Data Billing Quantities'!$4:$4,0),FALSE) -> 1040 | E30: BI_Seas_R2_High | F30: BI Template_Seasonal | G30: =VLOOKUP(VLOOKUP($F30,'Data BI Summary'!$A:$F,MATCH(G$1,'Data BI Summary'!$2:$2,0),FALSE),INDIRECT("'"&$E30&"'!"&"$A:$K"),4,FALSE) -> 226.8361562 | H30: =VLOOKUP(VLOOKUP($F30,'Data BI Summary'!$A:$F,MATCH(H$1,'Data BI Summary'!$2:$2,0),FALSE),INDIRECT("'"&$E30&"'!"&"$A:$K"),8,FALSE) -> 0.832 | I30: =VLOOKUP(VLOOKUP($F30,'Data BI Summary'!$A:$F,MATCH(I$1,'Data BI Summary'!$2:$2,0),FALSE),INDIRECT("'"&$E30&"'!"&"$A:$K"),9,FALSE) -> 0.009695161741 | J30: =VLOOKUP(VLOOKUP($F30,'Data BI Summary'!$A:$F,MATCH(J$1,'Data BI Summary'!$2:$2,0),FALSE),INDIRECT("'"&$E30&"'!"&"$A:$K"),8,FALSE) -> 0.779584 | K30: =VLOOKUP(VLOOKUP($F30,'Data BI Summary'!$A:$F,MATCH(K$1,'Data BI Summary'!$2:$2,0),FALSE),INDIRECT("'"&$E30&"'!"&"$A:$K"),9,FALSE) -> 0.003436771338
A31: GSe | B31: Low | C31: =VLOOKUP(A$31,'Data Billing Quantities'!A:P,MATCH(B31&" kWh",'Data Billing Quantities'!$4:$4,0),FALSE) -> 60 | E31: BI_GSe_Low | F31: BI Template_Energy | G31: =VLOOKUP(VLOOKUP($F31,'Data BI Summary'!$A:$F,MATCH(G$1,'Data BI Summary'!$2:$2,0),FALSE),INDIRECT("'"&$E31&"'!"&"$A:$K"),4,FALSE) -> 43.59118896 | H31: =VLOOKUP(VLOOKUP($F31,'Data BI Summary'!$A:$F,MATCH(H$1,'Data BI Summary'!$2:$2,0),FALSE),INDIRECT("'"&$E31&"'!"&"$A:$K"),8,FALSE) -> 0.072 | I31: =VLOOKUP(VLOOKUP($F31,'Data BI Summary'!$A:$F,MATCH(I$1,'Data BI Summary'!$2:$2,0),FALSE),INDIRECT("'"&$E31&"'!"&"$A:$K"),9,FALSE) -> 0.001940386999 | J31: =VLOOKUP(VLOOKUP($F31,'Data BI Summary'!$A:$F,MATCH(J$1,'Data BI Summary'!$2:$2,0),FALSE),INDIRECT("'"&$E31&"'!"&"$A:$K"),8,FALSE) -> 0.067464 | K31: =VLOOKUP(VLOOKUP($F31,'Data BI Summary'!$A:$F,MATCH(K$1,'Data BI Summary'!$2:$2,0),FALSE),INDIRECT("'"&$E31&"'!"&"$A:$K"),9,FALSE) -> 0.001547652212 | L31: TOU
B32: Typical | C32: =VLOOKUP(A$31,'Data Billing Quantities'!A:P,MATCH(B32&" kWh",'Data Billing Quantities'!$4:$4,0),FALSE) -> 2000 | E32: BI_GSe_Typical | F32: BI Template_Energy | G32: =VLOOKUP(VLOOKUP($F32,'Data BI Summary'!$A:$F,MATCH(G$1,'Data BI Summary'!$2:$2,0),FALSE),INDIRECT("'"&$E32&"'!"&"$A:$K"),4,FALSE) -> 439.627282 | H32: =VLOOKUP(VLOOKUP($F32,'Data BI Summary'!$A:$F,MATCH(H$1,'Data BI Summary'!$2:$2,0),FALSE),INDIRECT("'"&$E32&"'!"&"$A:$K"),8,FALSE) -> 2.4 | I32: =VLOOKUP(VLOOKUP($F32,'Data BI Summary'!$A:$F,MATCH(I$1,'Data BI Summary'!$2:$2,0),FALSE),INDIRECT("'"&$E32&"'!"&"$A:$K"),9,FALSE) -> 0.01356085433 | J32: =VLOOKUP(VLOOKUP($F32,'Data BI Summary'!$A:$F,MATCH(J$1,'Data BI Summary'!$2:$2,0),FALSE),INDIRECT("'"&$E32&"'!"&"$A:$K"),8,FALSE) -> 2.2488 | K32: =VLOOKUP(VLOOKUP($F32,'Data BI Summary'!$A:$F,MATCH(K$1,'Data BI Summary'!$2:$2,0),FALSE),INDIRECT("'"&$E32&"'!"&"$A:$K"),9,FALSE) -> 0.005115242143
B33: Average | C33: =VLOOKUP(A$31,'Data Billing Quantities'!A:P,MATCH(B33&" kWh",'Data Billing Quantities'!$4:$4,0),FALSE) -> 1887 | E33: BI_GSe_Avg | F33: BI Template_Energy | G33: =VLOOKUP(VLOOKUP($F33,'Data BI Summary'!$A:$F,MATCH(G$1,'Data BI Summary'!$2:$2,0),FALSE),INDIRECT("'"&$E33&"'!"&"$A:$K"),4,FALSE) -> 416.5592003 | H33: =VLOOKUP(VLOOKUP($F33,'Data BI Summary'!$A:$F,MATCH(H$1,'Data BI Summary'!$2:$2,0),FALSE),INDIRECT("'"&$E33&"'!"&"$A:$K"),8,FALSE) -> 2.2644 | I33: =VLOOKUP(VLOOKUP($F33,'Data BI Summary'!$A:$F,MATCH(I$1,'Data BI Summary'!$2:$2,0),FALSE),INDIRECT("'"&$E33&"'!"&"$A:$K"),9,FALSE) -> 0.01341209375 | J33: =VLOOKUP(VLOOKUP($F33,'Data BI Summary'!$A:$F,MATCH(J$1,'Data BI Summary'!$2:$2,0),FALSE),INDIRECT("'"&$E33&"'!"&"$A:$K"),8,FALSE) -> 2.1217428 | K33: =VLOOKUP(VLOOKUP($F33,'Data BI Summary'!$A:$F,MATCH(K$1,'Data BI Summary'!$2:$2,0),FALSE),INDIRECT("'"&$E33&"'!"&"$A:$K"),9,FALSE) -> 0.005093496431
B34: High | C34: =VLOOKUP(A$31,'Data Billing Quantities'!A:P,MATCH(B34&" kWh",'Data Billing Quantities'!$4:$4,0),FALSE) -> 5570 | E34: BI_GSe_High | F34: BI Template_Energy | G34: =VLOOKUP(VLOOKUP($F34,'Data BI Summary'!$A:$F,MATCH(G$1,'Data BI Summary'!$2:$2,0),FALSE),INDIRECT("'"&$E34&"'!"&"$A:$K"),4,FALSE) -> 1168.41535 | H34: =VLOOKUP(VLOOKUP($F34,'Data BI Summary'!$A:$F,MATCH(H$1,'Data BI Summary'!$2:$2,0),FALSE),INDIRECT("'"&$E34&"'!"&"$A:$K"),8,FALSE) -> 6.684 | I34: =VLOOKUP(VLOOKUP($F34,'Data BI Summary'!$A:$F,MATCH(I$1,'Data BI Summary'!$2:$2,0),FALSE),INDIRECT("'"&$E34&"'!"&"$A:$K"),9,FALSE) -> 0.01538755505 | J34: =VLOOKUP(VLOOKUP($F34,'Data BI Summary'!$A:$F,MATCH(J$1,'Data BI Summary'!$2:$2,0),FALSE),INDIRECT("'"&$E34&"'!"&"$A:$K"),8,FALSE) -> 6.262908 | K34: =VLOOKUP(VLOOKUP($F34,'Data BI Summary'!$A:$F,MATCH(K$1,'Data BI Summary'!$2:$2,0),FALSE),INDIRECT("'"&$E34&"'!"&"$A:$K"),9,FALSE) -> 0.005360172647
A35: UGe | B35: Low | C35: =VLOOKUP(A$35,'Data Billing Quantities'!A:P,MATCH(B35&" kWh",'Data Billing Quantities'!$4:$4,0),FALSE) -> 180 | E35: BI_UGe_Low | F35: BI Template_Energy | G35: =VLOOKUP(VLOOKUP($F35,'Data BI Summary'!$A:$F,MATCH(G$1,'Data BI Summary'!$2:$2,0),FALSE),INDIRECT("'"&$E35&"'!"&"$A:$K"),4,FALSE) -> 54.44723348 | H35: =VLOOKUP(VLOOKUP($F35,'Data BI Summary'!$A:$F,MATCH(H$1,'Data BI Summary'!$2:$2,0),FALSE),INDIRECT("'"&$E35&"'!"&"$A:$K"),8,FALSE) -> 0.216 | I35: =VLOOKUP(VLOOKUP($F35,'Data BI Summary'!$A:$F,MATCH(I$1,'Data BI Summary'!$2:$2,0),FALSE),INDIRECT("'"&$E35&"'!"&"$A:$K"),9,FALSE) -> 0.006813450256 | J35: =VLOOKUP(VLOOKUP($F35,'Data BI Summary'!$A:$F,MATCH(J$1,'Data BI Summary'!$2:$2,0),FALSE),INDIRECT("'"&$E35&"'!"&"$A:$K"),8,FALSE) -> 0.202392 | K35: =VLOOKUP(VLOOKUP($F35,'Data BI Summary'!$A:$F,MATCH(K$1,'Data BI Summary'!$2:$2,0),FALSE),INDIRECT("'"&$E35&"'!"&"$A:$K"),9,FALSE) -> 0.003717213659 | L35: TOU
B36: Typical | C36: =VLOOKUP(A$35,'Data Billing Quantities'!A:P,MATCH(B36&" kWh",'Data Billing Quantities'!$4:$4,0),FALSE) -> 2000 | E36: BI_UGe_Typical | F36: BI Template_Energy | G36: =VLOOKUP(VLOOKUP($F36,'Data BI Summary'!$A:$F,MATCH(G$1,'Data BI Summary'!$2:$2,0),FALSE),INDIRECT("'"&$E36&"'!"&"$A:$K"),4,FALSE) -> 356.937032 | H36: =VLOOKUP(VLOOKUP($F36,'Data BI Summary'!$A:$F,MATCH(H$1,'Data BI Summary'!$2:$2,0),FALSE),INDIRECT("'"&$E36&"'!"&"$A:$K"),8,FALSE) -> 2.4 | I36: =VLOOKUP(VLOOKUP($F36,'Data BI Summary'!$A:$F,MATCH(I$1,'Data BI Summary'!$2:$2,0),FALSE),INDIRECT("'"&$E36&"'!"&"$A:$K"),9,FALSE) -> 0.02544799067 | J36: =VLOOKUP(VLOOKUP($F36,'Data BI Summary'!$A:$F,MATCH(J$1,'Data BI Summary'!$2:$2,0),FALSE),INDIRECT("'"&$E36&"'!"&"$A:$K"),8,FALSE) -> 2.2488 | K36: =VLOOKUP(VLOOKUP($F36,'Data BI Summary'!$A:$F,MATCH(K$1,'Data BI Summary'!$2:$2,0),FALSE),INDIRECT("'"&$E36&"'!"&"$A:$K"),9,FALSE) -> 0.006300270912
B37: Average | C37: =VLOOKUP(A$35,'Data Billing Quantities'!A:P,MATCH(B37&" kWh",'Data Billing Quantities'!$4:$4,0),FALSE) -> 2494 | E37: BI_UGe_Avg | F37: BI Template_Energy | G37: =VLOOKUP(VLOOKUP($F37,'Data BI Summary'!$A:$F,MATCH(G$1,'Data BI Summary'!$2:$2,0),FALSE),INDIRECT("'"&$E37&"'!"&"$A:$K"),4,FALSE) -> 439.0414059 | H37: =VLOOKUP(VLOOKUP($F37,'Data BI Summary'!$A:$F,MATCH(H$1,'Data BI Summary'!$2:$2,0),FALSE),INDIRECT("'"&$E37&"'!"&"$A:$K"),8,FALSE) -> 2.9928 | I37: =VLOOKUP(VLOOKUP($F37,'Data BI Summary'!$A:$F,MATCH(I$1,'Data BI Summary'!$2:$2,0),FALSE),INDIRECT("'"&$E37&"'!"&"$A:$K"),9,FALSE) -> 0.02688861816 | J37: =VLOOKUP(VLOOKUP($F37,'Data BI Summary'!$A:$F,MATCH(J$1,'Data BI Summary'!$2:$2,0),FALSE),INDIRECT("'"&$E37&"'!"&"$A:$K"),8,FALSE) -> 2.8042536 | K37: =VLOOKUP(VLOOKUP($F37,'Data BI Summary'!$A:$F,MATCH(K$1,'Data BI Summary'!$2:$2,0),FALSE),INDIRECT("'"&$E37&"'!"&"$A:$K"),9,FALSE) -> 0.006387218978
B38: High | C38: =VLOOKUP(A$35,'Data Billing Quantities'!A:P,MATCH(B38&" kWh",'Data Billing Quantities'!$4:$4,0),FALSE) -> 6930 | E38: BI_UGe_High | F38: BI Template_Energy | G38: =VLOOKUP(VLOOKUP($F38,'Data BI Summary'!$A:$F,MATCH(G$1,'Data BI Summary'!$2:$2,0),FALSE),INDIRECT("'"&$E38&"'!"&"$A:$K"),4,FALSE) -> 1176.318739 | H38: =VLOOKUP(VLOOKUP($F38,'Data BI Summary'!$A:$F,MATCH(H$1,'Data BI Summary'!$2:$2,0),FALSE),INDIRECT("'"&$E38&"'!"&"$A:$K"),8,FALSE) -> 8.316 | I38: =VLOOKUP(VLOOKUP($F38,'Data BI Summary'!$A:$F,MATCH(I$1,'Data BI Summary'!$2:$2,0),FALSE),INDIRECT("'"&$E38&"'!"&"$A:$K"),9,FALSE) -> 0.03151169752 | J38: =VLOOKUP(VLOOKUP($F38,'Data BI Summary'!$A:$F,MATCH(J$1,'Data BI Summary'!$2:$2,0),FALSE),INDIRECT("'"&$E38&"'!"&"$A:$K"),8,FALSE) -> 7.792092 | K38: =VLOOKUP(VLOOKUP($F38,'Data BI Summary'!$A:$F,MATCH(K$1,'Data BI Summary'!$2:$2,0),FALSE),INDIRECT("'"&$E38&"'!"&"$A:$K"),9,FALSE) -> 0.006624133189
A39: GSd | B39: Low | C39: =VLOOKUP(A$39,'Data Billing Quantities'!A:P,MATCH(B39&" kWh",'Data Billing Quantities'!$4:$4,0),FALSE) -> 9310 | D39: =VLOOKUP(A$39,'Data Billing Quantities'!A:P,MATCH(B39&" kW",'Data Billing Quantities'!$4:$4,0),FALSE) -> 55 | E39: BI_GSd_Low | F39: BI Template_Demand | G39: =VLOOKUP(VLOOKUP($F39,'Data BI Summary'!$A:$F,MATCH(G$1,'Data BI Summary'!$2:$2,0),FALSE),INDIRECT("'"&$E39&"'!"&"$A:$K"),4,FALSE) -> 2924.558485 | H39: =VLOOKUP(VLOOKUP($F39,'Data BI Summary'!$A:$F,MATCH(H$1,'Data BI Summary'!$2:$2,0),FALSE),INDIRECT("'"&$E39&"'!"&"$A:$K"),8,FALSE) -> -3.8185 | I39: =VLOOKUP(VLOOKUP($F39,'Data BI Summary'!$A:$F,MATCH(I$1,'Data BI Summary'!$2:$2,0),FALSE),INDIRECT("'"&$E39&"'!"&"$A:$K"),9,FALSE) -> -0.003151867431 | J39: =VLOOKUP(VLOOKUP($F39,'Data BI Summary'!$A:$F,MATCH(J$1,'Data BI Summary'!$2:$2,0),FALSE),INDIRECT("'"&$E39&"'!"&"$A:$K"),8,FALSE) -> -4.314905 | K39: =VLOOKUP(VLOOKUP($F39,'Data BI Summary'!$A:$F,MATCH(K$1,'Data BI Summary'!$2:$2,0),FALSE),INDIRECT("'"&$E39&"'!"&"$A:$K"),9,FALSE) -> -0.001475403902 | L39: WAHSP
B40: Average | C40: =VLOOKUP(A$39,'Data Billing Quantities'!A:P,MATCH(B40&" kWh",'Data Billing Quantities'!$4:$4,0),FALSE) -> 34334 | D40: =VLOOKUP(A$39,'Data Billing Quantities'!A:P,MATCH(B40&" kW",'Data Billing Quantities'!$4:$4,0),FALSE) -> 110 | E40: BI_GSd_Avg | F40: BI Template_Demand | G40: =VLOOKUP(VLOOKUP($F40,'Data BI Summary'!$A:$F,MATCH(G$1,'Data BI Summary'!$2:$2,0),FALSE),INDIRECT("'"&$E40&"'!"&"$A:$K"),4,FALSE) -> 7774.676303 | H40: =VLOOKUP(VLOOKUP($F40,'Data BI Summary'!$A:$F,MATCH(H$1,'Data BI Summary'!$2:$2,0),FALSE),INDIRECT("'"&$E40&"'!"&"$A:$K"),8,FALSE) -> -78.35 | I40: =VLOOKUP(VLOOKUP($F40,'Data BI Summary'!$A:$F,MATCH(I$1,'Data BI Summary'!$2:$2,0),FALSE),INDIRECT("'"&$E40&"'!"&"$A:$K"),9,FALSE) -> -0.0340161838 | J40: =VLOOKUP(VLOOKUP($F40,'Data BI Summary'!$A:$F,MATCH(J$1,'Data BI Summary'!$2:$2,0),FALSE),INDIRECT("'"&$E40&"'!"&"$A:$K"),8,FALSE) -> -88.5355 | K40: =VLOOKUP(VLOOKUP($F40,'Data BI Summary'!$A:$F,MATCH(K$1,'Data BI Summary'!$2:$2,0),FALSE),INDIRECT("'"&$E40&"'!"&"$A:$K"),9,FALSE) -> -0.01138767668
B41: High | C41: =VLOOKUP(A$39,'Data Billing Quantities'!A:P,MATCH(B41&" kWh",'Data Billing Quantities'!$4:$4,0),FALSE) -> 75790 | D41: =VLOOKUP(A$39,'Data Billing Quantities'!A:P,MATCH(B41&" kW",'Data Billing Quantities'!$4:$4,0),FALSE) -> 250 | E41: BI_GSd_High | F41: BI Template_Demand | G41: =VLOOKUP(VLOOKUP($F41,'Data BI Summary'!$A:$F,MATCH(G$1,'Data BI Summary'!$2:$2,0),FALSE),INDIRECT("'"&$E41&"'!"&"$A:$K"),4,FALSE) -> 17225.79569 | H41: =VLOOKUP(VLOOKUP($F41,'Data BI Summary'!$A:$F,MATCH(H$1,'Data BI Summary'!$2:$2,0),FALSE),INDIRECT("'"&$E41&"'!"&"$A:$K"),8,FALSE) -> -167.98 | I41: =VLOOKUP(VLOOKUP($F41,'Data BI Summary'!$A:$F,MATCH(I$1,'Data BI Summary'!$2:$2,0),FALSE),INDIRECT("'"&$E41&"'!"&"$A:$K"),9,FALSE) -> -0.03292118807 | J41: =VLOOKUP(VLOOKUP($F41,'Data BI Summary'!$A:$F,MATCH(J$1,'Data BI Summary'!$2:$2,0),FALSE),INDIRECT("'"&$E41&"'!"&"$A:$K"),8,FALSE) -> -189.8174 | K41: =VLOOKUP(VLOOKUP($F41,'Data BI Summary'!$A:$F,MATCH(K$1,'Data BI Summary'!$2:$2,0),FALSE),INDIRECT("'"&$E41&"'!"&"$A:$K"),9,FALSE) -> -0.01101936905
A42: UGd | B42: Low | C42: =VLOOKUP(A$42,'Data Billing Quantities'!A:P,MATCH(B42&" kWh",'Data Billing Quantities'!$4:$4,0),FALSE) -> 13900 | D42: =VLOOKUP(A$42,'Data Billing Quantities'!A:P,MATCH(B42&" kW",'Data Billing Quantities'!$4:$4,0),FALSE) -> 55 | E42: BI_UGd_Low | F42: BI Template_Demand | G42: =VLOOKUP(VLOOKUP($F42,'Data BI Summary'!$A:$F,MATCH(G$1,'Data BI Summary'!$2:$2,0),FALSE),INDIRECT("'"&$E42&"'!"&"$A:$K"),4,FALSE) -> 3046.51051 | H42: =VLOOKUP(VLOOKUP($F42,'Data BI Summary'!$A:$F,MATCH(H$1,'Data BI Summary'!$2:$2,0),FALSE),INDIRECT("'"&$E42&"'!"&"$A:$K"),8,FALSE) -> -23.3295 | I42: =VLOOKUP(VLOOKUP($F42,'Data BI Summary'!$A:$F,MATCH(I$1,'Data BI Summary'!$2:$2,0),FALSE),INDIRECT("'"&$E42&"'!"&"$A:$K"),9,FALSE) -> -0.03222500247 | J42: =VLOOKUP(VLOOKUP($F42,'Data BI Summary'!$A:$F,MATCH(J$1,'Data BI Summary'!$2:$2,0),FALSE),INDIRECT("'"&$E42&"'!"&"$A:$K"),8,FALSE) -> -26.362335 | K42: =VLOOKUP(VLOOKUP($F42,'Data BI Summary'!$A:$F,MATCH(K$1,'Data BI Summary'!$2:$2,0),FALSE),INDIRECT("'"&$E42&"'!"&"$A:$K"),9,FALSE) -> -0.00865328871 | L42: WAHSP
B43: Average | C43: =VLOOKUP(A$42,'Data Billing Quantities'!A:P,MATCH(B43&" kWh",'Data Billing Quantities'!$4:$4,0),FALSE) -> 42592 | D43: =VLOOKUP(A$42,'Data Billing Quantities'!A:P,MATCH(B43&" kW",'Data Billing Quantities'!$4:$4,0),FALSE) -> 111 | E43: BI_UGd_Avg | F43: BI Template_Demand | G43: =VLOOKUP(VLOOKUP($F43,'Data BI Summary'!$A:$F,MATCH(G$1,'Data BI Summary'!$2:$2,0),FALSE),INDIRECT("'"&$E43&"'!"&"$A:$K"),4,FALSE) -> 7909.587595 | H43: =VLOOKUP(VLOOKUP($F43,'Data BI Summary'!$A:$F,MATCH(H$1,'Data BI Summary'!$2:$2,0),FALSE),INDIRECT("'"&$E43&"'!"&"$A:$K"),8,FALSE) -> -112.5099 | I43: =VLOOKUP(VLOOKUP($F43,'Data BI Summary'!$A:$F,MATCH(I$1,'Data BI Summary'!$2:$2,0),FALSE),INDIRECT("'"&$E43&"'!"&"$A:$K"),9,FALSE) -> -0.08335508401 | J43: =VLOOKUP(VLOOKUP($F43,'Data BI Summary'!$A:$F,MATCH(J$1,'Data BI Summary'!$2:$2,0),FALSE),INDIRECT("'"&$E43&"'!"&"$A:$K"),8,FALSE) -> -127.136187 | K43: =VLOOKUP(VLOOKUP($F43,'Data BI Summary'!$A:$F,MATCH(K$1,'Data BI Summary'!$2:$2,0),FALSE),INDIRECT("'"&$E43&"'!"&"$A:$K"),9,FALSE) -> -0.01607368089
B44: High | C44: =VLOOKUP(A$42,'Data Billing Quantities'!A:P,MATCH(B44&" kWh",'Data Billing Quantities'!$4:$4,0),FALSE) -> 97610 | D44: =VLOOKUP(A$42,'Data Billing Quantities'!A:P,MATCH(B44&" kW",'Data Billing Quantities'!$4:$4,0),FALSE) -> 280 | E44: BI_UGd_High | F44: BI Template_Demand | G44: =VLOOKUP(VLOOKUP($F44,'Data BI Summary'!$A:$F,MATCH(G$1,'Data BI Summary'!$2:$2,0),FALSE),INDIRECT("'"&$E44&"'!"&"$A:$K"),4,FALSE) -> 18519.83634 | H44: =VLOOKUP(VLOOKUP($F44,'Data BI Summary'!$A:$F,MATCH(H$1,'Data BI Summary'!$2:$2,0),FALSE),INDIRECT("'"&$E44&"'!"&"$A:$K"),8,FALSE) -> -239.577 | I44: =VLOOKUP(VLOOKUP($F44,'Data BI Summary'!$A:$F,MATCH(I$1,'Data BI Summary'!$2:$2,0),FALSE),INDIRECT("'"&$E44&"'!"&"$A:$K"),9,FALSE) -> -0.07333724136 | J44: =VLOOKUP(VLOOKUP($F44,'Data BI Summary'!$A:$F,MATCH(J$1,'Data BI Summary'!$2:$2,0),FALSE),INDIRECT("'"&$E44&"'!"&"$A:$K"),8,FALSE) -> -270.72201 | K44: =VLOOKUP(VLOOKUP($F44,'Data BI Summary'!$A:$F,MATCH(K$1,'Data BI Summary'!$2:$2,0),FALSE),INDIRECT("'"&$E44&"'!"&"$A:$K"),9,FALSE) -> -0.01461794829
A45: St Lgt | B45: Low | C45: =VLOOKUP(A$45,'Data Billing Quantities'!A:P,MATCH(B45&" kWh",'Data Billing Quantities'!$4:$4,0),FALSE) -> 30 | E45: BI_StLgt_Low | F45: BI Template_EnergyUNM | G45: =VLOOKUP(VLOOKUP($F45,'Data BI Summary'!$A:$F,MATCH(G$1,'Data BI Summary'!$2:$2,0),FALSE),INDIRECT("'"&$E45&"'!"&"$A:$K"),4,FALSE) -> 10.31846513 | H45: =VLOOKUP(VLOOKUP($F45,'Data BI Summary'!$A:$F,MATCH(H$1,'Data BI Summary'!$2:$2,0),FALSE),INDIRECT("'"&$E45&"'!"&"$A:$K"),8,FALSE) -> 0.057 | I45: =VLOOKUP(VLOOKUP($F45,'Data BI Summary'!$A:$F,MATCH(I$1,'Data BI Summary'!$2:$2,0),FALSE),INDIRECT("'"&$E45&"'!"&"$A:$K"),9,FALSE) -> 0.008388520971 | J45: =VLOOKUP(VLOOKUP($F45,'Data BI Summary'!$A:$F,MATCH(J$1,'Data BI Summary'!$2:$2,0),FALSE),INDIRECT("'"&$E45&"'!"&"$A:$K"),8,FALSE) -> 0.053409 | K45: =VLOOKUP(VLOOKUP($F45,'Data BI Summary'!$A:$F,MATCH(K$1,'Data BI Summary'!$2:$2,0),FALSE),INDIRECT("'"&$E45&"'!"&"$A:$K"),9,FALSE) -> 0.00517606052 | L45: Two-tier RPP
B46: Average | C46: =VLOOKUP(A$45,'Data Billing Quantities'!A:P,MATCH(B46&" kWh",'Data Billing Quantities'!$4:$4,0),FALSE) -> 1274 | E46: BI_StLgt_Avg | F46: BI Template_EnergyUNM | G46: =VLOOKUP(VLOOKUP($F46,'Data BI Summary'!$A:$F,MATCH(G$1,'Data BI Summary'!$2:$2,0),FALSE),INDIRECT("'"&$E46&"'!"&"$A:$K"),4,FALSE) -> 314.6416623 | H46: =VLOOKUP(VLOOKUP($F46,'Data BI Summary'!$A:$F,MATCH(H$1,'Data BI Summary'!$2:$2,0),FALSE),INDIRECT("'"&$E46&"'!"&"$A:$K"),8,FALSE) -> 2.4206 | I46: =VLOOKUP(VLOOKUP($F46,'Data BI Summary'!$A:$F,MATCH(I$1,'Data BI Summary'!$2:$2,0),FALSE),INDIRECT("'"&$E46&"'!"&"$A:$K"),9,FALSE) -> 0.01582453502 | J46: =VLOOKUP(VLOOKUP($F46,'Data BI Summary'!$A:$F,MATCH(J$1,'Data BI Summary'!$2:$2,0),FALSE),INDIRECT("'"&$E46&"'!"&"$A:$K"),8,FALSE) -> 2.2681022 | K46: =VLOOKUP(VLOOKUP($F46,'Data BI Summary'!$A:$F,MATCH(K$1,'Data BI Summary'!$2:$2,0),FALSE),INDIRECT("'"&$E46&"'!"&"$A:$K"),9,FALSE) -> 0.007208524718
B47: High | C47: =VLOOKUP(A$45,'Data Billing Quantities'!A:P,MATCH(B47&" kWh",'Data Billing Quantities'!$4:$4,0),FALSE) -> 2310 | E47: BI_StLgt_High | F47: BI Template_EnergyUNM | G47: =VLOOKUP(VLOOKUP($F47,'Data BI Summary'!$A:$F,MATCH(G$1,'Data BI Summary'!$2:$2,0),FALSE),INDIRECT("'"&$E47&"'!"&"$A:$K"),4,FALSE) -> 580.3943024 | H47: =VLOOKUP(VLOOKUP($F47,'Data BI Summary'!$A:$F,MATCH(H$1,'Data BI Summary'!$2:$2,0),FALSE),INDIRECT("'"&$E47&"'!"&"$A:$K"),8,FALSE) -> 4.389 | I47: =VLOOKUP(VLOOKUP($F47,'Data BI Summary'!$A:$F,MATCH(I$1,'Data BI Summary'!$2:$2,0),FALSE),INDIRECT("'"&$E47&"'!"&"$A:$K"),9,FALSE) -> 0.01597772074 | J47: =VLOOKUP(VLOOKUP($F47,'Data BI Summary'!$A:$F,MATCH(J$1,'Data BI Summary'!$2:$2,0),FALSE),INDIRECT("'"&$E47&"'!"&"$A:$K"),8,FALSE) -> 4.112493 | K47: =VLOOKUP(VLOOKUP($F47,'Data BI Summary'!$A:$F,MATCH(K$1,'Data BI Summary'!$2:$2,0),FALSE),INDIRECT("'"&$E47&"'!"&"$A:$K"),9,FALSE) -> 0.007085688096
A48: Sen Lgt | B48: Low | C48: =VLOOKUP(A$48,'Data Billing Quantities'!A:P,MATCH(B48&" kWh",'Data Billing Quantities'!$4:$4,0),FALSE) -> 20 | E48: BI_SenLgt_Low | F48: BI Template_EnergyUNM | G48: =VLOOKUP(VLOOKUP($F48,'Data BI Summary'!$A:$F,MATCH(G$1,'Data BI Summary'!$2:$2,0),FALSE),INDIRECT("'"&$E48&"'!"&"$A:$K"),4,FALSE) -> 9.175876088 | H48: =VLOOKUP(VLOOKUP($F48,'Data BI Summary'!$A:$F,MATCH(H$1,'Data BI Summary'!$2:$2,0),FALSE),INDIRECT("'"&$E48&"'!"&"$A:$K"),8,FALSE) -> 0.024 | I48: =VLOOKUP(VLOOKUP($F48,'Data BI Summary'!$A:$F,MATCH(I$1,'Data BI Summary'!$2:$2,0),FALSE),INDIRECT("'"&$E48&"'!"&"$A:$K"),9,FALSE) -> 0.003479269353 | J48: =VLOOKUP(VLOOKUP($F48,'Data BI Summary'!$A:$F,MATCH(J$1,'Data BI Summary'!$2:$2,0),FALSE),INDIRECT("'"&$E48&"'!"&"$A:$K"),8,FALSE) -> 0.022488 | K48: =VLOOKUP(VLOOKUP($F48,'Data BI Summary'!$A:$F,MATCH(K$1,'Data BI Summary'!$2:$2,0),FALSE),INDIRECT("'"&$E48&"'!"&"$A:$K"),9,FALSE) -> 0.002450774159 | L48: Two-tier RPP
B49: Average | C49: =VLOOKUP(A$48,'Data Billing Quantities'!A:P,MATCH(B49&" kWh",'Data Billing Quantities'!$4:$4,0),FALSE) -> 49 | E49: BI_SenLgt_Avg | F49: BI Template_EnergyUNM | G49: =VLOOKUP(VLOOKUP($F49,'Data BI Summary'!$A:$F,MATCH(G$1,'Data BI Summary'!$2:$2,0),FALSE),INDIRECT("'"&$E49&"'!"&"$A:$K"),4,FALSE) -> 17.67127542 | H49: =VLOOKUP(VLOOKUP($F49,'Data BI Summary'!$A:$F,MATCH(H$1,'Data BI Summary'!$2:$2,0),FALSE),INDIRECT("'"&$E49&"'!"&"$A:$K"),8,FALSE) -> 0.0588 | I49: =VLOOKUP(VLOOKUP($F49,'Data BI Summary'!$A:$F,MATCH(I$1,'Data BI Summary'!$2:$2,0),FALSE),INDIRECT("'"&$E49&"'!"&"$A:$K"),9,FALSE) -> 0.004847645429 | J49: =VLOOKUP(VLOOKUP($F49,'Data BI Summary'!$A:$F,MATCH(J$1,'Data BI Summary'!$2:$2,0),FALSE),INDIRECT("'"&$E49&"'!"&"$A:$K"),8,FALSE) -> 0.0550956 | K49: =VLOOKUP(VLOOKUP($F49,'Data BI Summary'!$A:$F,MATCH(K$1,'Data BI Summary'!$2:$2,0),FALSE),INDIRECT("'"&$E49&"'!"&"$A:$K"),9,FALSE) -> 0.003117805518
B50: High | C50: =VLOOKUP(A$48,'Data Billing Quantities'!A:P,MATCH(B50&" kWh",'Data Billing Quantities'!$4:$4,0),FALSE) -> 80 | E50: BI_SenLgt_High | F50: BI Template_EnergyUNM | G50: =VLOOKUP(VLOOKUP($F50,'Data BI Summary'!$A:$F,MATCH(G$1,'Data BI Summary'!$2:$2,0),FALSE),INDIRECT("'"&$E50&"'!"&"$A:$K"),4,FALSE) -> 26.75256435 | H50: =VLOOKUP(VLOOKUP($F50,'Data BI Summary'!$A:$F,MATCH(H$1,'Data BI Summary'!$2:$2,0),FALSE),INDIRECT("'"&$E50&"'!"&"$A:$K"),8,FALSE) -> 0.096 | I50: =VLOOKUP(VLOOKUP($F50,'Data BI Summary'!$A:$F,MATCH(I$1,'Data BI Summary'!$2:$2,0),FALSE),INDIRECT("'"&$E50&"'!"&"$A:$K"),9,FALSE) -> 0.005416995824 | J50: =VLOOKUP(VLOOKUP($F50,'Data BI Summary'!$A:$F,MATCH(J$1,'Data BI Summary'!$2:$2,0),FALSE),INDIRECT("'"&$E50&"'!"&"$A:$K"),8,FALSE) -> 0.089952 | K50: =VLOOKUP(VLOOKUP($F50,'Data BI Summary'!$A:$F,MATCH(K$1,'Data BI Summary'!$2:$2,0),FALSE),INDIRECT("'"&$E50&"'!"&"$A:$K"),9,FALSE) -> 0.00336236926
A51: USL | B51: Low | C51: =VLOOKUP(A$51,'Data Billing Quantities'!A:P,MATCH(B51&" kWh",'Data Billing Quantities'!$4:$4,0),FALSE) -> 100 | E51: BI_USL_Low | F51: BI Template_EnergyUNM | G51: =VLOOKUP(VLOOKUP($F51,'Data BI Summary'!$A:$F,MATCH(G$1,'Data BI Summary'!$2:$2,0),FALSE),INDIRECT("'"&$E51&"'!"&"$A:$K"),4,FALSE) -> 51.30903308 | H51: =VLOOKUP(VLOOKUP($F51,'Data BI Summary'!$A:$F,MATCH(H$1,'Data BI Summary'!$2:$2,0),FALSE),INDIRECT("'"&$E51&"'!"&"$A:$K"),8,FALSE) -> 0.11 | I51: =VLOOKUP(VLOOKUP($F51,'Data BI Summary'!$A:$F,MATCH(I$1,'Data BI Summary'!$2:$2,0),FALSE),INDIRECT("'"&$E51&"'!"&"$A:$K"),9,FALSE) -> 0.002675747993 | J51: =VLOOKUP(VLOOKUP($F51,'Data BI Summary'!$A:$F,MATCH(J$1,'Data BI Summary'!$2:$2,0),FALSE),INDIRECT("'"&$E51&"'!"&"$A:$K"),8,FALSE) -> 0.10307 | K51: =VLOOKUP(VLOOKUP($F51,'Data BI Summary'!$A:$F,MATCH(K$1,'Data BI Summary'!$2:$2,0),FALSE),INDIRECT("'"&$E51&"'!"&"$A:$K"),9,FALSE) -> 0.002008808076 | L51: Two-tier RPP
B52: Average | C52: =VLOOKUP(A$51,'Data Billing Quantities'!A:P,MATCH(B52&" kWh",'Data Billing Quantities'!$4:$4,0),FALSE) -> 477 | E52: BI_USL_Avg | F52: BI Template_EnergyUNM | G52: =VLOOKUP(VLOOKUP($F52,'Data BI Summary'!$A:$F,MATCH(G$1,'Data BI Summary'!$2:$2,0),FALSE),INDIRECT("'"&$E52&"'!"&"$A:$K"),4,FALSE) -> 108.6019232 | H52: =VLOOKUP(VLOOKUP($F52,'Data BI Summary'!$A:$F,MATCH(H$1,'Data BI Summary'!$2:$2,0),FALSE),INDIRECT("'"&$E52&"'!"&"$A:$K"),8,FALSE) -> 0.5247 | I52: =VLOOKUP(VLOOKUP($F52,'Data BI Summary'!$A:$F,MATCH(I$1,'Data BI Summary'!$2:$2,0),FALSE),INDIRECT("'"&$E52&"'!"&"$A:$K"),9,FALSE) -> 0.01014081567 | J52: =VLOOKUP(VLOOKUP($F52,'Data BI Summary'!$A:$F,MATCH(J$1,'Data BI Summary'!$2:$2,0),FALSE),INDIRECT("'"&$E52&"'!"&"$A:$K"),8,FALSE) -> 0.4916439 | K52: =VLOOKUP(VLOOKUP($F52,'Data BI Summary'!$A:$F,MATCH(K$1,'Data BI Summary'!$2:$2,0),FALSE),INDIRECT("'"&$E52&"'!"&"$A:$K"),9,FALSE) -> 0.004527027566
B53: High | C53: =VLOOKUP(A$51,'Data Billing Quantities'!A:P,MATCH(B53&" kWh",'Data Billing Quantities'!$4:$4,0),FALSE) -> 550 | E53: BI_USL_High | F53: BI Template_EnergyUNM | G53: =VLOOKUP(VLOOKUP($F53,'Data BI Summary'!$A:$F,MATCH(G$1,'Data BI Summary'!$2:$2,0),FALSE),INDIRECT("'"&$E53&"'!"&"$A:$K"),4,FALSE) -> 119.6957719 | H53: =VLOOKUP(VLOOKUP($F53,'Data BI Summary'!$A:$F,MATCH(H$1,'Data BI Summary'!$2:$2,0),FALSE),INDIRECT("'"&$E53&"'!"&"$A:$K"),8,FALSE) -> 0.605 | I53: =VLOOKUP(VLOOKUP($F53,'Data BI Summary'!$A:$F,MATCH(I$1,'Data BI Summary'!$2:$2,0),FALSE),INDIRECT("'"&$E53&"'!"&"$A:$K"),9,FALSE) -> 0.01124535316 | J53: =VLOOKUP(VLOOKUP($F53,'Data BI Summary'!$A:$F,MATCH(J$1,'Data BI Summary'!$2:$2,0),FALSE),INDIRECT("'"&$E53&"'!"&"$A:$K"),8,FALSE) -> 0.566885 | K53: =VLOOKUP(VLOOKUP($F53,'Data BI Summary'!$A:$F,MATCH(K$1,'Data BI Summary'!$2:$2,0),FALSE),INDIRECT("'"&$E53&"'!"&"$A:$K"),9,FALSE) -> 0.004736048657
A54: DGen | B54: Low | C54: =VLOOKUP(A$54,'Data Billing Quantities'!A:P,MATCH($B54&" kWh",'Data Billing Quantities'!$4:$4,0),FALSE) -> 10 | D54: =VLOOKUP(A$54,'Data Billing Quantities'!A:P,MATCH($B54&" kW",'Data Billing Quantities'!$4:$4,0),FALSE) -> 0.02941666667 | E54: BI_Dgen_Low | F54: BI Template_Demand | G54: =VLOOKUP(VLOOKUP($F54,'Data BI Summary'!$A:$F,MATCH(G$1,'Data BI Summary'!$2:$2,0),FALSE),INDIRECT("'"&$E54&"'!"&"$A:$K"),4,FALSE) -> 227.2586178 | H54: =VLOOKUP(VLOOKUP($F54,'Data BI Summary'!$A:$F,MATCH(H$1,'Data BI Summary'!$2:$2,0),FALSE),INDIRECT("'"&$E54&"'!"&"$A:$K"),8,FALSE) -> -0.03574551667 | I54: =VLOOKUP(VLOOKUP($F54,'Data BI Summary'!$A:$F,MATCH(I$1,'Data BI Summary'!$2:$2,0),FALSE),INDIRECT("'"&$E54&"'!"&"$A:$K"),9,FALSE) -> -0.0001790636775 | J54: =VLOOKUP(VLOOKUP($F54,'Data BI Summary'!$A:$F,MATCH(J$1,'Data BI Summary'!$2:$2,0),FALSE),INDIRECT("'"&$E54&"'!"&"$A:$K"),8,FALSE) -> -0.04039243383 | K54: =VLOOKUP(VLOOKUP($F54,'Data BI Summary'!$A:$F,MATCH(K$1,'Data BI Summary'!$2:$2,0),FALSE),INDIRECT("'"&$E54&"'!"&"$A:$K"),9,FALSE) -> -0.0001777377431 | L54: WAHSP
B55: Average | C55: =VLOOKUP(A$54,'Data Billing Quantities'!A:P,MATCH($B55&" kWh",'Data Billing Quantities'!$4:$4,0),FALSE) -> 1709 | D55: =VLOOKUP(A$54,'Data Billing Quantities'!A:P,MATCH($B55&" kW",'Data Billing Quantities'!$4:$4,0),FALSE) -> 12 | E55: BI_Dgen_Avg | F55: BI Template_Demand | G55: =VLOOKUP(VLOOKUP($F55,'Data BI Summary'!$A:$F,MATCH(G$1,'Data BI Summary'!$2:$2,0),FALSE),INDIRECT("'"&$E55&"'!"&"$A:$K"),4,FALSE) -> 656.2612189 | H55: =VLOOKUP(VLOOKUP($F55,'Data BI Summary'!$A:$F,MATCH(H$1,'Data BI Summary'!$2:$2,0),FALSE),INDIRECT("'"&$E55&"'!"&"$A:$K"),8,FALSE) -> -3.9153 | I55: =VLOOKUP(VLOOKUP($F55,'Data BI Summary'!$A:$F,MATCH(I$1,'Data BI Summary'!$2:$2,0),FALSE),INDIRECT("'"&$E55&"'!"&"$A:$K"),9,FALSE) -> -0.0111824467 | J55: =VLOOKUP(VLOOKUP($F55,'Data BI Summary'!$A:$F,MATCH(J$1,'Data BI Summary'!$2:$2,0),FALSE),INDIRECT("'"&$E55&"'!"&"$A:$K"),8,FALSE) -> -4.424289 | K55: =VLOOKUP(VLOOKUP($F55,'Data BI Summary'!$A:$F,MATCH(K$1,'Data BI Summary'!$2:$2,0),FALSE),INDIRECT("'"&$E55&"'!"&"$A:$K"),9,FALSE) -> -0.006741658463
B56: High | C56: =VLOOKUP(A$54,'Data Billing Quantities'!A:P,MATCH($B56&" kWh",'Data Billing Quantities'!$4:$4,0),FALSE) -> 8490 | D56: =VLOOKUP(A$54,'Data Billing Quantities'!A:P,MATCH($B56&" kW",'Data Billing Quantities'!$4:$4,0),FALSE) -> 45 | E56: BI_Dgen_High | F56: BI Template_Demand | G56: =VLOOKUP(VLOOKUP($F56,'Data BI Summary'!$A:$F,MATCH(G$1,'Data BI Summary'!$2:$2,0),FALSE),INDIRECT("'"&$E56&"'!"&"$A:$K"),4,FALSE) -> 2111.868488 | H56: =VLOOKUP(VLOOKUP($F56,'Data BI Summary'!$A:$F,MATCH(H$1,'Data BI Summary'!$2:$2,0),FALSE),INDIRECT("'"&$E56&"'!"&"$A:$K"),8,FALSE) -> -24.048 | I56: =VLOOKUP(VLOOKUP($F56,'Data BI Summary'!$A:$F,MATCH(I$1,'Data BI Summary'!$2:$2,0),FALSE),INDIRECT("'"&$E56&"'!"&"$A:$K"),9,FALSE) -> -0.03151166356 | J56: =VLOOKUP(VLOOKUP($F56,'Data BI Summary'!$A:$F,MATCH(J$1,'Data BI Summary'!$2:$2,0),FALSE),INDIRECT("'"&$E56&"'!"&"$A:$K"),8,FALSE) -> -27.17424 | K56: =VLOOKUP(VLOOKUP($F56,'Data BI Summary'!$A:$F,MATCH(K$1,'Data BI Summary'!$2:$2,0),FALSE),INDIRECT("'"&$E56&"'!"&"$A:$K"),9,FALSE) -> -0.01286739215
A57: ST | B57: Low | C57: =VLOOKUP(A$57,'Data Billing Quantities'!A:P,MATCH($B57&" kWh",'Data Billing Quantities'!$4:$4,0),FALSE) -> 88780 | D57: =VLOOKUP(A$57,'Data Billing Quantities'!A:P,MATCH($B57&" kW",'Data Billing Quantities'!$4:$4,0),FALSE) -> 500 | E57: BI_ST_Low | F57: BI Template_Demand | G57: =VLOOKUP(VLOOKUP($F57,'Data BI Summary'!$A:$F,MATCH(G$1,'Data BI Summary'!$2:$2,0),FALSE),INDIRECT("'"&$E57&"'!"&"$A:$K"),4,FALSE) -> 18577.51198 | H57: =VLOOKUP(VLOOKUP($F57,'Data BI Summary'!$A:$F,MATCH(H$1,'Data BI Summary'!$2:$2,0),FALSE),INDIRECT("'"&$E57&"'!"&"$A:$K"),8,FALSE) -> -160.91 | I57: =VLOOKUP(VLOOKUP($F57,'Data BI Summary'!$A:$F,MATCH(I$1,'Data BI Summary'!$2:$2,0),FALSE),INDIRECT("'"&$E57&"'!"&"$A:$K"),9,FALSE) -> -0.08878194765 | J57: =VLOOKUP(VLOOKUP($F57,'Data BI Summary'!$A:$F,MATCH(J$1,'Data BI Summary'!$2:$2,0),FALSE),INDIRECT("'"&$E57&"'!"&"$A:$K"),8,FALSE) -> -181.8283 | K57: =VLOOKUP(VLOOKUP($F57,'Data BI Summary'!$A:$F,MATCH(K$1,'Data BI Summary'!$2:$2,0),FALSE),INDIRECT("'"&$E57&"'!"&"$A:$K"),9,FALSE) -> -0.009787548526 | L57: WAHSP
B58: Average | C58: =VLOOKUP(A$57,'Data Billing Quantities'!A:P,MATCH($B58&" kWh",'Data Billing Quantities'!$4:$4,0),FALSE) -> 1373443 | D58: =VLOOKUP(A$57,'Data Billing Quantities'!A:P,MATCH($B58&" kW",'Data Billing Quantities'!$4:$4,0),FALSE) -> 2808 | E58: BI_ST_Avg | F58: BI Template_Demand | G58: =VLOOKUP(VLOOKUP($F58,'Data BI Summary'!$A:$F,MATCH(G$1,'Data BI Summary'!$2:$2,0),FALSE),INDIRECT("'"&$E58&"'!"&"$A:$K"),4,FALSE) -> 208790.9914 | H58: =VLOOKUP(VLOOKUP($F58,'Data BI Summary'!$A:$F,MATCH(H$1,'Data BI Summary'!$2:$2,0),FALSE),INDIRECT("'"&$E58&"'!"&"$A:$K"),8,FALSE) -> -4840.5159 | I58: =VLOOKUP(VLOOKUP($F58,'Data BI Summary'!$A:$F,MATCH(I$1,'Data BI Summary'!$2:$2,0),FALSE),INDIRECT("'"&$E58&"'!"&"$A:$K"),9,FALSE) -> -1.323015794 | J58: =VLOOKUP(VLOOKUP($F58,'Data BI Summary'!$A:$F,MATCH(J$1,'Data BI Summary'!$2:$2,0),FALSE),INDIRECT("'"&$E58&"'!"&"$A:$K"),8,FALSE) -> -5469.782967 | K58: =VLOOKUP(VLOOKUP($F58,'Data BI Summary'!$A:$F,MATCH(K$1,'Data BI Summary'!$2:$2,0),FALSE),INDIRECT("'"&$E58&"'!"&"$A:$K"),9,FALSE) -> -0.02619740885
B59: High | C59: =VLOOKUP(A$57,'Data Billing Quantities'!A:P,MATCH($B59&" kWh",'Data Billing Quantities'!$4:$4,0),FALSE) -> 2641420 | D59: =VLOOKUP(A$57,'Data Billing Quantities'!A:P,MATCH($B59&" kW",'Data Billing Quantities'!$4:$4,0),FALSE) -> 13730 | E59: BI_ST_High | F59: BI Template_Demand | G59: =VLOOKUP(VLOOKUP($F59,'Data BI Summary'!$A:$F,MATCH(G$1,'Data BI Summary'!$2:$2,0),FALSE),INDIRECT("'"&$E59&"'!"&"$A:$K"),4,FALSE) -> 498807.4858 | H59: =VLOOKUP(VLOOKUP($F59,'Data BI Summary'!$A:$F,MATCH(H$1,'Data BI Summary'!$2:$2,0),FALSE),INDIRECT("'"&$E59&"'!"&"$A:$K"),8,FALSE) -> -5334.434 | I59: =VLOOKUP(VLOOKUP($F59,'Data BI Summary'!$A:$F,MATCH(I$1,'Data BI Summary'!$2:$2,0),FALSE),INDIRECT("'"&$E59&"'!"&"$A:$K"),9,FALSE) -> -0.3189316194 | J59: =VLOOKUP(VLOOKUP($F59,'Data BI Summary'!$A:$F,MATCH(J$1,'Data BI Summary'!$2:$2,0),FALSE),INDIRECT("'"&$E59&"'!"&"$A:$K"),8,FALSE) -> -6027.91042 | K59: =VLOOKUP(VLOOKUP($F59,'Data BI Summary'!$A:$F,MATCH(K$1,'Data BI Summary'!$2:$2,0),FALSE),INDIRECT("'"&$E59&"'!"&"$A:$K"),9,FALSE) -> -0.01208464306

Sheet Bill Impact Summary_Acq (hidden)
A1: Rate Class | B1: Consumption Level | C1: Monthly Consumption (kWh) | D1: Monthly Peak (kW) | E1: BI Worksheet | F1: Template | G1: Current Total Bill | H1: Change in DX Bill ($) | I1: Change in DX Bill (%) | J1: Change in Total Bill ($) | K1: Change in Total Bill (%) | L1: Commodity Price Used
A2: WHSI to HONI
A3: AUR-WHSI | B3: Low | C3: =VLOOKUP(A$3,'Data Billing Quantities'!A:P,MATCH($B3&" kWh",'Data Billing Quantities'!$4:$4,0),FALSE) -> 310 | E3: BI_WHSI_AUR_Low | F3: BI Template_EnergyWHSI | G3: =VLOOKUP(VLOOKUP($F3,'Data BI Summary'!$A:$F,MATCH(G$1,'Data BI Summary'!$2:$2,0),FALSE),INDIRECT("'"&$E3&"'!"&"$A:$K"),4,FALSE) -> 73.02185017 | H3: =VLOOKUP(VLOOKUP($F3,'Data BI Summary'!$A:$F,MATCH(H$1,'Data BI Summary'!$2:$2,0),FALSE),INDIRECT("'"&$E3&"'!"&"$A:$K"),8,FALSE) -> 0.155 | I3: =VLOOKUP(VLOOKUP($F3,'Data BI Summary'!$A:$F,MATCH(I$1,'Data BI Summary'!$2:$2,0),FALSE),INDIRECT("'"&$E3&"'!"&"$A:$K"),9,FALSE) -> 0.004791196563 | J3: =VLOOKUP(VLOOKUP($F3,'Data BI Summary'!$A:$F,MATCH(J$1,'Data BI Summary'!$2:$2,0),FALSE),INDIRECT("'"&$E3&"'!"&"$A:$K"),8,FALSE) -> 0.145235 | K3: =VLOOKUP(VLOOKUP($F3,'Data BI Summary'!$A:$F,MATCH(K$1,'Data BI Summary'!$2:$2,0),FALSE),INDIRECT("'"&$E3&"'!"&"$A:$K"),9,FALSE) -> 0.001988925228 | L3: TOU
B4: Typical | C4: =VLOOKUP(A$3,'Data Billing Quantities'!A:P,MATCH($B4&" kWh",'Data Billing Quantities'!$4:$4,0),FALSE) -> 750 | E4: BI_WHSI_AUR_Typical | F4: BI Template_EnergyWHSI | G4: =VLOOKUP(VLOOKUP($F4,'Data BI Summary'!$A:$F,MATCH(G$1,'Data BI Summary'!$2:$2,0),FALSE),INDIRECT("'"&$E4&"'!"&"$A:$K"),4,FALSE) -> 132.3789149 | H4: =VLOOKUP(VLOOKUP($F4,'Data BI Summary'!$A:$F,MATCH(H$1,'Data BI Summary'!$2:$2,0),FALSE),INDIRECT("'"&$E4&"'!"&"$A:$K"),8,FALSE) -> 0.375 | I4: =VLOOKUP(VLOOKUP($F4,'Data BI Summary'!$A:$F,MATCH(I$1,'Data BI Summary'!$2:$2,0),FALSE),INDIRECT("'"&$E4&"'!"&"$A:$K"),9,FALSE) -> 0.0117352527 | J4: =VLOOKUP(VLOOKUP($F4,'Data BI Summary'!$A:$F,MATCH(J$1,'Data BI Summary'!$2:$2,0),FALSE),INDIRECT("'"&$E4&"'!"&"$A:$K"),8,FALSE) -> 0.351375 | K4: =VLOOKUP(VLOOKUP($F4,'Data BI Summary'!$A:$F,MATCH(K$1,'Data BI Summary'!$2:$2,0),FALSE),INDIRECT("'"&$E4&"'!"&"$A:$K"),9,FALSE) -> 0.002654312435
B5: Average | C5: =VLOOKUP(A$3,'Data Billing Quantities'!A:P,MATCH($B5&" kWh",'Data Billing Quantities'!$4:$4,0),FALSE) -> 636 | E5: BI_WHSI_AUR_Avg | F5: BI Template_EnergyWHSI | G5: =VLOOKUP(VLOOKUP($F5,'Data BI Summary'!$A:$F,MATCH(G$1,'Data BI Summary'!$2:$2,0),FALSE),INDIRECT("'"&$E5&"'!"&"$A:$K"),4,FALSE) -> 117.0000391 | H5: =VLOOKUP(VLOOKUP($F5,'Data BI Summary'!$A:$F,MATCH(H$1,'Data BI Summary'!$2:$2,0),FALSE),INDIRECT("'"&$E5&"'!"&"$A:$K"),8,FALSE) -> 0.318 | I5: =VLOOKUP(VLOOKUP($F5,'Data BI Summary'!$A:$F,MATCH(I$1,'Data BI Summary'!$2:$2,0),FALSE),INDIRECT("'"&$E5&"'!"&"$A:$K"),9,FALSE) -> 0.00991964464 | J5: =VLOOKUP(VLOOKUP($F5,'Data BI Summary'!$A:$F,MATCH(J$1,'Data BI Summary'!$2:$2,0),FALSE),INDIRECT("'"&$E5&"'!"&"$A:$K"),8,FALSE) -> 0.297966 | K5: =VLOOKUP(VLOOKUP($F5,'Data BI Summary'!$A:$F,MATCH(K$1,'Data BI Summary'!$2:$2,0),FALSE),INDIRECT("'"&$E5&"'!"&"$A:$K"),9,FALSE) -> 0.002546717099
B6: High | C6: =VLOOKUP(A$3,'Data Billing Quantities'!A:P,MATCH($B6&" kWh",'Data Billing Quantities'!$4:$4,0),FALSE) -> 1160 | E6: BI_WHSI_AUR_High | F6: BI Template_EnergyWHSI | G6: =VLOOKUP(VLOOKUP($F6,'Data BI Summary'!$A:$F,MATCH(G$1,'Data BI Summary'!$2:$2,0),FALSE),INDIRECT("'"&$E6&"'!"&"$A:$K"),4,FALSE) -> 187.6889071 | H6: =VLOOKUP(VLOOKUP($F6,'Data BI Summary'!$A:$F,MATCH(H$1,'Data BI Summary'!$2:$2,0),FALSE),INDIRECT("'"&$E6&"'!"&"$A:$K"),8,FALSE) -> 0.58 | I6: =VLOOKUP(VLOOKUP($F6,'Data BI Summary'!$A:$F,MATCH(I$1,'Data BI Summary'!$2:$2,0),FALSE),INDIRECT("'"&$E6&"'!"&"$A:$K"),9,FALSE) -> 0.01836256569 | J6: =VLOOKUP(VLOOKUP($F6,'Data BI Summary'!$A:$F,MATCH(J$1,'Data BI Summary'!$2:$2,0),FALSE),INDIRECT("'"&$E6&"'!"&"$A:$K"),8,FALSE) -> 0.54346 | K6: =VLOOKUP(VLOOKUP($F6,'Data BI Summary'!$A:$F,MATCH(K$1,'Data BI Summary'!$2:$2,0),FALSE),INDIRECT("'"&$E6&"'!"&"$A:$K"),9,FALSE) -> 0.002895536068
A7: AUGe-WHSI | B7: Low | C7: =VLOOKUP(A$7,'Data Billing Quantities'!A:P,MATCH($B7&" kWh",'Data Billing Quantities'!$4:$4,0),FALSE) -> 190 | E7: BI_WHSI_AUGe_Low | F7: BI Template_EnergyWHSI | G7: =VLOOKUP(VLOOKUP($F7,'Data BI Summary'!$A:$F,MATCH(G$1,'Data BI Summary'!$2:$2,0),FALSE),INDIRECT("'"&$E7&"'!"&"$A:$K"),4,FALSE) -> 52.95136639 | H7: =VLOOKUP(VLOOKUP($F7,'Data BI Summary'!$A:$F,MATCH(H$1,'Data BI Summary'!$2:$2,0),FALSE),INDIRECT("'"&$E7&"'!"&"$A:$K"),8,FALSE) -> 0.152 | I7: =VLOOKUP(VLOOKUP($F7,'Data BI Summary'!$A:$F,MATCH(I$1,'Data BI Summary'!$2:$2,0),FALSE),INDIRECT("'"&$E7&"'!"&"$A:$K"),9,FALSE) -> 0.005193562716 | J7: =VLOOKUP(VLOOKUP($F7,'Data BI Summary'!$A:$F,MATCH(J$1,'Data BI Summary'!$2:$2,0),FALSE),INDIRECT("'"&$E7&"'!"&"$A:$K"),8,FALSE) -> 0.142424 | K7: =VLOOKUP(VLOOKUP($F7,'Data BI Summary'!$A:$F,MATCH(K$1,'Data BI Summary'!$2:$2,0),FALSE),INDIRECT("'"&$E7&"'!"&"$A:$K"),9,FALSE) -> 0.002689713405 | L7: TOU
B8: Typical | C8: =VLOOKUP(A$7,'Data Billing Quantities'!A:P,MATCH($B8&" kWh",'Data Billing Quantities'!$4:$4,0),FALSE) -> 2000 | E8: BI_WHSI_AUGe_Typical | F8: BI Template_EnergyWHSI | G8: =VLOOKUP(VLOOKUP($F8,'Data BI Summary'!$A:$F,MATCH(G$1,'Data BI Summary'!$2:$2,0),FALSE),INDIRECT("'"&$E8&"'!"&"$A:$K"),4,FALSE) -> 316.1087562 | H8: =VLOOKUP(VLOOKUP($F8,'Data BI Summary'!$A:$F,MATCH(H$1,'Data BI Summary'!$2:$2,0),FALSE),INDIRECT("'"&$E8&"'!"&"$A:$K"),8,FALSE) -> 1.6 | I8: =VLOOKUP(VLOOKUP($F8,'Data BI Summary'!$A:$F,MATCH(I$1,'Data BI Summary'!$2:$2,0),FALSE),INDIRECT("'"&$E8&"'!"&"$A:$K"),9,FALSE) -> 0.02808988764 | J8: =VLOOKUP(VLOOKUP($F8,'Data BI Summary'!$A:$F,MATCH(J$1,'Data BI Summary'!$2:$2,0),FALSE),INDIRECT("'"&$E8&"'!"&"$A:$K"),8,FALSE) -> 1.4992 | K8: =VLOOKUP(VLOOKUP($F8,'Data BI Summary'!$A:$F,MATCH(K$1,'Data BI Summary'!$2:$2,0),FALSE),INDIRECT("'"&$E8&"'!"&"$A:$K"),9,FALSE) -> 0.004742671535
B9: Average | C9: =VLOOKUP(A$7,'Data Billing Quantities'!A:P,MATCH($B9&" kWh",'Data Billing Quantities'!$4:$4,0),FALSE) -> 2471 | E9: BI_WHSI_AUGe_Avg | F9: BI Template_EnergyWHSI | G9: =VLOOKUP(VLOOKUP($F9,'Data BI Summary'!$A:$F,MATCH(G$1,'Data BI Summary'!$2:$2,0),FALSE),INDIRECT("'"&$E9&"'!"&"$A:$K"),4,FALSE) -> 384.5878339 | H9: =VLOOKUP(VLOOKUP($F9,'Data BI Summary'!$A:$F,MATCH(H$1,'Data BI Summary'!$2:$2,0),FALSE),INDIRECT("'"&$E9&"'!"&"$A:$K"),8,FALSE) -> 1.9768 | I9: =VLOOKUP(VLOOKUP($F9,'Data BI Summary'!$A:$F,MATCH(I$1,'Data BI Summary'!$2:$2,0),FALSE),INDIRECT("'"&$E9&"'!"&"$A:$K"),9,FALSE) -> 0.03080744877 | J9: =VLOOKUP(VLOOKUP($F9,'Data BI Summary'!$A:$F,MATCH(J$1,'Data BI Summary'!$2:$2,0),FALSE),INDIRECT("'"&$E9&"'!"&"$A:$K"),8,FALSE) -> 1.8522616 | K9: =VLOOKUP(VLOOKUP($F9,'Data BI Summary'!$A:$F,MATCH(K$1,'Data BI Summary'!$2:$2,0),FALSE),INDIRECT("'"&$E9&"'!"&"$A:$K"),9,FALSE) -> 0.004816225155
B10: High | C10: =VLOOKUP(A$7,'Data Billing Quantities'!A:P,MATCH($B10&" kWh",'Data Billing Quantities'!$4:$4,0),FALSE) -> 7240 | E10: BI_WHSI_AUGe_High | F10: BI Template_EnergyWHSI | G10: =VLOOKUP(VLOOKUP($F10,'Data BI Summary'!$A:$F,MATCH(G$1,'Data BI Summary'!$2:$2,0),FALSE),INDIRECT("'"&$E10&"'!"&"$A:$K"),4,FALSE) -> 1077.956669 | H10: =VLOOKUP(VLOOKUP($F10,'Data BI Summary'!$A:$F,MATCH(H$1,'Data BI Summary'!$2:$2,0),FALSE),INDIRECT("'"&$E10&"'!"&"$A:$K"),8,FALSE) -> 5.792 | I10: =VLOOKUP(VLOOKUP($F10,'Data BI Summary'!$A:$F,MATCH(I$1,'Data BI Summary'!$2:$2,0),FALSE),INDIRECT("'"&$E10&"'!"&"$A:$K"),9,FALSE) -> 0.04223667707 | J10: =VLOOKUP(VLOOKUP($F10,'Data BI Summary'!$A:$F,MATCH(J$1,'Data BI Summary'!$2:$2,0),FALSE),INDIRECT("'"&$E10&"'!"&"$A:$K"),8,FALSE) -> 5.427104 | K10: =VLOOKUP(VLOOKUP($F10,'Data BI Summary'!$A:$F,MATCH(K$1,'Data BI Summary'!$2:$2,0),FALSE),INDIRECT("'"&$E10&"'!"&"$A:$K"),9,FALSE) -> 0.005034621664
A11: AUGd-WHSI | B11: Low | C11: =VLOOKUP(A$11,'Data Billing Quantities'!A:P,MATCH($B11&" kWh",'Data Billing Quantities'!$4:$4,0),FALSE) -> 9370 | D11: =VLOOKUP(A$11,'Data Billing Quantities'!A:P,MATCH(B11&" kW",'Data Billing Quantities'!$4:$4,0),FALSE) -> 50 | E11: BI_WHSI_AUGd_Low | F11: BI Template_DemandWHSI | G11: =VLOOKUP(VLOOKUP($F11,'Data BI Summary'!$A:$F,MATCH(G$1,'Data BI Summary'!$2:$2,0),FALSE),INDIRECT("'"&$E11&"'!"&"$A:$K"),4,FALSE) -> 1859.282309 | H11: =VLOOKUP(VLOOKUP($F11,'Data BI Summary'!$A:$F,MATCH(H$1,'Data BI Summary'!$2:$2,0),FALSE),INDIRECT("'"&$E11&"'!"&"$A:$K"),8,FALSE) -> -25.015 | I11: =VLOOKUP(VLOOKUP($F11,'Data BI Summary'!$A:$F,MATCH(I$1,'Data BI Summary'!$2:$2,0),FALSE),INDIRECT("'"&$E11&"'!"&"$A:$K"),9,FALSE) -> -0.09013212653 | J11: =VLOOKUP(VLOOKUP($F11,'Data BI Summary'!$A:$F,MATCH(J$1,'Data BI Summary'!$2:$2,0),FALSE),INDIRECT("'"&$E11&"'!"&"$A:$K"),8,FALSE) -> -28.26695 | K11: =VLOOKUP(VLOOKUP($F11,'Data BI Summary'!$A:$F,MATCH(K$1,'Data BI Summary'!$2:$2,0),FALSE),INDIRECT("'"&$E11&"'!"&"$A:$K"),9,FALSE) -> -0.01520315117 | L11: WAHSP
B12: Average | C12: =VLOOKUP(A$11,'Data Billing Quantities'!A:P,MATCH($B12&" kWh",'Data Billing Quantities'!$4:$4,0),FALSE) -> 47636 | D12: =VLOOKUP(A$11,'Data Billing Quantities'!A:P,MATCH(B12&" kW",'Data Billing Quantities'!$4:$4,0),FALSE) -> 134 | E12: BI_WHSI_AUGd_Avg | F12: BI Template_DemandWHSI | G12: =VLOOKUP(VLOOKUP($F12,'Data BI Summary'!$A:$F,MATCH(G$1,'Data BI Summary'!$2:$2,0),FALSE),INDIRECT("'"&$E12&"'!"&"$A:$K"),4,FALSE) -> 7557.836277 | H12: =VLOOKUP(VLOOKUP($F12,'Data BI Summary'!$A:$F,MATCH(H$1,'Data BI Summary'!$2:$2,0),FALSE),INDIRECT("'"&$E12&"'!"&"$A:$K"),8,FALSE) -> -168.4 | I12: =VLOOKUP(VLOOKUP($F12,'Data BI Summary'!$A:$F,MATCH(I$1,'Data BI Summary'!$2:$2,0),FALSE),INDIRECT("'"&$E12&"'!"&"$A:$K"),9,FALSE) -> -0.3527014755 | J12: =VLOOKUP(VLOOKUP($F12,'Data BI Summary'!$A:$F,MATCH(J$1,'Data BI Summary'!$2:$2,0),FALSE),INDIRECT("'"&$E12&"'!"&"$A:$K"),8,FALSE) -> -190.292 | K12: =VLOOKUP(VLOOKUP($F12,'Data BI Summary'!$A:$F,MATCH(K$1,'Data BI Summary'!$2:$2,0),FALSE),INDIRECT("'"&$E12&"'!"&"$A:$K"),9,FALSE) -> -0.02517810562
B13: High | C13: =VLOOKUP(A$11,'Data Billing Quantities'!A:P,MATCH($B13&" kWh",'Data Billing Quantities'!$4:$4,0),FALSE) -> 137890 | D13: =VLOOKUP(A$11,'Data Billing Quantities'!A:P,MATCH(B13&" kW",'Data Billing Quantities'!$4:$4,0),FALSE) -> 340 | E13: BI_WHSI_AUGd_High | F13: BI Template_DemandWHSI | G13: =VLOOKUP(VLOOKUP($F13,'Data BI Summary'!$A:$F,MATCH(G$1,'Data BI Summary'!$2:$2,0),FALSE),INDIRECT("'"&$E13&"'!"&"$A:$K"),4,FALSE) -> 21078.21485 | H13: =VLOOKUP(VLOOKUP($F13,'Data BI Summary'!$A:$F,MATCH(H$1,'Data BI Summary'!$2:$2,0),FALSE),INDIRECT("'"&$E13&"'!"&"$A:$K"),8,FALSE) -> -503.885 | I13: =VLOOKUP(VLOOKUP($F13,'Data BI Summary'!$A:$F,MATCH(I$1,'Data BI Summary'!$2:$2,0),FALSE),INDIRECT("'"&$E13&"'!"&"$A:$K"),9,FALSE) -> -0.5189506565 | J13: =VLOOKUP(VLOOKUP($F13,'Data BI Summary'!$A:$F,MATCH(J$1,'Data BI Summary'!$2:$2,0),FALSE),INDIRECT("'"&$E13&"'!"&"$A:$K"),8,FALSE) -> -569.39005 | K13: =VLOOKUP(VLOOKUP($F13,'Data BI Summary'!$A:$F,MATCH(K$1,'Data BI Summary'!$2:$2,0),FALSE),INDIRECT("'"&$E13&"'!"&"$A:$K"),9,FALSE) -> -0.02701320079
A14: St Lgt-WHSI | B14: Average | C14: =VLOOKUP(A14,'Data Billing Quantities'!A:P,MATCH($B14&" kWh",'Data Billing Quantities'!$4:$4,0),FALSE) -> 37079 | D14: =VLOOKUP(A$14,'Data Billing Quantities'!A:P,MATCH(B14&" kW",'Data Billing Quantities'!$4:$4,0),FALSE) -> 104 | E14: BI_WHSI_StLgt_Avg | F14: BI Template_unmWHSI | G14: =VLOOKUP(VLOOKUP($F14,'Data BI Summary'!$A:$F,MATCH(G$1,'Data BI Summary'!$2:$2,0),FALSE),INDIRECT("'"&$E14&"'!"&"$A:$K"),4,FALSE) -> 11422.37522 | H14: =VLOOKUP(VLOOKUP($F14,'Data BI Summary'!$A:$F,MATCH(H$1,'Data BI Summary'!$2:$2,0),FALSE),INDIRECT("'"&$E14&"'!"&"$A:$K"),8,FALSE) -> 33.3711 | I14: =VLOOKUP(VLOOKUP($F14,'Data BI Summary'!$A:$F,MATCH(I$1,'Data BI Summary'!$2:$2,0),FALSE),INDIRECT("'"&$E14&"'!"&"$A:$K"),9,FALSE) -> 0.00770625865 | J14: =VLOOKUP(VLOOKUP($F14,'Data BI Summary'!$A:$F,MATCH(J$1,'Data BI Summary'!$2:$2,0),FALSE),INDIRECT("'"&$E14&"'!"&"$A:$K"),8,FALSE) -> 37.709343 | K14: =VLOOKUP(VLOOKUP($F14,'Data BI Summary'!$A:$F,MATCH(K$1,'Data BI Summary'!$2:$2,0),FALSE),INDIRECT("'"&$E14&"'!"&"$A:$K"),9,FALSE) -> 0.003301357405 | L14: Two-tier RPP
A15: USL-WHSI | B15: Average | C15: =VLOOKUP(A15,'Data Billing Quantities'!A:P,MATCH($B15&" kWh",'Data Billing Quantities'!$4:$4,0),FALSE) -> 1349 | E15: BI_WHSI_USL_Avg | F15: BI Template_unmWHSI | G15: =VLOOKUP(VLOOKUP($F15,'Data BI Summary'!$A:$F,MATCH(G$1,'Data BI Summary'!$2:$2,0),FALSE),INDIRECT("'"&$E15&"'!"&"$A:$K"),4,FALSE) -> 255.7735718 | H15: =VLOOKUP(VLOOKUP($F15,'Data BI Summary'!$A:$F,MATCH(H$1,'Data BI Summary'!$2:$2,0),FALSE),INDIRECT("'"&$E15&"'!"&"$A:$K"),8,FALSE) -> 1.2141 | I15: =VLOOKUP(VLOOKUP($F15,'Data BI Summary'!$A:$F,MATCH(I$1,'Data BI Summary'!$2:$2,0),FALSE),INDIRECT("'"&$E15&"'!"&"$A:$K"),9,FALSE) -> 0.01596197839 | J15: =VLOOKUP(VLOOKUP($F15,'Data BI Summary'!$A:$F,MATCH(J$1,'Data BI Summary'!$2:$2,0),FALSE),INDIRECT("'"&$E15&"'!"&"$A:$K"),8,FALSE) -> 1.1376117 | K15: =VLOOKUP(VLOOKUP($F15,'Data BI Summary'!$A:$F,MATCH(K$1,'Data BI Summary'!$2:$2,0),FALSE),INDIRECT("'"&$E15&"'!"&"$A:$K"),9,FALSE) -> 0.004447729655 | L15: Two-tier RPP
A16: ST-WHSI | B16: Average | C16: =VLOOKUP(A16,'Data Billing Quantities'!A:P,MATCH($B16&" kWh",'Data Billing Quantities'!$4:$4,0),FALSE) -> 895853 | D16: =VLOOKUP(A$16,'Data Billing Quantities'!A:P,MATCH(B16&" kW",'Data Billing Quantities'!$4:$4,0),FALSE) -> 3301 | E16: BI_WHSI_ST_Avg | F16: BI Template_DemandWHSI | G16: =VLOOKUP(VLOOKUP($F16,'Data BI Summary'!$A:$F,MATCH(G$1,'Data BI Summary'!$2:$2,0),FALSE),INDIRECT("'"&$E16&"'!"&"$A:$K"),4,FALSE) -> 154028.5564 | H16: =VLOOKUP(VLOOKUP($F16,'Data BI Summary'!$A:$F,MATCH(H$1,'Data BI Summary'!$2:$2,0),FALSE),INDIRECT("'"&$E16&"'!"&"$A:$K"),8,FALSE) -> -2376.5472 | I16: =VLOOKUP(VLOOKUP($F16,'Data BI Summary'!$A:$F,MATCH(I$1,'Data BI Summary'!$2:$2,0),FALSE),INDIRECT("'"&$E16&"'!"&"$A:$K"),9,FALSE) -> -0.5055951669 | J16: =VLOOKUP(VLOOKUP($F16,'Data BI Summary'!$A:$F,MATCH(J$1,'Data BI Summary'!$2:$2,0),FALSE),INDIRECT("'"&$E16&"'!"&"$A:$K"),8,FALSE) -> -2685.498336 | K16: =VLOOKUP(VLOOKUP($F16,'Data BI Summary'!$A:$F,MATCH(K$1,'Data BI Summary'!$2:$2,0),FALSE),INDIRECT("'"&$E16&"'!"&"$A:$K"),9,FALSE) -> -0.01743506787 | L16: WAHSP
A17: NPDI to HONI
A18: AR-NPDI | B18: Low | C18: =VLOOKUP(A$18,'Data Billing Quantities'!A:P,MATCH($B18&" kWh",'Data Billing Quantities'!$4:$4,0),FALSE) -> 290 | E18: BI_NPDI_AR_Low | F18: BI Template_EnergyNPDI | G18: =VLOOKUP(VLOOKUP($F18,'Data BI Summary'!$A:$F,MATCH(G$1,'Data BI Summary'!$2:$2,0),FALSE),INDIRECT("'"&$E18&"'!"&"$A:$K"),4,FALSE) -> 77.47985536 | H18: =VLOOKUP(VLOOKUP($F18,'Data BI Summary'!$A:$F,MATCH(H$1,'Data BI Summary'!$2:$2,0),FALSE),INDIRECT("'"&$E18&"'!"&"$A:$K"),8,FALSE) -> 0.145 | I18: =VLOOKUP(VLOOKUP($F18,'Data BI Summary'!$A:$F,MATCH(I$1,'Data BI Summary'!$2:$2,0),FALSE),INDIRECT("'"&$E18&"'!"&"$A:$K"),9,FALSE) -> 0.003676657031 | J18: =VLOOKUP(VLOOKUP($F18,'Data BI Summary'!$A:$F,MATCH(J$1,'Data BI Summary'!$2:$2,0),FALSE),INDIRECT("'"&$E18&"'!"&"$A:$K"),8,FALSE) -> 0.135865 | K18: =VLOOKUP(VLOOKUP($F18,'Data BI Summary'!$A:$F,MATCH(K$1,'Data BI Summary'!$2:$2,0),FALSE),INDIRECT("'"&$E18&"'!"&"$A:$K"),9,FALSE) -> 0.001753552577 | L18: TOU
B19: Typical | C19: =VLOOKUP(A$18,'Data Billing Quantities'!A:P,MATCH($B19&" kWh",'Data Billing Quantities'!$4:$4,0),FALSE) -> 750 | E19: BI_NPDI_AR_Typical | F19: BI Template_EnergyNPDI | G19: =VLOOKUP(VLOOKUP($F19,'Data BI Summary'!$A:$F,MATCH(G$1,'Data BI Summary'!$2:$2,0),FALSE),INDIRECT("'"&$E19&"'!"&"$A:$K"),4,FALSE) -> 140.422568 | H19: =VLOOKUP(VLOOKUP($F19,'Data BI Summary'!$A:$F,MATCH(H$1,'Data BI Summary'!$2:$2,0),FALSE),INDIRECT("'"&$E19&"'!"&"$A:$K"),8,FALSE) -> 0.375 | I19: =VLOOKUP(VLOOKUP($F19,'Data BI Summary'!$A:$F,MATCH(I$1,'Data BI Summary'!$2:$2,0),FALSE),INDIRECT("'"&$E19&"'!"&"$A:$K"),9,FALSE) -> 0.009598157154 | J19: =VLOOKUP(VLOOKUP($F19,'Data BI Summary'!$A:$F,MATCH(J$1,'Data BI Summary'!$2:$2,0),FALSE),INDIRECT("'"&$E19&"'!"&"$A:$K"),8,FALSE) -> 0.351375 | K19: =VLOOKUP(VLOOKUP($F19,'Data BI Summary'!$A:$F,MATCH(K$1,'Data BI Summary'!$2:$2,0),FALSE),INDIRECT("'"&$E19&"'!"&"$A:$K"),9,FALSE) -> 0.002502268724
B20: Average | C20: =VLOOKUP(A$18,'Data Billing Quantities'!A:P,MATCH($B20&" kWh",'Data Billing Quantities'!$4:$4,0),FALSE) -> 692 | E20: BI_NPDI_AR_Avg | F20: BI Template_EnergyNPDI | G20: =VLOOKUP(VLOOKUP($F20,'Data BI Summary'!$A:$F,MATCH(G$1,'Data BI Summary'!$2:$2,0),FALSE),INDIRECT("'"&$E20&"'!"&"$A:$K"),4,FALSE) -> 132.4863129 | H20: =VLOOKUP(VLOOKUP($F20,'Data BI Summary'!$A:$F,MATCH(H$1,'Data BI Summary'!$2:$2,0),FALSE),INDIRECT("'"&$E20&"'!"&"$A:$K"),8,FALSE) -> 0.346 | I20: =VLOOKUP(VLOOKUP($F20,'Data BI Summary'!$A:$F,MATCH(I$1,'Data BI Summary'!$2:$2,0),FALSE),INDIRECT("'"&$E20&"'!"&"$A:$K"),9,FALSE) -> 0.00884539477 | J20: =VLOOKUP(VLOOKUP($F20,'Data BI Summary'!$A:$F,MATCH(J$1,'Data BI Summary'!$2:$2,0),FALSE),INDIRECT("'"&$E20&"'!"&"$A:$K"),8,FALSE) -> 0.324202 | K20: =VLOOKUP(VLOOKUP($F20,'Data BI Summary'!$A:$F,MATCH(K$1,'Data BI Summary'!$2:$2,0),FALSE),INDIRECT("'"&$E20&"'!"&"$A:$K"),9,FALSE) -> 0.002447060325
B21: High | C21: =VLOOKUP(A$18,'Data Billing Quantities'!A:P,MATCH($B21&" kWh",'Data Billing Quantities'!$4:$4,0),FALSE) -> 1230 | E21: BI_NPDI_AR_High | F21: BI Template_EnergyNPDI | G21: =VLOOKUP(VLOOKUP($F21,'Data BI Summary'!$A:$F,MATCH(G$1,'Data BI Summary'!$2:$2,0),FALSE),INDIRECT("'"&$E21&"'!"&"$A:$K"),4,FALSE) -> 206.1019203 | H21: =VLOOKUP(VLOOKUP($F21,'Data BI Summary'!$A:$F,MATCH(H$1,'Data BI Summary'!$2:$2,0),FALSE),INDIRECT("'"&$E21&"'!"&"$A:$K"),8,FALSE) -> 0.615 | I21: =VLOOKUP(VLOOKUP($F21,'Data BI Summary'!$A:$F,MATCH(I$1,'Data BI Summary'!$2:$2,0),FALSE),INDIRECT("'"&$E21&"'!"&"$A:$K"),9,FALSE) -> 0.0158972238 | J21: =VLOOKUP(VLOOKUP($F21,'Data BI Summary'!$A:$F,MATCH(J$1,'Data BI Summary'!$2:$2,0),FALSE),INDIRECT("'"&$E21&"'!"&"$A:$K"),8,FALSE) -> 0.576255 | K21: =VLOOKUP(VLOOKUP($F21,'Data BI Summary'!$A:$F,MATCH(K$1,'Data BI Summary'!$2:$2,0),FALSE),INDIRECT("'"&$E21&"'!"&"$A:$K"),9,FALSE) -> 0.002795971038
A22: AGSe-NPDI | B22: Low | C22: =VLOOKUP(A$22,'Data Billing Quantities'!A:P,MATCH($B22&" kWh",'Data Billing Quantities'!$4:$4,0),FALSE) -> 110 | E22: BI_NPDI_AGSe_Low | F22: BI Template_EnergyNPDI | G22: =VLOOKUP(VLOOKUP($F22,'Data BI Summary'!$A:$F,MATCH(G$1,'Data BI Summary'!$2:$2,0),FALSE),INDIRECT("'"&$E22&"'!"&"$A:$K"),4,FALSE) -> 54.68074138 | H22: =VLOOKUP(VLOOKUP($F22,'Data BI Summary'!$A:$F,MATCH(H$1,'Data BI Summary'!$2:$2,0),FALSE),INDIRECT("'"&$E22&"'!"&"$A:$K"),8,FALSE) -> 0.088 | I22: =VLOOKUP(VLOOKUP($F22,'Data BI Summary'!$A:$F,MATCH(I$1,'Data BI Summary'!$2:$2,0),FALSE),INDIRECT("'"&$E22&"'!"&"$A:$K"),9,FALSE) -> 0.002093294322 | J22: =VLOOKUP(VLOOKUP($F22,'Data BI Summary'!$A:$F,MATCH(J$1,'Data BI Summary'!$2:$2,0),FALSE),INDIRECT("'"&$E22&"'!"&"$A:$K"),8,FALSE) -> 0.082456 | K22: =VLOOKUP(VLOOKUP($F22,'Data BI Summary'!$A:$F,MATCH(K$1,'Data BI Summary'!$2:$2,0),FALSE),INDIRECT("'"&$E22&"'!"&"$A:$K"),9,FALSE) -> 0.001507953219 | L22: TOU
B23: Typical | C23: =VLOOKUP(A$22,'Data Billing Quantities'!A:P,MATCH($B23&" kWh",'Data Billing Quantities'!$4:$4,0),FALSE) -> 2000 | E23: BI_NPDI_AGSe_Typical | F23: BI Template_EnergyNPDI | G23: =VLOOKUP(VLOOKUP($F23,'Data BI Summary'!$A:$F,MATCH(G$1,'Data BI Summary'!$2:$2,0),FALSE),INDIRECT("'"&$E23&"'!"&"$A:$K"),4,FALSE) -> 340.0781532 | H23: =VLOOKUP(VLOOKUP($F23,'Data BI Summary'!$A:$F,MATCH(H$1,'Data BI Summary'!$2:$2,0),FALSE),INDIRECT("'"&$E23&"'!"&"$A:$K"),8,FALSE) -> 1.6 | I23: =VLOOKUP(VLOOKUP($F23,'Data BI Summary'!$A:$F,MATCH(I$1,'Data BI Summary'!$2:$2,0),FALSE),INDIRECT("'"&$E23&"'!"&"$A:$K"),9,FALSE) -> 0.02057613169 | J23: =VLOOKUP(VLOOKUP($F23,'Data BI Summary'!$A:$F,MATCH(J$1,'Data BI Summary'!$2:$2,0),FALSE),INDIRECT("'"&$E23&"'!"&"$A:$K"),8,FALSE) -> 1.4992 | K23: =VLOOKUP(VLOOKUP($F23,'Data BI Summary'!$A:$F,MATCH(K$1,'Data BI Summary'!$2:$2,0),FALSE),INDIRECT("'"&$E23&"'!"&"$A:$K"),9,FALSE) -> 0.00440839844
B24: Average | C24: =VLOOKUP(A$22,'Data Billing Quantities'!A:P,MATCH($B24&" kWh",'Data Billing Quantities'!$4:$4,0),FALSE) -> 2377 | E24: BI_NPDI_AGSe_Avg | F24: BI Template_EnergyNPDI | G24: =VLOOKUP(VLOOKUP($F24,'Data BI Summary'!$A:$F,MATCH(G$1,'Data BI Summary'!$2:$2,0),FALSE),INDIRECT("'"&$E24&"'!"&"$A:$K"),4,FALSE) -> 397.0066316 | H24: =VLOOKUP(VLOOKUP($F24,'Data BI Summary'!$A:$F,MATCH(H$1,'Data BI Summary'!$2:$2,0),FALSE),INDIRECT("'"&$E24&"'!"&"$A:$K"),8,FALSE) -> 1.9016 | I24: =VLOOKUP(VLOOKUP($F24,'Data BI Summary'!$A:$F,MATCH(I$1,'Data BI Summary'!$2:$2,0),FALSE),INDIRECT("'"&$E24&"'!"&"$A:$K"),9,FALSE) -> 0.02240199422 | J24: =VLOOKUP(VLOOKUP($F24,'Data BI Summary'!$A:$F,MATCH(J$1,'Data BI Summary'!$2:$2,0),FALSE),INDIRECT("'"&$E24&"'!"&"$A:$K"),8,FALSE) -> 1.7817992 | K24: =VLOOKUP(VLOOKUP($F24,'Data BI Summary'!$A:$F,MATCH(K$1,'Data BI Summary'!$2:$2,0),FALSE),INDIRECT("'"&$E24&"'!"&"$A:$K"),9,FALSE) -> 0.004488084223
B25: High | C25: =VLOOKUP(A$22,'Data Billing Quantities'!A:P,MATCH($B25&" kWh",'Data Billing Quantities'!$4:$4,0),FALSE) -> 6410 | E25: BI_NPDI_AGSe_High | F25: BI Template_EnergyNPDI | G25: =VLOOKUP(VLOOKUP($F25,'Data BI Summary'!$A:$F,MATCH(G$1,'Data BI Summary'!$2:$2,0),FALSE),INDIRECT("'"&$E25&"'!"&"$A:$K"),4,FALSE) -> 1006.005447 | H25: =VLOOKUP(VLOOKUP($F25,'Data BI Summary'!$A:$F,MATCH(H$1,'Data BI Summary'!$2:$2,0),FALSE),INDIRECT("'"&$E25&"'!"&"$A:$K"),8,FALSE) -> 5.128 | I25: =VLOOKUP(VLOOKUP($F25,'Data BI Summary'!$A:$F,MATCH(I$1,'Data BI Summary'!$2:$2,0),FALSE),INDIRECT("'"&$E25&"'!"&"$A:$K"),9,FALSE) -> 0.03182938259 | J25: =VLOOKUP(VLOOKUP($F25,'Data BI Summary'!$A:$F,MATCH(J$1,'Data BI Summary'!$2:$2,0),FALSE),INDIRECT("'"&$E25&"'!"&"$A:$K"),8,FALSE) -> 4.804936 | K25: =VLOOKUP(VLOOKUP($F25,'Data BI Summary'!$A:$F,MATCH(K$1,'Data BI Summary'!$2:$2,0),FALSE),INDIRECT("'"&$E25&"'!"&"$A:$K"),9,FALSE) -> 0.004776252467
A26: AGSd-NPDI | B26: Low | C26: =VLOOKUP(A$26,'Data Billing Quantities'!A:P,MATCH($B26&" kWh",'Data Billing Quantities'!$4:$4,0),FALSE) -> 13020 | D26: =VLOOKUP(A$26,'Data Billing Quantities'!A:P,MATCH(B26&" kW",'Data Billing Quantities'!$4:$4,0),FALSE) -> 55 | E26: BI_NPDI_AGSd_Low | F26: BI Template_DemandNPDI | G26: =VLOOKUP(VLOOKUP($F26,'Data BI Summary'!$A:$F,MATCH(G$1,'Data BI Summary'!$2:$2,0),FALSE),INDIRECT("'"&$E26&"'!"&"$A:$K"),4,FALSE) -> 2503.487952 | H26: =VLOOKUP(VLOOKUP($F26,'Data BI Summary'!$A:$F,MATCH(H$1,'Data BI Summary'!$2:$2,0),FALSE),INDIRECT("'"&$E26&"'!"&"$A:$K"),8,FALSE) -> -39.4335 | I26: =VLOOKUP(VLOOKUP($F26,'Data BI Summary'!$A:$F,MATCH(I$1,'Data BI Summary'!$2:$2,0),FALSE),INDIRECT("'"&$E26&"'!"&"$A:$K"),9,FALSE) -> -0.09525241582 | J26: =VLOOKUP(VLOOKUP($F26,'Data BI Summary'!$A:$F,MATCH(J$1,'Data BI Summary'!$2:$2,0),FALSE),INDIRECT("'"&$E26&"'!"&"$A:$K"),8,FALSE) -> -44.559855 | K26: =VLOOKUP(VLOOKUP($F26,'Data BI Summary'!$A:$F,MATCH(K$1,'Data BI Summary'!$2:$2,0),FALSE),INDIRECT("'"&$E26&"'!"&"$A:$K"),9,FALSE) -> -0.01779910902 | L26: WAHSP
B27: Average | C27: =VLOOKUP(A$26,'Data Billing Quantities'!A:P,MATCH($B27&" kWh",'Data Billing Quantities'!$4:$4,0),FALSE) -> 70294 | D27: =VLOOKUP(A$26,'Data Billing Quantities'!A:P,MATCH(B27&" kW",'Data Billing Quantities'!$4:$4,0),FALSE) -> 181 | E27: BI_NPDI_AGSd_Avg | F27: BI Template_DemandNPDI | G27: =VLOOKUP(VLOOKUP($F27,'Data BI Summary'!$A:$F,MATCH(G$1,'Data BI Summary'!$2:$2,0),FALSE),INDIRECT("'"&$E27&"'!"&"$A:$K"),4,FALSE) -> 11342.23643 | H27: =VLOOKUP(VLOOKUP($F27,'Data BI Summary'!$A:$F,MATCH(H$1,'Data BI Summary'!$2:$2,0),FALSE),INDIRECT("'"&$E27&"'!"&"$A:$K"),8,FALSE) -> -253.2807 | I27: =VLOOKUP(VLOOKUP($F27,'Data BI Summary'!$A:$F,MATCH(I$1,'Data BI Summary'!$2:$2,0),FALSE),INDIRECT("'"&$E27&"'!"&"$A:$K"),9,FALSE) -> -0.2672724389 | J27: =VLOOKUP(VLOOKUP($F27,'Data BI Summary'!$A:$F,MATCH(J$1,'Data BI Summary'!$2:$2,0),FALSE),INDIRECT("'"&$E27&"'!"&"$A:$K"),8,FALSE) -> -286.207191 | K27: =VLOOKUP(VLOOKUP($F27,'Data BI Summary'!$A:$F,MATCH(K$1,'Data BI Summary'!$2:$2,0),FALSE),INDIRECT("'"&$E27&"'!"&"$A:$K"),9,FALSE) -> -0.02523375287
B28: High | C28: =VLOOKUP(A$26,'Data Billing Quantities'!A:P,MATCH($B28&" kWh",'Data Billing Quantities'!$4:$4,0),FALSE) -> 129420 | D28: =VLOOKUP(A$26,'Data Billing Quantities'!A:P,MATCH(B28&" kW",'Data Billing Quantities'!$4:$4,0),FALSE) -> 300 | E28: BI_NPDI_AGSd_High | F28: BI Template_DemandNPDI | G28: =VLOOKUP(VLOOKUP($F28,'Data BI Summary'!$A:$F,MATCH(G$1,'Data BI Summary'!$2:$2,0),FALSE),INDIRECT("'"&$E28&"'!"&"$A:$K"),4,FALSE) -> 20340.10514 | H28: =VLOOKUP(VLOOKUP($F28,'Data BI Summary'!$A:$F,MATCH(H$1,'Data BI Summary'!$2:$2,0),FALSE),INDIRECT("'"&$E28&"'!"&"$A:$K"),8,FALSE) -> -477.9 | I28: =VLOOKUP(VLOOKUP($F28,'Data BI Summary'!$A:$F,MATCH(I$1,'Data BI Summary'!$2:$2,0),FALSE),INDIRECT("'"&$E28&"'!"&"$A:$K"),9,FALSE) -> -0.3302393976 | J28: =VLOOKUP(VLOOKUP($F28,'Data BI Summary'!$A:$F,MATCH(J$1,'Data BI Summary'!$2:$2,0),FALSE),INDIRECT("'"&$E28&"'!"&"$A:$K"),8,FALSE) -> -540.027 | K28: =VLOOKUP(VLOOKUP($F28,'Data BI Summary'!$A:$F,MATCH(K$1,'Data BI Summary'!$2:$2,0),FALSE),INDIRECT("'"&$E28&"'!"&"$A:$K"),9,FALSE) -> -0.02654986276
A29: St Lgt-NPDI | B29: Average | C29: =VLOOKUP(A$29,'Data Billing Quantities'!A:P,MATCH($B29&" kWh",'Data Billing Quantities'!$4:$4,0),FALSE) -> 11389 | D29: =VLOOKUP(A$29,'Data Billing Quantities'!A:P,MATCH(B29&" kW",'Data Billing Quantities'!$4:$4,0),FALSE) -> 39 | E29: BI_NPDI_StLgt_Avg | F29: BI Template_unmNPDI | G29: =VLOOKUP(VLOOKUP($F29,'Data BI Summary'!$A:$F,MATCH(G$1,'Data BI Summary'!$2:$2,0),FALSE),INDIRECT("'"&$E29&"'!"&"$A:$K"),4,FALSE) -> 2897.582513 | H29: =VLOOKUP(VLOOKUP($F29,'Data BI Summary'!$A:$F,MATCH(H$1,'Data BI Summary'!$2:$2,0),FALSE),INDIRECT("'"&$E29&"'!"&"$A:$K"),8,FALSE) -> 10.2501 | I29: =VLOOKUP(VLOOKUP($F29,'Data BI Summary'!$A:$F,MATCH(I$1,'Data BI Summary'!$2:$2,0),FALSE),INDIRECT("'"&$E29&"'!"&"$A:$K"),9,FALSE) -> 0.007712933583 | J29: =VLOOKUP(VLOOKUP($F29,'Data BI Summary'!$A:$F,MATCH(J$1,'Data BI Summary'!$2:$2,0),FALSE),INDIRECT("'"&$E29&"'!"&"$A:$K"),8,FALSE) -> 9.6043437 | K29: =VLOOKUP(VLOOKUP($F29,'Data BI Summary'!$A:$F,MATCH(K$1,'Data BI Summary'!$2:$2,0),FALSE),INDIRECT("'"&$E29&"'!"&"$A:$K"),9,FALSE) -> 0.003314605764 | L29: Two-tier RPP
A30: Sen Lgt-NPDI | B30: Average | C30: =VLOOKUP(A$30,'Data Billing Quantities'!A:P,MATCH($B30&" kWh",'Data Billing Quantities'!$4:$4,0),FALSE) -> 108 | D30: =VLOOKUP(A$30,'Data Billing Quantities'!A:P,MATCH(B30&" kW",'Data Billing Quantities'!$4:$4,0),FALSE) -> 0.3368027211 | E30: BI_NPDI_SenLgt_Avg | F30: BI Template_unmNPDI | G30: =VLOOKUP(VLOOKUP($F30,'Data BI Summary'!$A:$F,MATCH(G$1,'Data BI Summary'!$2:$2,0),FALSE),INDIRECT("'"&$E30&"'!"&"$A:$K"),4,FALSE) -> 34.77286608 | H30: =VLOOKUP(VLOOKUP($F30,'Data BI Summary'!$A:$F,MATCH(H$1,'Data BI Summary'!$2:$2,0),FALSE),INDIRECT("'"&$E30&"'!"&"$A:$K"),8,FALSE) -> 0.0972 | I30: =VLOOKUP(VLOOKUP($F30,'Data BI Summary'!$A:$F,MATCH(I$1,'Data BI Summary'!$2:$2,0),FALSE),INDIRECT("'"&$E30&"'!"&"$A:$K"),9,FALSE) -> 0.004304923202 | J30: =VLOOKUP(VLOOKUP($F30,'Data BI Summary'!$A:$F,MATCH(J$1,'Data BI Summary'!$2:$2,0),FALSE),INDIRECT("'"&$E30&"'!"&"$A:$K"),8,FALSE) -> 0.0910764 | K30: =VLOOKUP(VLOOKUP($F30,'Data BI Summary'!$A:$F,MATCH(K$1,'Data BI Summary'!$2:$2,0),FALSE),INDIRECT("'"&$E30&"'!"&"$A:$K"),9,FALSE) -> 0.002619180133 | L30: Two-tier RPP
A31: USL-NPDI | B31: Average | C31: =VLOOKUP(A$31,'Data Billing Quantities'!A:P,MATCH($B31&" kWh",'Data Billing Quantities'!$4:$4,0),FALSE) -> 904 | E31: BI_NPDI_USL_Avg | F31: BI Template_unmNPDI | G31: =VLOOKUP(VLOOKUP($F31,'Data BI Summary'!$A:$F,MATCH(G$1,'Data BI Summary'!$2:$2,0),FALSE),INDIRECT("'"&$E31&"'!"&"$A:$K"),4,FALSE) -> 177.3658634 | H31: =VLOOKUP(VLOOKUP($F31,'Data BI Summary'!$A:$F,MATCH(H$1,'Data BI Summary'!$2:$2,0),FALSE),INDIRECT("'"&$E31&"'!"&"$A:$K"),8,FALSE) -> 0.8136 | I31: =VLOOKUP(VLOOKUP($F31,'Data BI Summary'!$A:$F,MATCH(I$1,'Data BI Summary'!$2:$2,0),FALSE),INDIRECT("'"&$E31&"'!"&"$A:$K"),9,FALSE) -> 0.01297649048 | J31: =VLOOKUP(VLOOKUP($F31,'Data BI Summary'!$A:$F,MATCH(J$1,'Data BI Summary'!$2:$2,0),FALSE),INDIRECT("'"&$E31&"'!"&"$A:$K"),8,FALSE) -> 0.7623432 | K31: =VLOOKUP(VLOOKUP($F31,'Data BI Summary'!$A:$F,MATCH(K$1,'Data BI Summary'!$2:$2,0),FALSE),INDIRECT("'"&$E31&"'!"&"$A:$K"),9,FALSE) -> 0.004298139368 | L31: Two-tier RPP
A32: HCHI to HONI
A33: AR-HCHI | B33: Low | C33: =VLOOKUP(A$33,'Data Billing Quantities'!A:P,MATCH($B33&" kWh",'Data Billing Quantities'!$4:$4,0),FALSE) -> 250 | E33: BI_HCHI_AR_Low | F33: BI Template_EnergyHCHI | G33: =VLOOKUP(VLOOKUP($F33,'Data BI Summary'!$A:$F,MATCH(G$1,'Data BI Summary'!$2:$2,0),FALSE),INDIRECT("'"&$E33&"'!"&"$A:$K"),4,FALSE) -> 72.001891 | H33: =VLOOKUP(VLOOKUP($F33,'Data BI Summary'!$A:$F,MATCH(H$1,'Data BI Summary'!$2:$2,0),FALSE),INDIRECT("'"&$E33&"'!"&"$A:$K"),8,FALSE) -> 0.125 | I33: =VLOOKUP(VLOOKUP($F33,'Data BI Summary'!$A:$F,MATCH(I$1,'Data BI Summary'!$2:$2,0),FALSE),INDIRECT("'"&$E33&"'!"&"$A:$K"),9,FALSE) -> 0.003167363487 | J33: =VLOOKUP(VLOOKUP($F33,'Data BI Summary'!$A:$F,MATCH(J$1,'Data BI Summary'!$2:$2,0),FALSE),INDIRECT("'"&$E33&"'!"&"$A:$K"),8,FALSE) -> 0.117125 | K33: =VLOOKUP(VLOOKUP($F33,'Data BI Summary'!$A:$F,MATCH(K$1,'Data BI Summary'!$2:$2,0),FALSE),INDIRECT("'"&$E33&"'!"&"$A:$K"),9,FALSE) -> 0.001626693388 | L33: TOU
B34: Typical | C34: =VLOOKUP(A$33,'Data Billing Quantities'!A:P,MATCH($B34&" kWh",'Data Billing Quantities'!$4:$4,0),FALSE) -> 750 | E34: BI_HCHI_AR_Typical | F34: BI Template_EnergyHCHI | G34: =VLOOKUP(VLOOKUP($F34,'Data BI Summary'!$A:$F,MATCH(G$1,'Data BI Summary'!$2:$2,0),FALSE),INDIRECT("'"&$E34&"'!"&"$A:$K"),4,FALSE) -> 140.464733 | H34: =VLOOKUP(VLOOKUP($F34,'Data BI Summary'!$A:$F,MATCH(H$1,'Data BI Summary'!$2:$2,0),FALSE),INDIRECT("'"&$E34&"'!"&"$A:$K"),8,FALSE) -> 0.375 | I34: =VLOOKUP(VLOOKUP($F34,'Data BI Summary'!$A:$F,MATCH(I$1,'Data BI Summary'!$2:$2,0),FALSE),INDIRECT("'"&$E34&"'!"&"$A:$K"),9,FALSE) -> 0.009587114918 | J34: =VLOOKUP(VLOOKUP($F34,'Data BI Summary'!$A:$F,MATCH(J$1,'Data BI Summary'!$2:$2,0),FALSE),INDIRECT("'"&$E34&"'!"&"$A:$K"),8,FALSE) -> 0.351375 | K34: =VLOOKUP(VLOOKUP($F34,'Data BI Summary'!$A:$F,MATCH(K$1,'Data BI Summary'!$2:$2,0),FALSE),INDIRECT("'"&$E34&"'!"&"$A:$K"),9,FALSE) -> 0.002501517587
B35: Average | C35: =VLOOKUP(A$33,'Data Billing Quantities'!A:P,MATCH($B35&" kWh",'Data Billing Quantities'!$4:$4,0),FALSE) -> 742 | E35: BI_HCHI_AR_Avg | F35: BI Template_EnergyHCHI | G35: =VLOOKUP(VLOOKUP($F35,'Data BI Summary'!$A:$F,MATCH(G$1,'Data BI Summary'!$2:$2,0),FALSE),INDIRECT("'"&$E35&"'!"&"$A:$K"),4,FALSE) -> 139.3693275 | H35: =VLOOKUP(VLOOKUP($F35,'Data BI Summary'!$A:$F,MATCH(H$1,'Data BI Summary'!$2:$2,0),FALSE),INDIRECT("'"&$E35&"'!"&"$A:$K"),8,FALSE) -> 0.371 | I35: =VLOOKUP(VLOOKUP($F35,'Data BI Summary'!$A:$F,MATCH(I$1,'Data BI Summary'!$2:$2,0),FALSE),INDIRECT("'"&$E35&"'!"&"$A:$K"),9,FALSE) -> 0.009483494629 | J35: =VLOOKUP(VLOOKUP($F35,'Data BI Summary'!$A:$F,MATCH(J$1,'Data BI Summary'!$2:$2,0),FALSE),INDIRECT("'"&$E35&"'!"&"$A:$K"),8,FALSE) -> 0.347627 | K35: =VLOOKUP(VLOOKUP($F35,'Data BI Summary'!$A:$F,MATCH(K$1,'Data BI Summary'!$2:$2,0),FALSE),INDIRECT("'"&$E35&"'!"&"$A:$K"),9,FALSE) -> 0.002494286269
B36: High | C36: =VLOOKUP(A$33,'Data Billing Quantities'!A:P,MATCH($B36&" kWh",'Data Billing Quantities'!$4:$4,0),FALSE) -> 1410 | E36: BI_HCHI_AR_High | F36: BI Template_EnergyHCHI | G36: =VLOOKUP(VLOOKUP($F36,'Data BI Summary'!$A:$F,MATCH(G$1,'Data BI Summary'!$2:$2,0),FALSE),INDIRECT("'"&$E36&"'!"&"$A:$K"),4,FALSE) -> 230.8356844 | H36: =VLOOKUP(VLOOKUP($F36,'Data BI Summary'!$A:$F,MATCH(H$1,'Data BI Summary'!$2:$2,0),FALSE),INDIRECT("'"&$E36&"'!"&"$A:$K"),8,FALSE) -> 0.705 | I36: =VLOOKUP(VLOOKUP($F36,'Data BI Summary'!$A:$F,MATCH(I$1,'Data BI Summary'!$2:$2,0),FALSE),INDIRECT("'"&$E36&"'!"&"$A:$K"),9,FALSE) -> 0.01823920524 | J36: =VLOOKUP(VLOOKUP($F36,'Data BI Summary'!$A:$F,MATCH(J$1,'Data BI Summary'!$2:$2,0),FALSE),INDIRECT("'"&$E36&"'!"&"$A:$K"),8,FALSE) -> 0.660585 | K36: =VLOOKUP(VLOOKUP($F36,'Data BI Summary'!$A:$F,MATCH(K$1,'Data BI Summary'!$2:$2,0),FALSE),INDIRECT("'"&$E36&"'!"&"$A:$K"),9,FALSE) -> 0.002861710925
A37: AGSe-HCHI | B37: Low | C37: =VLOOKUP(A$37,'Data Billing Quantities'!A:P,MATCH($B37&" kWh",'Data Billing Quantities'!$4:$4,0),FALSE) -> 90 | E37: BI_HCHI_AGSe_Low | F37: BI Template_EnergyHCHI | G37: =VLOOKUP(VLOOKUP($F37,'Data BI Summary'!$A:$F,MATCH(G$1,'Data BI Summary'!$2:$2,0),FALSE),INDIRECT("'"&$E37&"'!"&"$A:$K"),4,FALSE) -> 51.66909594 | H37: =VLOOKUP(VLOOKUP($F37,'Data BI Summary'!$A:$F,MATCH(H$1,'Data BI Summary'!$2:$2,0),FALSE),INDIRECT("'"&$E37&"'!"&"$A:$K"),8,FALSE) -> 0.072 | I37: =VLOOKUP(VLOOKUP($F37,'Data BI Summary'!$A:$F,MATCH(I$1,'Data BI Summary'!$2:$2,0),FALSE),INDIRECT("'"&$E37&"'!"&"$A:$K"),9,FALSE) -> 0.001727861771 | J37: =VLOOKUP(VLOOKUP($F37,'Data BI Summary'!$A:$F,MATCH(J$1,'Data BI Summary'!$2:$2,0),FALSE),INDIRECT("'"&$E37&"'!"&"$A:$K"),8,FALSE) -> 0.067464 | K37: =VLOOKUP(VLOOKUP($F37,'Data BI Summary'!$A:$F,MATCH(K$1,'Data BI Summary'!$2:$2,0),FALSE),INDIRECT("'"&$E37&"'!"&"$A:$K"),9,FALSE) -> 0.001305693447 | L37: TOU
B38: Typical | C38: =VLOOKUP(A$37,'Data Billing Quantities'!A:P,MATCH($B38&" kWh",'Data Billing Quantities'!$4:$4,0),FALSE) -> 2000 | E38: BI_HCHI_AGSe_Typical | F38: BI Template_EnergyHCHI | G38: =VLOOKUP(VLOOKUP($F38,'Data BI Summary'!$A:$F,MATCH(G$1,'Data BI Summary'!$2:$2,0),FALSE),INDIRECT("'"&$E38&"'!"&"$A:$K"),4,FALSE) -> 340.2655532 | H38: =VLOOKUP(VLOOKUP($F38,'Data BI Summary'!$A:$F,MATCH(H$1,'Data BI Summary'!$2:$2,0),FALSE),INDIRECT("'"&$E38&"'!"&"$A:$K"),8,FALSE) -> 1.6 | I38: =VLOOKUP(VLOOKUP($F38,'Data BI Summary'!$A:$F,MATCH(I$1,'Data BI Summary'!$2:$2,0),FALSE),INDIRECT("'"&$E38&"'!"&"$A:$K"),9,FALSE) -> 0.02052334531 | J38: =VLOOKUP(VLOOKUP($F38,'Data BI Summary'!$A:$F,MATCH(J$1,'Data BI Summary'!$2:$2,0),FALSE),INDIRECT("'"&$E38&"'!"&"$A:$K"),8,FALSE) -> 1.4992 | K38: =VLOOKUP(VLOOKUP($F38,'Data BI Summary'!$A:$F,MATCH(K$1,'Data BI Summary'!$2:$2,0),FALSE),INDIRECT("'"&$E38&"'!"&"$A:$K"),9,FALSE) -> 0.004405970531
B39: Average | C39: =VLOOKUP(A$37,'Data Billing Quantities'!A:P,MATCH($B39&" kWh",'Data Billing Quantities'!$4:$4,0),FALSE) -> 2261 | E39: BI_HCHI_AGSe_Avg | F39: BI Template_EnergyHCHI | G39: =VLOOKUP(VLOOKUP($F39,'Data BI Summary'!$A:$F,MATCH(G$1,'Data BI Summary'!$2:$2,0),FALSE),INDIRECT("'"&$E39&"'!"&"$A:$K"),4,FALSE) -> 379.7020324 | H39: =VLOOKUP(VLOOKUP($F39,'Data BI Summary'!$A:$F,MATCH(H$1,'Data BI Summary'!$2:$2,0),FALSE),INDIRECT("'"&$E39&"'!"&"$A:$K"),8,FALSE) -> 1.8088 | I39: =VLOOKUP(VLOOKUP($F39,'Data BI Summary'!$A:$F,MATCH(I$1,'Data BI Summary'!$2:$2,0),FALSE),INDIRECT("'"&$E39&"'!"&"$A:$K"),9,FALSE) -> 0.0218140595 | J39: =VLOOKUP(VLOOKUP($F39,'Data BI Summary'!$A:$F,MATCH(J$1,'Data BI Summary'!$2:$2,0),FALSE),INDIRECT("'"&$E39&"'!"&"$A:$K"),8,FALSE) -> 1.6948456 | K39: =VLOOKUP(VLOOKUP($F39,'Data BI Summary'!$A:$F,MATCH(K$1,'Data BI Summary'!$2:$2,0),FALSE),INDIRECT("'"&$E39&"'!"&"$A:$K"),9,FALSE) -> 0.004463620037
B40: High | C40: =VLOOKUP(A$37,'Data Billing Quantities'!A:P,MATCH($B40&" kWh",'Data Billing Quantities'!$4:$4,0),FALSE) -> 5430 | E40: BI_HCHI_AGSe_High | F40: BI Template_EnergyHCHI | G40: =VLOOKUP(VLOOKUP($F40,'Data BI Summary'!$A:$F,MATCH(G$1,'Data BI Summary'!$2:$2,0),FALSE),INDIRECT("'"&$E40&"'!"&"$A:$K"),4,FALSE) -> 858.5303953 | H40: =VLOOKUP(VLOOKUP($F40,'Data BI Summary'!$A:$F,MATCH(H$1,'Data BI Summary'!$2:$2,0),FALSE),INDIRECT("'"&$E40&"'!"&"$A:$K"),8,FALSE) -> 4.344 | I40: =VLOOKUP(VLOOKUP($F40,'Data BI Summary'!$A:$F,MATCH(I$1,'Data BI Summary'!$2:$2,0),FALSE),INDIRECT("'"&$E40&"'!"&"$A:$K"),9,FALSE) -> 0.03035003144 | J40: =VLOOKUP(VLOOKUP($F40,'Data BI Summary'!$A:$F,MATCH(J$1,'Data BI Summary'!$2:$2,0),FALSE),INDIRECT("'"&$E40&"'!"&"$A:$K"),8,FALSE) -> 4.070328 | K40: =VLOOKUP(VLOOKUP($F40,'Data BI Summary'!$A:$F,MATCH(K$1,'Data BI Summary'!$2:$2,0),FALSE),INDIRECT("'"&$E40&"'!"&"$A:$K"),9,FALSE) -> 0.004741041229
A41: AGSd-HCHI | B41: Low | C41: =VLOOKUP(A$41,'Data Billing Quantities'!A:P,MATCH($B41&" kWh",'Data Billing Quantities'!$4:$4,0),FALSE) -> 10880 | D41: =VLOOKUP(A$41,'Data Billing Quantities'!A:P,MATCH(B41&" kW",'Data Billing Quantities'!$4:$4,0),FALSE) -> 55 | E41: BI_HCHI_AGSd_Low | F41: BI Template_DemandHCHI | G41: =VLOOKUP(VLOOKUP($F41,'Data BI Summary'!$A:$F,MATCH(G$1,'Data BI Summary'!$2:$2,0),FALSE),INDIRECT("'"&$E41&"'!"&"$A:$K"),4,FALSE) -> 2225.152965 | H41: =VLOOKUP(VLOOKUP($F41,'Data BI Summary'!$A:$F,MATCH(H$1,'Data BI Summary'!$2:$2,0),FALSE),INDIRECT("'"&$E41&"'!"&"$A:$K"),8,FALSE) -> -29.8035 | I41: =VLOOKUP(VLOOKUP($F41,'Data BI Summary'!$A:$F,MATCH(I$1,'Data BI Summary'!$2:$2,0),FALSE),INDIRECT("'"&$E41&"'!"&"$A:$K"),9,FALSE) -> -0.07195445673 | J41: =VLOOKUP(VLOOKUP($F41,'Data BI Summary'!$A:$F,MATCH(J$1,'Data BI Summary'!$2:$2,0),FALSE),INDIRECT("'"&$E41&"'!"&"$A:$K"),8,FALSE) -> -33.677955 | K41: =VLOOKUP(VLOOKUP($F41,'Data BI Summary'!$A:$F,MATCH(K$1,'Data BI Summary'!$2:$2,0),FALSE),INDIRECT("'"&$E41&"'!"&"$A:$K"),9,FALSE) -> -0.01513511904 | L41: WAHSP
B42: Average | C42: =VLOOKUP(A$41,'Data Billing Quantities'!A:P,MATCH($B42&" kWh",'Data Billing Quantities'!$4:$4,0),FALSE) -> 57529 | D42: =VLOOKUP(A$41,'Data Billing Quantities'!A:P,MATCH(B42&" kW",'Data Billing Quantities'!$4:$4,0),FALSE) -> 175 | E42: BI_HCHI_AGSd_Avg | F42: BI Template_DemandHCHI | G42: =VLOOKUP(VLOOKUP($F42,'Data BI Summary'!$A:$F,MATCH(G$1,'Data BI Summary'!$2:$2,0),FALSE),INDIRECT("'"&$E42&"'!"&"$A:$K"),4,FALSE) -> 9618.739272 | H42: =VLOOKUP(VLOOKUP($F42,'Data BI Summary'!$A:$F,MATCH(H$1,'Data BI Summary'!$2:$2,0),FALSE),INDIRECT("'"&$E42&"'!"&"$A:$K"),8,FALSE) -> -197.928 | I42: =VLOOKUP(VLOOKUP($F42,'Data BI Summary'!$A:$F,MATCH(I$1,'Data BI Summary'!$2:$2,0),FALSE),INDIRECT("'"&$E42&"'!"&"$A:$K"),9,FALSE) -> -0.2137886831 | J42: =VLOOKUP(VLOOKUP($F42,'Data BI Summary'!$A:$F,MATCH(J$1,'Data BI Summary'!$2:$2,0),FALSE),INDIRECT("'"&$E42&"'!"&"$A:$K"),8,FALSE) -> -223.65864 | K42: =VLOOKUP(VLOOKUP($F42,'Data BI Summary'!$A:$F,MATCH(K$1,'Data BI Summary'!$2:$2,0),FALSE),INDIRECT("'"&$E42&"'!"&"$A:$K"),9,FALSE) -> -0.02325238617
B43: High | C43: =VLOOKUP(A$41,'Data Billing Quantities'!A:P,MATCH($B43&" kWh",'Data Billing Quantities'!$4:$4,0),FALSE) -> 135160 | D43: =VLOOKUP(A$41,'Data Billing Quantities'!A:P,MATCH(B43&" kW",'Data Billing Quantities'!$4:$4,0),FALSE) -> 375 | E43: BI_HCHI_AGSd_High | F43: BI Template_DemandHCHI | G43: =VLOOKUP(VLOOKUP($F43,'Data BI Summary'!$A:$F,MATCH(G$1,'Data BI Summary'!$2:$2,0),FALSE),INDIRECT("'"&$E43&"'!"&"$A:$K"),4,FALSE) -> 21926.2287 | H43: =VLOOKUP(VLOOKUP($F43,'Data BI Summary'!$A:$F,MATCH(H$1,'Data BI Summary'!$2:$2,0),FALSE),INDIRECT("'"&$E43&"'!"&"$A:$K"),8,FALSE) -> -477.6075 | I43: =VLOOKUP(VLOOKUP($F43,'Data BI Summary'!$A:$F,MATCH(I$1,'Data BI Summary'!$2:$2,0),FALSE),INDIRECT("'"&$E43&"'!"&"$A:$K"),9,FALSE) -> -0.2685294952 | J43: =VLOOKUP(VLOOKUP($F43,'Data BI Summary'!$A:$F,MATCH(J$1,'Data BI Summary'!$2:$2,0),FALSE),INDIRECT("'"&$E43&"'!"&"$A:$K"),8,FALSE) -> -539.696475 | K43: =VLOOKUP(VLOOKUP($F43,'Data BI Summary'!$A:$F,MATCH(K$1,'Data BI Summary'!$2:$2,0),FALSE),INDIRECT("'"&$E43&"'!"&"$A:$K"),9,FALSE) -> -0.02461419528
A44: St Lgt-HCHI | B44: Average | C44: =VLOOKUP(A$44,'Data Billing Quantities'!A:P,MATCH($B44&" kWh",'Data Billing Quantities'!$4:$4,0),FALSE) -> 31001 | D44: =VLOOKUP(A$44,'Data Billing Quantities'!A:P,MATCH(B44&" kW",'Data Billing Quantities'!$4:$4,0),FALSE) -> 85 | E44: BI_HCHI_StLgt_Avg | F44: BI Template_unmHCHI | G44: =VLOOKUP(VLOOKUP($F44,'Data BI Summary'!$A:$F,MATCH(G$1,'Data BI Summary'!$2:$2,0),FALSE),INDIRECT("'"&$E44&"'!"&"$A:$K"),4,FALSE) -> 9491.562199 | H44: =VLOOKUP(VLOOKUP($F44,'Data BI Summary'!$A:$F,MATCH(H$1,'Data BI Summary'!$2:$2,0),FALSE),INDIRECT("'"&$E44&"'!"&"$A:$K"),8,FALSE) -> 27.9009 | I44: =VLOOKUP(VLOOKUP($F44,'Data BI Summary'!$A:$F,MATCH(I$1,'Data BI Summary'!$2:$2,0),FALSE),INDIRECT("'"&$E44&"'!"&"$A:$K"),9,FALSE) -> 0.00781212835 | J44: =VLOOKUP(VLOOKUP($F44,'Data BI Summary'!$A:$F,MATCH(J$1,'Data BI Summary'!$2:$2,0),FALSE),INDIRECT("'"&$E44&"'!"&"$A:$K"),8,FALSE) -> 31.528017 | K44: =VLOOKUP(VLOOKUP($F44,'Data BI Summary'!$A:$F,MATCH(K$1,'Data BI Summary'!$2:$2,0),FALSE),INDIRECT("'"&$E44&"'!"&"$A:$K"),9,FALSE) -> 0.003321688921 | L44: Two-tier RPP
A45: Sen Lgt-HCHI | B45: Average | C45: =VLOOKUP(A$45,'Data Billing Quantities'!A:P,MATCH($B45&" kWh",'Data Billing Quantities'!$4:$4,0),FALSE) -> 61 | D45: =VLOOKUP(A$45,'Data Billing Quantities'!A:P,MATCH(B45&" kW",'Data Billing Quantities'!$4:$4,0),FALSE) -> 0.1956473214 | E45: BI_HCHI_SenLgt_Avg | F45: BI Template_unmHCHI | G45: =VLOOKUP(VLOOKUP($F45,'Data BI Summary'!$A:$F,MATCH(G$1,'Data BI Summary'!$2:$2,0),FALSE),INDIRECT("'"&$E45&"'!"&"$A:$K"),4,FALSE) -> 20.90082807 | H45: =VLOOKUP(VLOOKUP($F45,'Data BI Summary'!$A:$F,MATCH(H$1,'Data BI Summary'!$2:$2,0),FALSE),INDIRECT("'"&$E45&"'!"&"$A:$K"),8,FALSE) -> 0.0549 | I45: =VLOOKUP(VLOOKUP($F45,'Data BI Summary'!$A:$F,MATCH(I$1,'Data BI Summary'!$2:$2,0),FALSE),INDIRECT("'"&$E45&"'!"&"$A:$K"),9,FALSE) -> 0.003924399903 | J45: =VLOOKUP(VLOOKUP($F45,'Data BI Summary'!$A:$F,MATCH(J$1,'Data BI Summary'!$2:$2,0),FALSE),INDIRECT("'"&$E45&"'!"&"$A:$K"),8,FALSE) -> 0.0514413 | K45: =VLOOKUP(VLOOKUP($F45,'Data BI Summary'!$A:$F,MATCH(K$1,'Data BI Summary'!$2:$2,0),FALSE),INDIRECT("'"&$E45&"'!"&"$A:$K"),9,FALSE) -> 0.002461208706 | L45: Two-tier RPP
A46: USL-HCHI | B46: Average | C46: =VLOOKUP(A$46,'Data Billing Quantities'!A:P,MATCH($B46&" kWh",'Data Billing Quantities'!$4:$4,0),FALSE) -> 471 | E46: BI_HCHI_USL_Avg | F46: BI Template_unmHCHI | G46: =VLOOKUP(VLOOKUP($F46,'Data BI Summary'!$A:$F,MATCH(G$1,'Data BI Summary'!$2:$2,0),FALSE),INDIRECT("'"&$E46&"'!"&"$A:$K"),4,FALSE) -> 107.5135692 | H46: =VLOOKUP(VLOOKUP($F46,'Data BI Summary'!$A:$F,MATCH(H$1,'Data BI Summary'!$2:$2,0),FALSE),INDIRECT("'"&$E46&"'!"&"$A:$K"),8,FALSE) -> 0.4239 | I46: =VLOOKUP(VLOOKUP($F46,'Data BI Summary'!$A:$F,MATCH(I$1,'Data BI Summary'!$2:$2,0),FALSE),INDIRECT("'"&$E46&"'!"&"$A:$K"),9,FALSE) -> 0.008249681806 | J46: =VLOOKUP(VLOOKUP($F46,'Data BI Summary'!$A:$F,MATCH(J$1,'Data BI Summary'!$2:$2,0),FALSE),INDIRECT("'"&$E46&"'!"&"$A:$K"),8,FALSE) -> 0.3971943 | K46: =VLOOKUP(VLOOKUP($F46,'Data BI Summary'!$A:$F,MATCH(K$1,'Data BI Summary'!$2:$2,0),FALSE),INDIRECT("'"&$E46&"'!"&"$A:$K"),9,FALSE) -> 0.003694364376 | L46: Two-tier RPP

Sheet BI Template_Energy (hidden)
A1: 2024 Bill Impacts (Low Consumption Level) - R1
A3: Rate Class | B3: =RIGHT(A1,LEN(A1)-FIND("- ",A1,1)-1) -> R1
A4: Monthly Consumption (kWh) | B4: =IF(COUNTIF(A1,"*Low*")>0,VLOOKUP(B3,'Data Billing Quantities'!$A:$Z,MATCH("Low kWh",'Data Billing Quantities'!4:4,0),FALSE),IF(COUNTIF(A1,"*Typical*")>0,VLOOKUP(B3,'Data Billing Quantities'!$A:$Z,MATCH("Typical kWh",'Data Billing Quantities'!4:4,0),FALSE),IF(COUNTIF(A1,"*Average*")>0,VLOOKUP(B3,'Data Billing Quantities'!$A:$Z,MATCH("Average kWh",'Data Billing Quantities'!4:4,0),FALSE),IF(COUNTIF(A1,"*High*")>0,VLOOKUP(B3,'Data Billing Quantities'!$A:$Z,MATCH("High kWh",'Data Billing Quantities'!4:4,0),FALSE),"error")))) -> 370
A5: Peak (kW) | B5: =IF(COUNTIF(A1,"*Low*")>0,VLOOKUP(B3,'Data Billing Quantities'!$A:$Z,MATCH("Low kW",'Data Billing Quantities'!4:4,0),FALSE),IF(COUNTIF(A1,"*Typical*")>0,VLOOKUP(B3,'Data Billing Quantities'!$A:$Z,MATCH("Typical kW",'Data Billing Quantities'!4:4,0),FALSE),IF(COUNTIF(A1,"*Average*")>0,VLOOKUP(B3,'Data Billing Quantities'!$A:$Z,MATCH("Average kW",'Data Billing Quantities'!4:4,0),FALSE),IF(COUNTIF(A1,"*High*")>0,VLOOKUP(B3,'Data Billing Quantities'!$A:$Z,MATCH("High kW",'Data Billing Quantities'!4:4,0),FALSE),"error")))) -> 0
A6: Loss factor | B6: =VLOOKUP(B3,'Data Billing Quantities'!A:D,MATCH(A6,'Data Billing Quantities'!4:4,0),FALSE) -> 1.076
A7: Commodity Threshold | B7: =VLOOKUP(B3,'Data Billing Quantities'!A:D,MATCH(A7,'Data Billing Quantities'!4:4,0),FALSE) -> 600
A8: Monthly Consumption (kWh) - Uplifted | B8: =B4*B6 -> 398.12
A9: Charge determinant | B9: =VLOOKUP(B3,'Data Billing Quantities'!A:D,MATCH(A9,'Data Billing Quantities'!4:4,0),FALSE) -> kWh
B11: Volume | C11: Current Rate ($) | D11: Current Charge ($) | E11: Volume | F11: Proposed Rate ($) | G11: Proposed Charge ($) | H11: Change ($) | I11: Change (%) | J11: % of Total Bill on RPP | K11: % of Total Bill
A12: Energy First Tier | B12: =IF(B4>B7,B7,B4) -> 370 | C12: =VLOOKUP($A12,'Data Pass Through'!$A:$D,2,FALSE) -> 0.103 | D12: =B12*C12 -> 38.11 | E12: =B12 -> 370 | F12: =VLOOKUP($A12,'Data Pass Through'!$A:$D,3,FALSE) -> 0.103 | G12: =E12*F12 -> 38.11 | H12: =G12-D12 -> 0 | I12: =IF(ISERROR(H12/ABS(D12)),"N/A",(H12/ABS(D12))) -> 0 | J12: =G12/$G$49 -> 0.4446683453
A13: Energy Second Tier | B13: =IF(B4>B7,(B4)-B7,0) -> 0 | C13: =VLOOKUP($A13,'Data Pass Through'!$A:$D,2,FALSE) -> 0.125 | D13: =B13*C13 -> 0 | E13: =B13 -> 0 | F13: =VLOOKUP($A13,'Data Pass Through'!$A:$D,3,FALSE) -> 0.125 | G13: =E13*F13 -> 0 | H13: 0 | I13: N/A | J13: =G13/$G$49 -> 0
A14: Sub-Total: Energy (RPP Tiered) | D14: =SUM(D12:D13) -> 38.11 | G14: =SUM(G12:G13) -> 38.11 | H14: 0 | I14: 0 | J14: =G14/$G$49 -> 0.4446683453
A15: TOU-Off Peak | B15: =B$4*VLOOKUP($B$3,'Data Billing Quantities'!$A:$O,MATCH('BI Template_Energy'!$A15,'Data Billing Quantities'!$4:$4,0),FALSE) -> 236.8 | C15: =VLOOKUP($A15,'Data Pass Through'!$A:$D,2,FALSE) -> 0.087 | D15: =B15*C15 -> 20.6016 | E15: 236.8 | F15: =VLOOKUP($A15,'Data Pass Through'!$A:$D,3,FALSE) -> 0.087 | G15: =E15*F15 -> 20.6016 | H15: 0 | I15: 0 | K15: =G15/$G$54 -> 0.2328790434
A16: TOU-Mid Peak | B16: =B$4*VLOOKUP($B$3,'Data Billing Quantities'!$A:$O,MATCH('BI Template_Energy'!$A16,'Data Billing Quantities'!$4:$4,0),FALSE) -> 66.6 | C16: =VLOOKUP($A16,'Data Pass Through'!$A:$D,2,FALSE) -> 0.122 | D16: =B16*C16 -> 8.1252 | E16: 66.6 | F16: =VLOOKUP($A16,'Data Pass Through'!$A:$D,3,FALSE) -> 0.122 | G16: =E16*F16 -> 8.1252 | H16: 0 | I16: 0 | K16: 0.09184669169
A17: TOU-On Peak | B17: =B$4*VLOOKUP($B$3,'Data Billing Quantities'!$A:$O,MATCH('BI Template_Energy'!$A17,'Data Billing Quantities'!$4:$4,0),FALSE) -> 66.6 | C17: =VLOOKUP($A17,'Data Pass Through'!$A:$D,2,FALSE) -> 0.182 | D17: =B17*C17 -> 12.1212 | E17: 66.6 | F17: =VLOOKUP($A17,'Data Pass Through'!$A:$D,3,FALSE) -> 0.182 | G17: =E17*F17 -> 12.1212 | H17: 0 | I17: 0 | K17: 0.1370171958
A18: Sub-Total: Energy (RPP TOU) | D18: =SUM(D15:D17) -> 40.848 | G18: =SUM(G15:G17) -> 40.848 | H18: 0 | I18: 0 | J18: =G18/$G$49 -> 0.4766153915 | K18: 0.4617429309
A19: Service Charge | B19: 1 | C19: =VLOOKUP($B$3,'Data Current Rates'!$A:$AJ,MATCH('BI Template_Energy'!$A19,CurrentHeader,0),FALSE) -> 68.3 | D19: =B19*C19 -> 68.3 | E19: 1 | F19: =VLOOKUP($B$3,'Data Proposed Rates'!$A:$BF,MATCH('BI Template_Energy'!$A19,ProposedHeader,0),FALSE) -> 68.3 | G19: =E19*F19 -> 68.3 | H19: 0 | I19: 0 | J19: 0.7969259508 | K19: 0.7720584161
A20: Fixed Base Rate Adjustment to Recover Past Tax Amounts | B20: 1 | C20: =VLOOKUP($B$3,'Data Current Rates'!$A:$AJ,MATCH('BI Template_Energy'!$A20,CurrentHeader,0),FALSE) -> 0 | D20: =B20*C20 -> 0 | H20: =G20-D20 -> 0 | I20: =IF(ISERROR(H20/ABS(D20)),"N/A",(H20/ABS(D20))) -> N/A | J20: 0 | K20: 0
A21: Group 2 Fixed DVA Rider | B21: 1 | C21: =VLOOKUP($B$3,'Data Current Rates'!$A:$AJ,MATCH('BI Template_Energy'!$A21,CurrentHeader,0),FALSE) -> -0.21 | D21: =B21*C21 -> -0.21 | E21: 1 | F21: =VLOOKUP($B$3,'Data Proposed Rates'!$A:$BF,MATCH('BI Template_Energy'!$A21,ProposedHeader,0),FALSE) -> -0.21 | G21: -0.21 | H21: 0 | I21: 0 | J21: -0.002450284768 | K21: -0.002373825291
A22: Distribution Volumetric Charge | B22: =IF($B$9="kWh",$B$4,$B$5) -> 370 | C22: =VLOOKUP($B$3,'Data Current Rates'!$A:$AJ,MATCH('BI Template_Energy'!$A22,CurrentHeader,0),FALSE) -> 0 | D22: 0 | E22: 370 | F22: =VLOOKUP($B$3,'Data Proposed Rates'!$A:$BF,MATCH('BI Template_Energy'!$A22,ProposedHeader,0),FALSE) -> 0 | G22: 0 | H22: 0 | I22: N/A | J22: 0 | K22: 0
A23: Volumetric Base Rate Adjustment to Recover Past Tax Amounts | B23: =IF($B$9="kWh",$B$4,$B$5) -> 370 | C23: =VLOOKUP($B$3,'Data Current Rates'!$A:$AJ,MATCH('BI Template_Energy'!$A23,CurrentHeader,0),FALSE) -> 0 | D23: =B23*C23 -> 0 | H23: =G23-D23 -> 0 | I23: =IF(ISERROR(H23/ABS(D23)),"N/A",(H23/ABS(D23))) -> N/A | J23: 0 | K23: 0
A24: Group 1 Volumetric DVA Rider (General) (2023) | B24: =IF($B$9="kWh",$B$4,$B$5) -> 370 | C24: =VLOOKUP($B$3,'Data Current Rates'!$A:$AJ,MATCH('BI Template_Energy'!$A24,CurrentHeader,0),FALSE) -> -0.0007 | D24: =B24*C24 -> -0.259 | E24: =B24 -> 370 | F24: =VLOOKUP($B$3,'Data Proposed Rates'!$A:$BF,MATCH('BI Template_Energy'!$A24,ProposedHeader,0),FALSE) -> -0.0007 | G24: =E24*F24 -> -0.259 | H24: =G24-D24 -> 0 | I24: =IF(ISERROR(H24/ABS(D24)),"N/A",(H24/ABS(D24))) -> 0 | J24: -0.003022017881 | K24: -0.002927717859
A25: Group 2 Volumetric DVA Rider | B25: 370 | C25: =VLOOKUP($B$3,'Data Current Rates'!$A:$AJ,MATCH('BI Template_Energy'!$A25,CurrentHeader,0),FALSE) -> 0 | D25: =B25*C25 -> 0 | E25: =IF($B$9="kWh",$B$4,$B$5) -> 370 | F25: =VLOOKUP($B$3,'Data Proposed Rates'!$A:$BF,MATCH('BI Template_Energy'!$A25,ProposedHeader,0),FALSE) -> 0 | G25: =E25*F25 -> 0 | H25: =G25-D25 -> 0 | I25: =IF(ISERROR(H25/ABS(D25)),"N/A",(H25/ABS(D25))) -> N/A | J25: =G25/$G$49 -> 0 | K25: =G25/$G$54 -> 0
A26: Group 1 Volumetric DVA Rider (General) (2024) | E26: 370 | F26: =VLOOKUP($B$3,'Data Proposed Rates'!$A:$BF,MATCH('BI Template_Energy'!$A26,ProposedHeader,0),FALSE) -> 0.0013 | G26: =E26*F26 -> 0.481 | H26: =G26-D26 -> 0.481 | I26: =IF(ISERROR(H26/ABS(D26)),"N/A",(H26/ABS(D26))) -> N/A | J26: =G26/$G$49 -> 0.005612318921 | K26: =G26/$G$54 -> 0.005437190309
A27: Group 1 Volumetric Deferral/Variance Account Rider (Sub-Account CBR) (2024) | E27: 370 | F27: =VLOOKUP($B$3,'Data Proposed Rates'!$A:$BF,MATCH('BI Template_Energy'!$A27,ProposedHeader,0),FALSE) -> -0.0006 | G27: -0.222 | H27: -0.222 | I27: N/A | J27: -0.002590301041 | K27: -0.00250947245
A28: Fair Hydro Plan - Distribution Rate Protection Savings* | D28: =IF(AND(B3<>"R1",B3<>"R2"),0,IF(VLOOKUP($A28,'Data Pass Through'!$A:$D,2,FALSE)=0,0,IF(SUM(D19:D20,D22:D23)<VLOOKUP($A28,'Data Pass Through'!$A:$D,2,FALSE),0,VLOOKUP($A28,'Data Pass Through'!$A:$D,2,FALSE)-SUM(D19:D20,D22:D23)))) -> -28.81 | G28: =IF(AND(B3<>"R1",B3<>"R2"),0,IF(VLOOKUP($A28,'Data Pass Through'!$A:$D,2,FALSE)=0,0,IF(SUM(G19:G20,G22:G23)<VLOOKUP($A28,'Data Pass Through'!$A:$D,2,FALSE),0,VLOOKUP($A28,'Data Pass Through'!$A:$D,2,FALSE)-SUM(G19:G20,G22:G23)))) -> -28.81 | H28: 0 | I28: 0 | J28: =G28/$G$49 -> -0.3361557342 | K28: =G28/$G$54 -> -0.3256662221
A29: Sub-Total: Distribution (excluding pass through) | D29: =SUM(INDIRECT("D19:D"&ROW()-1)) -> 39.021 | G29: =SUM(INDIRECT("g19:g"&ROW()-1)) -> 39.28 | H29: =G29-D29 -> 0.259 | I29: =IF(ISERROR(H29/ABS(D29)),"N/A",(H29/ABS(D29))) -> 0.006637451629 | J29: 0.4583199319 | K29: 0.4440183687
A30: Smart Metering Entity Charge | B30: 1 | C30: =VLOOKUP($A30,'Data Pass Through'!$A:$D,2,FALSE) -> 0.42 | D30: =B30*C30 -> 0.42 | E30: 1 | F30: =VLOOKUP($A30,'Data Pass Through'!$A:$D,3,FALSE) -> 0.42 | G30: =E30*F30 -> 0.42 | H30: 0 | I30: 0 | J30: 0.004900569536 | K30: 0.004747650582
A31: Line Losses on Cost of Power (based on two-tier RPP prices) | B31: =B8-B4 -> 28.12 | C31: =IF(B4>B7,C13,C12) -> 0.103 | D31: =B31*C31 -> 2.89636 | E31: 28.12 | F31: =IF(B4>B7,F13,F12) -> 0.103 | G31: =E31*F31 -> 2.89636 | H31: 0 | I31: 0 | J31: 0.03379479424 | K31: 0.03274025057
A32: Line Losses on Cost of Power (based on TOU prices) | B32: =B8-B4 -> 28.12 | C32: =VLOOKUP($B$3,'Data Billing Quantities'!$A:$O,MATCH('BI Template_Energy'!$A15,'Data Billing Quantities'!$4:$4,0),FALSE)*C15+VLOOKUP($B$3,'Data Billing Quantities'!$A:$O,MATCH('BI Template_Energy'!$A16,'Data Billing Quantities'!$4:$4,0),FALSE)*C16+VLOOKUP($B$3,'Data Billing Quantities'!$A:$O,MATCH('BI Template_Energy'!$A17,'Data Billing Quantities'!$4:$4,0),FALSE)*C17 -> 0.1104 | D32: =B32*C32 -> 3.104448 | E32: 28.12 | F32: =VLOOKUP($B$3,'Data Billing Quantities'!$A:$O,MATCH('BI Template_Energy'!$A15,'Data Billing Quantities'!$4:$4,0),FALSE)*F15+VLOOKUP($B$3,'Data Billing Quantities'!$A:$O,MATCH('BI Template_Energy'!$A16,'Data Billing Quantities'!$4:$4,0),FALSE)*F16+VLOOKUP($B$3,'Data Billing Quantities'!$A:$O,MATCH('BI Template_Energy'!$A17,'Data Billing Quantities'!$4:$4,0),FALSE)*F17 -> 0.1104 | G32: =E32*F32 -> 3.104448 | H32: 0 | I32: 0 | J32: 0.03622276975 | K32: 0.03509246275
A33: Sub-Total: Distribution (based on two-tier RPP prices) | D33: =SUM(D29,D30:D31) -> 42.33736 | G33: =SUM(G29,G30:G31) -> 42.59636 | H33: 0.259 | I33: 0.006117528348 | J33: 0.4970152957 | K33: 0.4815062699
A34: Sub-Total: Distribution (based on TOU prices) | D34: =SUM(D29,D30,D32) -> 42.545448 | G34: =SUM(G29,G30,G32) -> 42.804448 | H34: 0.259 | I34: 0.006087607774 | J34: 0.4994432712 | K34: 0.483858482
A35: Retail Transmission Rate – Network Service Rate | B35: =B8 -> 398.12 | C35: =VLOOKUP($B$3,'Data Current Rates'!$A:$AJ,MATCH('BI Template_Energy'!$A35,CurrentHeader,0),FALSE) -> 0.0118 | D35: =B35*C35 -> 4.697816 | E35: 398.12 | F35: =VLOOKUP($B$3,'Data Proposed Rates'!$A:$BF,MATCH('BI Template_Energy'!$A35,ProposedHeader,0),FALSE) -> 0.0118 | G35: =E35*F35 -> 4.697816 | H35: =G35-D35 -> 0 | I35: 0 | J35: 0.05481422376 | K35: 0.05310378302
A36: Retail Transmission Rate – Line and Transformation Connection Service Rate | B36: =B8 -> 398.12 | C36: =VLOOKUP($B$3,'Data Current Rates'!$A:$AJ,MATCH('BI Template_Energy'!$A36,CurrentHeader,0),FALSE) -> 0.0087 | D36: =B36*C36 -> 3.463644 | E36: 398.12 | F36: =VLOOKUP($B$3,'Data Proposed Rates'!$A:$BF,MATCH('BI Template_Energy'!$A36,ProposedHeader,0),FALSE) -> 0.0087 | G36: =E36*F36 -> 3.463644 | H36: =G36-D36 -> 0 | I36: 0 | J36: 0.04041387684 | K36: 0.03915278917
A37: Sub-Total: Retail Transmission | D37: =SUM(D35:D36) -> 8.16146 | G37: =SUM(G35:G36) -> 8.16146 | H37: =G37-D37 -> 0 | I37: 0 | J37: 0.09522810059 | K37: 0.09225657219
A38: Sub-Total: Delivery (based on two-tier RPP prices) | D38: =D33+D37 -> 50.49882 | G38: =G33+G37 -> 50.75782 | H38: =G38-D38 -> 0.259 | I38: 0.005128832713 | J38: 0.5922433963 | K38: 0.5737628421
A39: Sub-Total: Delivery (based on TOU prices) | D39: =D34+D37 -> 50.706908 | G39: =G34+G37 -> 50.965908 | H39: =G39-D39 -> 0.259 | I39: 0.005107785314 | J39: 0.5946713718 | K39: 0.5761150542
A40: Wholesale Market Service Rate (WMS) - not including CBR | B40: =B8 -> 398.12 | C40: =VLOOKUP($A40,'Data Pass Through'!$A:$D,2,FALSE) -> 0.0041 | D40: =B40*C40 -> 1.632292 | E40: =$B$8 -> 398.12 | F40: =VLOOKUP($A40,'Data Pass Through'!$A:$D,3,FALSE) -> 0.0041 | G40: =E40*F40 -> 1.632292 | H40: 0 | I40: 0 | J40: 0.01904562012 | K40: 0.01845131444
A41: Capacity Based Recovery (CBR) - Applicable for Class B Customers | B41: =B8 -> 398.12 | C41: =VLOOKUP($A41,'Data Pass Through'!$A:$D,2,FALSE) -> 0.0004 | D41: =B41*C41 -> 0.159248 | E41: =$B$8 -> 398.12 | F41: =VLOOKUP($A41,'Data Pass Through'!$A:$D,3,FALSE) -> 0.0004 | G41: =E41*F41 -> 0.159248 | H41: =G41-D41 -> 0 | I41: =IF(ISERROR(H41/ABS(D41)),"N/A",(H41/ABS(D41))) -> 0 | J41: 0.00185810928 | K41: 0.001800128238
A42: Rural Rate Protection Charge | B42: =B8 -> 398.12 | C42: =VLOOKUP($A42,'Data Pass Through'!$A:$D,2,FALSE) -> 0.0014 | D42: 0.557368 | E42: 398.12 | F42: =VLOOKUP($A42,'Data Pass Through'!$A:$D,3,FALSE) -> 0.0014 | G42: 0.557368 | H42: 0 | I42: 0 | J42: 0.006503382479 | K42: 0.006300448832
A43: Standard Supply Service – Administration Charge (if applicable) | B43: 1 | C43: =VLOOKUP($A43,'Data Pass Through'!$A:$D,2,FALSE) -> 0.25 | D43: =B43*C43 -> 0.25 | E43: 1 | F43: =VLOOKUP($A43,'Data Pass Through'!$A:$D,3,FALSE) -> 0.25 | G43: 0.25 | H43: 0 | I43: 0 | J43: 0.002917005676 | K43: 0.002825982489
A44: Sub-Total: Regulatory | D44: =SUM(D40:D43) -> 2.598908 | G44: =SUM(G40:G43) -> 2.598908 | H44: 0 | I44: 0 | J44: 0.03032411755 | K44: 0.029377874
A45: Total Electricty Charge on Two-Tier RPP | D45: =SUM(D14,D29,D30,D31,D37,D44) -> 91.207728 | G45: =SUM(G14,G29,G30,G31,G37,G44) -> 91.466728 | H45: 0.259 | I45: 0.002839671656 | J45: 1.067235859
A46: HST | C46: 0.13 | D46: =D45*C46 -> 11.85700464 | F46: =C46 -> 0.13 | G46: =G45*F46 -> 11.89067464 | H46: 0.03367 | I46: 0.002839671656 | J46: 0.1387406617
A47: Total Electricity Charge on Two-Tier RPP (including HST) | D47: =SUM(D45:D46) -> 103.0647326 | G47: =SUM(G45:G46) -> 103.3574026 | H47: 0.29267 | I47: 0.002839671656 | J47: 1.205976521
A48: Ontario Electricity Rebate (OER) | C48: =IF(($B$4*12)<250000,VLOOKUP(A48,'Data Pass Through'!$A$4:$C$20,2,0),0) -> -0.193 | D48: =D45*C48 -> -17.6030915 | F48: =C48 -> -0.193 | G48: =G45*F48 -> -17.6530785 | H48: -0.049987 | I48: -0.002839671656 | J48: -0.2059765208
A49: Total Amount on Two-Tier RPP | D49: =SUM(D47:D48) -> 85.46164114 | G49: =SUM(G47:G48) -> 85.70432414 | H49: 0.242683 | I49: 0.002839671656 | J49: 1
A50: Total Electricty Charge on TOU (before HST) | D50: =SUM(D18,D29,D30,D32,D37,D44) -> 94.153816 | G50: =SUM(G18,G29,G30,G32,G37,G44) -> 94.412816 | H50: 0.259 | I50: 0.002750817874 | K50: =G50/$G$54 -> 1.067235859
A51: HST | C51: 0.13 | D51: =D50*C51 -> 12.23999608 | F51: =C51 -> 0.13 | G51: =G50*F51 -> 12.27366608 | H51: 0.03367 | I51: 0.002750817874 | K51: =G51/$G$54 -> 0.1387406617
A52: Total Electricity Charge on TOU (including HST) | D52: =SUM(D50:D51) -> 106.3938121 | G52: =SUM(G50:G51) -> 106.6864821 | H52: 0.29267 | I52: 0.002750817874 | K52: =G52/$G$54 -> 1.205976521
A53: Ontario Electricity Rebate (OER) | C53: =IF(($B$4*12)<250000,VLOOKUP(A53,'Data Pass Through'!$A$4:$C$20,2,0),0) -> -0.193 | D53: =D50*C53 -> -18.17168649 | F53: =C53 -> -0.193 | G53: =G50*F53 -> -18.22167349 | H53: -0.049987 | I53: -0.002750817874 | K53: =G53/$G$54 -> -0.2059765208
A54: Total Amount on TOU | D54: =SUM(D52:D53) -> 88.22212559 | G54: =SUM(G52:G53) -> 88.46480859 | H54: 0.242683 | I54: 0.002750817874 | K54: =G54/$G$54 -> 1
A55: * Distribution rate protection applies to R1 and R2 customers

Sheet BI Template_EnergyUNM (hidden)
A1: 2024 Bill Impacts (Average Consumption Level) - USL
A3: Rate Class | B3: =RIGHT(A1,LEN(A1)-FIND("- ",A1,1)-1) -> USL
A4: Monthly Consumption (kWh) | B4: =IF(COUNTIF(A1,"*Low*")>0,VLOOKUP(B3,'Data Billing Quantities'!$A:$Z,MATCH("Low kWh",'Data Billing Quantities'!4:4,0),FALSE),IF(COUNTIF(A1,"*Typical*")>0,VLOOKUP(B3,'Data Billing Quantities'!$A:$Z,MATCH("Typical kWh",'Data Billing Quantities'!4:4,0),FALSE),IF(COUNTIF(A1,"*Average*")>0,VLOOKUP(B3,'Data Billing Quantities'!$A:$Z,MATCH("Average kWh",'Data Billing Quantities'!4:4,0),FALSE),IF(COUNTIF(A1,"*High*")>0,VLOOKUP(B3,'Data Billing Quantities'!$A:$Z,MATCH("High kWh",'Data Billing Quantities'!4:4,0),FALSE),"error")))) -> 477
A5: Peak (kW) | B5: =IF(COUNTIF(A1,"*Low*")>0,VLOOKUP(B3,'Data Billing Quantities'!$A:$Z,MATCH("Low kW",'Data Billing Quantities'!4:4,0),FALSE),IF(COUNTIF(A1,"*Typical*")>0,VLOOKUP(B3,'Data Billing Quantities'!$A:$Z,MATCH("Typical kW",'Data Billing Quantities'!4:4,0),FALSE),IF(COUNTIF(A1,"*Average*")>0,VLOOKUP(B3,'Data Billing Quantities'!$A:$Z,MATCH("Average kW",'Data Billing Quantities'!4:4,0),FALSE),IF(COUNTIF(A1,"*High*")>0,VLOOKUP(B3,'Data Billing Quantities'!$A:$Z,MATCH("High kW",'Data Billing Quantities'!4:4,0),FALSE),"error")))) -> 0
A6: Loss factor | B6: =VLOOKUP(B3,'Data Billing Quantities'!A:D,MATCH(A6,'Data Billing Quantities'!4:4,0),FALSE) -> 1.092
A7: Commodity Threshold | B7: =VLOOKUP(B3,'Data Billing Quantities'!A:D,MATCH(A7,'Data Billing Quantities'!4:4,0),FALSE) -> 750
A8: Monthly Consumption (kWh) - Uplifted | B8: =B4*B6 -> 520.884
A9: Charge determinant | B9: =VLOOKUP(B3,'Data Billing Quantities'!A:D,MATCH(A9,'Data Billing Quantities'!4:4,0),FALSE) -> kWh
B11: Volume | C11: Current Rate ($) | D11: Current Charge ($) | E11: Volume | F11: Proposed Rate ($) | G11: Proposed Charge ($) | H11: Change ($) | I11: Change (%) | J11: % of Total Bill
A12: Energy First Tier | B12: =IF(B4>B7,B7,B4) -> 477 | C12: =VLOOKUP($A12,'Data Pass Through'!$A:$D,2,FALSE) -> 0.103 | D12: =B12*C12 -> 49.131 | E12: =B12 -> 477 | F12: =VLOOKUP($A12,'Data Pass Through'!$A:$D,3,FALSE) -> 0.103 | G12: =E12*F12 -> 49.131 | H12: =G12-D12 -> 0 | I12: =IF(ISERROR(H12/ABS(D12)),"N/A",(H12/ABS(D12))) -> 0 | J12: =G12/$G$39 -> 0.4503565271
A13: Energy Second Tier | B13: =IF(B4>B7,(B4)-B7,0) -> 0 | C13: =VLOOKUP($A13,'Data Pass Through'!$A:$D,2,FALSE) -> 0.125 | D13: =B13*C13 -> 0 | E13: =B13 -> 0 | F13: =VLOOKUP($A13,'Data Pass Through'!$A:$D,3,FALSE) -> 0.125 | G13: =E13*F13 -> 0 | H13: 0 | I13: N/A | J13: 0
A14: Sub-Total: Energy (RPP Tiered) | D14: =SUM(D12:D13) -> 49.131 | G14: =SUM(G12:G13) -> 49.131 | H14: 0 | I14: 0 | J14: 0.4503565271
A15: Service Charge | B15: 1 | C15: =VLOOKUP($B$3,'Data Current Rates'!$A:$AJ,MATCH('BI Template_EnergyUNM'!$A15,CurrentHeader,0),FALSE) -> 38.29 | D15: =B15*C15 -> 38.29 | E15: 1 | F15: =VLOOKUP($B$3,'Data Proposed Rates'!$A:$BF,MATCH('BI Template_EnergyUNM'!$A15,ProposedHeader,0),FALSE) -> 38.29 | G15: =E15*F15 -> 38.29 | H15: 0 | I15: 0 | J15: 0.350983115
A16: Fixed Base Rate Adjustment to Recover Past Tax Amounts | B16: 1 | C16: =VLOOKUP($B$3,'Data Current Rates'!$A:$AJ,MATCH('BI Template_EnergyUNM'!$A16,CurrentHeader,0),FALSE) -> 0 | D16: =B16*C16 -> 0 | H16: =G16-D16 -> 0 | I16: =IF(ISERROR(H16/ABS(D16)),"N/A",(H16/ABS(D16))) -> N/A | J16: 0
A17: Distribution Volumetric Charge | B17: =IF($B$9="kWh",$B$4,$B$5) -> 477 | C17: =VLOOKUP($B$3,'Data Current Rates'!$A:$AJ,MATCH('BI Template_EnergyUNM'!$A17,CurrentHeader,0),FALSE) -> 0.0292 | D17: 13.9284 | E17: 477 | F17: =VLOOKUP($B$3,'Data Proposed Rates'!$A:$BF,MATCH('BI Template_EnergyUNM'!$A17,ProposedHeader,0),FALSE) -> 0.0292 | G17: 13.9284 | H17: 0 | I17: 0 | J17: 0.1276738892
A18: Volumetric Base Rate Adjustment to Recover Past Tax Amounts | B18: =IF($B$9="kWh",$B$4,$B$5) -> 477 | C18: =VLOOKUP($B$3,'Data Current Rates'!$A:$AJ,MATCH('BI Template_EnergyUNM'!$A18,CurrentHeader,0),FALSE) -> 0 | D18: =B18*C18 -> 0 | H18: =G18-D18 -> 0 | I18: =IF(ISERROR(H18/ABS(D18)),"N/A",(H18/ABS(D18))) -> N/A | J18: 0
A19: Group 1 Volumetric DVA Rider (General) (2023) | B19: =IF($B$9="kWh",$B$4,$B$5) -> 477 | C19: =VLOOKUP($B$3,'Data Current Rates'!$A:$AJ,MATCH('BI Template_EnergyUNM'!$A19,CurrentHeader,0),FALSE) -> -0.0007 | D19: =B19*C19 -> -0.3339 | E19: =B4 -> 477 | F19: =VLOOKUP($B$3,'Data Proposed Rates'!$A:$BF,MATCH('BI Template_EnergyUNM'!$A19,ProposedHeader,0),FALSE) -> -0.0007 | G19: =E19*F19 -> -0.3339 | H19: =G19-D19 -> 0 | I19: =IF(ISERROR(H19/ABS(D19)),"N/A",(H19/ABS(D19))) -> 0 | J19: -0.003060675427
A20: Group 2 Volumetric DVA Rider | B20: 477 | C20: =VLOOKUP($B$3,'Data Current Rates'!$A:$AJ,MATCH('BI Template_EnergyUNM'!$A20,CurrentHeader,0),FALSE) -> -0.0003 | D20: -0.1431 | E20: =IF($B$9="kWh",$B$4,$B$5) -> 477 | F20: =VLOOKUP($B$3,'Data Proposed Rates'!$A:$BF,MATCH('BI Template_EnergyUNM'!$A20,ProposedHeader,0),FALSE) -> -0.0003 | G20: -0.1431 | H20: 0 | I20: 0 | J20: -0.00131171804
A21: Group 1 Volumetric DVA Rider (General) (2024) | E21: 477 | F21: =VLOOKUP($B$3,'Data Proposed Rates'!$A:$BF,MATCH('BI Template_EnergyUNM'!$A21,ProposedHeader,0),FALSE) -> 0.0017 | G21: =E21*F21 -> 0.8109 | H21: =G21-D21 -> 0.8109 | I21: =IF(ISERROR(H21/ABS(D21)),"N/A",(H21/ABS(D21))) -> N/A | J21: =G21/$G$39 -> 0.007433068893
A22: Group 1 Volumetric Deferral/Variance Account Rider (Sub-Account CBR) (2024) | E22: 477 | F22: =VLOOKUP($B$3,'Data Proposed Rates'!$A:$BF,MATCH('BI Template_EnergyUNM'!$A22,ProposedHeader,0),FALSE) -> -0.0006 | G22: -0.2862 | H22: -0.2862 | I22: N/A | J22: -0.00262343608
A23: Sub-Total: Distribution (excluding pass through) | D23: =SUM(INDIRECT("D15:D"&ROW()-1)) -> 51.7414 | G23: =SUM(INDIRECT("g15:g"&ROW()-1)) -> 52.2661 | H23: =G23-D23 -> 0.5247 | I23: 0.01014081567 | J23: 0.4790942435
A24: Line Losses on Cost of Power (based on two-tier RPP prices) | B24: =B8-B4 -> 43.884 | C24: =IF(B4>B7,C13,C12) -> 0.103 | D24: =B24*C24 -> 4.520052 | E24: 43.884 | F24: =IF(B4>B7,F13,F12) -> 0.103 | G24: =E24*F24 -> 4.520052 | H24: 0 | I24: 0 | J24: 0.04143280049
A25: Sub-Total: Distribution (based on two-tier RPP prices) | D25: =SUM(D23,D24:D24) -> 56.261452 | G25: =SUM(G23,G24:G24) -> 56.786152 | H25: 0.5247 | I25: 0.009326101289 | J25: 0.520527044
A26: Retail Transmission Rate – Network Service Rate | B26: =B8 -> 520.884 | C26: =VLOOKUP($B$3,'Data Current Rates'!$A:$AJ,MATCH('BI Template_EnergyUNM'!$A26,CurrentHeader,0),FALSE) -> 0.0079 | D26: =B26*C26 -> 4.1149836 | E26: 520.884 | F26: =VLOOKUP($B$3,'Data Proposed Rates'!$A:$BF,MATCH('BI Template_EnergyUNM'!$A26,ProposedHeader,0),FALSE) -> 0.0079 | G26: =E26*F26 -> 4.1149836 | H26: =G26-D26 -> 0 | I26: 0 | J26: 0.03771976396
A27: Retail Transmission Rate – Line and Transformation Connection Service Rate | B27: =B8 -> 520.884 | C27: =VLOOKUP($B$3,'Data Current Rates'!$A:$AJ,MATCH('BI Template_EnergyUNM'!$A27,CurrentHeader,0),FALSE) -> 0.0059 | D27: =B27*C27 -> 3.0732156 | E27: 520.884 | F27: =VLOOKUP($B$3,'Data Proposed Rates'!$A:$BF,MATCH('BI Template_EnergyUNM'!$A27,ProposedHeader,0),FALSE) -> 0.0059 | G27: =E27*F27 -> 3.0732156 | H27: =G27-D27 -> 0 | I27: 0 | J27: 0.02817045663
A28: Sub-Total: Retail Transmission | D28: =SUM(D26:D27) -> 7.1881992 | G28: =SUM(G26:G27) -> 7.1881992 | H28: =G28-D28 -> 0 | I28: 0 | J28: 0.06589022058
A29: Sub-Total: Delivery (based on two-tier RPP prices) | D29: =D25+D28 -> 63.4496512 | G29: =G25+G28 -> 63.9743512 | H29: =G29-D29 -> 0.5247 | I29: 0.008269549006 | J29: 0.5864172646
A30: Wholesale Market Service Rate (WMS) - not including CBR | B30: =B8 -> 520.884 | C30: =VLOOKUP($A30,'Data Pass Through'!$A:$D,2,FALSE) -> 0.0041 | D30: =B30*C30 -> 2.1356244 | E30: =$B$8 -> 520.884 | F30: =VLOOKUP($A30,'Data Pass Through'!$A:$D,3,FALSE) -> 0.0041 | G30: =E30*F30 -> 2.1356244 | H30: =G30-D30 -> 0 | I30: 0 | J30: 0.01957608003
A31: Capacity Based Recovery (CBR) - Applicable for Class B Customers | B31: =B8 -> 520.884 | C31: =VLOOKUP($A31,'Data Pass Through'!$A:$D,2,FALSE) -> 0.0004 | D31: =B31*C31 -> 0.2083536 | E31: =$B$8 -> 520.884 | F31: =VLOOKUP($A31,'Data Pass Through'!$A:$D,3,FALSE) -> 0.0004 | G31: =E31*F31 -> 0.2083536 | H31: 0 | I31: 0 | J31: 0.001909861466
A32: Rural Rate Protection Charge | B32: =B8 -> 520.884 | C32: =VLOOKUP($A32,'Data Pass Through'!$A:$D,2,FALSE) -> 0.0014 | D32: 0.7292376 | E32: 520.884 | F32: =VLOOKUP($A32,'Data Pass Through'!$A:$D,3,FALSE) -> 0.0014 | G32: 0.7292376 | H32: 0 | I32: 0 | J32: 0.006684515132
A33: Standard Supply Service – Administration Charge (if applicable) | B33: 1 | C33: =VLOOKUP($A33,'Data Pass Through'!$A:$D,2,FALSE) -> 0.25 | D33: =B33*C33 -> 0.25 | E33: 1 | F33: =VLOOKUP($A33,'Data Pass Through'!$A:$D,3,FALSE) -> 0.25 | G33: 0.25 | H33: 0 | I33: 0 | J33: 0.002291610832
A34: Sub-Total: Regulatory | D34: =SUM(D30:D33) -> 3.3232156 | G34: =SUM(G30:G33) -> 3.3232156 | H34: 0 | I34: 0 | J34: 0.03046206746
A35: Total Electricty Charge on Two-Tier RPP | D35: =SUM(D14,D23,D24,D28,D34) -> 115.9038668 | G35: =SUM(G14,G23,G24,G28,G34) -> 116.4285668 | H35: 0.5247 | I35: 0.004527027566 | J35: 1.067235859
A36: HST | C36: 0.13 | D36: =D35*C36 -> 15.06750268 | F36: =C36 -> 0.13 | G36: =G35*F36 -> 15.13571368 | H36: 0.068211 | I36: 0.004527027566 | J36: 0.1387406617
A37: Total Electricity Charge on Two-Tier RPP (including HST) | D37: =SUM(D35:D36) -> 130.9713695 | G37: =SUM(G35:G36) -> 131.5642805 | H37: 0.592911 | I37: 0.004527027566 | J37: 1.205976521
A38: Ontario Electricity Rebate (OER) | C38: =IF(($B$4*12)<250000,VLOOKUP(A38,'Data Pass Through'!$A$4:$C$20,2,0),0) -> -0.193 | D38: =D35*C38 -> -22.36944629 | F38: =C38 -> -0.193 | G38: =G35*F38 -> -22.47071339 | H38: -0.1012671 | I38: -0.004527027566 | J38: -0.2059765208
A39: Total Amount on Two-Tier RPP | D39: =SUM(D37:D38) -> 108.6019232 | G39: =SUM(G37:G38) -> 109.0935671 | H39: 0.4916439 | I39: 0.004527027566 | J39: 1

Sheet BI Template_Demand (hidden)
A1: 2024 Bill Impacts (Average Consumption Level) - GSd
A3: Rate Class | B3: =RIGHT(A1,LEN(A1)-FIND("- ",A1,1)-1) -> GSd
A4: Monthly Consumption (kWh) | B4: =IF(COUNTIF(A1,"*Low*")>0,VLOOKUP(B3,'Data Billing Quantities'!$A:$Z,MATCH("Low kWh",'Data Billing Quantities'!4:4,0),FALSE),IF(COUNTIF(A1,"*Typical*")>0,VLOOKUP(B3,'Data Billing Quantities'!$A:$Z,MATCH("Typical kWh",'Data Billing Quantities'!4:4,0),FALSE),IF(COUNTIF(A1,"*Average*")>0,VLOOKUP(B3,'Data Billing Quantities'!$A:$Z,MATCH("Average kWh",'Data Billing Quantities'!4:4,0),FALSE),IF(COUNTIF(A1,"*High*")>0,VLOOKUP(B3,'Data Billing Quantities'!$A:$Z,MATCH("High kWh",'Data Billing Quantities'!4:4,0),FALSE),"error")))) -> 34334
A5: Peak (kW) | B5: =IF(COUNTIF(A1,"*Low*")>0,VLOOKUP(B3,'Data Billing Quantities'!$A:$Z,MATCH("Low kW",'Data Billing Quantities'!4:4,0),FALSE),IF(COUNTIF(A1,"*Typical*")>0,VLOOKUP(B3,'Data Billing Quantities'!$A:$Z,MATCH("Typical kW",'Data Billing Quantities'!4:4,0),FALSE),IF(COUNTIF(A1,"*Average*")>0,VLOOKUP(B3,'Data Billing Quantities'!$A:$Z,MATCH("Average kW",'Data Billing Quantities'!4:4,0),FALSE),IF(COUNTIF(A1,"*High*")>0,VLOOKUP(B3,'Data Billing Quantities'!$A:$Z,MATCH("High kW",'Data Billing Quantities'!4:4,0),FALSE),"error")))) -> 110
A6: Loss factor | B6: =VLOOKUP(B3,'Data Billing Quantities'!A:D,MATCH(A6,'Data Billing Quantities'!4:4,0),FALSE) -> 1.061
A7: Load factor | B7: =B4/(B5*730) -> 0.4275716065
A8: Monthly Consumption (kWh) - Uplifted | B8: =B4*B6 -> 36428.374
A9: Charge determinant | B9: =VLOOKUP(B3,'Data Billing Quantities'!A:D,MATCH(A9,'Data Billing Quantities'!4:4,0),FALSE) -> kW
B11: Volume | C11: Current Rate ($) | D11: Current Charge ($) | E11: Volume | F11: Proposed Rate ($) | G11: Proposed Charge ($) | H11: Change ($) | I11: Change (%) | J11: % of Total Bill
A12: Weighted Average Hourly Spot Price | B12: =B8 -> 36428.374 | C12: =VLOOKUP($A12,'Data Pass Through'!$A:$D,2,FALSE) -> 0.1035 | D12: =B12*C12 -> 3770.336709 | E12: =B8 -> 36428.374 | F12: =VLOOKUP($A12,'Data Pass Through'!$A:$D,3,FALSE) -> 0.1035 | G12: =E12*F12 -> 3770.336709 | H12: =G12-D12 -> 0 | I12: =IF(ISERROR(H12/ABS(D12)),"N/A",(H12/ABS(D12))) -> 0 | J12: =G12/$G$38 -> 0.4905370336
A13: Sub-Total: Energy (WAHSP) | D13: =SUM(D12:D12) -> 3770.336709 | G13: =SUM(G12:G12) -> 3770.336709 | H13: =G13-D13 -> 0 | I13: 0 | J13: 0.4905370336
A14: Service Charge | B14: 1 | C14: =VLOOKUP($B$3,'Data Current Rates'!$A:$AK,MATCH($A14,CurrentHeader,0),FALSE) -> 105.55 | D14: =B14*C14 -> 105.55 | E14: =B14 -> 1 | F14: =VLOOKUP($B$3,'Data Proposed Rates'!$A:$BF,MATCH($A14,ProposedHeader,0),FALSE) -> 105.55 | G14: =E14*F14 -> 105.55 | H14: 0 | I14: 0 | J14: 0.01373250929
A15: Fixed Base Rate Adjustment to Recover Past Tax Amounts | B15: 1 | C15: =VLOOKUP($B$3,'Data Current Rates'!$A:$AK,MATCH($A15,CurrentHeader,0),FALSE) -> 0 | D15: =B15*C15 -> 0 | H15: =G15-D15 -> 0 | I15: =IF(ISERROR(H15/ABS(D15)),"N/A",(H15/ABS(D15))) -> N/A | J15: 0
A16: Distribution Volumetric Charge | B16: =IF($B$9="kWh",$B$4,$B$5) -> 110 | C16: =VLOOKUP($B$3,'Data Current Rates'!$A:$AK,MATCH($A16,CurrentHeader,0),FALSE) -> 20.5366 | D16: =B16*C16 -> 2259.026 | E16: =$B$5 -> 110 | F16: =VLOOKUP($B$3,'Data Proposed Rates'!$A:$BF,MATCH($A16,ProposedHeader,0),FALSE) -> 20.5366 | G16: =E16*F16 -> 2259.026 | H16: 0 | I16: =IF(ISERROR(H16/ABS(D16)),"N/A",(H16/ABS(D16))) -> 0 | J16: 0.2939090056
A17: Volumetric Base Rate Adjustment to Recover Past Tax Amounts | B17: =IF($B$9="kWh",$B$4,$B$5) -> 110 | C17: =VLOOKUP($B$3,'Data Current Rates'!$A:$AK,MATCH($A17,CurrentHeader,0),FALSE) -> 0 | D17: =B17*C17 -> 0 | H17: =G17-D17 -> 0 | I17: =IF(ISERROR(H17/ABS(D17)),"N/A",(H17/ABS(D17))) -> N/A | J17: 0
A18: Group 1 Volumetric DVA Rider (General) (2023) | B18: =IF($B$9="kWh",$B$4,$B$5) -> 110 | C18: =VLOOKUP($B$3,'Data Current Rates'!$A:$AK,MATCH($A18,CurrentHeader,0),FALSE) -> -0.0855 | D18: =B18*C18 -> -9.405 | E18: =$B$5 -> 110 | F18: =VLOOKUP($B$3,'Data Proposed Rates'!$A:$BF,MATCH($A18,ProposedHeader,0),FALSE) -> -0.0855 | G18: -9.405 | H18: 0 | I18: =IF(ISERROR(H18/ABS(D18)),"N/A",(H18/ABS(D18))) -> 0 | J18: -0.00122363098
A19: Group 1 Volumetric Deferral/Variance Account Rider (Sub-Account RSVA Wholesale Market Service Charge & RSVA Power) (2023) | B19: =IF($B$9="kWh",$B$4,$B$5) -> 110 | C19: =VLOOKUP($B$3,'Data Current Rates'!$A:$AK,MATCH($A19,CurrentHeader,0),FALSE) -> -0.1195 | D19: -13.145 | E19: 110 | F19: =VLOOKUP($B$3,'Data Proposed Rates'!$A:$BF,MATCH($A19,ProposedHeader,0),FALSE) -> -0.1195 | G19: -13.145 | H19: 0 | I19: 0 | J19: -0.001710221077
A20: Group 1 Volumetric Deferral/Variance Account Rider (Sub-Account Global Adjustment) (2023) | B20: =$B$4 -> 34334 | C20: =VLOOKUP($B$3,'Data Proposed Rates'!$A:$BF,MATCH($A20,ProposedHeader,0),FALSE) -> -0.0009 | D20: -30.9006 | E20: =$B$4 -> 34334 | F20: =VLOOKUP($B$3,'Data Proposed Rates'!$A:$BF,MATCH($A20,ProposedHeader,0),FALSE) -> -0.0009 | G20: -30.9006 | H20: 0 | I20: 0 | J20: -0.004020301058
A21: Group 2 Volumetric DVA Rider | B21: =IF($B$9="kWh",$B$4,$B$5) -> 110 | C21: =VLOOKUP($B$3,'Data Current Rates'!$A:$AK,MATCH($A21,CurrentHeader,0),FALSE) -> -0.071 | D21: =B21*C21 -> -7.81 | E21: =B5 -> 110 | F21: =VLOOKUP($B$3,'Data Proposed Rates'!$A:$BF,MATCH($A21,ProposedHeader,0),FALSE) -> -0.071 | G21: =E21*F21 -> -7.81 | H21: =G21-D21 -> 0 | I21: =IF(ISERROR(H21/ABS(D21)),"N/A",(H21/ABS(D21))) -> 0 | J21: -0.001016114615
A22: Group 1 Volumetric DVA Rider (General) (2024) | E22: =IF($B$9="kWh",$B$4,$B$5) -> 110 | F22: =VLOOKUP($B$3,'Data Proposed Rates'!$A:$BF,MATCH($A22,ProposedHeader,0),FALSE) -> 0.6503 | G22: =E22*F22 -> 71.533 | H22: =G22-D22 -> 71.533 | I22: =IF(ISERROR(H22/ABS(D22)),"N/A",(H22/ABS(D22))) -> N/A | J22: =G22/$G$38 -> 0.009306751182
A23: Group 1 Volumetric Deferral/Variance Account Rider (Sub-Account RSVA Wholesale Market Service Charge & RSVA Power) (2024) | E23: =IF($B$9="kWh",$B$4,$B$5) -> 110 | F23: =VLOOKUP($B$3,'Data Proposed Rates'!$A:$BF,MATCH($A23,ProposedHeader,0),FALSE) -> 0.2159 | G23: 23.749 | H23: 23.749 | I23: N/A | J23: 0.003089847117
A24: Group 1 Volumetric Deferral/Variance Account Rider (Sub-Account Global Adjustment) (2024) | E24: =E20 -> 34334 | F24: =VLOOKUP($B$3,'Data Proposed Rates'!$A:$BF,MATCH($A24,ProposedHeader,0),FALSE) -> -0.0045 | G24: -154.503 | H24: -154.503 | I24: N/A | J24: -0.02010150529
A25: Group 1 Volumetric Deferral/Variance Account Rider (Sub-Account CBR) (2024) | E25: =IF($B$9="kWh",$B$4,$B$5) -> 110 | F25: =VLOOKUP($B$3,'Data Proposed Rates'!$A:$BF,MATCH($A25,ProposedHeader,0),FALSE) -> -0.1739 | G25: -19.129 | H25: -19.129 | I25: N/A | J25: -0.002488765232
A26: Sub-Total: Distribution | D26: =SUM(INDIRECT("D14:D"&ROW()-1)) -> 2303.3154 | G26: =SUM(INDIRECT("g14:g"&ROW()-1)) -> 2224.9654 | H26: -78.35 | I26: -0.0340161838 | J26: 0.2894775749
A27: Retail Transmission Rate – Network Service Rate | B27: =IF($B$9="kWh",$B$4,$B$5) -> 110 | C27: =VLOOKUP($B$3,'Data Current Rates'!$A:$AK,MATCH($A27,CurrentHeader,0),FALSE) -> 3.0151 | D27: =B27*C27 -> 331.661 | E27: 110 | F27: =VLOOKUP($B$3,'Data Proposed Rates'!$A:$BF,MATCH($A27,ProposedHeader,0),FALSE) -> 3.0151 | G27: =E27*F27 -> 331.661 | H27: 0 | I27: 0 | J27: 0.04315052359
A28: Retail Transmission Rate – Line and Transformation Connection Service Rate | B28: =IF($B$9="kWh",$B$4,$B$5) -> 110 | C28: =VLOOKUP($B$3,'Data Current Rates'!$A:$AK,MATCH($A28,CurrentHeader,0),FALSE) -> 2.3614 | D28: =B28*C28 -> 259.754 | E28: 110 | F28: =VLOOKUP($B$3,'Data Proposed Rates'!$A:$BF,MATCH($A28,ProposedHeader,0),FALSE) -> 2.3614 | G28: =E28*F28 -> 259.754 | H28: 0 | I28: 0 | J28: 0.0337951134
A29: Sub-Total: Retail Transmission | D29: =SUM(D27:D28) -> 591.415 | G29: =SUM(G27:G28) -> 591.415 | H29: 0 | I29: 0 | J29: 0.07694563698
A30: Sub-Total: Delivery | D30: =D26+D29 -> 2894.7304 | G30: =G26+G29 -> 2816.3804 | H30: -78.35 | I30: -0.02706642387 | J30: 0.3664232119
A31: Wholesale Market Service Rate (WMS) - not including CBR | B31: =$B$8 -> 36428.374 | C31: =VLOOKUP($A31,'Data Pass Through'!$A:$D,2,FALSE) -> 0.0041 | D31: =B31*C31 -> 149.3563334 | E31: =$B$8 -> 36428.374 | F31: =VLOOKUP($A31,'Data Pass Through'!$A:$D,3,FALSE) -> 0.0041 | G31: =E31*F31 -> 149.3563334 | H31: 0 | I31: 0 | J31: 0.01943190181
A32: Capacity Based Recovery (CBR) - Applicable for Class B Customers | B32: =$B$8 -> 36428.374 | C32: =VLOOKUP($A32,'Data Pass Through'!$A:$D,2,FALSE) -> 0.0004 | D32: =B32*C32 -> 14.5713496 | E32: =$B$8 -> 36428.374 | F32: =VLOOKUP($A32,'Data Pass Through'!$A:$D,3,FALSE) -> 0.0004 | G32: =E32*F32 -> 14.5713496 | H32: =G32-D32 -> 0 | I32: 0 | J32: 0.001895795299
A33: Rural Rate Protection Charge | B33: =$B$8 -> 36428.374 | C33: =VLOOKUP($A33,'Data Pass Through'!$A:$D,2,FALSE) -> 0.0014 | D33: =B33*C33 -> 50.9997236 | E33: =$B$8 -> 36428.374 | F33: =VLOOKUP($A33,'Data Pass Through'!$A:$D,3,FALSE) -> 0.0014 | G33: =E33*F33 -> 50.9997236 | H33: =G33-D33 -> 0 | I33: 0 | J33: 0.006635283546
A34: Standard Supply Service – Administration Charge (if applicable) | B34: 1 | C34: =VLOOKUP($A34,'Data Pass Through'!$A:$D,2,FALSE) -> 0.25 | D34: =B34*C34 -> 0.25 | E34: 1 | F34: =VLOOKUP($A34,'Data Pass Through'!$A:$D,3,FALSE) -> 0.25 | G34: =E34*F34 -> 0.25 | H34: 0 | I34: 0 | J34: 3.252607601e-05
A35: Sub-Total: Regulatory | D35: =SUM(D31:D34) -> 215.1774066 | G35: =SUM(G31:G34) -> 215.1774066 | H35: 0 | I35: 0 | J35: 0.02799550673
A36: Total Electricity Charge on Two-Tier RPP (before HST) | D36: =SUM(D13,D26,D29,D35) -> 6880.244516 | G36: =SUM(G13,G26,G29,G35) -> 6801.894516 | H36: -78.35 | I36: -0.01138767668 | J36: 0.8849557522
A37: HST | C37: 0.13 | D37: =D36*C37 -> 894.431787 | F37: =C37 -> 0.13 | G37: =G36*F37 -> 884.246287 | H37: -10.1855 | I37: -0.01138767668 | J37: 0.1150442478
A38: Total Amount on WAHSP | D38: =SUM(D36:D37) -> 7774.676303 | G38: =SUM(G36:G37) -> 7686.140803 | H38: -88.5355 | I38: -0.01138767668 | J38: 1

Sheet BI Template_Seasonal (hidden)
A1: 2024 Bill Impacts (Low Consumption Level) - Seas-UR
A3: Rate Class | B3: =VLOOKUP(A1,'Data BI List Acq_Seas'!C:E,2,FALSE) -> Seas-UR | C3: =VLOOKUP(A1,'Data BI List Acq_Seas'!C:E,3,FALSE) -> Seas-UR
A4: Monthly Consumption (kWh) | B4: =IF(COUNTIF(A1,"*Low*")>0,VLOOKUP(B3,'Data Billing Quantities'!$A:$Z,MATCH("Low kWh",'Data Billing Quantities'!4:4,0),FALSE),IF(COUNTIF(A1,"*Typical*")>0,VLOOKUP(B3,'Data Billing Quantities'!$A:$Z,MATCH("Typical kWh",'Data Billing Quantities'!4:4,0),FALSE),IF(COUNTIF(A1,"*Average*")>0,VLOOKUP(B3,'Data Billing Quantities'!$A:$Z,MATCH("Average kWh",'Data Billing Quantities'!4:4,0),FALSE),IF(COUNTIF(A1,"*High*")>0,VLOOKUP(B3,'Data Billing Quantities'!$A:$Z,MATCH("High kWh",'Data Billing Quantities'!4:4,0),FALSE),"error")))) -> 40 | C4: =B4 -> 40
A5: Peak (kW) | B5: =IF(COUNTIF(A1,"*Low*")>0,VLOOKUP(B3,'Data Billing Quantities'!$A:$Z,MATCH("Low kW",'Data Billing Quantities'!4:4,0),FALSE),IF(COUNTIF(A1,"*Typical*")>0,VLOOKUP(B3,'Data Billing Quantities'!$A:$Z,MATCH("Typical kW",'Data Billing Quantities'!4:4,0),FALSE),IF(COUNTIF(A1,"*Average*")>0,VLOOKUP(B3,'Data Billing Quantities'!$A:$Z,MATCH("Average kW",'Data Billing Quantities'!4:4,0),FALSE),IF(COUNTIF(A1,"*High*")>0,VLOOKUP(B3,'Data Billing Quantities'!$A:$Z,MATCH("High kW",'Data Billing Quantities'!4:4,0),FALSE),"error")))) -> 0 | C5: =B5 -> 0
A6: Loss factor | B6: =VLOOKUP(B3,'Data Billing Quantities'!A:D,MATCH(A6,'Data Billing Quantities'!4:4,0),FALSE) -> 1.057 | C6: =VLOOKUP(C3,'Data Billing Quantities'!A:D,MATCH(A6,'Data Billing Quantities'!4:4,0),FALSE) -> 1.057
A7: Commodity Threshold | B7: =VLOOKUP(B3,'Data Billing Quantities'!A:D,MATCH(A7,'Data Billing Quantities'!4:4,0),FALSE) -> 600 | C7: =B7 -> 600
A8: Monthly Consumption (kWh) - Uplifted | B8: =B4*B6 -> 42.28 | C8: =C4*C6 -> 42.28
A9: Charge determinant | B9: =VLOOKUP(B3,'Data Billing Quantities'!A:D,MATCH(A9,'Data Billing Quantities'!4:4,0),FALSE) -> kWh | C9: =VLOOKUP(C3,'Data Billing Quantities'!A:D,MATCH(A9,'Data Billing Quantities'!4:4,0),FALSE) -> kWh
B11: Volume | C11: Current Rate ($) | D11: Current Charge ($) | E11: Volume | F11: Proposed Rate ($) | G11: Proposed Charge ($) | H11: Change ($) | I11: Change (%) | J11: % of Total Bill on RPP | K11: % of Total Bill
A12: Energy First Tier | B12: =IF(B4>B7,B7,B4) -> 40 | C12: =VLOOKUP($A12,'Data Pass Through'!$A:$D,2,FALSE) -> 0.103 | D12: =B12*C12 -> 4.12 | E12: =B12 -> 40 | F12: =VLOOKUP($A12,'Data Pass Through'!$A:$D,3,FALSE) -> 0.103 | G12: =E12*F12 -> 4.12 | H12: =G12-D12 -> 0 | I12: =IF(ISERROR(H12/ABS(D12)),"N/A",(H12/ABS(D12))) -> 0 | J12: =G12/$G$46 -> 0.09540009481
A13: Energy Second Tier | B13: =IF(B4>B7,(B4)-B7,0) -> 0 | C13: =VLOOKUP($A13,'Data Pass Through'!$A:$D,2,FALSE) -> 0.125 | D13: =B13*C13 -> 0 | E13: =B13 -> 0 | F13: =VLOOKUP($A13,'Data Pass Through'!$A:$D,3,FALSE) -> 0.125 | G13: =E13*F13 -> 0 | H13: 0 | I13: N/A | J13: =G13/$G$46 -> 0
A14: Sub-Total: Energy (RPP Tiered) | D14: =SUM(D12:D13) -> 4.12 | G14: =SUM(G12:G13) -> 4.12 | H14: 0 | I14: 0 | J14: =G14/$G$46 -> 0.09540009481
A15: TOU-Off Peak | B15: =B$4*VLOOKUP($B$3,'Data Billing Quantities'!$A:$O,MATCH('BI Template_Seasonal'!$A15,'Data Billing Quantities'!$4:$4,0),FALSE) -> 25.6 | C15: =VLOOKUP($A15,'Data Pass Through'!$A:$D,2,FALSE) -> 0.087 | D15: =B15*C15 -> 2.2272 | E15: 25.6 | F15: =VLOOKUP($A15,'Data Pass Through'!$A:$D,3,FALSE) -> 0.087 | G15: =E15*F15 -> 2.2272 | H15: 0 | I15: 0 | K15: =G15/$G$51 -> 0.05122390337
A16: TOU-Mid Peak | B16: =B$4*VLOOKUP($B$3,'Data Billing Quantities'!$A:$O,MATCH('BI Template_Seasonal'!$A16,'Data Billing Quantities'!$4:$4,0),FALSE) -> 7.2 | C16: =VLOOKUP($A16,'Data Pass Through'!$A:$D,2,FALSE) -> 0.122 | D16: =B16*C16 -> 0.8784 | E16: 7.2 | F16: =VLOOKUP($A16,'Data Pass Through'!$A:$D,3,FALSE) -> 0.122 | G16: =E16*F16 -> 0.8784 | H16: 0 | I16: 0 | K16: 0.02020253085
A17: TOU-On Peak | B17: =B$4*VLOOKUP($B$3,'Data Billing Quantities'!$A:$O,MATCH('BI Template_Seasonal'!$A17,'Data Billing Quantities'!$4:$4,0),FALSE) -> 7.2 | C17: =VLOOKUP($A17,'Data Pass Through'!$A:$D,2,FALSE) -> 0.182 | D17: =B17*C17 -> 1.3104 | E17: 7.2 | F17: =VLOOKUP($A17,'Data Pass Through'!$A:$D,3,FALSE) -> 0.182 | G17: =E17*F17 -> 1.3104 | H17: 0 | I17: 0 | K17: 0.03013820177
A18: Sub-Total: Energy (RPP TOU) | D18: =SUM(D15:D17) -> 4.416 | G18: =SUM(G15:G17) -> 4.416 | H18: 0 | I18: 0 | J18: =G18/$G$46 -> 0.1022540822 | K18: 0.101564636
A19: Service Charge | B19: 1 | C19: =VLOOKUP($B$3,'Data Current Rates'!$A:$AJ,MATCH('BI Template_Seasonal'!$A19,CurrentHeader,0),FALSE) -> 40 | D19: =B19*C19 -> 40 | E19: 1 | F19: =IF(C3="R2",(VLOOKUP($C$3,'Data Proposed Rates'!$A:$BF,MATCH('BI Template_Seasonal'!$A19,ProposedHeader,0),FALSE)+'Data Pass Through'!B4),VLOOKUP($C$3,'Data Proposed Rates'!$A:$BF,MATCH('BI Template_Seasonal'!$A19,ProposedHeader,0),FALSE)) -> 40 | G19: =E19*F19 -> 40 | H19: 0 | I19: 0 | J19: 0.9262145128 | K19: 0.9199695289
A20: Fixed Base Rate Adjustment to Recover Past Tax Amounts | B20: 1 | C20: =VLOOKUP($B$3,'Data Current Rates'!$A:$AJ,MATCH('BI Template_Seasonal'!$A20,CurrentHeader,0),FALSE) -> 0 | D20: =B20*C20 -> 0 | H20: =G20-D20 -> 0 | I20: =IF(ISERROR(H20/ABS(D20)),"N/A",(H20/ABS(D20))) -> N/A | J20: 0 | K20: 0
A21: Group 2 Fixed DVA Rider | B21: 1 | C21: =VLOOKUP($B$3,'Data Current Rates'!$A:$AJ,MATCH('BI Template_Seasonal'!$A21,CurrentHeader,0),FALSE) -> -0.11 | D21: =B21*C21 -> -0.11 | E21: 1 | F21: =VLOOKUP($C$3,'Data Proposed Rates'!$A:$BF,MATCH('BI Template_Seasonal'!$A21,ProposedHeader,0),FALSE) -> -0.11 | G21: -0.11 | H21: 0 | I21: 0 | J21: -0.00254708991 | K21: -0.002529916204
A22: Distribution Volumetric Charge | B22: =IF($B$9="kWh",$B$4,$B$5) -> 40 | C22: =VLOOKUP($B$3,'Data Current Rates'!$A:$AJ,MATCH('BI Template_Seasonal'!$A22,CurrentHeader,0),FALSE) -> 0 | D22: =B22*C22 -> 0 | E22: =IF($C$9="kWh",$C$4,$C$5) -> 40 | F22: =VLOOKUP($C$3,'Data Proposed Rates'!$A:$BF,MATCH('BI Template_Seasonal'!$A22,ProposedHeader,0),FALSE) -> 0 | G22: 0 | H22: 0 | I22: N/A | J22: 0 | K22: 0
A23: Group 1 Volumetric DVA Rider (General) (2023) | B23: =IF($B$9="kWh",$B$4,$B$5) -> 40 | C23: =VLOOKUP($B$3,'Data Current Rates'!$A:$AJ,MATCH('BI Template_Seasonal'!$A23,CurrentHeader,0),FALSE) -> -0.0007 | D23: =B23*C23 -> -0.028 | E23: =IF($C$9="kWh",$C$4,$C$5) -> 40 | F23: =VLOOKUP($C$3,'Data Proposed Rates'!$A:$BF,MATCH('BI Template_Seasonal'!$A23,ProposedHeader,0),FALSE) -> -0.0007 | G23: -0.028 | H23: 0 | I23: 0 | J23: -0.0006483501589 | K23: -0.0006439786702
A24: Group 1 Volumetric DVA Rider (General) (2024) | E24: =IF($B$9="kWh",$B$4,$B$5) -> 40 | F24: =VLOOKUP($C$3,'Data Proposed Rates'!$A:$BF,MATCH('BI Template_Seasonal'!$A24,ProposedHeader,0),FALSE) -> 0.0013 | G24: =E24*F24 -> 0.052 | H24: =G24-D24 -> 0.052 | I24: =IF(ISERROR(H24/ABS(D24)),"N/A",(H24/ABS(D24))) -> N/A | J24: =G24/$G$46 -> 0.001204078867 | K24: =G24/$G$51 -> 0.001195960388
A25: Group 1 Volumetric Deferral/Variance Account Rider (Sub-Account CBR) (2024) | E25: =IF($B$9="kWh",$B$4,$B$5) -> 40 | F25: =VLOOKUP($C$3,'Data Proposed Rates'!$A:$BF,MATCH('BI Template_Seasonal'!$A25,ProposedHeader,0),FALSE) -> -0.0006 | G25: -0.024 | H25: -0.024 | I25: N/A | J25: -0.0005557287077 | K25: -0.0005519817173
A26: Sub-Total: Distribution (excluding pass through) | D26: =SUM(INDIRECT("D19:D"&ROW()-1)) -> 39.862 | G26: =SUM(INDIRECT("g19:g"&ROW()-1)) -> 39.89 | H26: =G26-D26 -> 0.028 | I26: 0.0007024233606 | J26: 0.9236674228 | K26: 0.9174396127
A27: Smart Metering Entity Charge | B27: =B19 -> 1 | C27: =VLOOKUP($A27,'Data Pass Through'!$A:$D,2,FALSE) -> 0.42 | D27: =B27*C27 -> 0.42 | E27: =E19 -> 1 | F27: =VLOOKUP($A27,'Data Pass Through'!$A:$D,3,FALSE) -> 0.42 | G27: =E27*F27 -> 0.42 | H27: 0 | I27: 0 | J27: 0.009725252384 | K27: 0.009659680053
A28: Line Losses on Cost of Power (based on two-tier RPP prices) | B28: =B8-B4 -> 2.28 | C28: =IF(B4>B7,C13,C12) -> 0.103 | D28: =B28*C28 -> 0.23484 | E28: =C8-C4 -> 2.28 | F28: =IF(C4>C7,F13,F12) -> 0.103 | G28: =E28*F28 -> 0.23484 | H28: 0 | I28: 0 | J28: 0.005437805404 | K28: 0.005401141104
A29: Line Losses on Cost of Power (based on TOU prices) | B29: =B8-B4 -> 2.28 | C29: =VLOOKUP($B$3,'Data Billing Quantities'!$A:$O,MATCH('BI Template_Seasonal'!$A15,'Data Billing Quantities'!$4:$4,0),FALSE)*C15+VLOOKUP($B$3,'Data Billing Quantities'!$A:$O,MATCH('BI Template_Seasonal'!$A16,'Data Billing Quantities'!$4:$4,0),FALSE)*C16+VLOOKUP($B$3,'Data Billing Quantities'!$A:$O,MATCH('BI Template_Seasonal'!$A17,'Data Billing Quantities'!$4:$4,0),FALSE)*C17 -> 0.1104 | D29: =B29*C29 -> 0.251712 | E29: =C8-C4 -> 2.28 | F29: =VLOOKUP($C$3,'Data Billing Quantities'!$A:$O,MATCH('BI Template_Seasonal'!$A15,'Data Billing Quantities'!$4:$4,0),FALSE)*F15+VLOOKUP($C$3,'Data Billing Quantities'!$A:$O,MATCH('BI Template_Seasonal'!$A16,'Data Billing Quantities'!$4:$4,0),FALSE)*F16+VLOOKUP($C$3,'Data Billing Quantities'!$A:$O,MATCH('BI Template_Seasonal'!$A17,'Data Billing Quantities'!$4:$4,0),FALSE)*F17 -> 0.1104 | G29: =E29*F29 -> 0.251712 | H29: 0 | I29: 0 | J29: 0.005828482686 | K29: 0.005789184251
A30: Sub-Total: Distribution (based on two-tier RPP prices) | D30: =SUM(D26,D27:D28) -> 40.51684 | G30: =SUM(G26,G27:G28) -> 40.54484 | H30: 0.028 | I30: 0.0006910706758 | J30: 0.9388304806 | K30: 0.9325004338
A31: Sub-Total: Distribution (based on TOU prices) | D31: =SUM(D26,D27,D29) -> 40.533712 | G31: =SUM(G26,G27,G29) -> 40.561712 | H31: 0.028 | I31: 0.0006907830203 | J31: 0.9392211579 | K31: 0.932888477
A32: Retail Transmission Rate – Network Service Rate | B32: =IF($B$9="kWh",$B$8,$B$5) -> 42.28 | C32: =VLOOKUP($B$3,'Data Current Rates'!$A:$AJ,MATCH('BI Template_Seasonal'!$A32,CurrentHeader,0),FALSE) -> 0.0126 | D32: =B32*C32 -> 0.532728 | E32: =IF($C$9="kWh",$C$8,$C$5) -> 42.28 | F32: =VLOOKUP($C$3,'Data Proposed Rates'!$A:$BF,MATCH('BI Template_Seasonal'!$A32,ProposedHeader,0),FALSE) -> 0.0126 | G32: =E32*F32 -> 0.532728 | H32: =G32-D32 -> 0 | I32: 0 | J32: 0.01233551012 | K32: 0.01225233818
A33: Retail Transmission Rate – Line and Transformation Connection Service Rate | B33: =IF($B$9="kWh",$B$8,$B$5) -> 42.28 | C33: =VLOOKUP($B$3,'Data Current Rates'!$A:$AJ,MATCH('BI Template_Seasonal'!$A33,CurrentHeader,0),FALSE) -> 0.0093 | D33: =B33*C33 -> 0.393204 | E33: =IF($C$9="kWh",$C$8,$C$5) -> 42.28 | F33: =VLOOKUP($C$3,'Data Proposed Rates'!$A:$BF,MATCH('BI Template_Seasonal'!$A33,ProposedHeader,0),FALSE) -> 0.0093 | G33: =E33*F33 -> 0.393204 | H33: =G33-D33 -> 0 | I33: 0 | J33: 0.009104781282 | K33: 0.009043392466
A34: Sub-Total: Retail Transmission | D34: =SUM(D32:D33) -> 0.925932 | G34: =SUM(G32:G33) -> 0.925932 | H34: =G34-D34 -> 0 | I34: 0 | J34: 0.02144029141 | K34: 0.02129573065
A35: Sub-Total: Delivery (based on two-tier RPP prices) | D35: =D30+D34 -> 41.442772 | G35: =G30+G34 -> 41.470772 | H35: =G35-D35 -> 0.028 | I35: 0.0006756304815 | J35: 0.960270772 | K35: 0.9537961645
A36: Sub-Total: Delivery (based on TOU prices) | D36: =D31+D34 -> 41.459644 | G36: =G31+G34 -> 41.487644 | H36: =G36-D36 -> 0.028 | I36: 0.0006753555337 | J36: 0.9606614493 | K36: 0.9541842076
A37: Wholesale Market Service Rate (WMS) - not including CBR | B37: =B8 -> 42.28 | C37: =VLOOKUP($A37,'Data Pass Through'!$A:$D,2,FALSE) -> 0.0041 | D37: =B37*C37 -> 0.173348 | E37: =$C$8 -> 42.28 | F37: =VLOOKUP($A37,'Data Pass Through'!$A:$D,3,FALSE) -> 0.0041 | G37: =E37*F37 -> 0.173348 | H37: 0 | I37: 0 | J37: 0.004013935834 | K37: 0.003986871947
A38: Capacity Based Recovery (CBR) - Applicable for Class B Customers | B38: =B8 -> 42.28 | C38: =VLOOKUP($A38,'Data Pass Through'!$A:$D,2,FALSE) -> 0.0004 | D38: =B38*C38 -> 0.016912 | E38: =$C$8 -> 42.28 | F38: =VLOOKUP($A38,'Data Pass Through'!$A:$D,3,FALSE) -> 0.0004 | G38: =E38*F38 -> 0.016912 | H38: 0 | I38: 0 | J38: 0.000391603496 | K38: 0.0003889631168
A39: Rural Rate Protection Charge | B39: =B8 -> 42.28 | C39: =VLOOKUP($A39,'Data Pass Through'!$A:$D,2,FALSE) -> 0.0014 | D39: 0.059192 | E39: 42.28 | F39: =VLOOKUP($A39,'Data Pass Through'!$A:$D,3,FALSE) -> 0.0014 | G39: 0.059192 | H39: 0 | I39: 0 | J39: 0.001370612236 | K39: 0.001361370909
A40: Standard Supply Service – Administration Charge (if applicable) | B40: 1 | C40: =VLOOKUP($A40,'Data Pass Through'!$A:$D,2,FALSE) -> 0.25 | D40: =B40*C40 -> 0.25 | E40: 1 | F40: =VLOOKUP($A40,'Data Pass Through'!$A:$D,3,FALSE) -> 0.25 | G40: 0.25 | H40: 0 | I40: 0 | J40: 0.005788840705 | K40: 0.005749809555
A41: Sub-Total: Regulatory | D41: =SUM(D37:D40) -> 0.499452 | G41: =SUM(G37:G40) -> 0.499452 | H41: 0 | I41: 0 | J41: 0.01156499227 | K41: 0.01148701553
A42: Total Electricty Charge on Two-Tier RPP | D42: =SUM(D14,D26,D27,D28,D34,D41) -> 46.062224 | G42: =SUM(G14,G26,G27,G28,G34,G41) -> 46.090224 | H42: 0.028 | I42: 0.0006078733845 | J42: 1.067235859
A43: HST | C43: 0.13 | D43: =D42*C43 -> 5.98808912 | F43: =C43 -> 0.13 | G43: =G42*F43 -> 5.99172912 | H43: 0.00364 | I43: 0.0006078733845 | J43: 0.1387406617
A44: Total Electricity Charge on Two-Tier RPP (including HST) | D44: =SUM(D42:D43) -> 52.05031312 | G44: =SUM(G42:G43) -> 52.08195312 | H44: 0.03164 | I44: 0.0006078733845 | J44: 1.205976521
A45: Ontario Electricity Rebate (OER) | C45: =IF(($B$4*12)<250000,VLOOKUP(A45,'Data Pass Through'!$A$4:$C$20,2,0),0) -> -0.193 | D45: =D42*C45 -> -8.890009232 | F45: =C45 -> -0.193 | G45: =G42*F45 -> -8.895413232 | H45: -0.005404 | I45: -0.0006078733845 | J45: -0.2059765208
A46: Total Amount on Two-Tier RPP | D46: =SUM(D44:D45) -> 43.16030389 | G46: =SUM(G44:G45) -> 43.18653989 | H46: 0.026236 | I46: 0.0006078733845 | J46: 1
A47: Total Electricty Charge on TOU (before HST) | D47: =SUM(D18,D26,D27,D29,D34,D41) -> 46.375096 | G47: =SUM(G18,G26,G27,G29,G34,G41) -> 46.403096 | H47: 0.028 | I47: 0.000603772335 | K47: =G47/$G$51 -> 1.067235859
A48: HST | C48: 0.13 | D48: =D47*C48 -> 6.02876248 | F48: =C48 -> 0.13 | G48: =G47*F48 -> 6.03240248 | H48: 0.00364 | I48: 0.000603772335 | K48: =G48/$G$51 -> 0.1387406617
A49: Total Electricity Charge on TOU (including HST) | D49: =SUM(D47:D48) -> 52.40385848 | G49: =SUM(G47:G48) -> 52.43549848 | H49: 0.03164 | I49: 0.000603772335 | K49: =G49/$G$51 -> 1.205976521
A50: Ontario Electricity Rebate (OER) | C50: =IF(($B$4*12)<250000,VLOOKUP(A50,'Data Pass Through'!$A$4:$C$20,2,0),0) -> -0.193 | D50: =D47*C50 -> -8.950393528 | F50: =C50 -> -0.193 | G50: =G47*F50 -> -8.955797528 | H50: -0.005404 | I50: -0.000603772335 | K50: =G50/$G$51 -> -0.2059765208
A51: Total Amount on TOU | D51: =SUM(D49:D50) -> 43.45346495 | G51: =SUM(G49:G50) -> 43.47970095 | H51: 0.026236 | I51: 0.000603772335 | K51: =G51/$G$51 -> 1
A52: * Distribution rate protection applies to R1 and R2 customers

Sheet BI Template_EnergyNPDI (hidden)
A1: 2024 Bill Impacts (Low Consumption Level) - AR_NPDI
A3: Rate Class | B3: =VLOOKUP(A1,'Data BI List Acq_Seas'!C:E,2,FALSE) -> AR-NPDI | C3: =VLOOKUP(A1,'Data BI List Acq_Seas'!C:E,3,FALSE) -> AR-NPDI
A4: Monthly Consumption (kWh) | B4: =IF(COUNTIF(A1,"*Low*")>0,VLOOKUP(B3,'Data Billing Quantities'!$A:$Z,MATCH("Low kWh",'Data Billing Quantities'!4:4,0),FALSE),IF(COUNTIF(A1,"*Typical*")>0,VLOOKUP(B3,'Data Billing Quantities'!$A:$Z,MATCH("Typical kWh",'Data Billing Quantities'!4:4,0),FALSE),IF(COUNTIF(A1,"*Average*")>0,VLOOKUP(B3,'Data Billing Quantities'!$A:$Z,MATCH("Average kWh",'Data Billing Quantities'!4:4,0),FALSE),IF(COUNTIF(A1,"*High*")>0,VLOOKUP(B3,'Data Billing Quantities'!$A:$Z,MATCH("High kWh",'Data Billing Quantities'!4:4,0),FALSE),"error")))) -> 290 | C4: =B4 -> 290
A5: Peak (kW) | B5: =IF(COUNTIF(A1,"*Low*")>0,VLOOKUP(B3,'Data Billing Quantities'!$A:$Z,MATCH("Low kW",'Data Billing Quantities'!4:4,0),FALSE),IF(COUNTIF(A1,"*Typical*")>0,VLOOKUP(B3,'Data Billing Quantities'!$A:$Z,MATCH("Typical kW",'Data Billing Quantities'!4:4,0),FALSE),IF(COUNTIF(A1,"*Average*")>0,VLOOKUP(B3,'Data Billing Quantities'!$A:$Z,MATCH("Average kW",'Data Billing Quantities'!4:4,0),FALSE),IF(COUNTIF(A1,"*High*")>0,VLOOKUP(B3,'Data Billing Quantities'!$A:$Z,MATCH("High kW",'Data Billing Quantities'!4:4,0),FALSE),"error")))) -> 0 | C5: =B5 -> 0
A6: Loss factor | B6: =VLOOKUP(B3,'Data Billing Quantities'!A:D,MATCH(A6,'Data Billing Quantities'!4:4,0),FALSE) -> 1.064 | C6: =VLOOKUP(C3,'Data Billing Quantities'!A:D,MATCH(A6,'Data Billing Quantities'!4:4,0),FALSE) -> 1.064
A7: Commodity Threshold | B7: =VLOOKUP(B3,'Data Billing Quantities'!A:D,MATCH(A7,'Data Billing Quantities'!4:4,0),FALSE) -> 750 | C7: =B7 -> 750
A8: Monthly Consumption (kWh) - Uplifted | B8: =B4*B6 -> 308.56 | C8: =C4*C6 -> 308.56
A9: Charge determinant | B9: =VLOOKUP(B3,'Data Billing Quantities'!A:D,MATCH(A9,'Data Billing Quantities'!4:4,0),FALSE) -> kWh | C9: =VLOOKUP(C3,'Data Billing Quantities'!A:D,MATCH(A9,'Data Billing Quantities'!4:4,0),FALSE) -> kWh
B11: Volume | C11: Current Rate ($) | D11: Current Charge ($) | E11: Volume | F11: Proposed Rate ($) | G11: Proposed Charge ($) | H11: Change ($) | I11: Change (%) | J11: % of Total Bill on RPP | K11: % of Total Bill
A12: Energy First Tier | B12: =IF(B4>B7,B7,B4) -> 290 | C12: =VLOOKUP($A12,'Data Pass Through'!$A:$D,2,FALSE) -> 0.103 | D12: =B12*C12 -> 29.87 | E12: =B12 -> 290 | F12: =VLOOKUP($A12,'Data Pass Through'!$A:$D,3,FALSE) -> 0.103 | G12: =E12*F12 -> 29.87 | H12: =G12-D12 -> 0 | I12: =IF(ISERROR(H12/ABS(D12)),"N/A",(H12/ABS(D12))) -> 0 | J12: =G12/$G$46 -> 0.3957537515
A13: Energy Second Tier | B13: =IF(B4>B7,(B4)-B7,0) -> 0 | C13: =VLOOKUP($A13,'Data Pass Through'!$A:$D,2,FALSE) -> 0.125 | D13: =B13*C13 -> 0 | E13: =B13 -> 0 | F13: =VLOOKUP($A13,'Data Pass Through'!$A:$D,3,FALSE) -> 0.125 | G13: =E13*F13 -> 0 | H13: 0 | I13: N/A | J13: =G13/$G$46 -> 0
A14: Sub-Total: Energy (RPP Tiered) | D14: =SUM(D12:D13) -> 29.87 | G14: =SUM(G12:G13) -> 29.87 | H14: 0 | I14: 0 | J14: =G14/$G$46 -> 0.3957537515
A15: TOU-Off Peak | B15: =B$4*VLOOKUP($B$3,'Data Billing Quantities'!$A:$O,MATCH('BI Template_EnergyNPDI'!$A15,'Data Billing Quantities'!$4:$4,0),FALSE) -> 185.6 | C15: =VLOOKUP($A15,'Data Pass Through'!$A:$D,2,FALSE) -> 0.087 | D15: =B15*C15 -> 16.1472 | E15: 185.6 | F15: =VLOOKUP($A15,'Data Pass Through'!$A:$D,3,FALSE) -> 0.087 | G15: =E15*F15 -> 16.1472 | H15: 0 | I15: 0 | K15: =G15/$G$51 -> 0.208040329
A16: TOU-Mid Peak | B16: =B$4*VLOOKUP($B$3,'Data Billing Quantities'!$A:$O,MATCH('BI Template_EnergyNPDI'!$A16,'Data Billing Quantities'!$4:$4,0),FALSE) -> 52.2 | C16: =VLOOKUP($A16,'Data Pass Through'!$A:$D,2,FALSE) -> 0.122 | D16: =B16*C16 -> 6.3684 | E16: 52.2 | F16: =VLOOKUP($A16,'Data Pass Through'!$A:$D,3,FALSE) -> 0.122 | G16: =E16*F16 -> 6.3684 | H16: 0 | I16: 0 | K16: 0.08205038838
A17: TOU-On Peak | B17: =B$4*VLOOKUP($B$3,'Data Billing Quantities'!$A:$O,MATCH('BI Template_EnergyNPDI'!$A17,'Data Billing Quantities'!$4:$4,0),FALSE) -> 52.2 | C17: =VLOOKUP($A17,'Data Pass Through'!$A:$D,2,FALSE) -> 0.182 | D17: =B17*C17 -> 9.5004 | E17: 52.2 | F17: =VLOOKUP($A17,'Data Pass Through'!$A:$D,3,FALSE) -> 0.182 | G17: =E17*F17 -> 9.5004 | H17: 0 | I17: 0 | K17: 0.1224030384
A18: Sub-Total: Energy (RPP TOU) | D18: =SUM(D15:D17) -> 32.016 | G18: =SUM(G15:G17) -> 32.016 | H18: 0 | I18: 0 | J18: =G18/$G$46 -> 0.4241865453 | K18: 0.4124937558
A19: Service Charge | B19: 1 | C19: =VLOOKUP($B$3,'Data Current Rates'!$A:$AJ,MATCH('BI Template_EnergyNPDI'!$A19,CurrentHeader,0),FALSE) -> 40.1 | D19: =B19*C19 -> 40.1 | E19: 1 | F19: =VLOOKUP($C$3,'Data Proposed Rates'!$A:$BF,MATCH('BI Template_EnergyNPDI'!$A19,ProposedHeader,0),FALSE) -> 40.1 | G19: =E19*F19 -> 40.1 | H19: 0 | I19: 0 | J19: 0.5312931181 | K19: 0.5166479138
A20: Distribution Volumetric Charge | B20: =IF($B$9="kWh",$B$4,$B$5) -> 290 | C20: =VLOOKUP($B$3,'Data Current Rates'!$A:$AJ,MATCH('BI Template_EnergyNPDI'!$A20,CurrentHeader,0),FALSE) -> 0 | D20: =B20*C20 -> 0 | E20: =IF($C$9="kWh",$C$4,$C$5) -> 290 | F20: =VLOOKUP($C$3,'Data Proposed Rates'!$A:$BF,MATCH('BI Template_EnergyNPDI'!$A20,ProposedHeader,0),FALSE) -> 0 | G20: 0 | H20: 0 | I20: N/A | J20: 0 | K20: 0
A21: Group 1 Volumetric DVA Rider (General) (2023) | B21: =IF($B$9="kWh",$B$4,$B$5) -> 290 | C21: =VLOOKUP($B$3,'Data Current Rates'!$A:$AJ,MATCH('BI Template_EnergyNPDI'!$A21,CurrentHeader,0),FALSE) -> -0.0008 | D21: =B21*C21 -> -0.232 | E21: =IF($C$9="kWh",$C$4,$C$5) -> 290 | F21: =VLOOKUP($C$3,'Data Proposed Rates'!$A:$BF,MATCH('BI Template_EnergyNPDI'!$A21,ProposedHeader,0),FALSE) -> -0.0008 | G21: -0.232 | H21: 0 | I21: 0 | J21: -0.003073815546 | K21: -0.002989085187
A22: Group 1 Volumetric DVA Rider (Excl 1595) (2024) | E22: =IF($B$9="kWh",$B$4,$B$5) -> 290 | F22: =VLOOKUP($C$3,'Data Proposed Rates'!$A:$BF,MATCH('BI Template_EnergyNPDI'!$A22,ProposedHeader,0),FALSE) -> 0.0011 | G22: =E22*F22 -> 0.319 | H22: =G22-D22 -> 0.319 | I22: =IF(ISERROR(H22/ABS(D22)),"N/A",(H22/ABS(D22))) -> N/A | J22: 0.004226496376 | K22: 0.004109992132
A23: Group 1 Volumetric Deferral/Variance Account Rider (Sub-Account CBR) (2024) | E23: =IF($B$9="kWh",$B$4,$B$5) -> 290 | F23: =VLOOKUP($C$3,'Data Proposed Rates'!$A:$BF,MATCH('BI Template_EnergyNPDI'!$A23,ProposedHeader,0),FALSE) -> -0.0006 | G23: -0.174 | H23: -0.174 | I23: N/A | J23: -0.002305361659 | K23: -0.00224181389
A24: Fixed Rider for Account 1592 | B24: 1 | C24: =VLOOKUP($B$3,'Data Current Rates'!$A:$AJ,MATCH('BI Template_EnergyNPDI'!$A24,CurrentHeader,0),FALSE) -> -0.43 | D24: =B24*C24 -> -0.43 | E24: 1 | F24: =VLOOKUP($C$3,'Data Proposed Rates'!$A:$BF,MATCH('BI Template_EnergyNPDI'!$A24,ProposedHeader,0),FALSE) -> -0.43 | G24: =E24*F24 -> -0.43 | H24: =G24-D24 -> 0 | I24: =IF(ISERROR(H24/ABS(D24)),"N/A",(H24/ABS(D24))) -> 0 | J24: -0.005697158124 | K24: -0.005540114786
A25: Volumetric Rider for Account 1592 | B25: =IF($B$9="kWh",$B$4,$B$5) -> 290 | C25: =VLOOKUP($B$3,'Data Current Rates'!$A:$AJ,MATCH('BI Template_EnergyNPDI'!$A25,CurrentHeader,0),FALSE) -> 0 | D25: =B25*C25 -> 0 | E25: =IF($C$9="kWh",$C$4,$C$5) -> 290 | F25: =VLOOKUP($C$3,'Data Proposed Rates'!$A:$BF,MATCH('BI Template_EnergyNPDI'!$A25,ProposedHeader,0),FALSE) -> 0 | G25: 0 | H25: 0 | I25: N/A | J25: 0 | K25: 0
A26: Sub-Total: Distribution (excluding pass through) | D26: =SUM(INDIRECT("D19:D"&ROW()-1)) -> 39.438 | G26: =SUM(INDIRECT("g19:g"&ROW()-1)) -> 39.583 | H26: =G26-D26 -> 0.145 | I26: 0.003676657031 | J26: =G26/$G$46 -> 0.5244432791 | K26: =G26/$G$51 -> 0.509986892
A27: Smart Metering Entity Charge | B27: =B19 -> 1 | C27: =VLOOKUP($A27,'Data Pass Through'!$A:$D,2,FALSE) -> 0.42 | D27: =B27*C27 -> 0.42 | E27: =E19 -> 1 | F27: =VLOOKUP($A27,'Data Pass Through'!$A:$D,3,FALSE) -> 0.42 | G27: =E27*F27 -> 0.42 | H27: 0 | I27: 0 | J27: 0.005564666075 | K27: 0.005411274907
A28: Line Losses on Cost of Power (based on two-tier RPP prices) | B28: =B8-B4 -> 18.56 | C28: =IF(B4>B7,C13,C12) -> 0.103 | D28: =B28*C28 -> 1.91168 | E28: =C8-C4 -> 18.56 | F28: =IF(C4>C7,F13,F12) -> 0.103 | G28: =E28*F28 -> 1.91168 | H28: 0 | I28: 0 | J28: 0.0253282401 | K28: 0.02463006194
A29: Line Losses on Cost of Power (based on TOU prices) | B29: =B8-B4 -> 18.56 | C29: =VLOOKUP($B$3,'Data Billing Quantities'!$A:$O,MATCH('BI Template_EnergyNPDI'!$A15,'Data Billing Quantities'!$4:$4,0),FALSE)*C15+VLOOKUP($B$3,'Data Billing Quantities'!$A:$O,MATCH('BI Template_EnergyNPDI'!$A16,'Data Billing Quantities'!$4:$4,0),FALSE)*C16+VLOOKUP($B$3,'Data Billing Quantities'!$A:$O,MATCH('BI Template_EnergyNPDI'!$A17,'Data Billing Quantities'!$4:$4,0),FALSE)*C17 -> 0.1104 | D29: =B29*C29 -> 2.049024 | E29: =C8-C4 -> 18.56 | F29: =VLOOKUP($C$3,'Data Billing Quantities'!$A:$O,MATCH('BI Template_EnergyNPDI'!$A15,'Data Billing Quantities'!$4:$4,0),FALSE)*F15+VLOOKUP($C$3,'Data Billing Quantities'!$A:$O,MATCH('BI Template_EnergyNPDI'!$A16,'Data Billing Quantities'!$4:$4,0),FALSE)*F16+VLOOKUP($C$3,'Data Billing Quantities'!$A:$O,MATCH('BI Template_EnergyNPDI'!$A17,'Data Billing Quantities'!$4:$4,0),FALSE)*F17 -> 0.1104 | G29: =E29*F29 -> 2.049024 | H29: 0 | I29: 0 | J29: 0.0271479389 | K29: 0.02639960037
A30: Sub-Total: Distribution (based on two-tier RPP prices) | D30: =SUM(D26,D27:D28) -> 41.76968 | G30: =SUM(G26,G27:G28) -> 41.91468 | H30: 0.145 | I30: 0.003471417545 | J30: 0.5553361853 | K30: 0.5400282289
A31: Sub-Total: Distribution (based on TOU prices) | D31: =SUM(D26,D27,D29) -> 41.907024 | G31: =SUM(G26,G27,G29) -> 42.052024 | H31: 0.145 | I31: 0.003460040493 | J31: 0.5571558841 | K31: 0.5417977673
A32: Retail Transmission Rate – Network Service Rate | B32: =IF($B$9="kWh",$B$8,$B$5) -> 308.56 | C32: =VLOOKUP($B$3,'Data Current Rates'!$A:$AJ,MATCH('BI Template_EnergyNPDI'!$A32,CurrentHeader,0),FALSE) -> 0.0124 | D32: =B32*C32 -> 3.826144 | E32: =IF($C$9="kWh",$C$8,$C$5) -> 308.56 | F32: =VLOOKUP($C$3,'Data Proposed Rates'!$A:$BF,MATCH('BI Template_EnergyNPDI'!$A32,ProposedHeader,0),FALSE) -> 0.0124 | G32: =E32*F32 -> 3.826144 | H32: =G32-D32 -> 0 | I32: 0 | J32: 0.05069336598 | K32: 0.0492959929
A33: Retail Transmission Rate – Line and Transformation Connection Service Rate | B33: =IF($B$9="kWh",$B$8,$B$5) -> 308.56 | C33: =VLOOKUP($B$3,'Data Current Rates'!$A:$AJ,MATCH('BI Template_EnergyNPDI'!$A33,CurrentHeader,0),FALSE) -> 0.0093 | D33: =B33*C33 -> 2.869608 | E33: =IF($C$9="kWh",$C$8,$C$5) -> 308.56 | F33: =VLOOKUP($C$3,'Data Proposed Rates'!$A:$BF,MATCH('BI Template_EnergyNPDI'!$A33,ProposedHeader,0),FALSE) -> 0.0093 | G33: =E33*F33 -> 2.869608 | H33: =G33-D33 -> 0 | I33: 0 | J33: 0.03802002449 | K33: 0.03697199468
A34: Sub-Total: Retail Transmission | D34: =SUM(D32:D33) -> 6.695752 | G34: =SUM(G32:G33) -> 6.695752 | H34: =G34-D34 -> 0 | I34: 0 | J34: 0.08871339047 | K34: 0.08626798758
A35: Sub-Total: Delivery (based on two-tier RPP prices) | D35: =D30+D34 -> 48.465432 | G35: =G30+G34 -> 48.610432 | H35: =G35-D35 -> 0.145 | I35: 0.00299182312 | J35: 0.6440495758 | K35: 0.6262962165
A36: Sub-Total: Delivery (based on TOU prices) | D36: =D31+D34 -> 48.602776 | G36: =G31+G34 -> 48.747776 | H36: =G36-D36 -> 0.145 | I36: 0.002983368687 | J36: 0.6458692746 | K36: 0.6280657549
A37: Wholesale Market Service Rate (WMS) - not including CBR | B37: =B8 -> 308.56 | C37: =VLOOKUP($A37,'Data Pass Through'!$A:$D,2,FALSE) -> 0.0041 | D37: =B37*C37 -> 1.265096 | E37: =$C$8 -> 308.56 | F37: =VLOOKUP($A37,'Data Pass Through'!$A:$D,3,FALSE) -> 0.0041 | G37: =E37*F37 -> 1.265096 | H37: 0 | I37: 0 | J37: 0.01676151617 | K37: 0.01629948152
A38: Capacity Based Recovery (CBR) - Applicable for Class B Customers | B38: =B8 -> 308.56 | C38: =VLOOKUP($A38,'Data Pass Through'!$A:$D,2,FALSE) -> 0.0004 | D38: =B38*C38 -> 0.123424 | E38: =$C$8 -> 308.56 | F38: =VLOOKUP($A38,'Data Pass Through'!$A:$D,3,FALSE) -> 0.0004 | G38: =E38*F38 -> 0.123424 | H38: 0 | I38: 0 | J38: 0.00163526987 | K38: 0.001590193319
A39: Rural Rate Protection Charge | B39: =B8 -> 308.56 | C39: =VLOOKUP($A39,'Data Pass Through'!$A:$D,2,FALSE) -> 0.0014 | D39: 0.431984 | E39: 308.56 | F39: =VLOOKUP($A39,'Data Pass Through'!$A:$D,3,FALSE) -> 0.0014 | G39: 0.431984 | H39: 0 | I39: 0 | J39: 0.005723444547 | K39: 0.005565676618
A40: Standard Supply Service – Administration Charge (if applicable) | B40: 1 | C40: =VLOOKUP($A40,'Data Pass Through'!$A:$D,2,FALSE) -> 0.25 | D40: =B40*C40 -> 0.25 | E40: 1 | F40: =VLOOKUP($A40,'Data Pass Through'!$A:$D,3,FALSE) -> 0.25 | G40: 0.25 | H40: 0 | I40: 0 | J40: 0.003312301235 | K40: 0.003220996969
A41: Sub-Total: Regulatory | D41: =SUM(D37:D40) -> 2.070504 | G41: =SUM(G37:G40) -> 2.070504 | H41: 0 | I41: 0 | J41: 0.02743253182 | K41: 0.02667634843
A42: Total Electricty Charge on Two-Tier RPP | D42: =SUM(D14,D26,D27,D28,D34,D41) -> 80.405936 | G42: =SUM(G14,G26,G27,G28,G34,G41) -> 80.550936 | H42: 0.145 | I42: 0.001803349444 | J42: 1.067235859
A43: HST | C43: 0.13 | D43: =D42*C43 -> 10.45277168 | F43: =C43 -> 0.13 | G43: =G42*F43 -> 10.47162168 | H43: 0.01885 | I43: 0.001803349444 | J43: 0.1387406617
A44: Total Electricity Charge on Two-Tier RPP (including HST) | D44: =SUM(D42:D43) -> 90.85870768 | G44: =SUM(G42:G43) -> 91.02255768 | H44: 0.16385 | I44: 0.001803349444 | J44: 1.205976521
A45: Ontario Electricity Rebate (OER) | C45: =IF(($B$4*12)<250000,VLOOKUP(A45,'Data Pass Through'!$A$4:$C$20,2,0),0) -> -0.193 | D45: =D42*C45 -> -15.51834565 | F45: =C45 -> -0.193 | G45: =G42*F45 -> -15.54633065 | H45: -0.027985 | I45: -0.001803349444 | J45: -0.2059765208
A46: Total Amount on Two-Tier RPP | D46: =SUM(D44:D45) -> 75.34036203 | G46: =SUM(G44:G45) -> 75.47622703 | H46: 0.135865 | I46: 0.001803349444 | J46: 1
A47: Total Electricty Charge on TOU (before HST) | D47: =SUM(D18,D26,D27,D29,D34,D41) -> 82.68928 | G47: =SUM(G18,G26,G27,G29,G34,G41) -> 82.83428 | H47: 0.145 | I47: 0.001753552577 | K47: =G47/$G$51 -> 1.067235859
A48: HST | C48: 0.13 | D48: =D47*C48 -> 10.7496064 | F48: =C48 -> 0.13 | G48: =G47*F48 -> 10.7684564 | H48: 0.01885 | I48: 0.001753552577 | K48: =G48/$G$51 -> 0.1387406617
A49: Total Electricity Charge on TOU (including HST) | D49: =SUM(D47:D48) -> 93.4388864 | G49: =SUM(G47:G48) -> 93.6027364 | H49: 0.16385 | I49: 0.001753552577 | K49: =G49/$G$51 -> 1.205976521
A50: Ontario Electricity Rebate (OER) | C50: =IF(($B$4*12)<250000,VLOOKUP(A50,'Data Pass Through'!$A$4:$C$20,2,0),0) -> -0.193 | D50: =D47*C50 -> -15.95903104 | F50: =C50 -> -0.193 | G50: =G47*F50 -> -15.98701604 | H50: -0.027985 | I50: -0.001753552577 | K50: =G50/$G$51 -> -0.2059765208
A51: Total Amount on TOU | D51: =SUM(D49:D50) -> 77.47985536 | G51: =SUM(G49:G50) -> 77.61572036 | H51: 0.135865 | I51: 0.001753552577 | K51: =G51/$G$51 -> 1

Sheet BI Template_DemandNPDI (hidden)
A1: 2024 Bill Impacts (Low Consumption Level) - AGSd_NPDI
A3: Rate Class | B3: =VLOOKUP(A1,'Data BI List Acq_Seas'!C:E,2,FALSE) -> AGSd-NPDI | C3: =VLOOKUP(A1,'Data BI List Acq_Seas'!C:E,3,FALSE) -> AGSd-NPDI
A4: Monthly Consumption (kWh) | B4: =IF(COUNTIF(A1,"*Low*")>0,VLOOKUP(B3,'Data Billing Quantities'!$A:$Z,MATCH("Low kWh",'Data Billing Quantities'!4:4,0),FALSE),IF(COUNTIF(A1,"*Typical*")>0,VLOOKUP(B3,'Data Billing Quantities'!$A:$Z,MATCH("Typical kWh",'Data Billing Quantities'!4:4,0),FALSE),IF(COUNTIF(A1,"*Average*")>0,VLOOKUP(B3,'Data Billing Quantities'!$A:$Z,MATCH("Average kWh",'Data Billing Quantities'!4:4,0),FALSE),IF(COUNTIF(A1,"*High*")>0,VLOOKUP(B3,'Data Billing Quantities'!$A:$Z,MATCH("High kWh",'Data Billing Quantities'!4:4,0),FALSE),"error")))) -> 13020 | C4: =B4 -> 13020
A5: Peak (kW) | B5: =IF(COUNTIF(A1,"*Low*")>0,VLOOKUP(B3,'Data Billing Quantities'!$A:$Z,MATCH("Low kW",'Data Billing Quantities'!4:4,0),FALSE),IF(COUNTIF(A1,"*Typical*")>0,VLOOKUP(B3,'Data Billing Quantities'!$A:$Z,MATCH("Typical kW",'Data Billing Quantities'!4:4,0),FALSE),IF(COUNTIF(A1,"*Average*")>0,VLOOKUP(B3,'Data Billing Quantities'!$A:$Z,MATCH("Average kW",'Data Billing Quantities'!4:4,0),FALSE),IF(COUNTIF(A1,"*High*")>0,VLOOKUP(B3,'Data Billing Quantities'!$A:$Z,MATCH("High kW",'Data Billing Quantities'!4:4,0),FALSE),"error")))) -> 55 | C5: =B5 -> 55
A6: Loss factor | B6: =VLOOKUP(B3,'Data Billing Quantities'!A:D,MATCH(A6,'Data Billing Quantities'!4:4,0),FALSE) -> 1.053 | C6: =VLOOKUP(C3,'Data Billing Quantities'!A:D,MATCH(A6,'Data Billing Quantities'!4:4,0),FALSE) -> 1.053
A7: Commodity Threshold | B7: =VLOOKUP(B3,'Data Billing Quantities'!A:D,MATCH(A7,'Data Billing Quantities'!4:4,0),FALSE) -> 0 | C7: =B7 -> 0
A8: Monthly Consumption (kWh) - Uplifted | B8: =B4*B6 -> 13710.06 | C8: =C4*C6 -> 13710.06
A9: Charge determinant | B9: =VLOOKUP(B3,'Data Billing Quantities'!A:D,MATCH(A9,'Data Billing Quantities'!4:4,0),FALSE) -> kW | C9: =VLOOKUP(C3,'Data Billing Quantities'!A:D,MATCH(A9,'Data Billing Quantities'!4:4,0),FALSE) -> kW
B11: Volume | C11: Current Rate ($) | D11: Current Charge ($) | E11: Volume | F11: Proposed Rate ($) | G11: Proposed Charge ($) | H11: Change ($) | I11: Change (%) | J11: % of Total Bill
A12: Weighted Average Hourly Spot Price | B12: =B8 -> 13710.06 | C12: =VLOOKUP($A12,'Data Pass Through'!$A:$D,2,FALSE) -> 0.1035 | D12: =B12*C12 -> 1418.99121 | E12: =C8 -> 13710.06 | F12: =VLOOKUP($A12,'Data Pass Through'!$A:$D,3,FALSE) -> 0.1035 | G12: =E12*F12 -> 1418.99121 | H12: =G12-D12 -> 0 | I12: =IF(ISERROR(H12/ABS(D12)),"N/A",(H12/ABS(D12))) -> 0 | J12: =G12/G$36 -> 0.5770771466
A13: Sub-Total: Energy (WASHP) | D13: =SUM(D12:D12) -> 1418.99121 | G13: =SUM(G12:G12) -> 1418.99121 | H13: 0 | I13: 0 | J13: 0.5770771466
A14: Service Charge | B14: 1 | C14: =VLOOKUP($B$3,'Data Current Rates'!$A:$AJ,MATCH('BI Template_DemandNPDI'!$A14,CurrentHeader,0),FALSE) -> 170.26 | D14: =B14*C14 -> 170.26 | E14: 1 | F14: =VLOOKUP($C$3,'Data Proposed Rates'!$A:$BF,MATCH('BI Template_DemandNPDI'!$A14,ProposedHeader,0),FALSE) -> 170.26 | G14: =E14*F14 -> 170.26 | H14: 0 | I14: 0 | J14: 0.06924155293
A15: Distribution Volumetric Charge | B15: =IF($B$9="kWh",$B$4,$B$5) -> 55 | C15: =VLOOKUP($B$3,'Data Current Rates'!$A:$AJ,MATCH('BI Template_DemandNPDI'!$A15,CurrentHeader,0),FALSE) -> 4.908 | D15: =B15*C15 -> 269.94 | E15: =IF($C$9="kWh",$C$4,$C$5) -> 55 | F15: =VLOOKUP($C$3,'Data Proposed Rates'!$A:$BF,MATCH('BI Template_DemandNPDI'!$A15,ProposedHeader,0),FALSE) -> 4.908 | G15: 269.94 | H15: 0 | I15: 0 | J15: 0.1097795419
A16: Group 1 Volumetric DVA Rider (General) (2023) | B16: =IF($B$9="kWh",$B$4,$B$5) -> 55 | C16: =VLOOKUP($B$3,'Data Current Rates'!$A:$AJ,MATCH('BI Template_DemandNPDI'!$A16,CurrentHeader,0),FALSE) -> -0.0653 | D16: =B16*C16 -> -3.5915 | E16: =IF($C$9="kWh",$C$4,$C$5) -> 55 | F16: =VLOOKUP($C$3,'Data Proposed Rates'!$A:$BF,MATCH('BI Template_DemandNPDI'!$A16,ProposedHeader,0),FALSE) -> -0.0653 | G16: -3.5915 | H16: 0 | I16: 0 | J16: -0.001460595779
A17: Group 1 Volumetric Deferral/Variance Account Rider (Sub-Account RSVA Wholesale Market Service Charge & RSVA Power) (2023) | B17: 55 | C17: =VLOOKUP($B$3,'Data Current Rates'!$A:$AJ,MATCH('BI Template_DemandNPDI'!$A17,CurrentHeader,0),FALSE) -> -0.1364 | D17: -7.502 | E17: 55 | F17: =VLOOKUP($C$3,'Data Proposed Rates'!$A:$BF,MATCH('BI Template_DemandNPDI'!$A17,ProposedHeader,0),FALSE) -> -0.1364 | G17: -7.502 | H17: 0 | I17: 0 | J17: -0.003050922883
A18: Group 1 Volumetric Deferral/Variance Account Rider (Sub-Account Global Adjustment) (2023) | B18: =$B$4 -> 13020 | C18: =VLOOKUP($B$3,'Data Current Rates'!$A:$AJ,MATCH('BI Template_DemandNPDI'!$A18,CurrentHeader,0),FALSE) -> -0.0009 | D18: -11.718 | E18: =$C$4 -> 13020 | F18: =VLOOKUP($C$3,'Data Proposed Rates'!$A:$BF,MATCH('BI Template_DemandNPDI'!$A18,ProposedHeader,0),FALSE) -> -0.0009 | G18: -11.718 | H18: 0 | I18: 0 | J18: -0.004765491115
A19: Group 1 Volumetric DVA Rider (Excl 1595) (2024) | E19: 55 | F19: =VLOOKUP($C$3,'Data Proposed Rates'!$A:$BF,MATCH('BI Template_DemandNPDI'!$A19,ProposedHeader,0),FALSE) -> 0.2995 | G19: =E19*F19 -> 16.4725 | H19: =G19-D19 -> 16.4725 | I19: =IF(ISERROR(H19/ABS(D19)),"N/A",(H19/ABS(D19))) -> N/A | J19: 0.00669905721
A20: Group 1 Volumetric Deferral/Variance Account Rider (Sub-Account RSVA Wholesale Market Service Charge & RSVA Power) (2024) | E20: 55 | F20: =VLOOKUP($C$3,'Data Proposed Rates'!$A:$BF,MATCH('BI Template_DemandNPDI'!$A20,ProposedHeader,0),FALSE) -> 0.2454 | G20: 13.497 | H20: 13.497 | I20: N/A | J20: 0.005488977093
A21: Group 1 Volumetric Deferral/Variance Account Rider (Sub-Account Global Adjustment) (2024) | E21: =E18 -> 13020 | F21: =VLOOKUP($C$3,'Data Proposed Rates'!$A:$BF,MATCH('BI Template_DemandNPDI'!$A21,ProposedHeader,0),FALSE) -> -0.0045 | G21: -58.59 | H21: -58.59 | I21: N/A | J21: -0.02382745557
A22: Group 1 Volumetric Deferral/Variance Account Rider (Sub-Account CBR) (2024) | E22: 55 | F22: =VLOOKUP($C$3,'Data Proposed Rates'!$A:$BF,MATCH('BI Template_DemandNPDI'!$A22,ProposedHeader,0),FALSE) -> -0.1966 | G22: -10.813 | H22: -10.813 | I22: N/A | J22: -0.004397444566
A23: Volumetric Rider for Account 1592 | B23: =IF($B$9="kWh",$B$4,$B$5) -> 55 | C23: =VLOOKUP($B$3,'Data Current Rates'!$A:$AJ,MATCH('BI Template_DemandNPDI'!$A23,CurrentHeader,0),FALSE) -> -0.0618 | D23: =B23*C23 -> -3.399 | E23: 55 | F23: =VLOOKUP($C$3,'Data Proposed Rates'!$A:$BF,MATCH('BI Template_DemandNPDI'!$A23,ProposedHeader,0),FALSE) -> -0.0618 | G23: =E23*F23 -> -3.399 | H23: =G23-D23 -> 0 | I23: =IF(ISERROR(H23/ABS(D23)),"N/A",(H23/ABS(D23))) -> 0 | J23: -0.001382309635
A24: Sub-Total: Distribution | D24: =SUM(INDIRECT("D14:D"&ROW()-1)) -> 413.9895 | G24: =SUM(INDIRECT("g14:g"&ROW()-1)) -> 374.556 | H24: =G24-D24 -> -39.4335 | I24: -0.09525241582 | J24: =G24/G$36 -> 0.1523249095
A25: Retail Transmission Rate – Network Service Rate | B25: =IF($B$9="kWh",$B$4,$B$5) -> 55 | C25: =VLOOKUP($B$3,'Data Current Rates'!$A:$AJ,MATCH('BI Template_DemandNPDI'!$A25,CurrentHeader,0),FALSE) -> 3.0669 | D25: =B25*C25 -> 168.6795 | E25: =IF($C$9="kWh",$C$4,$C$5) -> 55 | F25: =VLOOKUP($C$3,'Data Proposed Rates'!$A:$BF,MATCH('BI Template_DemandNPDI'!$A25,ProposedHeader,0),FALSE) -> 3.0669 | G25: =E25*F25 -> 168.6795 | H25: =G25-D25 -> 0 | I25: 0 | J25: 0.06859879318
A26: Retail Transmission Rate – Line and Transformation Connection Service Rate | B26: =IF($B$9="kWh",$B$4,$B$5) -> 55 | C26: =VLOOKUP($B$3,'Data Current Rates'!$A:$AJ,MATCH('BI Template_DemandNPDI'!$A26,CurrentHeader,0),FALSE) -> 2.4123 | D26: =B26*C26 -> 132.6765 | E26: =IF($C$9="kWh",$C$4,$C$5) -> 55 | F26: =VLOOKUP($C$3,'Data Proposed Rates'!$A:$BF,MATCH('BI Template_DemandNPDI'!$A26,ProposedHeader,0),FALSE) -> 2.4123 | G26: =E26*F26 -> 132.6765 | H26: =G26-D26 -> 0 | I26: 0 | J26: 0.05395704744
A27: Sub-Total: Retail Transmission | D27: =SUM(D25:D26) -> 301.356 | G27: =SUM(G25:G26) -> 301.356 | H27: =G27-D27 -> 0 | I27: 0 | J27: 0.1225558406
A28: Sub-Total: Delivery (based on two-tier RPP prices) | D28: =SUM(D24,D27) -> 715.3455 | G28: =SUM(G24,G27) -> 675.912 | H28: =G28-D28 -> -39.4335 | I28: -0.05512511087 | J28: 0.2748807502
A29: Wholesale Market Service Rate (WMS) - not including CBR | B29: =B8 -> 13710.06 | C29: =VLOOKUP($A29,'Data Pass Through'!$A:$D,2,FALSE) -> 0.0041 | D29: =B29*C29 -> 56.211246 | E29: =$C$8 -> 13710.06 | F29: =VLOOKUP($A29,'Data Pass Through'!$A:$D,3,FALSE) -> 0.0041 | G29: =E29*F29 -> 56.211246 | H29: =G29-D29 -> 0 | I29: 0 | J29: 0.02286006088
A30: Capacity Based Recovery (CBR) - Applicable for Class B Customers | B30: =B8 -> 13710.06 | C30: =VLOOKUP($A30,'Data Pass Through'!$A:$D,2,FALSE) -> 0.0004 | D30: =B30*C30 -> 5.484024 | E30: =$C$8 -> 13710.06 | F30: =VLOOKUP($A30,'Data Pass Through'!$A:$D,3,FALSE) -> 0.0004 | G30: =E30*F30 -> 5.484024 | H30: 0 | I30: 0 | J30: 0.002230249842
A31: Rural Rate Protection Charge | B31: =B8 -> 13710.06 | C31: =VLOOKUP($A31,'Data Pass Through'!$A:$D,2,FALSE) -> 0.0014 | D31: 19.194084 | E31: 13710.06 | F31: =VLOOKUP($A31,'Data Pass Through'!$A:$D,3,FALSE) -> 0.0014 | G31: 19.194084 | H31: 0 | I31: 0 | J31: 0.007805874446
A32: Standard Supply Service – Administration Charge (if applicable) | B32: 1 | C32: =VLOOKUP($A32,'Data Pass Through'!$A:$D,2,FALSE) -> 0.25 | D32: =B32*C32 -> 0.25 | E32: =B32 -> 1 | F32: =VLOOKUP($A32,'Data Pass Through'!$A:$D,3,FALSE) -> 0.25 | G32: 0.25 | H32: 0 | I32: 0 | J32: 0.0001016703174
A33: Sub-Total: Regulatory | D33: =SUM(D29:D32) -> 81.139354 | G33: =SUM(G29:G32) -> 81.139354 | H33: 0 | I33: 0 | J33: 0.03299785548
A34: Total Electricity Charge on WAHSP | D34: =SUM(D13,D28,D33) -> 2215.476064 | G34: =SUM(G13,G28,G33) -> 2176.042564 | H34: -39.4335 | I34: -0.01779910902 | J34: 0.8849557522
A35: HST | C35: 0.13 | D35: =D34*C35 -> 288.0118883 | F35: =C35 -> 0.13 | G35: =G34*F35 -> 282.8855333 | H35: -5.126355 | I35: -0.01779910902 | J35: 0.1150442478
A36: Total Amount on WAHSP | D36: =SUM(D34:D35) -> 2503.487952 | G36: =SUM(G34:G35) -> 2458.928097 | H36: -44.559855 | I36: -0.01779910902 | J36: 1

Sheet BI Template_unmNPDI (hidden)
A1: 2024 Bill Impacts (Average Consumption Level) - St Lgt_NPDI
A3: Rate Class | B3: =VLOOKUP(A1,'Data BI List Acq_Seas'!C:E,2,FALSE) -> St Lgt-NPDI | C3: =VLOOKUP(A1,'Data BI List Acq_Seas'!C:E,3,FALSE) -> St Lgt-NPDI
A4: Monthly Consumption (kWh) | B4: =IF(COUNTIF(A1,"*Low*")>0,VLOOKUP(B3,'Data Billing Quantities'!$A:$Z,MATCH("Low kWh",'Data Billing Quantities'!4:4,0),FALSE),IF(COUNTIF(A1,"*Typical*")>0,VLOOKUP(B3,'Data Billing Quantities'!$A:$Z,MATCH("Typical kWh",'Data Billing Quantities'!4:4,0),FALSE),IF(COUNTIF(A1,"*Average*")>0,VLOOKUP(B3,'Data Billing Quantities'!$A:$Z,MATCH("Average kWh",'Data Billing Quantities'!4:4,0),FALSE),IF(COUNTIF(A1,"*High*")>0,VLOOKUP(B3,'Data Billing Quantities'!$A:$Z,MATCH("High kWh",'Data Billing Quantities'!4:4,0),FALSE),"error")))) -> 11389 | C4: =B4 -> 11389
A5: Peak (kW) | B5: =IF(COUNTIF(A1,"*Low*")>0,VLOOKUP(B3,'Data Billing Quantities'!$A:$Z,MATCH("Low kW",'Data Billing Quantities'!4:4,0),FALSE),IF(COUNTIF(A1,"*Typical*")>0,VLOOKUP(B3,'Data Billing Quantities'!$A:$Z,MATCH("Typical kW",'Data Billing Quantities'!4:4,0),FALSE),IF(COUNTIF(A1,"*Average*")>0,VLOOKUP(B3,'Data Billing Quantities'!$A:$Z,MATCH("Average kW",'Data Billing Quantities'!4:4,0),FALSE),IF(COUNTIF(A1,"*High*")>0,VLOOKUP(B3,'Data Billing Quantities'!$A:$Z,MATCH("High kW",'Data Billing Quantities'!4:4,0),FALSE),"error")))) -> 39 | C5: =B5 -> 39
A6: Loss factor | B6: =VLOOKUP(B3,'Data Billing Quantities'!A:D,MATCH(A6,'Data Billing Quantities'!4:4,0),FALSE) -> 1.092 | C6: =VLOOKUP(C3,'Data Billing Quantities'!A:D,MATCH(A6,'Data Billing Quantities'!4:4,0),FALSE) -> 1.092
A7: Commodity Threshold | B7: =VLOOKUP(B3,'Data Billing Quantities'!A:D,MATCH(A7,'Data Billing Quantities'!4:4,0),FALSE) -> 750 | C7: =B7 -> 750
A8: Monthly Consumption (kWh) - Uplifted | B8: =B4*B6 -> 12436.788 | C8: =C4*C6 -> 12436.788
A9: Charge determinant | B9: =VLOOKUP(B3,'Data Billing Quantities'!A:D,MATCH(A9,'Data Billing Quantities'!4:4,0),FALSE) -> kWh | C9: =VLOOKUP(C3,'Data Billing Quantities'!A:D,MATCH(A9,'Data Billing Quantities'!4:4,0),FALSE) -> kWh
B11: Volume | C11: Current Rate ($) | D11: Current Charge ($) | E11: Volume | F11: Proposed Rate ($) | G11: Proposed Charge ($) | H11: Change ($) | I11: Change (%) | J11: % of Total Bill
A12: Energy First Tier | B12: =IF(B4>B7,B7,B4) -> 750 | C12: =VLOOKUP($A12,'Data Pass Through'!$A:$D,2,FALSE) -> 0.103 | D12: =B12*C12 -> 77.25 | E12: =B12 -> 750 | F12: =VLOOKUP($A12,'Data Pass Through'!$A:$D,3,FALSE) -> 0.103 | G12: =E12*F12 -> 77.25 | H12: =G12-D12 -> 0 | I12: =IF(ISERROR(H12/ABS(D12)),"N/A",(H12/ABS(D12))) -> 0 | J12: =G12/$G$37 -> 0.0265720794
A13: Energy Second Tier | B13: =IF(B4>B7,(B4)-B7,0) -> 10639 | C13: =VLOOKUP($A13,'Data Pass Through'!$A:$D,2,FALSE) -> 0.125 | D13: =B13*C13 -> 1329.875 | E13: =B13 -> 10639 | F13: =VLOOKUP($A13,'Data Pass Through'!$A:$D,3,FALSE) -> 0.125 | G13: =E13*F13 -> 1329.875 | H13: 0 | I13: 0 | J13: 0.4574439365
A14: Sub-Total: Energy (RPP Tiered) | D14: =SUM(D12:D13) -> 1407.125 | G14: =SUM(G12:G13) -> 1407.125 | H14: 0 | I14: 0 | J14: 0.4840160159
A15: Service Charge | B15: =IF(VLOOKUP(B$3,'Data Billing Quantities'!A:P,MATCH("Acquired Street Light Service Charge",'Data Billing Quantities'!$4:$4,0),FALSE)>0,VLOOKUP(B$3,'Data Billing Quantities'!A:P,MATCH("Acquired Street Light Service Charge",'Data Billing Quantities'!$4:$4,0),FALSE),1) -> 1 | C15: =VLOOKUP($B$3,'Data Current Rates'!$A:$AJ,MATCH('BI Template_unmNPDI'!$A15,CurrentHeader,0),FALSE) -> 3.27 | D15: =B15*C15 -> 3.27 | E15: 1 | F15: =VLOOKUP($C$3,'Data Proposed Rates'!$A:$BF,MATCH('BI Template_unmNPDI'!$A15,ProposedHeader,0),FALSE) -> 3.27 | G15: =E15*F15 -> 3.27 | H15: 0 | I15: 0 | J15: 0.001124798701
A16: Distribution Volumetric Charge | B16: =IF($B$9="kWh",$B$4,$B$5) -> 11389 | C16: =VLOOKUP($B$3,'Data Current Rates'!$A:$AJ,MATCH('BI Template_unmNPDI'!$A16,CurrentHeader,0),FALSE) -> 0.1186 | D16: =B16*C16 -> 1350.7354 | E16: =IF($C$9="kWh",$C$4,$C$5) -> 11389 | F16: =VLOOKUP($C$3,'Data Proposed Rates'!$A:$BF,MATCH('BI Template_unmNPDI'!$A16,ProposedHeader,0),FALSE) -> 0.1186 | G16: 1350.7354 | H16: 0 | I16: 0 | J16: 0.4646193955
A17: Group 1 Volumetric DVA Rider (General) (2023) | B17: =IF($B$9="kWh",$B$4,$B$5) -> 11389 | C17: =VLOOKUP($B$3,'Data Current Rates'!$A:$AJ,MATCH('BI Template_unmNPDI'!$A17,CurrentHeader,0),FALSE) -> -0.0011 | D17: =B17*C17 -> -12.5279 | E17: =IF($C$9="kWh",$C$4,$C$5) -> 11389 | F17: =VLOOKUP($C$3,'Data Proposed Rates'!$A:$BF,MATCH('BI Template_unmNPDI'!$A17,ProposedHeader,0),FALSE) -> -0.0011 | G17: -12.5279 | H17: 0 | I17: 0 | J17: -0.00430928613
A18: Group 1 Volumetric DVA Rider (Excl 1595) (2024) | E18: 11389 | F18: =VLOOKUP($C$3,'Data Proposed Rates'!$A:$BF,MATCH('BI Template_unmNPDI'!$A18,ProposedHeader,0),FALSE) -> 0.0015 | G18: =E18*F18 -> 17.0835 | H18: =G18-D18 -> 17.0835 | I18: =IF(ISERROR(H18/ABS(D18)),"N/A",(H18/ABS(D18))) -> N/A | J18: =G18/$G$37 -> 0.005876299268
A19: Group 1 Volumetric Deferral/Variance Account Rider (Sub-Account CBR) (2024) | E19: 11389 | F19: =VLOOKUP($C$3,'Data Proposed Rates'!$A:$BF,MATCH('BI Template_unmNPDI'!$A19,ProposedHeader,0),FALSE) -> -0.0006 | G19: -6.8334 | H19: -6.8334 | I19: N/A | J19: -0.002350519707
A20: Volumetric Rider for Account 1592 | B20: =IF($B$9="kWh",$B$4,$B$5) -> 11389 | C20: =VLOOKUP($B$3,'Data Current Rates'!$A:$AJ,MATCH('BI Template_unmNPDI'!$A20,CurrentHeader,0),FALSE) -> -0.0011 | D20: =B20*C20 -> -12.5279 | E20: =IF($C$9="kWh",$C$4,$C$5) -> 11389 | F20: =VLOOKUP($C$3,'Data Proposed Rates'!$A:$BF,MATCH('BI Template_unmNPDI'!$A20,ProposedHeader,0),FALSE) -> -0.0011 | G20: =E20*F20 -> -12.5279 | H20: =G20-D20 -> 0 | I20: =IF(ISERROR(H20/ABS(D20)),"N/A",(H20/ABS(D20))) -> 0 | J20: -0.00430928613
A21: Sub-Total: Distribution (excluding pass through) | D21: =SUM(INDIRECT("D15:D"&ROW()-1)) -> 1328.9496 | G21: =SUM(INDIRECT("g15:g"&ROW()-1)) -> 1339.1997 | H21: =G21-D21 -> 10.2501 | I21: 0.007712933583 | J21: 0.4606514015
A22: Line Losses on Cost of Power (based on two-tier RPP prices) | B22: =B8-B4 -> 1047.788 | C22: =IF(B4>B7,C13,C12) -> 0.125 | D22: =B22*C22 -> 130.9735 | E22: =C8-C4 -> 1047.788 | F22: =IF(C4>C7,F13,F12) -> 0.125 | G22: =E22*F22 -> 130.9735 | H22: 0 | I22: 0 | J22: 0.04505162772
A23: Sub-Total: Distribution (based on two-tier RPP prices) | D23: =SUM(D21,D22:D22) -> 1459.9231 | G23: =SUM(G21,G22:G22) -> 1470.1732 | H23: 10.2501 | I23: 0.007020986242 | J23: 0.5057030292
A24: Retail Transmission Rate – Network Service Rate | B24: =IF($B$9="kWh",$B$8,$B$5) -> 12436.788 | C24: =VLOOKUP($B$3,'Data Current Rates'!$A:$AJ,MATCH('BI Template_unmNPDI'!$A24,CurrentHeader,0),FALSE) -> 0.0068 | D24: =B24*C24 -> 84.5701584 | E24: =IF($C$9="kWh",$C$8,$C$5) -> 12436.788 | F24: =VLOOKUP($C$3,'Data Proposed Rates'!$A:$BF,MATCH('BI Template_unmNPDI'!$A24,ProposedHeader,0),FALSE) -> 0.0068 | G24: =E24*F24 -> 84.5701584 | H24: =G24-D24 -> 0 | I24: 0 | J24: 0.0290900319
A25: Retail Transmission Rate – Line and Transformation Connection Service Rate | B25: =IF($B$9="kWh",$B$8,$B$5) -> 12436.788 | C25: =VLOOKUP($B$3,'Data Current Rates'!$A:$AJ,MATCH('BI Template_unmNPDI'!$A25,CurrentHeader,0),FALSE) -> 0.0054 | D25: =B25*C25 -> 67.1586552 | E25: =IF($C$9="kWh",$C$8,$C$5) -> 12436.788 | F25: =VLOOKUP($C$3,'Data Proposed Rates'!$A:$BF,MATCH('BI Template_unmNPDI'!$A25,ProposedHeader,0),FALSE) -> 0.0054 | G25: =E25*F25 -> 67.1586552 | H25: =G25-D25 -> 0 | I25: 0 | J25: 0.02310090768
A26: Sub-Total: Retail Transmission | D26: =SUM(D24:D25) -> 151.7288136 | G26: =SUM(G24:G25) -> 151.7288136 | H26: =G26-D26 -> 0 | I26: 0 | J26: 0.05219093958
A27: Sub-Total: Delivery (based on two-tier RPP prices) | D27: =D23+D26 -> 1611.651914 | G27: =G23+G26 -> 1621.902014 | H27: =G27-D27 -> 10.2501 | I27: 0.006359996171 | J27: 0.5578939688
A28: Wholesale Market Service Rate (WMS) - not including CBR | B28: =B8 -> 12436.788 | C28: =VLOOKUP($A28,'Data Pass Through'!$A:$D,2,FALSE) -> 0.0041 | D28: =B28*C28 -> 50.9908308 | E28: =$C$8 -> 12436.788 | F28: =VLOOKUP($A28,'Data Pass Through'!$A:$D,3,FALSE) -> 0.0041 | G28: =E28*F28 -> 50.9908308 | H28: =G28-D28 -> 0 | I28: 0 | J28: 0.01753957806
A29: Capacity Based Recovery (CBR) - Applicable for Class B Customers | B29: =B8 -> 12436.788 | C29: =VLOOKUP($A29,'Data Pass Through'!$A:$D,2,FALSE) -> 0.0004 | D29: =B29*C29 -> 4.9747152 | E29: =$C$8 -> 12436.788 | F29: =VLOOKUP($A29,'Data Pass Through'!$A:$D,3,FALSE) -> 0.0004 | G29: =E29*F29 -> 4.9747152 | H29: 0 | I29: 0 | J29: 0.001711178347
A30: Rural Rate Protection Charge | B30: =B8 -> 12436.788 | C30: =VLOOKUP($A30,'Data Pass Through'!$A:$D,2,FALSE) -> 0.0014 | D30: 17.4115032 | E30: 12436.788 | F30: =VLOOKUP($A30,'Data Pass Through'!$A:$D,3,FALSE) -> 0.0014 | G30: 17.4115032 | H30: 0 | I30: 0 | J30: 0.005989124214
A31: Standard Supply Service – Administration Charge (if applicable) | B31: 1 | C31: =VLOOKUP($A31,'Data Pass Through'!$A:$D,2,FALSE) -> 0.25 | D31: =B31*C31 -> 0.25 | E31: 1 | F31: =VLOOKUP($A31,'Data Pass Through'!$A:$D,3,FALSE) -> 0.25 | G31: 0.25 | H31: 0 | I31: 0 | J31: 8.599378448e-05
A32: Sub-Total: Regulatory | D32: =SUM(D28:D31) -> 73.6270492 | G32: =SUM(G28:G31) -> 73.6270492 | H32: 0 | I32: 0 | J32: 0.0253258744
A33: Total Electricty Charge on Two-Tier RPP | D33: =SUM(D27,D32,D14) -> 3092.403963 | G33: =SUM(G27,G32,G14) -> 3102.654063 | H33: 10.2501 | I33: 0.003314605764 | J33: 1.067235859
A34: HST | C34: 0.13 | D34: =D33*C34 -> 402.0125152 | F34: =C34 -> 0.13 | G34: =G33*F34 -> 403.3450282 | H34: 1.332513 | I34: 0.003314605764 | J34: 0.1387406617
A35: Total Electricity Charge on Two-Tier RPP (including HST) | D35: =SUM(D33:D34) -> 3494.416478 | G35: =SUM(G33:G34) -> 3505.999091 | H35: 11.582613 | I35: 0.003314605764 | J35: 1.205976521
A36: Ontario Electricity Rebate (OER) | C36: =IF(($B$4*12)<250000,VLOOKUP(A36,'Data Pass Through'!$A$4:$C$20,2,0),0) -> -0.193 | D36: =D33*C36 -> -596.8339648 | F36: =C36 -> -0.193 | G36: =G33*F36 -> -598.8122341 | H36: -1.9782693 | I36: -0.003314605764 | J36: -0.2059765208
A37: Total Amount on Two-Tier RPP | D37: =SUM(D35:D36) -> 2897.582513 | G37: =SUM(G35:G36) -> 2907.186857 | H37: 9.6043437 | I37: 0.003314605764 | J37: 1

Sheet BI Template_EnergyHCHI (hidden)
A1: 2024 Bill Impacts (Low Consumption Level) - AR_HCHI
A3: Rate Class | B3: =VLOOKUP(A1,'Data BI List Acq_Seas'!C:E,2,FALSE) -> AR-HCHI | C3: =VLOOKUP(A1,'Data BI List Acq_Seas'!C:E,3,FALSE) -> AR-HCHI
A4: Monthly Consumption (kWh) | B4: =IF(COUNTIF(A1,"*Low*")>0,VLOOKUP(B3,'Data Billing Quantities'!$A:$Z,MATCH("Low kWh",'Data Billing Quantities'!4:4,0),FALSE),IF(COUNTIF(A1,"*Typical*")>0,VLOOKUP(B3,'Data Billing Quantities'!$A:$Z,MATCH("Typical kWh",'Data Billing Quantities'!4:4,0),FALSE),IF(COUNTIF(A1,"*Average*")>0,VLOOKUP(B3,'Data Billing Quantities'!$A:$Z,MATCH("Average kWh",'Data Billing Quantities'!4:4,0),FALSE),IF(COUNTIF(A1,"*High*")>0,VLOOKUP(B3,'Data Billing Quantities'!$A:$Z,MATCH("High kWh",'Data Billing Quantities'!4:4,0),FALSE),"error")))) -> 250 | C4: =B4 -> 250
A5: Peak (kW) | B5: =IF(COUNTIF(A1,"*Low*")>0,VLOOKUP(B3,'Data Billing Quantities'!$A:$Z,MATCH("Low kW",'Data Billing Quantities'!4:4,0),FALSE),IF(COUNTIF(A1,"*Typical*")>0,VLOOKUP(B3,'Data Billing Quantities'!$A:$Z,MATCH("Typical kW",'Data Billing Quantities'!4:4,0),FALSE),IF(COUNTIF(A1,"*Average*")>0,VLOOKUP(B3,'Data Billing Quantities'!$A:$Z,MATCH("Average kW",'Data Billing Quantities'!4:4,0),FALSE),IF(COUNTIF(A1,"*High*")>0,VLOOKUP(B3,'Data Billing Quantities'!$A:$Z,MATCH("High kW",'Data Billing Quantities'!4:4,0),FALSE),"error")))) -> 0 | C5: =B5 -> 0
A6: Loss factor | B6: =VLOOKUP(B3,'Data Billing Quantities'!A:D,MATCH(A6,'Data Billing Quantities'!4:4,0),FALSE) -> 1.064 | C6: =VLOOKUP(C3,'Data Billing Quantities'!A:D,MATCH(A6,'Data Billing Quantities'!4:4,0),FALSE) -> 1.064
A7: Commodity Threshold | B7: =VLOOKUP(B3,'Data Billing Quantities'!A:D,MATCH(A7,'Data Billing Quantities'!4:4,0),FALSE) -> 750 | C7: =B7 -> 750
A8: Monthly Consumption (kWh) - Uplifted | B8: =B4*B6 -> 266 | C8: =C4*C6 -> 266
A9: Charge determinant | B9: =VLOOKUP(B3,'Data Billing Quantities'!A:D,MATCH(A9,'Data Billing Quantities'!4:4,0),FALSE) -> kWh | C9: =VLOOKUP(C3,'Data Billing Quantities'!A:D,MATCH(A9,'Data Billing Quantities'!4:4,0),FALSE) -> kWh
B11: Volume | C11: Current Rate ($) | D11: Current Charge ($) | E11: Volume | F11: Proposed Rate ($) | G11: Proposed Charge ($) | H11: Change ($) | I11: Change (%) | J11: % of Total Bill on RPP | K11: % of Total Bill
A12: Energy First Tier | B12: =IF(B4>B7,B7,B4) -> 250 | C12: =VLOOKUP($A12,'Data Pass Through'!$A:$D,2,FALSE) -> 0.103 | D12: =B12*C12 -> 25.75 | E12: =B12 -> 250 | F12: =VLOOKUP($A12,'Data Pass Through'!$A:$D,3,FALSE) -> 0.103 | G12: =E12*F12 -> 25.75 | H12: =G12-D12 -> 0 | I12: =IF(ISERROR(H12/ABS(D12)),"N/A",(H12/ABS(D12))) -> 0 | J12: =G12/$G$46 -> 0.3664195992
A13: Energy Second Tier | B13: =IF(B4>B7,(B4)-B7,0) -> 0 | C13: =VLOOKUP($A13,'Data Pass Through'!$A:$D,2,FALSE) -> 0.125 | D13: =B13*C13 -> 0 | E13: =B13 -> 0 | F13: =VLOOKUP($A13,'Data Pass Through'!$A:$D,3,FALSE) -> 0.125 | G13: =E13*F13 -> 0 | H13: 0 | I13: N/A | J13: =G13/$G$46 -> 0
A14: Sub-Total: Energy (RPP Tiered) | D14: =SUM(D12:D13) -> 25.75 | G14: =SUM(G12:G13) -> 25.75 | H14: 0 | I14: 0 | J14: =G14/$G$46 -> 0.3664195992
A15: TOU-Off Peak | B15: =B$4*VLOOKUP($B$3,'Data Billing Quantities'!$A:$O,MATCH('BI Template_EnergyHCHI'!$A15,'Data Billing Quantities'!$4:$4,0),FALSE) -> 160 | C15: =VLOOKUP($A15,'Data Pass Through'!$A:$D,2,FALSE) -> 0.087 | D15: =B15*C15 -> 13.92 | E15: 160 | F15: =VLOOKUP($A15,'Data Pass Through'!$A:$D,3,FALSE) -> 0.087 | G15: =E15*F15 -> 13.92 | H15: 0 | I15: 0 | K15: =G15/$G$51 -> 0.1930142807
A16: TOU-Mid Peak | B16: =B$4*VLOOKUP($B$3,'Data Billing Quantities'!$A:$O,MATCH('BI Template_EnergyHCHI'!$A16,'Data Billing Quantities'!$4:$4,0),FALSE) -> 45 | C16: =VLOOKUP($A16,'Data Pass Through'!$A:$D,2,FALSE) -> 0.122 | D16: =B16*C16 -> 5.49 | E16: 45 | F16: =VLOOKUP($A16,'Data Pass Through'!$A:$D,3,FALSE) -> 0.122 | G16: =E16*F16 -> 5.49 | H16: 0 | I16: 0 | K16: 0.07612416675
A17: TOU-On Peak | B17: =B$4*VLOOKUP($B$3,'Data Billing Quantities'!$A:$O,MATCH('BI Template_EnergyHCHI'!$A17,'Data Billing Quantities'!$4:$4,0),FALSE) -> 45 | C17: =VLOOKUP($A17,'Data Pass Through'!$A:$D,2,FALSE) -> 0.182 | D17: =B17*C17 -> 8.19 | E17: 45 | F17: =VLOOKUP($A17,'Data Pass Through'!$A:$D,3,FALSE) -> 0.182 | G17: =E17*F17 -> 8.19 | H17: 0 | I17: 0 | K17: 0.1135622815
A18: Sub-Total: Energy (RPP TOU) | D18: =SUM(D15:D17) -> 27.6 | G18: =SUM(G15:G17) -> 27.6 | H18: 0 | I18: 0 | J18: =G18/$G$46 -> 0.3927448908 | K18: 0.382700729
A19: Service Charge | B19: 1 | C19: =VLOOKUP($B$3,'Data Current Rates'!$A:$AJ,MATCH('BI Template_EnergyHCHI'!$A19,CurrentHeader,0),FALSE) -> 40.1 | D19: =B19*C19 -> 40.1 | E19: 1 | F19: =VLOOKUP($C$3,'Data Proposed Rates'!$A:$BF,MATCH('BI Template_EnergyHCHI'!$A19,ProposedHeader,0),FALSE) -> 40.1 | G19: =E19*F19 -> 40.1 | H19: 0 | I19: 0 | J19: 0.5706184826 | K19: 0.5560253346
A20: Distribution Volumetric Charge | B20: =IF($B$9="kWh",$B$4,$B$5) -> 250 | C20: =VLOOKUP($B$3,'Data Current Rates'!$A:$AJ,MATCH('BI Template_EnergyHCHI'!$A20,CurrentHeader,0),FALSE) -> 0 | D20: =B20*C20 -> 0 | E20: =IF($C$9="kWh",$C$4,$C$5) -> 250 | F20: =VLOOKUP($C$3,'Data Proposed Rates'!$A:$BF,MATCH('BI Template_EnergyHCHI'!$A20,ProposedHeader,0),FALSE) -> 0 | G20: 0 | H20: 0 | I20: N/A | J20: 0 | K20: 0
A21: Group 1 Volumetric DVA Rider (General) (2023) | B21: =IF($B$9="kWh",$B$4,$B$5) -> 250 | C21: =VLOOKUP($B$3,'Data Current Rates'!$A:$AJ,MATCH('BI Template_EnergyHCHI'!$A21,CurrentHeader,0),FALSE) -> -0.0007 | D21: =B21*C21 -> -0.175 | E21: =IF($C$9="kWh",$C$4,$C$5) -> 250 | F21: =VLOOKUP($C$3,'Data Proposed Rates'!$A:$BF,MATCH('BI Template_EnergyHCHI'!$A21,ProposedHeader,0),FALSE) -> -0.0007 | G21: -0.175 | H21: 0 | I21: 0 | J21: -0.002490230286 | K21: -0.002426544478
A22: Group 1 Volumetric DVA Rider (Excl 1595) (2024) | E22: =IF($B$9="kWh",$B$4,$B$5) -> 250 | F22: =VLOOKUP($C$3,'Data Proposed Rates'!$A:$BF,MATCH('BI Template_EnergyHCHI'!$A22,ProposedHeader,0),FALSE) -> 0.0011 | G22: =E22*F22 -> 0.275 | H22: =G22-D22 -> 0.275 | I22: =IF(ISERROR(H22/ABS(D22)),"N/A",(H22/ABS(D22))) -> N/A | J22: 0.003913219021 | K22: 0.003813141322
A23: Group 1 Volumetric Deferral/Variance Account Rider (Sub-Account CBR) (2024) | E23: =IF($B$9="kWh",$B$4,$B$5) -> 250 | F23: =VLOOKUP($C$3,'Data Proposed Rates'!$A:$BF,MATCH('BI Template_EnergyHCHI'!$A23,ProposedHeader,0),FALSE) -> -0.0006 | G23: -0.15 | H23: -0.15 | I23: N/A | J23: -0.002134483102 | K23: -0.002079895266
A24: Fixed Rider for Account 1592 | B24: 1 | C24: =VLOOKUP($B$3,'Data Current Rates'!$A:$AJ,MATCH('BI Template_EnergyHCHI'!$A24,CurrentHeader,0),FALSE) -> -0.46 | D24: =B24*C24 -> -0.46 | E24: 1 | F24: =VLOOKUP($C$3,'Data Proposed Rates'!$A:$BF,MATCH('BI Template_EnergyHCHI'!$A24,ProposedHeader,0),FALSE) -> -0.46 | G24: =E24*F24 -> -0.46 | H24: =G24-D24 -> 0 | I24: =IF(ISERROR(H24/ABS(D24)),"N/A",(H24/ABS(D24))) -> 0 | J24: -0.00654574818 | K24: -0.006378345484
A25: Volumetric Rider for Account 1592 | B25: =IF($B$9="kWh",$B$4,$B$5) -> 250 | C25: =VLOOKUP($B$3,'Data Current Rates'!$A:$AJ,MATCH('BI Template_EnergyHCHI'!$A25,CurrentHeader,0),FALSE) -> 0 | D25: =B25*C25 -> 0 | E25: =IF($C$9="kWh",$C$4,$C$5) -> 250 | F25: =VLOOKUP($C$3,'Data Proposed Rates'!$A:$BF,MATCH('BI Template_EnergyHCHI'!$A25,ProposedHeader,0),FALSE) -> 0 | G25: 0 | H25: 0 | I25: N/A | J25: 0 | K25: 0
A26: Sub-Total: Distribution (excluding pass through) | D26: =SUM(INDIRECT("D19:D"&ROW()-1)) -> 39.465 | G26: =SUM(INDIRECT("g19:g"&ROW()-1)) -> 39.59 | H26: =G26-D26 -> 0.125 | I26: 0.003167363487 | J26: =G26/$G$46 -> 0.5633612401 | K26: =G26/$G$51 -> 0.5489536907
A27: Smart Metering Entity Charge | B27: =B19 -> 1 | C27: =VLOOKUP($A27,'Data Pass Through'!$A:$D,2,FALSE) -> 0.42 | D27: =B27*C27 -> 0.42 | E27: =E19 -> 1 | F27: =VLOOKUP($A27,'Data Pass Through'!$A:$D,3,FALSE) -> 0.42 | G27: =E27*F27 -> 0.42 | H27: 0 | I27: 0 | J27: 0.005976552686 | K27: 0.005823706746
A28: Line Losses on Cost of Power (based on two-tier RPP prices) | B28: =B8-B4 -> 16 | C28: =IF(B4>B7,C13,C12) -> 0.103 | D28: =B28*C28 -> 1.648 | E28: =C8-C4 -> 16 | F28: =IF(C4>C7,F13,F12) -> 0.103 | G28: =E28*F28 -> 1.648 | H28: 0 | I28: 0 | J28: 0.02345085435 | K28: 0.02285111599
A29: Line Losses on Cost of Power (based on TOU prices) | B29: =B8-B4 -> 16 | C29: =VLOOKUP($B$3,'Data Billing Quantities'!$A:$O,MATCH('BI Template_EnergyHCHI'!$A15,'Data Billing Quantities'!$4:$4,0),FALSE)*C15+VLOOKUP($B$3,'Data Billing Quantities'!$A:$O,MATCH('BI Template_EnergyHCHI'!$A16,'Data Billing Quantities'!$4:$4,0),FALSE)*C16+VLOOKUP($B$3,'Data Billing Quantities'!$A:$O,MATCH('BI Template_EnergyHCHI'!$A17,'Data Billing Quantities'!$4:$4,0),FALSE)*C17 -> 0.1104 | D29: =B29*C29 -> 1.7664 | E29: =C8-C4 -> 16 | F29: =VLOOKUP($C$3,'Data Billing Quantities'!$A:$O,MATCH('BI Template_EnergyHCHI'!$A15,'Data Billing Quantities'!$4:$4,0),FALSE)*F15+VLOOKUP($C$3,'Data Billing Quantities'!$A:$O,MATCH('BI Template_EnergyHCHI'!$A16,'Data Billing Quantities'!$4:$4,0),FALSE)*F16+VLOOKUP($C$3,'Data Billing Quantities'!$A:$O,MATCH('BI Template_EnergyHCHI'!$A17,'Data Billing Quantities'!$4:$4,0),FALSE)*F17 -> 0.1104 | G29: =E29*F29 -> 1.7664 | H29: 0 | I29: 0 | J29: 0.02513567301 | K29: 0.02449284666
A30: Sub-Total: Distribution (based on two-tier RPP prices) | D30: =SUM(D26,D27:D28) -> 41.533 | G30: =SUM(G26,G27:G28) -> 41.658 | H30: 0.125 | I30: 0.003009654973 | J30: 0.5927886471 | K30: 0.5776285134
A31: Sub-Total: Distribution (based on TOU prices) | D31: =SUM(D26,D27,D29) -> 41.6514 | G31: =SUM(G26,G27,G29) -> 41.7764 | H31: 0.125 | I31: 0.003001099603 | J31: 0.5944734658 | K31: 0.5792702441
A32: Retail Transmission Rate – Network Service Rate | B32: =IF($B$9="kWh",$B$8,$B$5) -> 266 | C32: =VLOOKUP($B$3,'Data Current Rates'!$A:$AJ,MATCH('BI Template_EnergyHCHI'!$A32,CurrentHeader,0),FALSE) -> 0.0124 | D32: =B32*C32 -> 3.2984 | E32: =IF($C$9="kWh",$C$8,$C$5) -> 266 | F32: =VLOOKUP($C$3,'Data Proposed Rates'!$A:$BF,MATCH('BI Template_EnergyHCHI'!$A32,ProposedHeader,0),FALSE) -> 0.0124 | G32: =E32*F32 -> 3.2984 | H32: =G32-D32 -> 0 | I32: 0 | J32: 0.04693586043 | K32: 0.04573551031
A33: Retail Transmission Rate – Line and Transformation Connection Service Rate | B33: =IF($B$9="kWh",$B$8,$B$5) -> 266 | C33: =VLOOKUP($B$3,'Data Current Rates'!$A:$AJ,MATCH('BI Template_EnergyHCHI'!$A33,CurrentHeader,0),FALSE) -> 0.0093 | D33: =B33*C33 -> 2.4738 | E33: =IF($C$9="kWh",$C$8,$C$5) -> 266 | F33: =VLOOKUP($C$3,'Data Proposed Rates'!$A:$BF,MATCH('BI Template_EnergyHCHI'!$A33,ProposedHeader,0),FALSE) -> 0.0093 | G33: =E33*F33 -> 2.4738 | H33: =G33-D33 -> 0 | I33: 0 | J33: 0.03520189532 | K33: 0.03430163273
A34: Sub-Total: Retail Transmission | D34: =SUM(D32:D33) -> 5.7722 | G34: =SUM(G32:G33) -> 5.7722 | H34: =G34-D34 -> 0 | I34: 0 | J34: 0.08213775575 | K34: 0.08003714305
A35: Sub-Total: Delivery (based on two-tier RPP prices) | D35: =D30+D34 -> 47.3052 | G35: =G30+G34 -> 47.4302 | H35: =G35-D35 -> 0.125 | I35: 0.002642415633 | J35: 0.6749264029 | K35: 0.6576656564
A36: Sub-Total: Delivery (based on TOU prices) | D36: =D31+D34 -> 47.4236 | G36: =G31+G34 -> 47.5486 | H36: =G36-D36 -> 0.125 | I36: 0.002635818453 | J36: 0.6766112215 | K36: 0.6593073871
A37: Wholesale Market Service Rate (WMS) - not including CBR | B37: =B8 -> 266 | C37: =VLOOKUP($A37,'Data Pass Through'!$A:$D,2,FALSE) -> 0.0041 | D37: =B37*C37 -> 1.0906 | E37: =$C$8 -> 266 | F37: =VLOOKUP($A37,'Data Pass Through'!$A:$D,3,FALSE) -> 0.0041 | G37: =E37*F37 -> 1.0906 | H37: 0 | I37: 0 | J37: 0.01551911514 | K37: 0.01512222518
A38: Capacity Based Recovery (CBR) - Applicable for Class B Customers | B38: =B8 -> 266 | C38: =VLOOKUP($A38,'Data Pass Through'!$A:$D,2,FALSE) -> 0.0004 | D38: =B38*C38 -> 0.1064 | E38: =$C$8 -> 266 | F38: =VLOOKUP($A38,'Data Pass Through'!$A:$D,3,FALSE) -> 0.0004 | G38: =E38*F38 -> 0.1064 | H38: 0 | I38: 0 | J38: 0.001514060014 | K38: 0.001475339042
A39: Rural Rate Protection Charge | B39: =B8 -> 266 | C39: =VLOOKUP($A39,'Data Pass Through'!$A:$D,2,FALSE) -> 0.0014 | D39: 0.3724 | E39: 266 | F39: =VLOOKUP($A39,'Data Pass Through'!$A:$D,3,FALSE) -> 0.0014 | G39: 0.3724 | H39: 0 | I39: 0 | J39: 0.005299210048 | K39: 0.005163686648
A40: Standard Supply Service – Administration Charge (if applicable) | B40: 1 | C40: =VLOOKUP($A40,'Data Pass Through'!$A:$D,2,FALSE) -> 0.25 | D40: =B40*C40 -> 0.25 | E40: 1 | F40: =VLOOKUP($A40,'Data Pass Through'!$A:$D,3,FALSE) -> 0.25 | G40: 0.25 | H40: 0 | I40: 0 | J40: 0.003557471837 | K40: 0.003466492111
A41: Sub-Total: Regulatory | D41: =SUM(D37:D40) -> 1.8194 | G41: =SUM(G37:G40) -> 1.8194 | H41: 0 | I41: 0 | J41: 0.02588985704 | K41: 0.02522774299
A42: Total Electricty Charge on Two-Tier RPP | D42: =SUM(D14,D26,D27,D28,D34,D41) -> 74.8746 | G42: =SUM(G14,G26,G27,G28,G34,G41) -> 74.9996 | H42: 0.125 | I42: 0.001669458 | J42: 1.067235859
A43: HST | C43: 0.13 | D43: =D42*C43 -> 9.733698 | F43: =C43 -> 0.13 | G43: =G42*F43 -> 9.749948 | H43: 0.01625 | I43: 0.001669458 | J43: 0.1387406617
A44: Total Electricity Charge on Two-Tier RPP (including HST) | D44: =SUM(D42:D43) -> 84.608298 | G44: =SUM(G42:G43) -> 84.749548 | H44: 0.14125 | I44: 0.001669458 | J44: 1.205976521
A45: Ontario Electricity Rebate (OER) | C45: =IF(($B$4*12)<250000,VLOOKUP(A45,'Data Pass Through'!$A$4:$C$20,2,0),0) -> -0.193 | D45: =D42*C45 -> -14.4507978 | F45: =C45 -> -0.193 | G45: =G42*F45 -> -14.4749228 | H45: -0.024125 | I45: -0.001669458 | J45: -0.2059765208
A46: Total Amount on Two-Tier RPP | D46: =SUM(D44:D45) -> 70.1575002 | G46: =SUM(G44:G45) -> 70.2746252 | H46: 0.117125 | I46: 0.001669458 | J46: 1
A47: Total Electricty Charge on TOU (before HST) | D47: =SUM(D18,D26,D27,D29,D34,D41) -> 76.843 | G47: =SUM(G18,G26,G27,G29,G34,G41) -> 76.968 | H47: 0.125 | I47: 0.001626693388 | K47: =G47/$G$51 -> 1.067235859
A48: HST | C48: 0.13 | D48: =D47*C48 -> 9.98959 | F48: =C48 -> 0.13 | G48: =G47*F48 -> 10.00584 | H48: 0.01625 | I48: 0.001626693388 | K48: =G48/$G$51 -> 0.1387406617
A49: Total Electricity Charge on TOU (including HST) | D49: =SUM(D47:D48) -> 86.83259 | G49: =SUM(G47:G48) -> 86.97384 | H49: 0.14125 | I49: 0.001626693388 | K49: =G49/$G$51 -> 1.205976521
A50: Ontario Electricity Rebate (OER) | C50: =IF(($B$4*12)<250000,VLOOKUP(A50,'Data Pass Through'!$A$4:$C$20,2,0),0) -> -0.193 | D50: =D47*C50 -> -14.830699 | F50: =C50 -> -0.193 | G50: =G47*F50 -> -14.854824 | H50: -0.024125 | I50: -0.001626693388 | K50: =G50/$G$51 -> -0.2059765208
A51: Total Amount on TOU | D51: =SUM(D49:D50) -> 72.001891 | G51: =SUM(G49:G50) -> 72.119016 | H51: 0.117125 | I51: 0.001626693388 | K51: =G51/$G$51 -> 1

Sheet BI Template_DemandHCHI (hidden)
A1: 2024 Bill Impacts (Low Consumption Level) - AGSd_HCHI
A3: Rate Class | B3: =VLOOKUP(A1,'Data BI List Acq_Seas'!C:E,2,FALSE) -> AGSd-HCHI | C3: =VLOOKUP(A1,'Data BI List Acq_Seas'!C:E,3,FALSE) -> AGSd-HCHI
A4: Monthly Consumption (kWh) | B4: =IF(COUNTIF(A1,"*Low*")>0,VLOOKUP(B3,'Data Billing Quantities'!$A:$Z,MATCH("Low kWh",'Data Billing Quantities'!4:4,0),FALSE),IF(COUNTIF(A1,"*Typical*")>0,VLOOKUP(B3,'Data Billing Quantities'!$A:$Z,MATCH("Typical kWh",'Data Billing Quantities'!4:4,0),FALSE),IF(COUNTIF(A1,"*Average*")>0,VLOOKUP(B3,'Data Billing Quantities'!$A:$Z,MATCH("Average kWh",'Data Billing Quantities'!4:4,0),FALSE),IF(COUNTIF(A1,"*High*")>0,VLOOKUP(B3,'Data Billing Quantities'!$A:$Z,MATCH("High kWh",'Data Billing Quantities'!4:4,0),FALSE),"error")))) -> 10880 | C4: =B4 -> 10880
A5: Peak (kW) | B5: =IF(COUNTIF(A1,"*Low*")>0,VLOOKUP(B3,'Data Billing Quantities'!$A:$Z,MATCH("Low kW",'Data Billing Quantities'!4:4,0),FALSE),IF(COUNTIF(A1,"*Typical*")>0,VLOOKUP(B3,'Data Billing Quantities'!$A:$Z,MATCH("Typical kW",'Data Billing Quantities'!4:4,0),FALSE),IF(COUNTIF(A1,"*Average*")>0,VLOOKUP(B3,'Data Billing Quantities'!$A:$Z,MATCH("Average kW",'Data Billing Quantities'!4:4,0),FALSE),IF(COUNTIF(A1,"*High*")>0,VLOOKUP(B3,'Data Billing Quantities'!$A:$Z,MATCH("High kW",'Data Billing Quantities'!4:4,0),FALSE),"error")))) -> 55 | C5: =B5 -> 55
A6: Loss factor | B6: =VLOOKUP(B3,'Data Billing Quantities'!A:D,MATCH(A6,'Data Billing Quantities'!4:4,0),FALSE) -> 1.053 | C6: =VLOOKUP(C3,'Data Billing Quantities'!A:D,MATCH(A6,'Data Billing Quantities'!4:4,0),FALSE) -> 1.053
A7: Commodity Threshold | B7: =VLOOKUP(B3,'Data Billing Quantities'!A:D,MATCH(A7,'Data Billing Quantities'!4:4,0),FALSE) -> 0 | C7: =B7 -> 0
A8: Monthly Consumption (kWh) - Uplifted | B8: =B4*B6 -> 11456.64 | C8: =C4*C6 -> 11456.64
A9: Charge determinant | B9: =VLOOKUP(B3,'Data Billing Quantities'!A:D,MATCH(A9,'Data Billing Quantities'!4:4,0),FALSE) -> kW | C9: =VLOOKUP(C3,'Data Billing Quantities'!A:D,MATCH(A9,'Data Billing Quantities'!4:4,0),FALSE) -> kW
B11: Volume | C11: Current Rate ($) | D11: Current Charge ($) | E11: Volume | F11: Proposed Rate ($) | G11: Proposed Charge ($) | H11: Change ($) | I11: Change (%) | J11: % of Total Bill
A12: Weighted Average Hourly Spot Price | B12: =B8 -> 11456.64 | C12: =VLOOKUP($A12,'Data Pass Through'!$A:$D,2,FALSE) -> 0.1035 | D12: =B12*C12 -> 1185.76224 | E12: =C8 -> 11456.64 | F12: =VLOOKUP($A12,'Data Pass Through'!$A:$D,3,FALSE) -> 0.1035 | G12: =E12*F12 -> 1185.76224 | H12: =G12-D12 -> 0 | I12: =IF(ISERROR(H12/ABS(D12)),"N/A",(H12/ABS(D12))) -> 0 | J12: =G12/G$36 -> 0.541079517
A13: Sub-Total: Energy (WAHSP) | D13: =SUM(D12:D12) -> 1185.76224 | G13: =SUM(G12:G12) -> 1185.76224 | H13: 0 | I13: 0 | J13: 0.541079517
A14: Service Charge | B14: 1 | C14: =VLOOKUP($B$3,'Data Current Rates'!$A:$AJ,MATCH('BI Template_DemandHCHI'!$A14,CurrentHeader,0),FALSE) -> 170.26 | D14: =B14*C14 -> 170.26 | E14: 1 | F14: =VLOOKUP($C$3,'Data Proposed Rates'!$A:$BF,MATCH('BI Template_DemandHCHI'!$A14,ProposedHeader,0),FALSE) -> 170.26 | G14: =E14*F14 -> 170.26 | H14: 0 | I14: 0 | J14: 0.0776919651
A15: Distribution Volumetric Charge | B15: =IF($B$9="kWh",$B$4,$B$5) -> 55 | C15: =VLOOKUP($B$3,'Data Current Rates'!$A:$AJ,MATCH('BI Template_DemandHCHI'!$A15,CurrentHeader,0),FALSE) -> 4.908 | D15: =B15*C15 -> 269.94 | E15: =IF($C$9="kWh",$C$4,$C$5) -> 55 | F15: =VLOOKUP($C$3,'Data Proposed Rates'!$A:$BF,MATCH('BI Template_DemandHCHI'!$A15,ProposedHeader,0),FALSE) -> 4.908 | G15: 269.94 | H15: 0 | I15: 0 | J15: 0.1231773115
A16: Group 1 Volumetric DVA Rider (General) (2023) | B16: =IF($B$9="kWh",$B$4,$B$5) -> 55 | C16: =VLOOKUP($B$3,'Data Current Rates'!$A:$AJ,MATCH('BI Template_DemandHCHI'!$A16,CurrentHeader,0),FALSE) -> -0.098 | D16: =B16*C16 -> -5.39 | E16: =IF($C$9="kWh",$C$4,$C$5) -> 55 | F16: =VLOOKUP($C$3,'Data Proposed Rates'!$A:$BF,MATCH('BI Template_DemandHCHI'!$A16,ProposedHeader,0),FALSE) -> -0.098 | G16: -5.39 | H16: 0 | I16: 0 | J16: -0.00245953067
A17: Group 1 Volumetric Deferral/Variance Account Rider (Sub-Account RSVA Wholesale Market Service Charge & RSVA Power) (2023) | B17: 55 | C17: =VLOOKUP($B$3,'Data Current Rates'!$A:$AJ,MATCH('BI Template_DemandHCHI'!$A17,CurrentHeader,0),FALSE) -> -0.1364 | D17: -7.502 | E17: 55 | F17: =VLOOKUP($C$3,'Data Proposed Rates'!$A:$BF,MATCH('BI Template_DemandHCHI'!$A17,ProposedHeader,0),FALSE) -> -0.1364 | G17: -7.502 | H17: 0 | I17: 0 | J17: -0.003423265137
A18: Group 1 Volumetric Deferral/Variance Account Rider (Sub-Account Global Adjustment) (2023) | B18: =$B$4 -> 10880 | C18: =VLOOKUP($B$3,'Data Current Rates'!$A:$AJ,MATCH('BI Template_DemandHCHI'!$A18,CurrentHeader,0),FALSE) -> -0.0009 | D18: -9.792 | E18: =$C$4 -> 10880 | F18: =VLOOKUP($C$3,'Data Proposed Rates'!$A:$BF,MATCH('BI Template_DemandHCHI'!$A18,ProposedHeader,0),FALSE) -> -0.0009 | G18: -9.792 | H18: 0 | I18: 0 | J18: -0.004468223436
A19: Group 1 Volumetric DVA Rider (Excl 1595) (2024) | E19: =IF($B$9="kWh",$B$4,$B$5) -> 55 | F19: =VLOOKUP($C$3,'Data Proposed Rates'!$A:$BF,MATCH('BI Template_DemandHCHI'!$A19,ProposedHeader,0),FALSE) -> 0.2995 | G19: =E19*F19 -> 16.4725 | H19: =G19-D19 -> 16.4725 | I19: =IF(ISERROR(H19/ABS(D19)),"N/A",(H19/ABS(D19))) -> N/A | J19: 0.007516626895
A20: Group 1 Volumetric Deferral/Variance Account Rider (Sub-Account RSVA Wholesale Market Service Charge & RSVA Power) (2024) | E20: 55 | F20: =VLOOKUP($C$3,'Data Proposed Rates'!$A:$BF,MATCH('BI Template_DemandHCHI'!$A20,ProposedHeader,0),FALSE) -> 0.2454 | G20: 13.497 | H20: 13.497 | I20: N/A | J20: 0.006158865576
A21: Group 1 Volumetric Deferral/Variance Account Rider (Sub-Account Global Adjustment) (2024) | E21: =E18 -> 10880 | F21: =VLOOKUP($C$3,'Data Proposed Rates'!$A:$BF,MATCH('BI Template_DemandHCHI'!$A21,ProposedHeader,0),FALSE) -> -0.0045 | G21: -48.96 | H21: -48.96 | I21: N/A | J21: -0.02234111718
A22: Group 1 Volumetric Deferral/Variance Account Rider (Sub-Account CBR) (2024) | E22: 55 | F22: =VLOOKUP($C$3,'Data Proposed Rates'!$A:$BF,MATCH('BI Template_DemandHCHI'!$A22,ProposedHeader,0),FALSE) -> -0.1966 | G22: -10.813 | H22: -10.813 | I22: N/A | J22: -0.004934119691
A23: Volumetric Rider for Account 1592 | B23: =IF($B$9="kWh",$B$4,$B$5) -> 55 | C23: =VLOOKUP($B$3,'Data Current Rates'!$A:$AJ,MATCH('BI Template_DemandHCHI'!$A23,CurrentHeader,0),FALSE) -> -0.0603 | D23: =B23*C23 -> -3.3165 | E23: =IF($C$9="kWh",$C$4,$C$5) -> 55 | F23: =VLOOKUP($C$3,'Data Proposed Rates'!$A:$BF,MATCH('BI Template_DemandHCHI'!$A23,ProposedHeader,0),FALSE) -> -0.0603 | G23: =E23*F23 -> -3.3165 | H23: =G23-D23 -> 0 | I23: =IF(ISERROR(H23/ABS(D23)),"N/A",(H23/ABS(D23))) -> 0 | J23: -0.00151336428
A24: Sub-Total: Distribution | D24: =SUM(INDIRECT("D14:D"&ROW()-1)) -> 414.1995 | G24: =SUM(INDIRECT("g14:g"&ROW()-1)) -> 384.396 | H24: =G24-D24 -> -29.8035 | I24: -0.07195445673 | J24: =G24/G$36 -> 0.1754051487
A25: Retail Transmission Rate – Network Service Rate | B25: =IF($B$9="kWh",$B$4,$B$5) -> 55 | C25: =VLOOKUP($B$3,'Data Current Rates'!$A:$AJ,MATCH('BI Template_DemandHCHI'!$A25,CurrentHeader,0),FALSE) -> 3.0669 | D25: =B25*C25 -> 168.6795 | E25: =IF($C$9="kWh",$C$4,$C$5) -> 55 | F25: =VLOOKUP($C$3,'Data Proposed Rates'!$A:$BF,MATCH('BI Template_DemandHCHI'!$A25,ProposedHeader,0),FALSE) -> 3.0669 | G25: =E25*F25 -> 168.6795 | H25: =G25-D25 -> 0 | I25: 0 | J25: 0.07697076135
A26: Retail Transmission Rate – Line and Transformation Connection Service Rate | B26: =IF($B$9="kWh",$B$4,$B$5) -> 55 | C26: =VLOOKUP($B$3,'Data Current Rates'!$A:$AJ,MATCH('BI Template_DemandHCHI'!$A26,CurrentHeader,0),FALSE) -> 2.4123 | D26: =B26*C26 -> 132.6765 | E26: =IF($C$9="kWh",$C$4,$C$5) -> 55 | F26: =VLOOKUP($C$3,'Data Proposed Rates'!$A:$BF,MATCH('BI Template_DemandHCHI'!$A26,ProposedHeader,0),FALSE) -> 2.4123 | G26: =E26*F26 -> 132.6765 | H26: =G26-D26 -> 0 | I26: 0 | J26: 0.06054210036
A27: Sub-Total: Retail Transmission | D27: =SUM(D25:D26) -> 301.356 | G27: =SUM(G25:G26) -> 301.356 | H27: =G27-D27 -> 0 | I27: 0 | J27: 0.1375128617
A28: Sub-Total: Delivery (based on two-tier RPP prices) | D28: =SUM(D24,D27) -> 715.5555 | G28: =SUM(G24,G27) -> 685.752 | H28: =G28-D28 -> -29.8035 | I28: -0.04165085727 | J28: 0.3129180104
A29: Wholesale Market Service Rate (WMS) - not including CBR | B29: =B8 -> 11456.64 | C29: =VLOOKUP($A29,'Data Pass Through'!$A:$D,2,FALSE) -> 0.0041 | D29: =B29*C29 -> 46.972224 | E29: =$C$8 -> 11456.64 | F29: =VLOOKUP($A29,'Data Pass Through'!$A:$D,3,FALSE) -> 0.0041 | G29: =E29*F29 -> 46.972224 | H29: =G29-D29 -> 0 | I29: 0 | J29: 0.02143406782
A30: Capacity Based Recovery (CBR) - Applicable for Class B Customers | B30: =B8 -> 11456.64 | C30: =VLOOKUP($A30,'Data Pass Through'!$A:$D,2,FALSE) -> 0.0004 | D30: =B30*C30 -> 4.582656 | E30: =$C$8 -> 11456.64 | F30: =VLOOKUP($A30,'Data Pass Through'!$A:$D,3,FALSE) -> 0.0004 | G30: =E30*F30 -> 4.582656 | H30: 0 | I30: 0 | J30: 0.002091128568
A31: Rural Rate Protection Charge | B31: =B8 -> 11456.64 | C31: =VLOOKUP($A31,'Data Pass Through'!$A:$D,2,FALSE) -> 0.0014 | D31: 16.039296 | E31: 11456.64 | F31: =VLOOKUP($A31,'Data Pass Through'!$A:$D,3,FALSE) -> 0.0014 | G31: 16.039296 | H31: 0 | I31: 0 | J31: 0.007318949989
A32: Standard Supply Service – Administration Charge (if applicable) | B32: 1 | C32: =VLOOKUP($A32,'Data Pass Through'!$A:$D,2,FALSE) -> 0.25 | D32: =B32*C32 -> 0.25 | E32: =B32 -> 1 | F32: =VLOOKUP($A32,'Data Pass Through'!$A:$D,3,FALSE) -> 0.25 | G32: 0.25 | H32: 0 | I32: 0 | J32: 0.000114078417
A33: Sub-Total: Regulatory | D33: =SUM(D29:D32) -> 67.844176 | G33: =SUM(G29:G32) -> 67.844176 | H33: 0 | I33: 0 | J33: 0.0309582248
A34: Total Electricty Charge on WAHSP | D34: =SUM(D13,D28,D33) -> 1969.161916 | G34: =SUM(G13,G28,G33) -> 1939.358416 | H34: -29.8035 | I34: -0.01513511904 | J34: 0.8849557522
A35: HST | C35: 0.13 | D35: =D34*C35 -> 255.9910491 | F35: =C35 -> 0.13 | G35: =G34*F35 -> 252.1165941 | H35: -3.874455 | I35: -0.01513511904 | J35: 0.1150442478
A36: Total Amount on WAHSP | D36: =SUM(D34:D35) -> 2225.152965 | G36: =SUM(G34:G35) -> 2191.47501 | H36: -33.677955 | I36: -0.01513511904 | J36: 1

Sheet BI Template_unmHCHI (hidden)
A1: 2024 Bill Impacts (Average Consumption Level) - St Lgt_HCHI
A3: Rate Class | B3: =VLOOKUP(A1,'Data BI List Acq_Seas'!C:E,2,FALSE) -> St Lgt-HCHI | C3: =VLOOKUP(A1,'Data BI List Acq_Seas'!C:E,3,FALSE) -> St Lgt-HCHI
A4: Monthly Consumption (kWh) | B4: =IF(COUNTIF(A1,"*Low*")>0,VLOOKUP(B3,'Data Billing Quantities'!$A:$Z,MATCH("Low kWh",'Data Billing Quantities'!4:4,0),FALSE),IF(COUNTIF(A1,"*Typical*")>0,VLOOKUP(B3,'Data Billing Quantities'!$A:$Z,MATCH("Typical kWh",'Data Billing Quantities'!4:4,0),FALSE),IF(COUNTIF(A1,"*Average*")>0,VLOOKUP(B3,'Data Billing Quantities'!$A:$Z,MATCH("Average kWh",'Data Billing Quantities'!4:4,0),FALSE),IF(COUNTIF(A1,"*High*")>0,VLOOKUP(B3,'Data Billing Quantities'!$A:$Z,MATCH("High kWh",'Data Billing Quantities'!4:4,0),FALSE),"error")))) -> 31001 | C4: =B4 -> 31001
A5: Peak (kW) | B5: =IF(COUNTIF(A1,"*Low*")>0,VLOOKUP(B3,'Data Billing Quantities'!$A:$Z,MATCH("Low kW",'Data Billing Quantities'!4:4,0),FALSE),IF(COUNTIF(A1,"*Typical*")>0,VLOOKUP(B3,'Data Billing Quantities'!$A:$Z,MATCH("Typical kW",'Data Billing Quantities'!4:4,0),FALSE),IF(COUNTIF(A1,"*Average*")>0,VLOOKUP(B3,'Data Billing Quantities'!$A:$Z,MATCH("Average kW",'Data Billing Quantities'!4:4,0),FALSE),IF(COUNTIF(A1,"*High*")>0,VLOOKUP(B3,'Data Billing Quantities'!$A:$Z,MATCH("High kW",'Data Billing Quantities'!4:4,0),FALSE),"error")))) -> 85 | C5: =B5 -> 85
A6: Loss factor | B6: =VLOOKUP(B3,'Data Billing Quantities'!A:D,MATCH(A6,'Data Billing Quantities'!4:4,0),FALSE) -> 1.092 | C6: =VLOOKUP(C3,'Data Billing Quantities'!A:D,MATCH(A6,'Data Billing Quantities'!4:4,0),FALSE) -> 1.092
A7: Commodity Threshold | B7: =VLOOKUP(B3,'Data Billing Quantities'!A:D,MATCH(A7,'Data Billing Quantities'!4:4,0),FALSE) -> 750 | C7: =B7 -> 750
A8: Monthly Consumption (kWh) - Uplifted | B8: =B4*B6 -> 33853.092 | C8: =C4*C6 -> 33853.092
A9: Charge determinant | B9: =VLOOKUP(B3,'Data Billing Quantities'!A:D,MATCH(A9,'Data Billing Quantities'!4:4,0),FALSE) -> kWh | C9: =VLOOKUP(C3,'Data Billing Quantities'!A:D,MATCH(A9,'Data Billing Quantities'!4:4,0),FALSE) -> kWh
B11: Volume | C11: Current Rate ($) | D11: Current Charge ($) | E11: Volume | F11: Proposed Rate ($) | G11: Proposed Charge ($) | H11: Change ($) | I11: Change (%) | J11: % of Total Bill
A12: Energy First Tier | B12: =IF(B4>B7,B7,B4) -> 750 | C12: =VLOOKUP($A12,'Data Pass Through'!$A:$D,2,FALSE) -> 0.103 | D12: =B12*C12 -> 77.25 | E12: =B12 -> 750 | F12: =VLOOKUP($A12,'Data Pass Through'!$A:$D,3,FALSE) -> 0.103 | G12: =E12*F12 -> 77.25 | H12: =G12-D12 -> 0 | I12: =IF(ISERROR(H12/ABS(D12)),"N/A",(H12/ABS(D12))) -> 0 | J12: =G12/$G$37 -> 0.008111862668
A13: Energy Second Tier | B13: =IF(B4>B7,(B4)-B7,0) -> 30251 | C13: =VLOOKUP($A13,'Data Pass Through'!$A:$D,2,FALSE) -> 0.125 | D13: =B13*C13 -> 3781.375 | E13: =B13 -> 30251 | F13: =VLOOKUP($A13,'Data Pass Through'!$A:$D,3,FALSE) -> 0.125 | G13: =E13*F13 -> 3781.375 | H13: 0 | I13: 0 | J13: 0.397074365
A14: Sub-Total: Energy (RPP Tiered) | D14: =SUM(D12:D13) -> 3858.625 | G14: =SUM(G12:G13) -> 3858.625 | H14: 0 | I14: 0 | J14: 0.4051862276
A15: Service Charge | B15: =IF(VLOOKUP(B$3,'Data Billing Quantities'!A:P,MATCH("Acquired Street Light Service Charge",'Data Billing Quantities'!$4:$4,0),FALSE)>0,VLOOKUP(B$3,'Data Billing Quantities'!A:P,MATCH("Acquired Street Light Service Charge",'Data Billing Quantities'!$4:$4,0),FALSE),1) -> 1 | C15: =VLOOKUP($B$3,'Data Current Rates'!$A:$AJ,MATCH('BI Template_unmHCHI'!$A15,CurrentHeader,0),FALSE) -> 3.27 | D15: =B15*C15 -> 3.27 | E15: 1 | F15: =VLOOKUP($C$3,'Data Proposed Rates'!$A:$BF,MATCH('BI Template_unmHCHI'!$A15,ProposedHeader,0),FALSE) -> 3.27 | G15: =E15*F15 -> 3.27 | H15: 0 | I15: 0 | J15: 0.0003433759343
A16: Distribution Volumetric Charge | B16: =IF($B$9="kWh",$B$4,$B$5) -> 31001 | C16: =VLOOKUP($B$3,'Data Current Rates'!$A:$AJ,MATCH('BI Template_unmHCHI'!$A16,CurrentHeader,0),FALSE) -> 0.1186 | D16: =B16*C16 -> 3676.7186 | E16: =IF($C$9="kWh",$C$4,$C$5) -> 31001 | F16: =VLOOKUP($C$3,'Data Proposed Rates'!$A:$BF,MATCH('BI Template_unmHCHI'!$A16,ProposedHeader,0),FALSE) -> 0.1186 | G16: 3676.7186 | H16: 0 | I16: 0 | J16: 0.3860846129
A17: Group 1 Volumetric DVA Rider (General) (2023) | B17: =IF($B$9="kWh",$B$4,$B$5) -> 31001 | C17: =VLOOKUP($B$3,'Data Current Rates'!$A:$AJ,MATCH('BI Template_unmHCHI'!$A17,CurrentHeader,0),FALSE) -> -0.0007 | D17: =B17*C17 -> -21.7007 | E17: =IF($C$9="kWh",$C$4,$C$5) -> 31001 | F17: =VLOOKUP($C$3,'Data Proposed Rates'!$A:$BF,MATCH('BI Template_unmHCHI'!$A17,ProposedHeader,0),FALSE) -> -0.0007 | G17: -21.7007 | H17: 0 | I17: 0 | J17: -0.002278745608
A18: Group 1 Volumetric DVA Rider (Excl 1595) (2024) | E18: 31001 | F18: =VLOOKUP($C$3,'Data Proposed Rates'!$A:$BF,MATCH('BI Template_unmHCHI'!$A18,ProposedHeader,0),FALSE) -> 0.0015 | G18: =E18*F18 -> 46.5015 | H18: =G18-D18 -> 46.5015 | I18: =IF(ISERROR(H18/ABS(D18)),"N/A",(H18/ABS(D18))) -> N/A | J18: =G18/$G$37 -> 0.004883026302
A19: Group 1 Volumetric Deferral/Variance Account Rider (Sub-Account CBR) (2024) | E19: 31001 | F19: =VLOOKUP($C$3,'Data Proposed Rates'!$A:$BF,MATCH('BI Template_unmHCHI'!$A19,ProposedHeader,0),FALSE) -> -0.0006 | G19: -18.6006 | H19: -18.6006 | I19: N/A | J19: -0.001953210521
A20: Volumetric Rider for Account 1592 | B20: =IF($B$9="kWh",$B$4,$B$5) -> 31001 | C20: =VLOOKUP($B$3,'Data Current Rates'!$A:$AJ,MATCH('BI Template_unmHCHI'!$A20,CurrentHeader,0),FALSE) -> -0.0028 | D20: =B20*C20 -> -86.8028 | E20: =IF($C$9="kWh",$C$4,$C$5) -> 31001 | F20: =VLOOKUP($C$3,'Data Proposed Rates'!$A:$BF,MATCH('BI Template_unmHCHI'!$A20,ProposedHeader,0),FALSE) -> -0.0028 | G20: =E20*F20 -> -86.8028 | H20: =G20-D20 -> 0 | I20: =IF(ISERROR(H20/ABS(D20)),"N/A",(H20/ABS(D20))) -> 0 | J20: -0.009114982431
A21: Sub-Total: Distribution (excluding pass through) | D21: =SUM(INDIRECT("D15:D"&ROW()-1)) -> 3571.4851 | G21: =SUM(INDIRECT("g15:g"&ROW()-1)) -> 3599.386 | H21: =G21-D21 -> 27.9009 | I21: 0.00781212835 | J21: 0.3779640766
A22: Line Losses on Cost of Power (based on two-tier RPP prices) | B22: =B8-B4 -> 2852.092 | C22: =IF(B4>B7,C13,C12) -> 0.125 | D22: =B22*C22 -> 356.5115 | E22: =C8-C4 -> 2852.092 | F22: =IF(C4>C7,F13,F12) -> 0.125 | G22: =E22*F22 -> 356.5115 | H22: 0 | I22: 0 | J22: 0.03743653498
A23: Sub-Total: Distribution (based on two-tier RPP prices) | D23: =SUM(D21,D22:D22) -> 3927.9966 | G23: =SUM(G21,G22:G22) -> 3955.8975 | H23: 27.9009 | I23: 0.007103086596 | J23: 0.4154006116
A24: Retail Transmission Rate – Network Service Rate | B24: =IF($B$9="kWh",$B$8,$B$5) -> 33853.092 | C24: =VLOOKUP($B$3,'Data Current Rates'!$A:$AJ,MATCH('BI Template_unmHCHI'!$A24,CurrentHeader,0),FALSE) -> 0.0068 | D24: =B24*C24 -> 230.2010256 | E24: =IF($C$9="kWh",$C$8,$C$5) -> 33853.092 | F24: =VLOOKUP($C$3,'Data Proposed Rates'!$A:$BF,MATCH('BI Template_unmHCHI'!$A24,ProposedHeader,0),FALSE) -> 0.0068 | G24: =E24*F24 -> 230.2010256 | H24: =G24-D24 -> 0 | I24: 0 | J24: 0.02417293341
A25: Retail Transmission Rate – Line and Transformation Connection Service Rate | B25: =IF($B$9="kWh",$B$8,$B$5) -> 33853.092 | C25: =VLOOKUP($B$3,'Data Current Rates'!$A:$AJ,MATCH('BI Template_unmHCHI'!$A25,CurrentHeader,0),FALSE) -> 0.0054 | D25: =B25*C25 -> 182.8066968 | E25: =IF($C$9="kWh",$C$8,$C$5) -> 33853.092 | F25: =VLOOKUP($C$3,'Data Proposed Rates'!$A:$BF,MATCH('BI Template_unmHCHI'!$A25,ProposedHeader,0),FALSE) -> 0.0054 | G25: =E25*F25 -> 182.8066968 | H25: =G25-D25 -> 0 | I25: 0 | J25: 0.019196153
A26: Sub-Total: Retail Transmission | D26: =SUM(D24:D25) -> 413.0077224 | G26: =SUM(G24:G25) -> 413.0077224 | H26: =G26-D26 -> 0 | I26: 0 | J26: 0.0433690864
A27: Sub-Total: Delivery (based on two-tier RPP prices) | D27: =D23+D26 -> 4341.004322 | G27: =G23+G26 -> 4368.905222 | H27: =G27-D27 -> 27.9009 | I27: 0.006427291458 | J27: 0.458769698
A28: Wholesale Market Service Rate (WMS) - not including CBR | B28: =B8 -> 33853.092 | C28: =VLOOKUP($A28,'Data Pass Through'!$A:$D,2,FALSE) -> 0.0041 | D28: =B28*C28 -> 138.7976772 | E28: =$C$8 -> 33853.092 | F28: =VLOOKUP($A28,'Data Pass Through'!$A:$D,3,FALSE) -> 0.0041 | G28: =E28*F28 -> 138.7976772 | H28: =G28-D28 -> 0 | I28: 0 | J28: 0.01457485691
A29: Capacity Based Recovery (CBR) - Applicable for Class B Customers | B29: =B8 -> 33853.092 | C29: =VLOOKUP($A29,'Data Pass Through'!$A:$D,2,FALSE) -> 0.0004 | D29: =B29*C29 -> 13.5412368 | E29: =$C$8 -> 33853.092 | F29: =VLOOKUP($A29,'Data Pass Through'!$A:$D,3,FALSE) -> 0.0004 | G29: =E29*F29 -> 13.5412368 | H29: 0 | I29: 0 | J29: 0.001421937259
A30: Rural Rate Protection Charge | B30: =B8 -> 33853.092 | C30: =VLOOKUP($A30,'Data Pass Through'!$A:$D,2,FALSE) -> 0.0014 | D30: 47.3943288 | E30: 33853.092 | F30: =VLOOKUP($A30,'Data Pass Through'!$A:$D,3,FALSE) -> 0.0014 | G30: 47.3943288 | H30: 0 | I30: 0 | J30: 0.004976780407
A31: Standard Supply Service – Administration Charge (if applicable) | B31: 1 | C31: =VLOOKUP($A31,'Data Pass Through'!$A:$D,2,FALSE) -> 0.25 | D31: =B31*C31 -> 0.25 | E31: 1 | F31: =VLOOKUP($A31,'Data Pass Through'!$A:$D,3,FALSE) -> 0.25 | G31: 0.25 | H31: 0 | I31: 0 | J31: 2.625198274e-05
A32: Sub-Total: Regulatory | D32: =SUM(D28:D31) -> 199.9832428 | G32: =SUM(G28:G31) -> 199.9832428 | H32: 0 | I32: 0 | J32: 0.02099982656
A33: Total Electricty Charge on Two-Tier RPP | D33: =SUM(D27,D32,D14) -> 8399.612565 | G33: =SUM(G27,G32,G14) -> 8427.513465 | H33: 27.9009 | I33: 0.003321688921 | J33: 0.8849557522
A34: HST | C34: 0.13 | D34: =D33*C34 -> 1091.949633 | F34: =C34 -> 0.13 | G34: =G33*F34 -> 1095.57675 | H34: 3.627117 | I34: 0.003321688921 | J34: 0.1150442478
A35: Total Electricity Charge on Two-Tier RPP (including HST) | D35: =SUM(D33:D34) -> 9491.562199 | G35: =SUM(G33:G34) -> 9523.090216 | H35: 31.528017 | I35: 0.003321688921 | J35: 1
A36: Ontario Electricity Rebate (OER) | C36: =IF(($B$4*12)<250000,VLOOKUP(A36,'Data Pass Through'!$A$4:$C$20,2,0),0) -> 0 | D36: =D33*C36 -> 0 | F36: =C36 -> 0 | G36: =G33*F36 -> 0 | H36: 0 | I36: N/A | J36: 0
A37: Total Amount on Two-Tier RPP | D37: =SUM(D35:D36) -> 9491.562199 | G37: =SUM(G35:G36) -> 9523.090216 | H37: 31.528017 | I37: 0.003321688921 | J37: 1

Sheet BI Template_EnergyWHSI (hidden)
A1: 2024 Bill Impacts (Low Consumption Level) - AUR_WHSI
A3: Rate Class | B3: =VLOOKUP(A1,'Data BI List Acq_Seas'!C:E,2,FALSE) -> AUR-WHSI | C3: =VLOOKUP(A1,'Data BI List Acq_Seas'!C:E,3,FALSE) -> AUR-WHSI
A4: Monthly Consumption (kWh) | B4: =IF(COUNTIF(A1,"*Low*")>0,VLOOKUP(B3,'Data Billing Quantities'!$A:$Z,MATCH("Low kWh",'Data Billing Quantities'!4:4,0),FALSE),IF(COUNTIF(A1,"*Typical*")>0,VLOOKUP(B3,'Data Billing Quantities'!$A:$Z,MATCH("Typical kWh",'Data Billing Quantities'!4:4,0),FALSE),IF(COUNTIF(A1,"*Average*")>0,VLOOKUP(B3,'Data Billing Quantities'!$A:$Z,MATCH("Average kWh",'Data Billing Quantities'!4:4,0),FALSE),IF(COUNTIF(A1,"*High*")>0,VLOOKUP(B3,'Data Billing Quantities'!$A:$Z,MATCH("High kWh",'Data Billing Quantities'!4:4,0),FALSE),"error")))) -> 310 | C4: =B4 -> 310
A5: Peak (kW) | B5: =IF(COUNTIF(A1,"*Low*")>0,VLOOKUP(B3,'Data Billing Quantities'!$A:$Z,MATCH("Low kW",'Data Billing Quantities'!4:4,0),FALSE),IF(COUNTIF(A1,"*Typical*")>0,VLOOKUP(B3,'Data Billing Quantities'!$A:$Z,MATCH("Typical kW",'Data Billing Quantities'!4:4,0),FALSE),IF(COUNTIF(A1,"*Average*")>0,VLOOKUP(B3,'Data Billing Quantities'!$A:$Z,MATCH("Average kW",'Data Billing Quantities'!4:4,0),FALSE),IF(COUNTIF(A1,"*High*")>0,VLOOKUP(B3,'Data Billing Quantities'!$A:$Z,MATCH("High kW",'Data Billing Quantities'!4:4,0),FALSE),"error")))) -> 0 | C5: =B5 -> 0
A6: Loss factor | B6: =VLOOKUP(B3,'Data Billing Quantities'!A:D,MATCH(A6,'Data Billing Quantities'!4:4,0),FALSE) -> 1.043 | C6: =VLOOKUP(C3,'Data Billing Quantities'!A:D,MATCH(A6,'Data Billing Quantities'!4:4,0),FALSE) -> 1.043
A7: Commodity Threshold | B7: =VLOOKUP(B3,'Data Billing Quantities'!A:D,MATCH(A7,'Data Billing Quantities'!4:4,0),FALSE) -> 750 | C7: =B7 -> 750
A8: Monthly Consumption (kWh) - Uplifted | B8: =B4*B6 -> 323.33 | C8: =C4*C6 -> 323.33
A9: Charge determinant | B9: =VLOOKUP(B3,'Data Billing Quantities'!A:D,MATCH(A9,'Data Billing Quantities'!4:4,0),FALSE) -> kWh | C9: =VLOOKUP(C3,'Data Billing Quantities'!A:D,MATCH(A9,'Data Billing Quantities'!4:4,0),FALSE) -> kWh
B11: Volume | C11: Current Rate ($) | D11: Current Charge ($) | E11: Volume | F11: Proposed Rate ($) | G11: Proposed Charge ($) | H11: Change ($) | I11: Change (%) | J11: % of Total Bill on RPP | K11: % of Total Bill
A12: Energy First Tier | B12: =IF(B4>B7,B7,B4) -> 310 | C12: =VLOOKUP($A12,'Data Pass Through'!$A:$D,2,FALSE) -> 0.103 | D12: =B12*C12 -> 31.93 | E12: =B12 -> 310 | F12: =VLOOKUP($A12,'Data Pass Through'!$A:$D,3,FALSE) -> 0.103 | G12: =E12*F12 -> 31.93 | H12: =G12-D12 -> 0 | I12: =IF(ISERROR(H12/ABS(D12)),"N/A",(H12/ABS(D12))) -> 0 | J12: =G12/$G$46 -> 0.4501927267
A13: Energy Second Tier | B13: =IF(B4>B7,(B4)-B7,0) -> 0 | C13: =VLOOKUP($A13,'Data Pass Through'!$A:$D,2,FALSE) -> 0.125 | D13: =B13*C13 -> 0 | E13: =B13 -> 0 | F13: =VLOOKUP($A13,'Data Pass Through'!$A:$D,3,FALSE) -> 0.125 | G13: =E13*F13 -> 0 | H13: 0 | I13: N/A | J13: =G13/$G$46 -> 0
A14: Sub-Total: Energy (RPP Tiered) | D14: =SUM(D12:D13) -> 31.93 | G14: =SUM(G12:G13) -> 31.93 | H14: 0 | I14: 0 | J14: =G14/$G$46 -> 0.4501927267
A15: TOU-Off Peak | B15: =B$4*VLOOKUP($B$3,'Data Billing Quantities'!$A:$O,MATCH('BI Template_EnergyWHSI'!$A15,'Data Billing Quantities'!$4:$4,0),FALSE) -> 198.4 | C15: =VLOOKUP($A15,'Data Pass Through'!$A:$D,2,FALSE) -> 0.087 | D15: =B15*C15 -> 17.2608 | E15: 198.4 | F15: =VLOOKUP($A15,'Data Pass Through'!$A:$D,3,FALSE) -> 0.087 | G15: =E15*F15 -> 17.2608 | H15: 0 | I15: 0 | K15: =G15/$G$51 -> 0.2359093568
A16: TOU-Mid Peak | B16: =B$4*VLOOKUP($B$3,'Data Billing Quantities'!$A:$O,MATCH('BI Template_EnergyWHSI'!$A16,'Data Billing Quantities'!$4:$4,0),FALSE) -> 55.8 | C16: =VLOOKUP($A16,'Data Pass Through'!$A:$D,2,FALSE) -> 0.122 | D16: =B16*C16 -> 6.8076 | E16: 55.8 | F16: =VLOOKUP($A16,'Data Pass Through'!$A:$D,3,FALSE) -> 0.122 | G16: =E16*F16 -> 6.8076 | H16: 0 | I16: 0 | K16: 0.09304183684
A17: TOU-On Peak | B17: =B$4*VLOOKUP($B$3,'Data Billing Quantities'!$A:$O,MATCH('BI Template_EnergyWHSI'!$A17,'Data Billing Quantities'!$4:$4,0),FALSE) -> 55.8 | C17: =VLOOKUP($A17,'Data Pass Through'!$A:$D,2,FALSE) -> 0.182 | D17: =B17*C17 -> 10.1556 | E17: 55.8 | F17: =VLOOKUP($A17,'Data Pass Through'!$A:$D,3,FALSE) -> 0.182 | G17: =E17*F17 -> 10.1556 | H17: 0 | I17: 0 | K17: 0.1388001172
A18: Sub-Total: Energy (RPP TOU) | D18: =SUM(D15:D17) -> 34.224 | G18: =SUM(G15:G17) -> 34.224 | H18: 0 | I18: 0 | J18: =G18/$G$46 -> 0.4825366701 | K18: 0.4677513109
A19: Service Charge | B19: 1 | C19: =VLOOKUP($B$3,'Data Current Rates'!$A:$AJ,MATCH('BI Template_EnergyWHSI'!$A19,CurrentHeader,0),FALSE) -> 33.03 | D19: =B19*C19 -> 33.03 | E19: 1 | F19: =VLOOKUP($C$3,'Data Proposed Rates'!$A:$BF,MATCH('BI Template_EnergyWHSI'!$A19,ProposedHeader,0),FALSE) -> 33.03 | G19: =E19*F19 -> 33.03 | H19: 0 | I19: 0 | J19: 0.4657020282 | K19: 0.4514324976
A20: Distribution Volumetric Charge | B20: =IF($B$9="kWh",$B$4,$B$5) -> 310 | C20: =VLOOKUP($B$3,'Data Current Rates'!$A:$AJ,MATCH('BI Template_EnergyWHSI'!$A20,CurrentHeader,0),FALSE) -> 0 | D20: =B20*C20 -> 0 | E20: =IF($C$9="kWh",$C$4,$C$5) -> 310 | F20: =VLOOKUP($C$3,'Data Proposed Rates'!$A:$BF,MATCH('BI Template_EnergyWHSI'!$A20,ProposedHeader,0),FALSE) -> 0 | G20: 0 | H20: 0 | I20: N/A | J20: 0 | K20: 0
A21: Group 1 Volumetric DVA Rider (General) (2023) | B21: =IF($B$9="kWh",$B$4,$B$5) -> 310 | C21: =VLOOKUP($B$3,'Data Current Rates'!$A:$AJ,MATCH('BI Template_EnergyWHSI'!$A21,CurrentHeader,0),FALSE) -> -0.0009 | D21: =B21*C21 -> -0.279 | E21: =IF($C$9="kWh",$C$4,$C$5) -> 310 | F21: =VLOOKUP($C$3,'Data Proposed Rates'!$A:$BF,MATCH('BI Template_EnergyWHSI'!$A21,ProposedHeader,0),FALSE) -> -0.0009 | G21: -0.279 | H21: 0 | I21: 0 | J21: -0.003933722854 | K21: -0.003813190034
A22: Group 1 Volumetric DVA Rider (Excl 1595) (2024) | E22: 310 | F22: =VLOOKUP($C$3,'Data Proposed Rates'!$A:$BF,MATCH('BI Template_EnergyWHSI'!$A22,ProposedHeader,0),FALSE) -> 0.0011 | G22: =E22*F22 -> 0.341 | H22: =G22-D22 -> 0.341 | I22: =IF(ISERROR(H22/ABS(D22)),"N/A",(H22/ABS(D22))) -> N/A | J22: 0.004807883489 | K22: 0.004660565597
A23: Group 1 Volumetric Deferral/Variance Account Rider (Sub-Account CBR) (2024) | E23: 310 | F23: =VLOOKUP($C$3,'Data Proposed Rates'!$A:$BF,MATCH('BI Template_EnergyWHSI'!$A23,ProposedHeader,0),FALSE) -> -0.0006 | G23: -0.186 | H23: -0.186 | I23: N/A | J23: -0.002622481903 | K23: -0.002542126689
A24: Fixed Rider for Account 1592 | B24: 1 | C24: =VLOOKUP($B$3,'Data Current Rates'!$A:$AJ,MATCH('BI Template_EnergyWHSI'!$A24,CurrentHeader,0),FALSE) -> -0.4 | D24: =B24*C24 -> -0.4 | E24: 1 | F24: =VLOOKUP($C$3,'Data Proposed Rates'!$A:$BF,MATCH('BI Template_EnergyWHSI'!$A24,ProposedHeader,0),FALSE) -> -0.4 | G24: =E24*F24 -> -0.4 | H24: =G24-D24 -> 0 | I24: =IF(ISERROR(H24/ABS(D24)),"N/A",(H24/ABS(D24))) -> 0 | J24: -0.005639746028 | K24: -0.005466939117
A25: Volumetric Rider for Account 1592 | B25: =IF($B$9="kWh",$B$4,$B$5) -> 310 | C25: =VLOOKUP($B$3,'Data Current Rates'!$A:$AJ,MATCH('BI Template_EnergyWHSI'!$A25,CurrentHeader,0),FALSE) -> 0 | D25: =B25*C25 -> 0 | E25: =IF($C$9="kWh",$C$4,$C$5) -> 310 | F25: =VLOOKUP($C$3,'Data Proposed Rates'!$A:$BF,MATCH('BI Template_EnergyWHSI'!$A25,ProposedHeader,0),FALSE) -> 0 | G25: 0 | H25: 0 | I25: N/A | J25: 0 | K25: 0
A26: Sub-Total: Distribution (excluding pass through) | D26: =SUM(INDIRECT("D19:D"&ROW()-1)) -> 32.351 | G26: =SUM(INDIRECT("g19:g"&ROW()-1)) -> 32.506 | H26: =G26-D26 -> 0.155 | I26: 0.004791196563 | J26: 0.4583139609 | K26: 0.4442708074
A27: Smart Metering Entity Charge | B27: =B19 -> 1 | C27: =VLOOKUP($A27,'Data Pass Through'!$A:$D,2,FALSE) -> 0.42 | D27: =B27*C27 -> 0.42 | E27: =E19 -> 1 | F27: =VLOOKUP($A27,'Data Pass Through'!$A:$D,3,FALSE) -> 0.42 | G27: =E27*F27 -> 0.42 | H27: 0 | I27: 0 | J27: 0.005921733329 | K27: 0.005740286073
A28: Line Losses on Cost of Power (based on two-tier RPP prices) | B28: =B8-B4 -> 13.33 | C28: =IF(B4>B7,C13,C12) -> 0.103 | D28: =B28*C28 -> 1.37299 | E28: =C8-C4 -> 13.33 | F28: =IF(C4>C7,F13,F12) -> 0.103 | G28: =E28*F28 -> 1.37299 | H28: 0 | I28: 0 | J28: 0.01935828725 | K28: 0.01876513185
A29: Line Losses on Cost of Power (based on TOU prices) | B29: =B8-B4 -> 13.33 | C29: =VLOOKUP($B$3,'Data Billing Quantities'!$A:$O,MATCH('BI Template_EnergyWHSI'!$A15,'Data Billing Quantities'!$4:$4,0),FALSE)*C15+VLOOKUP($B$3,'Data Billing Quantities'!$A:$O,MATCH('BI Template_EnergyWHSI'!$A16,'Data Billing Quantities'!$4:$4,0),FALSE)*C16+VLOOKUP($B$3,'Data Billing Quantities'!$A:$O,MATCH('BI Template_EnergyWHSI'!$A17,'Data Billing Quantities'!$4:$4,0),FALSE)*C17 -> 0.1104 | D29: =B29*C29 -> 1.471632 | E29: =C8-C4 -> 13.33 | F29: =VLOOKUP($C$3,'Data Billing Quantities'!$A:$O,MATCH('BI Template_EnergyWHSI'!$A15,'Data Billing Quantities'!$4:$4,0),FALSE)*F15+VLOOKUP($C$3,'Data Billing Quantities'!$A:$O,MATCH('BI Template_EnergyWHSI'!$A16,'Data Billing Quantities'!$4:$4,0),FALSE)*F16+VLOOKUP($C$3,'Data Billing Quantities'!$A:$O,MATCH('BI Template_EnergyWHSI'!$A17,'Data Billing Quantities'!$4:$4,0),FALSE)*F17 -> 0.1104 | G29: =E29*F29 -> 1.471632 | H29: 0 | I29: 0 | J29: 0.02074907682 | K29: 0.02011330637
A30: Sub-Total: Distribution (based on two-tier RPP prices) | D30: =SUM(D26,D27:D28) -> 34.14399 | G30: =SUM(G26,G27:G28) -> 34.29899 | H30: 0.155 | I30: 0.00453959833 | J30: 0.4835939815 | K30: 0.4687762253
A31: Sub-Total: Distribution (based on TOU prices) | D31: =SUM(D26,D27,D29) -> 34.242632 | G31: =SUM(G26,G27,G29) -> 34.397632 | H31: 0.155 | I31: 0.004526521209 | J31: 0.4849847711 | K31: 0.4701243998
A32: Retail Transmission Rate – Network Service Rate | B32: =IF($B$9="kWh",$B$8,$B$5) -> 323.33 | C32: =VLOOKUP($B$3,'Data Current Rates'!$A:$AJ,MATCH('BI Template_EnergyWHSI'!$A32,CurrentHeader,0),FALSE) -> 0.013 | D32: =B32*C32 -> 4.20329 | E32: =IF($C$9="kWh",$C$8,$C$5) -> 323.33 | F32: =VLOOKUP($C$3,'Data Proposed Rates'!$A:$BF,MATCH('BI Template_EnergyWHSI'!$A32,ProposedHeader,0),FALSE) -> 0.013 | G32: =E32*F32 -> 4.20329 | H32: =G32-D32 -> 0 | I32: 0 | J32: 0.0592637202 | K32: 0.0574478263
A33: Retail Transmission Rate – Line and Transformation Connection Service Rate | B33: =IF($B$9="kWh",$B$8,$B$5) -> 323.33 | C33: =VLOOKUP($B$3,'Data Current Rates'!$A:$AJ,MATCH('BI Template_EnergyWHSI'!$A33,CurrentHeader,0),FALSE) -> 0.0096 | D33: =B33*C33 -> 3.103968 | E33: =IF($C$9="kWh",$C$8,$C$5) -> 323.33 | F33: =VLOOKUP($C$3,'Data Proposed Rates'!$A:$BF,MATCH('BI Template_EnergyWHSI'!$A33,ProposedHeader,0),FALSE) -> 0.0096 | G33: =E33*F33 -> 3.103968 | H33: =G33-D33 -> 0 | I33: 0 | J33: 0.043763978 | K33: 0.04242301019
A34: Sub-Total: Retail Transmission | D34: =SUM(D32:D33) -> 7.307258 | G34: =SUM(G32:G33) -> 7.307258 | H34: =G34-D34 -> 0 | I34: 0 | J34: 0.1030276982 | K34: 0.0998708365
A35: Sub-Total: Delivery (based on two-tier RPP prices) | D35: =D30+D34 -> 41.451248 | G35: =G30+G34 -> 41.606248 | H35: =G35-D35 -> 0.155 | I35: 0.003739332529 | J35: 0.5866216797 | K35: 0.5686470618
A36: Sub-Total: Delivery (based on TOU prices) | D36: =D31+D34 -> 41.54989 | G36: =G31+G34 -> 41.70489 | H36: =G36-D36 -> 0.155 | I36: 0.003730455123 | J36: 0.5880124693 | K36: 0.5699952363
A37: Wholesale Market Service Rate (WMS) - not including CBR | B37: =B8 -> 323.33 | C37: =VLOOKUP($A37,'Data Pass Through'!$A:$D,2,FALSE) -> 0.0041 | D37: =B37*C37 -> 1.325653 | E37: =$C$8 -> 323.33 | F37: =VLOOKUP($A37,'Data Pass Through'!$A:$D,3,FALSE) -> 0.0041 | G37: =E37*F37 -> 1.325653 | H37: 0 | I37: 0 | J37: 0.0186908656 | K37: 0.0181181606
A38: Capacity Based Recovery (CBR) - Applicable for Class B Customers | B38: =B8 -> 323.33 | C38: =VLOOKUP($A38,'Data Pass Through'!$A:$D,2,FALSE) -> 0.0004 | D38: =B38*C38 -> 0.129332 | E38: =$C$8 -> 323.33 | F38: =VLOOKUP($A38,'Data Pass Through'!$A:$D,3,FALSE) -> 0.0004 | G38: =E38*F38 -> 0.129332 | H38: 0 | I38: 0 | J38: 0.001823499083 | K38: 0.001767625425
A39: Rural Rate Protection Charge | B39: =B8 -> 323.33 | C39: =VLOOKUP($A39,'Data Pass Through'!$A:$D,2,FALSE) -> 0.0014 | D39: 0.452662 | E39: 323.33 | F39: =VLOOKUP($A39,'Data Pass Through'!$A:$D,3,FALSE) -> 0.0014 | G39: 0.452662 | H39: 0 | I39: 0 | J39: 0.006382246791 | K39: 0.006186688987
A40: Standard Supply Service – Administration Charge (if applicable) | B40: 1 | C40: =VLOOKUP($A40,'Data Pass Through'!$A:$D,2,FALSE) -> 0.25 | D40: =B40*C40 -> 0.25 | E40: 1 | F40: =VLOOKUP($A40,'Data Pass Through'!$A:$D,3,FALSE) -> 0.25 | G40: 0.25 | H40: 0 | I40: 0 | J40: 0.003524841267 | K40: 0.003416836948
A41: Sub-Total: Regulatory | D41: =SUM(D37:D40) -> 2.157647 | G41: =SUM(G37:G40) -> 2.157647 | H41: 0 | I41: 0 | J41: 0.03042145274 | K41: 0.02948931196
A42: Total Electricty Charge on Two-Tier RPP | D42: =SUM(D14,D26,D27,D28,D34,D41) -> 75.538895 | G42: =SUM(G14,G26,G27,G28,G34,G41) -> 75.693895 | H42: 0.155 | I42: 0.002051923052 | J42: 1.067235859
A43: HST | C43: 0.13 | D43: =D42*C43 -> 9.82005635 | F43: =C43 -> 0.13 | G43: =G42*F43 -> 9.84020635 | H43: 0.02015 | I43: 0.002051923052 | J43: 0.1387406617
A44: Total Electricity Charge on Two-Tier RPP (including HST) | D44: =SUM(D42:D43) -> 85.35895135 | G44: =SUM(G42:G43) -> 85.53410135 | H44: 0.17515 | I44: 0.002051923052 | J44: 1.205976521
A45: Ontario Electricity Rebate (OER) | C45: =IF(($B$4*12)<250000,VLOOKUP(A45,'Data Pass Through'!$A$4:$C$20,2,0),0) -> -0.193 | D45: =D42*C45 -> -14.57900674 | F45: =C45 -> -0.193 | G45: =G42*F45 -> -14.60892174 | H45: -0.029915 | I45: -0.002051923052 | J45: -0.2059765208
A46: Total Amount on Two-Tier RPP | D46: =SUM(D44:D45) -> 70.77994462 | G46: =SUM(G44:G45) -> 70.92517962 | H46: 0.145235 | I46: 0.002051923052 | J46: 1
A47: Total Electricty Charge on TOU (before HST) | D47: =SUM(D18,D26,D27,D29,D34,D41) -> 77.931537 | G47: =SUM(G18,G26,G27,G29,G34,G41) -> 78.086537 | H47: 0.155 | I47: 0.001988925228 | K47: =G47/$G$51 -> 1.067235859
A48: HST | C48: 0.13 | D48: =D47*C48 -> 10.13109981 | F48: =C48 -> 0.13 | G48: =G47*F48 -> 10.15124981 | H48: 0.02015 | I48: 0.001988925228 | K48: =G48/$G$51 -> 0.1387406617
A49: Total Electricity Charge on TOU (including HST) | D49: =SUM(D47:D48) -> 88.06263681 | G49: =SUM(G47:G48) -> 88.23778681 | H49: 0.17515 | I49: 0.001988925228 | K49: =G49/$G$51 -> 1.205976521
A50: Ontario Electricity Rebate (OER) | C50: =IF(($B$4*12)<250000,VLOOKUP(A50,'Data Pass Through'!$A$4:$C$20,2,0),0) -> -0.193 | D50: =D47*C50 -> -15.04078664 | F50: =C50 -> -0.193 | G50: =G47*F50 -> -15.07070164 | H50: -0.029915 | I50: -0.001988925228 | K50: =G50/$G$51 -> -0.2059765208
A51: Total Amount on TOU | D51: =SUM(D49:D50) -> 73.02185017 | G51: =SUM(G49:G50) -> 73.16708517 | H51: 0.145235 | I51: 0.001988925228 | K51: =G51/$G$51 -> 1

Sheet BI Template_DemandWHSI (hidden)
A1: 2024 Bill Impacts (Low Consumption Level) - AUGd_WHSI
A3: Rate Class | B3: =VLOOKUP(A1,'Data BI List Acq_Seas'!C:E,2,FALSE) -> AUGd-WHSI | C3: =VLOOKUP(A1,'Data BI List Acq_Seas'!C:E,3,FALSE) -> AUGd-WHSI
A4: Monthly Consumption (kWh) | B4: =IF(COUNTIF(A1,"*Low*")>0,VLOOKUP(B3,'Data Billing Quantities'!$A:$Z,MATCH("Low kWh",'Data Billing Quantities'!4:4,0),FALSE),IF(COUNTIF(A1,"*Typical*")>0,VLOOKUP(B3,'Data Billing Quantities'!$A:$Z,MATCH("Typical kWh",'Data Billing Quantities'!4:4,0),FALSE),IF(COUNTIF(A1,"*Average*")>0,VLOOKUP(B3,'Data Billing Quantities'!$A:$Z,MATCH("Average kWh",'Data Billing Quantities'!4:4,0),FALSE),IF(COUNTIF(A1,"*High*")>0,VLOOKUP(B3,'Data Billing Quantities'!$A:$Z,MATCH("High kWh",'Data Billing Quantities'!4:4,0),FALSE),"error")))) -> 9370 | C4: =B4 -> 9370
A5: Peak (kW) | B5: =IF(COUNTIF(A1,"*Low*")>0,VLOOKUP(B3,'Data Billing Quantities'!$A:$Z,MATCH("Low kW",'Data Billing Quantities'!4:4,0),FALSE),IF(COUNTIF(A1,"*Typical*")>0,VLOOKUP(B3,'Data Billing Quantities'!$A:$Z,MATCH("Typical kW",'Data Billing Quantities'!4:4,0),FALSE),IF(COUNTIF(A1,"*Average*")>0,VLOOKUP(B3,'Data Billing Quantities'!$A:$Z,MATCH("Average kW",'Data Billing Quantities'!4:4,0),FALSE),IF(COUNTIF(A1,"*High*")>0,VLOOKUP(B3,'Data Billing Quantities'!$A:$Z,MATCH("High kW",'Data Billing Quantities'!4:4,0),FALSE),"error")))) -> 50 | C5: =B5 -> 50
A6: Loss factor | B6: =VLOOKUP(B3,'Data Billing Quantities'!A:D,MATCH(A6,'Data Billing Quantities'!4:4,0),FALSE) -> 1.033 | C6: =VLOOKUP(C3,'Data Billing Quantities'!A:D,MATCH(A6,'Data Billing Quantities'!4:4,0),FALSE) -> 1.033
A7: Commodity Threshold | B7: =VLOOKUP(B3,'Data Billing Quantities'!A:D,MATCH(A7,'Data Billing Quantities'!4:4,0),FALSE) -> 0 | C7: =B7 -> 0
A8: Monthly Consumption (kWh) - Uplifted | B8: =B4*B6 -> 9679.21 | C8: =C4*C6 -> 9679.21
A9: Charge determinant | B9: =VLOOKUP(B3,'Data Billing Quantities'!A:D,MATCH(A9,'Data Billing Quantities'!4:4,0),FALSE) -> kW | C9: =VLOOKUP(C3,'Data Billing Quantities'!A:D,MATCH(A9,'Data Billing Quantities'!4:4,0),FALSE) -> kW
B11: Volume | C11: Current Rate ($) | D11: Current Charge ($) | E11: Volume | F11: Proposed Rate ($) | G11: Proposed Charge ($) | H11: Change ($) | I11: Change (%) | J11: % of Total Bill
A12: Weighted Average Hourly Spot Price | B12: =B8 -> 9679.21 | C12: =VLOOKUP($A12,'Data Pass Through'!$A:$D,2,FALSE) -> 0.1035 | D12: =B12*C12 -> 1001.798235 | E12: =C8 -> 9679.21 | F12: =VLOOKUP($A12,'Data Pass Through'!$A:$D,3,FALSE) -> 0.1035 | G12: =E12*F12 -> 1001.798235 | H12: =G12-D12 -> 0 | I12: =IF(ISERROR(H12/ABS(D12)),"N/A",(H12/ABS(D12))) -> 0 | J12: =G12/G$36 -> 0.547127161
A13: Sub-Total: Energy (WAHSP) | D13: =SUM(D12:D12) -> 1001.798235 | G13: =SUM(G12:G12) -> 1001.798235 | H13: 0 | I13: 0 | J13: 0.547127161
A14: Service Charge | B14: 1 | C14: =VLOOKUP($B$3,'Data Current Rates'!$A:$AJ,MATCH('BI Template_DemandWHSI'!$A14,CurrentHeader,0),FALSE) -> 146.47 | D14: =B14*C14 -> 146.47 | E14: 1 | F14: =VLOOKUP($C$3,'Data Proposed Rates'!$A:$BF,MATCH('BI Template_DemandWHSI'!$A14,ProposedHeader,0),FALSE) -> 146.47 | G14: =E14*F14 -> 146.47 | H14: 0 | I14: 0 | J14: 0.07999386751
A15: Distribution Volumetric Charge | B15: =IF($B$9="kWh",$B$4,$B$5) -> 50 | C15: =VLOOKUP($B$3,'Data Current Rates'!$A:$AJ,MATCH('BI Template_DemandWHSI'!$A15,CurrentHeader,0),FALSE) -> 3.0288 | D15: =B15*C15 -> 151.44 | E15: =IF($C$9="kWh",$C$4,$C$5) -> 50 | F15: =VLOOKUP($C$3,'Data Proposed Rates'!$A:$BF,MATCH('BI Template_DemandWHSI'!$A15,ProposedHeader,0),FALSE) -> 3.0288 | G15: 151.44 | H15: 0 | I15: 0 | J15: 0.08270820847
A16: Group 1 Volumetric DVA Rider (General) (2023) | B16: =IF($B$9="kWh",$B$4,$B$5) -> 50 | C16: =VLOOKUP($B$3,'Data Current Rates'!$A:$AJ,MATCH('BI Template_DemandWHSI'!$A16,CurrentHeader,0),FALSE) -> -0.0645 | D16: =B16*C16 -> -3.225 | E16: =IF($C$9="kWh",$C$4,$C$5) -> 50 | F16: =VLOOKUP($C$3,'Data Proposed Rates'!$A:$BF,MATCH('BI Template_DemandWHSI'!$A16,ProposedHeader,0),FALSE) -> -0.0645 | G16: -3.225 | H16: 0 | I16: 0 | J16: -0.001761317831
A17: Group 1 Volumetric Deferral/Variance Account Rider (Sub-Account RSVA Wholesale Market Service Charge & RSVA Power) (2023) | B17: =IF($B$9="kWh",$B$4,$B$5) -> 50 | C17: =VLOOKUP($B$3,'Data Current Rates'!$A:$AJ,MATCH('BI Template_DemandWHSI'!$A17,CurrentHeader,0),FALSE) -> -0.1351 | D17: -6.755 | E17: 50 | F17: =VLOOKUP($C$3,'Data Proposed Rates'!$A:$BF,MATCH('BI Template_DemandWHSI'!$A17,ProposedHeader,0),FALSE) -> -0.1351 | G17: -6.755 | H17: 0 | I17: 0 | J17: -0.003689209907
A18: Group 1 Volumetric Deferral/Variance Account Rider (Sub-Account Global Adjustment) (2023) | B18: =$B$4 -> 9370 | C18: =VLOOKUP($B$3,'Data Current Rates'!$A:$AJ,MATCH('BI Template_DemandWHSI'!$A18,CurrentHeader,0),FALSE) -> -0.0009 | D18: -8.433 | E18: =$C$4 -> 9370 | F18: =VLOOKUP($C$3,'Data Proposed Rates'!$A:$BF,MATCH('BI Template_DemandWHSI'!$A18,ProposedHeader,0),FALSE) -> -0.0009 | G18: -8.433 | H18: 0 | I18: 0 | J18: -0.004605641324
A19: Group 1 Volumetric DVA Rider (Excl 1595) (2024) | E19: =IF($C$9="kWh",$C$4,$C$5) -> 50 | F19: =VLOOKUP($C$3,'Data Proposed Rates'!$A:$BF,MATCH('BI Template_DemandWHSI'!$A19,ProposedHeader,0),FALSE) -> 0.2969 | G19: =E19*F19 -> 14.845 | H19: =G19-D19 -> 14.845 | I19: =IF(ISERROR(H19/ABS(D19)),"N/A",(H19/ABS(D19))) -> N/A | J19: 0.008107523473
A20: Group 1 Volumetric Deferral/Variance Account Rider (Sub-Account RSVA Wholesale Market Service Charge & RSVA Power) (2024) | E20: =IF($C$9="kWh",$C$4,$C$5) -> 50 | F20: =VLOOKUP($C$3,'Data Proposed Rates'!$A:$BF,MATCH('BI Template_DemandWHSI'!$A20,ProposedHeader,0),FALSE) -> 0.2442 | G20: 12.21 | H20: 12.21 | I20: N/A | J20: 0.00666843123
A21: Group 1 Volumetric Deferral/Variance Account Rider (Sub-Account Global Adjustment) (2024) | E21: =E18 -> 9370 | F21: =VLOOKUP($C$3,'Data Proposed Rates'!$A:$BF,MATCH('BI Template_DemandWHSI'!$A21,ProposedHeader,0),FALSE) -> -0.0045 | G21: -42.165 | H21: -42.165 | I21: N/A | J21: -0.02302820662
A22: Group 1 Volumetric Deferral/Variance Account Rider (Sub-Account CBR) (2024) | E22: 50 | F22: =VLOOKUP($C$3,'Data Proposed Rates'!$A:$BF,MATCH('BI Template_DemandWHSI'!$A22,ProposedHeader,0),FALSE) -> -0.1981 | G22: -9.905 | H22: -9.905 | I22: N/A | J22: -0.005409566858
A23: Volumetric Rider for Account 1592 | B23: =IF($B$9="kWh",$B$4,$B$5) -> 50 | C23: =VLOOKUP($B$3,'Data Current Rates'!$A:$AJ,MATCH('BI Template_DemandWHSI'!$A23,CurrentHeader,0),FALSE) -> -0.0392 | D23: =B23*C23 -> -1.96 | E23: =IF($C$9="kWh",$C$4,$C$5) -> 50 | F23: =VLOOKUP($C$3,'Data Proposed Rates'!$A:$BF,MATCH('BI Template_DemandWHSI'!$A23,ProposedHeader,0),FALSE) -> -0.0392 | G23: =E23*F23 -> -1.96 | H23: =G23-D23 -> 0 | I23: =IF(ISERROR(H23/ABS(D23)),"N/A",(H23/ABS(D23))) -> 0 | J23: -0.001070444325
A24: Sub-Total: Distribution | D24: =SUM(INDIRECT("D14:D"&ROW()-1)) -> 277.537 | G24: =SUM(INDIRECT("g14:g"&ROW()-1)) -> 252.522 | H24: =G24-D24 -> -25.015 | I24: -0.09013212653 | J24: =G24/G$36 -> 0.1379136438
A25: Retail Transmission Rate – Network Service Rate | B25: =IF($B$9="kWh",$B$4,$B$5) -> 50 | C25: =VLOOKUP($B$3,'Data Current Rates'!$A:$AJ,MATCH('BI Template_DemandWHSI'!$A25,CurrentHeader,0),FALSE) -> 3.4934 | D25: =B25*C25 -> 174.67 | E25: =IF($C$9="kWh",$C$4,$C$5) -> 50 | F25: =VLOOKUP($C$3,'Data Proposed Rates'!$A:$BF,MATCH('BI Template_DemandWHSI'!$A25,ProposedHeader,0),FALSE) -> 3.4934 | G25: =E25*F25 -> 174.67 | H25: =G25-D25 -> 0 | I25: 0 | J25: 0.09539515831
A26: Retail Transmission Rate – Line and Transformation Connection Service Rate | B26: =IF($B$9="kWh",$B$4,$B$5) -> 50 | C26: =VLOOKUP($B$3,'Data Current Rates'!$A:$AJ,MATCH('BI Template_DemandWHSI'!$A26,CurrentHeader,0),FALSE) -> 2.6804 | D26: =B26*C26 -> 134.02 | E26: =IF($C$9="kWh",$C$4,$C$5) -> 50 | F26: =VLOOKUP($C$3,'Data Proposed Rates'!$A:$BF,MATCH('BI Template_DemandWHSI'!$A26,ProposedHeader,0),FALSE) -> 2.6804 | G26: =E26*F26 -> 134.02 | H26: =G26-D26 -> 0 | I26: 0 | J26: 0.07319436146
A27: Sub-Total: Retail Transmission | D27: =SUM(D25:D26) -> 308.69 | G27: =SUM(G25:G26) -> 308.69 | H27: =G27-D27 -> 0 | I27: 0 | J27: 0.1685895198
A28: Sub-Total: Delivery (based on two-tier RPP prices) | D28: =SUM(D24,D27) -> 586.227 | G28: =SUM(G24,G27) -> 561.212 | H28: =G28-D28 -> -25.015 | I28: -0.04267118369 | J28: 0.3065031636
A29: Wholesale Market Service Rate (WMS) - not including CBR | B29: =B8 -> 9679.21 | C29: =VLOOKUP($A29,'Data Pass Through'!$A:$D,2,FALSE) -> 0.0041 | D29: =B29*C29 -> 39.684761 | E29: =$C$8 -> 9679.21 | F29: =VLOOKUP($A29,'Data Pass Through'!$A:$D,3,FALSE) -> 0.0041 | G29: =E29*F29 -> 39.684761 | H29: =G29-D29 -> 0 | I29: 0 | J29: 0.02167363633
A30: Capacity Based Recovery (CBR) - Applicable for Class B Customers | B30: =B8 -> 9679.21 | C30: =VLOOKUP($A30,'Data Pass Through'!$A:$D,2,FALSE) -> 0.0004 | D30: =B30*C30 -> 3.871684 | E30: =$C$8 -> 9679.21 | F30: =VLOOKUP($A30,'Data Pass Through'!$A:$D,3,FALSE) -> 0.0004 | G30: =E30*F30 -> 3.871684 | H30: 0 | I30: 0 | J30: 0.002114501106
A31: Rural Rate Protection Charge | B31: =B8 -> 9679.21 | C31: =VLOOKUP($A31,'Data Pass Through'!$A:$D,2,FALSE) -> 0.0014 | D31: 13.550894 | E31: 9679.21 | F31: =VLOOKUP($A31,'Data Pass Through'!$A:$D,3,FALSE) -> 0.0014 | G31: 13.550894 | H31: 0 | I31: 0 | J31: 0.007400753869
A32: Standard Supply Service – Administration Charge (if applicable) | B32: 1 | C32: =VLOOKUP($A32,'Data Pass Through'!$A:$D,2,FALSE) -> 0.25 | D32: =B32*C32 -> 0.25 | E32: =B32 -> 1 | F32: =VLOOKUP($A32,'Data Pass Through'!$A:$D,3,FALSE) -> 0.25 | G32: 0.25 | H32: 0 | I32: 0 | J32: 0.000136536266
A33: Sub-Total: Regulatory | D33: =SUM(D29:D32) -> 57.357339 | G33: =SUM(G29:G32) -> 57.357339 | H33: 0 | I33: 0 | J33: 0.03132542757
A34: Total Electricty Charge on WAHSP | D34: =SUM(D13,D28,D33) -> 1645.382574 | G34: =SUM(G13,G28,G33) -> 1620.367574 | H34: -25.015 | I34: -0.01520315117 | J34: 0.8849557522
A35: HST | C35: 0.13 | D35: =D34*C35 -> 213.8997346 | F35: =C35 -> 0.13 | G35: =G34*F35 -> 210.6477846 | H35: -3.25195 | I35: -0.01520315117 | J35: 0.1150442478
A36: Total Amount on WAHSP | D36: =SUM(D34:D35) -> 1859.282309 | G36: =SUM(G34:G35) -> 1831.015359 | H36: -28.26695 | I36: -0.01520315117 | J36: 1

Sheet BI Template_unmWHSI (hidden)
A1: 2024 Bill Impacts (Average Consumption Level) - St Lgt_WHSI
A3: Rate Class | B3: =VLOOKUP(A1,'Data BI List Acq_Seas'!C:E,2,FALSE) -> St Lgt-WHSI | C3: =VLOOKUP(A1,'Data BI List Acq_Seas'!C:E,3,FALSE) -> St Lgt-WHSI
A4: Monthly Consumption (kWh) | B4: =IF(COUNTIF(A1,"*Low*")>0,VLOOKUP(B3,'Data Billing Quantities'!$A:$Z,MATCH("Low kWh",'Data Billing Quantities'!4:4,0),FALSE),IF(COUNTIF(A1,"*Typical*")>0,VLOOKUP(B3,'Data Billing Quantities'!$A:$Z,MATCH("Typical kWh",'Data Billing Quantities'!4:4,0),FALSE),IF(COUNTIF(A1,"*Average*")>0,VLOOKUP(B3,'Data Billing Quantities'!$A:$Z,MATCH("Average kWh",'Data Billing Quantities'!4:4,0),FALSE),IF(COUNTIF(A1,"*High*")>0,VLOOKUP(B3,'Data Billing Quantities'!$A:$Z,MATCH("High kWh",'Data Billing Quantities'!4:4,0),FALSE),"error")))) -> 37079 | C4: =B4 -> 37079
A5: Peak (kW) | B5: =IF(COUNTIF(A1,"*Low*")>0,VLOOKUP(B3,'Data Billing Quantities'!$A:$Z,MATCH("Low kW",'Data Billing Quantities'!4:4,0),FALSE),IF(COUNTIF(A1,"*Typical*")>0,VLOOKUP(B3,'Data Billing Quantities'!$A:$Z,MATCH("Typical kW",'Data Billing Quantities'!4:4,0),FALSE),IF(COUNTIF(A1,"*Average*")>0,VLOOKUP(B3,'Data Billing Quantities'!$A:$Z,MATCH("Average kW",'Data Billing Quantities'!4:4,0),FALSE),IF(COUNTIF(A1,"*High*")>0,VLOOKUP(B3,'Data Billing Quantities'!$A:$Z,MATCH("High kW",'Data Billing Quantities'!4:4,0),FALSE),"error")))) -> 104 | C5: =B5 -> 104
A6: Loss factor | B6: =VLOOKUP(B3,'Data Billing Quantities'!A:D,MATCH(A6,'Data Billing Quantities'!4:4,0),FALSE) -> 1.092 | C6: =VLOOKUP(C3,'Data Billing Quantities'!A:D,MATCH(A6,'Data Billing Quantities'!4:4,0),FALSE) -> 1.092
A7: Commodity Threshold | B7: =VLOOKUP(B3,'Data Billing Quantities'!A:D,MATCH(A7,'Data Billing Quantities'!4:4,0),FALSE) -> 750 | C7: =B7 -> 750
A8: Monthly Consumption (kWh) - Uplifted | B8: =B4*B6 -> 40490.268 | C8: =C4*C6 -> 40490.268
A9: Charge determinant | B9: =VLOOKUP(B3,'Data Billing Quantities'!A:D,MATCH(A9,'Data Billing Quantities'!4:4,0),FALSE) -> kWh | C9: =VLOOKUP(C3,'Data Billing Quantities'!A:D,MATCH(A9,'Data Billing Quantities'!4:4,0),FALSE) -> kWh
B11: Volume | C11: Current Rate ($) | D11: Current Charge ($) | E11: Volume | F11: Proposed Rate ($) | G11: Proposed Charge ($) | H11: Change ($) | I11: Change (%) | J11: % of Total Bill
A12: Energy First Tier | B12: =IF(B4>B7,B7,B4) -> 750 | C12: =VLOOKUP($A12,'Data Pass Through'!$A:$D,2,FALSE) -> 0.103 | D12: =B12*C12 -> 77.25 | E12: =B12 -> 750 | F12: =VLOOKUP($A12,'Data Pass Through'!$A:$D,3,FALSE) -> 0.103 | G12: =E12*F12 -> 77.25 | H12: =G12-D12 -> 0 | I12: =IF(ISERROR(H12/ABS(D12)),"N/A",(H12/ABS(D12))) -> 0 | J12: =G12/$G$37 -> 0.006740787959
A13: Energy Second Tier | B13: =IF(B4>B7,(B4)-B7,0) -> 36329 | C13: =VLOOKUP($A13,'Data Pass Through'!$A:$D,2,FALSE) -> 0.125 | D13: =B13*C13 -> 4541.125 | E13: =B13 -> 36329 | F13: =VLOOKUP($A13,'Data Pass Through'!$A:$D,3,FALSE) -> 0.125 | G13: =E13*F13 -> 4541.125 | H13: 0 | I13: 0 | J13: 0.3962558022
A14: Sub-Total: Energy (RPP Tiered) | D14: =SUM(D12:D13) -> 4618.375 | G14: =SUM(G12:G13) -> 4618.375 | H14: 0 | I14: 0 | J14: 0.4029965902
A15: Service Charge | B15: =IF(VLOOKUP(B$3,'Data Billing Quantities'!A:P,MATCH("Acquired Street Light Service Charge",'Data Billing Quantities'!$4:$4,0),FALSE)>0,VLOOKUP(B$3,'Data Billing Quantities'!A:P,MATCH("Acquired Street Light Service Charge",'Data Billing Quantities'!$4:$4,0),FALSE),1) -> 1 | C15: =VLOOKUP($B$3,'Data Current Rates'!$A:$AJ,MATCH('BI Template_unmWHSI'!$A15,CurrentHeader,0),FALSE) -> 3.27 | D15: =B15*C15 -> 3.27 | E15: 1 | F15: =VLOOKUP($C$3,'Data Proposed Rates'!$A:$BF,MATCH('BI Template_unmWHSI'!$A15,ProposedHeader,0),FALSE) -> 3.27 | G15: =E15*F15 -> 3.27 | H15: 0 | I15: 0 | J15: 0.0002853382087
A16: Distribution Volumetric Charge | B16: =IF($B$9="kWh",$B$4,$B$5) -> 37079 | C16: =VLOOKUP($B$3,'Data Current Rates'!$A:$AJ,MATCH('BI Template_unmWHSI'!$A16,CurrentHeader,0),FALSE) -> 0.1186 | D16: =B16*C16 -> 4397.5694 | E16: =IF($C$9="kWh",$C$4,$C$5) -> 37079 | F16: =VLOOKUP($C$3,'Data Proposed Rates'!$A:$BF,MATCH('BI Template_unmWHSI'!$A16,ProposedHeader,0),FALSE) -> 0.1186 | G16: 4397.5694 | H16: 0 | I16: 0 | J16: 0.383729228
A17: Group 1 Volumetric DVA Rider (General) (2023) | B17: =IF($B$9="kWh",$B$4,$B$5) -> 37079 | C17: =VLOOKUP($B$3,'Data Current Rates'!$A:$AJ,MATCH('BI Template_unmWHSI'!$A17,CurrentHeader,0),FALSE) -> -0.0006 | D17: =B17*C17 -> -22.2474 | E17: =IF($C$9="kWh",$C$4,$C$5) -> 37079 | F17: =VLOOKUP($C$3,'Data Proposed Rates'!$A:$BF,MATCH('BI Template_unmWHSI'!$A17,ProposedHeader,0),FALSE) -> -0.0006 | G17: -22.2474 | H17: 0 | I17: 0 | J17: -0.001941294577
A18: Group 1 Volumetric DVA Rider (Excl 1595) (2024) | E18: =IF($B$9="kWh",$B$4,$B$5) -> 37079 | F18: =VLOOKUP($C$3,'Data Proposed Rates'!$A:$BF,MATCH('BI Template_unmWHSI'!$A18,ProposedHeader,0),FALSE) -> 0.0015 | G18: =E18*F18 -> 55.6185 | H18: =G18-D18 -> 55.6185 | I18: =IF(ISERROR(H18/ABS(D18)),"N/A",(H18/ABS(D18))) -> N/A | J18: =G18/$G$37 -> 0.004853236441
A19: Group 1 Volumetric Deferral/Variance Account Rider (Sub-Account CBR) (2024) | E19: =IF($B$9="kWh",$B$4,$B$5) -> 37079 | F19: =VLOOKUP($C$3,'Data Proposed Rates'!$A:$BF,MATCH('BI Template_unmWHSI'!$A19,ProposedHeader,0),FALSE) -> -0.0006 | G19: -22.2474 | H19: -22.2474 | I19: N/A | J19: -0.001941294577
